Workbook

Sheet Instructions
A1: Instructions for MnDOT's 2016 Traffic Forecast MnESAL
G2: Last Updated: 2/2/2017
A3: There are 8 different worksheets:
A5: 1. Title: | B5: Do not need to manually enter anything, all information will automatically
B6: come from the Cover Sheet.
A8: 2. Cover: | B8: Enter all basic data in light orange filled cells that is copied to other
B9: worksheets.
B10: Use the dropdown to generate the number of B segments if any.
B11: (system only generates one segment at a time)
B12: Add all remarks.
A14: 3. Forecast A: | B14: Enter values in light orange filled cells, and then click copy AADT over to
B15: worksheet if AADT values appear on the right.
B16: If AADT values do not appear, manually type them in A7:B22.
A18: 4. ESAL A: | B18: In cell C3, the worksheet is saved to two-way. If you are working on a
B19: one-way road, ramp, or roundabout, change the drop down to one-way.
A21: 5. Forecast B: | B21: Follow same directions as Forecast A.
A23: 6. ESAL B: | B23: Follow same directions as ESAL A.
B24: Change User Adjustment to Base/Futue Yr Vol accordingly, so Base
B25: Volume and Future Volume of % change from A segment are within
B26: -50% and 50%.
B27: The Urban/Rural area is derived from the sequence number, but can be
B28: changed if needed.
A30: 7. VC 1-4: | B30: Enter values in light orange filled cells.
B31: Enter the Month Numer of Count and 16 or 24 HR if needed.
B32: Enter the raw count for each vehicle class in C8:C15 where indicated in
B33: light yellow if needed.
B34: The contrain AADT is derived from the sequence number of the A segment
B35: The Urban/Rural area is derived from the sequence number, but can be
B36: changed if needed.
A38: 8. VC Avg: | B38: Numbers are automatically transferred.
B39: If Heavy 5+ Ax Semi Percentages do not transfer for a manual count,
B40: enter the percent of Tank, Dump, Grain, and Stake Loaded.
A42: Save workbook as a PDF.
A44: Order of worksheets: | B44: Title Sheet
B45: Cover Sheet
B46: Project Location Map
B47: ESAL A Report
B48: ESAL A Worksheet
B49: ESAL B Report(s)
B50: ESAL B Worksheet(s)
B51: Appendix
B52: Least Square Analysis
B53: Vehicle Class Expansion Worksheet
B54: Vehicle Class Reports
B55: AADT Diagram
B56: Other Supporting Documents

Sheet Title
C2: Traffic Forecast for Cumulative ESALs
H5: Note: The information on this sheet is pulled in from the "Cover" tab
D7: =Cover!G12 -> Forecast #: | E7: =IF(Cover!H12=0," ",Cover!H12) -> 
D8: =Cover!G13 -> SP#: | E8: =IF(Cover!H13=0," ",Cover!H13) -> 
B10: =IF(Cover!H15=0," ",Cover!H15 & Cover!H14) -> 
B11: =IF(Cover!$C$20=0," ",Cover!$C$20) -> 
B37: Office of Transportation System Management
B38: 395 John Ireland Boulevard, MS 450
B39: Saint Paul, MN 55155
F41: =Cover!C10 -> 2019-05-29T08:06:35.500

Sheet Cover
C1: Minnesota Department of Transportation | J1: Non-print area
B2: =IF(Cover!H15="Interstate",Cover!J25&Cover!H14,IF(Cover!H15="US Trunk",Cover!J26&Cover!H14,IF(Cover!H15="MN Trunk",Cover!J27&Cover!H14,IF(Cover!H15="CSAH",Cover!J28&Cover!H14,IF(Cover!H15="CR",Cover!J29&Cover!H14," "))))) ->  | C2: Office of Transportation System Management | H2: Phone: (651) 366-3856
C3: 395 John Ireland Boulevard, MS 450 | H3: Fax: (651) 366-3886
C4: Saint Paul, MN 55155
B6: TO: | F6: FROM: | G6: Gene Hicks
G7: Section Director
G8: Traffic Forecasting and Analysis, MS 450
B10: DATE: | C10: =NOW() -> 2019-05-29T08:06:35.500 | L10: 0
B11: SUBJECT: | C11: Traffic Forecast for Cumulative ESALs | J11: Interstate | L11: 1
G12: Forecast #: | J12: US Trunk | L12: 2
A13: Author: | G13: SP#: | J13: MN Trunk | L13: 3
A14: Author's District: | G14: Route Num: | J14: CSAH | L14: 4
A15: District: | G15: Route Type: | J15: CR | L15: 5
A16: Letting Date: | G16: County: | L16: Denotes fields to be filled in
A17: Program Category: | G17: Beg Reference Post:
A18: Project Manager: | G18: End Reference Post: | K18: Select the number of B segments in drop down below and click generate
G19: Miles:
B20: Project Limits: | K20: 5 | L20: Number of B Segments
B22: ESAL SUMMARY:
A23: Seq # | B23: Segment Location | D23: AADT | F23: 20 YEAR | H23: 35 YEAR
D24: =IF('Forecast A'!B4="","",'Forecast A'!B4) ->  | E24: =IF('Forecast A'!B4="","",'Forecast A'!B4+20) ->  | F24: BESAL | G24: CESAL | H24: BESAL | I24: CESAL
A25: =IF('Forecast A'!H4="","",'Forecast A'!H4) ->  | B25: =IF('Forecast A'!B3:F3="","",'Forecast A'!B3:F3) ->  | D25: =IF('Forecast A'!H4="","",'Forecast A'!I33) ->  | E25: =IF('Forecast A'!H4="","",'Forecast A'!I34) ->  | F25: =IF('ESAL A'!D55=" "," ",'ESAL A'!F82) ->  | G25: =IF('ESAL A'!D55=" "," ",'ESAL A'!G82) ->  | H25: =IF('ESAL A'!D55=" "," ",'ESAL A'!F88) ->  | I25: =IF('ESAL A'!D55=" "," ",'ESAL A'!G88) ->  | J25: I | K25: Segments in other spreadsheets need to be complied into one ESAL Summary
A26: =IF('Forecast B1'!H4="","",'Forecast B1'!H4) ->  | B26: =IF('Forecast B1'!B3:F3="","",'Forecast B1'!B3:F3) ->  | D26: =IF('Forecast B1'!H4="","",'Forecast B1'!I33) ->  | E26: =IF('Forecast B1'!H4="","",'Forecast B1'!I34) ->  | F26: =IF('ESAL B1'!D65=" "," ",'ESAL B1'!F92) ->  | G26: =IF('ESAL B1'!D65=" "," ",'ESAL B1'!G92) ->  | H26: =IF('ESAL B1'!D65=" "," ",'ESAL B1'!F98) ->  | I26: =IF('ESAL B1'!D65=" "," ",'ESAL B1'!G98) ->  | J26: US
A27: =IF('Forecast B2'!H4="","",'Forecast B2'!H4) ->  | B27: =IF('Forecast B2'!B3:F3="","",'Forecast B2'!B3:F3) ->  | D27: =IF('Forecast B2'!H4="","",'Forecast B2'!I33) ->  | E27: =IF('Forecast B2'!H4="","",'Forecast B2'!I34) ->  | F27: =IF('ESAL B2'!D65=" "," ",'ESAL B2'!F92) ->  | G27: =IF('ESAL B2'!D65=" "," ",'ESAL B2'!G92) ->  | H27: =IF('ESAL B2'!D65=" "," ",'ESAL B2'!F98) ->  | I27: =IF('ESAL B2'!D65=" "," ",'ESAL B2'!G98) ->  | J27: MN | K27: Recommended Sheet Order:
A28: =IF('Forecast B3'!H4="","",'Forecast B3'!H4) ->  | B28: =IF('Forecast B3'!B3:F3="","",'Forecast B3'!B3:F3) ->  | D28: =IF('Forecast B3'!H4="","",'Forecast B3'!I33) ->  | E28: =IF('Forecast B3'!H4="","",'Forecast B3'!I34) ->  | F28: =IF('ESAL B3'!D65=" "," ",'ESAL B3'!F92) ->  | G28: =IF('ESAL B3'!D65=" "," ",'ESAL B3'!G92) ->  | H28: =IF('ESAL B3'!D65=" "," ",'ESAL B3'!F98) ->  | I28: =IF('ESAL B3'!D65=" "," ",'ESAL B3'!G98) ->  | J28: CSAH | K28: Title Sheet
A29: =IF('Forecast B4'!H4="","",'Forecast B4'!H4) ->  | B29: =IF('Forecast B4'!B3:F3="","",'Forecast B4'!B3:F3) ->  | D29: =IF('Forecast B4'!H4="","",'Forecast B4'!I33) ->  | E29: =IF('Forecast B4'!H4="","",'Forecast B4'!I34) ->  | F29: =IF('ESAL B4'!D65=" "," ",'ESAL B4'!F92) ->  | G29: =IF('ESAL B4'!D65=" "," ",'ESAL B4'!G92) ->  | H29: =IF('ESAL B4'!D65=" "," ",'ESAL B4'!F98) ->  | I29: =IF('ESAL B4'!D65=" "," ",'ESAL B4'!G98) ->  | J29: CR | K29: Cover Sheet
A30: =IF('Forecast B5'!H4="","",'Forecast B5'!H4) ->  | B30: =IF('Forecast B5'!B3:F3="","",'Forecast B5'!B3:F3) ->  | D30: =IF('Forecast B5'!H4="","",'Forecast B5'!I33) ->  | E30: =IF('Forecast B5'!H4="","",'Forecast B5'!I34) ->  | F30: =IF('ESAL B5'!D65=" "," ",'ESAL B5'!F92) ->  | G30: =IF('ESAL B5'!D65=" "," ",'ESAL B5'!G92) ->  | H30: =IF('ESAL B5'!D65=" "," ",'ESAL B5'!F98) ->  | I30: =IF('ESAL B5'!D65=" "," ",'ESAL B5'!G98) ->  | K30: Project Location map
K31: ESAL Report A
K32: ESAL Worksheet A
K33: ESAL Report(s) B
K34: ESAL Worksheet(s) B
K35: Appendix
A36: REMARKS: | K36: Least Squares Analysis (A & B)
K37: Vehicle Class Expansion Worksheet
K38: Vehicle Class Reports
K39: AADT Diagram
K40: Other Suppporting Documents

Sheet Forecast A
A1: LEAST SQUARES WORKSHEET | E1: SEGMENT A1 | J1: Non-print area
A2: ROUTE: | B2: =IF(Cover!H15="Interstate",Cover!J25&Cover!H14,IF(Cover!H15="US Trunk",Cover!J26&Cover!H14,IF(Cover!H15="MN Trunk",Cover!J27&Cover!H14,IF(Cover!H15="CSAH",Cover!J28&Cover!H14,IF(Cover!H15="CR",Cover!J29&Cover!H14," "))))) ->  | D2: SP#: | E2: =IF(Cover!H13=0," ",Cover!H13) ->  | G2: DATE | H2: =Cover!C10 -> 2019-05-29T08:06:35.500
A3: LOCATION: | G3: Miles : | H3: =IF(H4="","",VLOOKUP(H4,AADT_Data!A:AB,28,FALSE)) ->  | J3: =IF(B3="","Location field is empty. Please enter location description. E.g. MN 169 to CSAH 5","") -> Location field is empty. Please enter location description. E.g. MN 169 to CSAH 5
A4: BASE YEAR: | E4: FORECAST YEAR: | F4: =IF(B4="","",B4+20) ->  | G4: Seq # | J4: =IF(H4="","No Seq # is listed. Please enter sequence number","") -> No Seq # is listed. Please enter sequence number
G5: # of lanes | J5: =IF(H5="","Please indicate the number of lanes in this segment","") -> Please indicate the number of lanes in this segment
A6: YEAR | B6: FLOW MAP AADT (SEG A) | J6: Year | K6: AADT
C7: 850 | J7: =IF(LARGE($D$64:$D$89,E74)=0,"",LARGE($D$64:$D$89,E74)) ->  | K7: =IF(ISNA(VLOOKUP(F74,$A$64:$C$89,3,FALSE)),"",VLOOKUP(F74,$A$64:$C$89,3,FALSE)) ->  | L7: Note: only contains data
C8: 880 | L8: updated to 2016 AADT
C9: 880
C10: 1350
C11: 1150
C12: 1000
C13: 1150
C14: 1100
C15: 1100
C16: 1100
C17: 1000
A19: 2011 | B19: 28000
A20: 2013 | B20: 24800
A21: 2015 | B21: 24500 | J21: =IF(LARGE($D$64:$D$89,E88)=0,"",LARGE($D$64:$D$89,E88)) -> 
A22: 2017 | B22: 27000 | J22: =IF(LARGE($D$64:$D$89,E89)=0,"",LARGE($D$64:$D$89,E89)) ->  | K22: =IF(ISNA(VLOOKUP(F89,$A$64:$C$89,3,FALSE)),"",VLOOKUP(F89,$A$64:$C$89,3,FALSE)) -> 
A24: LEAST SQUARES BASED FORECASTS:
A25: Year | B25: AADT | D25: Calc | E25: ADT Calc
A26: =INDEX(A7:A22,MATCH(9.99999999999999E+307,B7:B22)) -> 2017 | B26: =FORECAST(A26,B7:B22,A7:A22) -> 25580 | D26: =VLOOKUP(A26,$A$13:$B$22,2,FALSE)-B26 -> 1420 | E26: =B26+D26 -> 27000
A27: =B4 -> 0 | B27: =FORECAST(A27,B7:B22,A7:A22) -> 358385 | E27: =B27+D26 -> 359805 | F27: =E27 -> 359805
A28: =F4 ->  | B28: =FORECAST(A28,B7:B22,A7:A22) ->  | E28: =B28+D26 ->  | F28: =E26+(E28-E26)*F40 -> 
A30: Statistics | B30: AADT | E30: Raw Least Squares Forecasts | H30: Demographically Adjusted Forecasts
A31: R 2 | B31: =RSQ(B7:B22,A7:A22) -> 0.06282088261 | E31: YEAR | F31: AADT | H31: YEAR | I31: AADT
A32: SLOPE | B32: =SLOPE(B7:B22,A7:A22) -> -165 | E32: =A26 -> 2017 | F32: =ROUND(E26,-1) -> 27000 | H32: =A26 -> 2017 | I32: =F32 -> 27000
A33: INTERCEPT | B33: =INTERCEPT(B7:B22,A7:A22) -> 358385 | E33: =A27 -> 0 | F33: =ROUND(E27,-1) -> 359810 | H33: =A27 -> 0 | I33: =ROUND(((I34-I32)/(H34-H32)*(H33-H32)+I32),-1) -> 
A34: N | B34: =COUNT(B7:B22) -> 4 | E34: =A28 ->  | F34: =ROUND(E28,-1) ->  | H34: =A28 ->  | I34: =ROUND(F32*(1+H38*(H34-H32)),-1) -> 
A35: NOTE:
A36: County Adjustment Factors were developed to Apply to Projected AADT. They are based on 1992-2007 VMT, Population, Labor Force, Household, and Employment Data. | E36: Slope Over Base Year | H36: Slope Over Base Year
E37: =B32/F33 -> -0.0004585753592 | H37: =((I34-I33)/(H34-H33)/I33) -> 
H38: =IF(E37*F40<=0.5%,0.5%,E37*F40) -> 
D39: COUNTY | F39: COUNTY FACTOR | H39: GROWTH PROFILE
D40: =UPPER(VLOOKUP(Cover!H16,$A$176:$C$263,1,FALSE)) ->  | F40: =VLOOKUP(Cover!H16,$A$176:$C$263,2,FALSE) ->  | H40: =UPPER(VLOOKUP(Cover!H16,$A$176:$C$263,3,FALSE)) -> 
B61: AADT_Data column reference
A63: year | C63: aadt | D63: data years | E63: nth largest
A64: 2018 | B64: 2 | C64: =VLOOKUP($H$4,AADT_Data!A:AA,B64,FALSE) ->  | D64: =IF(C64=0,0,A64) ->  | E64: 26 | F64: =IF(LARGE($D$64:$D$89,E64)=0,"",LARGE($D$64:$D$89,E64)) ->  | G64: =IF(ISNA(VLOOKUP(F64,$A$64:$C$89,3,FALSE)),"",VLOOKUP(F64,$A$64:$C$89,3,FALSE)) -> 
A65: 2017 | B65: 3 | C65: =VLOOKUP($H$4,AADT_Data!A:AA,B65,FALSE) ->  | D65: =IF(C65=0,0,A65) ->  | E65: 25
A66: 2016 | B66: 4 | C66: =VLOOKUP($H$4,AADT_Data!A:AA,B66,FALSE) ->  | D66: =IF(C66=0,0,A66) ->  | E66: 24
A67: 2015 | B67: 5 | C67: =VLOOKUP($H$4,AADT_Data!A:AA,B67,FALSE) ->  | D67: =IF(C67=0,0,A67) ->  | E67: 23
A68: 2014 | B68: 6 | C68: =VLOOKUP($H$4,AADT_Data!A:AA,B68,FALSE) ->  | D68: =IF(C68=0,0,A68) ->  | E68: 22
A69: 2013 | B69: 7 | C69: =VLOOKUP($H$4,AADT_Data!A:AA,B69,FALSE) ->  | E69: 21
A70: 2012 | B70: 8 | C70: =VLOOKUP($H$4,AADT_Data!A:AA,B70,FALSE) ->  | E70: 20
A71: 2011 | B71: 9 | C71: =VLOOKUP($H$4,AADT_Data!A:AA,B71,FALSE) ->  | E71: 19
A72: 2010 | B72: 10 | C72: =VLOOKUP($H$4,AADT_Data!A:AA,B72,FALSE) ->  | E72: 18
A73: 2009 | B73: 11 | C73: =VLOOKUP($H$4,AADT_Data!A:AA,B73,FALSE) ->  | E73: 17
A74: 2008 | B74: 12 | C74: =VLOOKUP($H$4,AADT_Data!A:AA,B74,FALSE) ->  | E74: 16
A75: 2007 | B75: 13 | C75: =VLOOKUP($H$4,AADT_Data!A:AA,B75,FALSE) ->  | E75: 15
A76: 2006 | B76: 14 | C76: =VLOOKUP($H$4,AADT_Data!A:AA,B76,FALSE) ->  | E76: 14
A77: 2005 | B77: 15 | C77: =VLOOKUP($H$4,AADT_Data!A:AA,B77,FALSE) ->  | E77: 13
A78: 2004 | B78: 16 | C78: =VLOOKUP($H$4,AADT_Data!A:AA,B78,FALSE) ->  | E78: 12
A79: 2003 | B79: 17 | C79: =VLOOKUP($H$4,AADT_Data!A:AA,B79,FALSE) ->  | E79: 11
A80: 2002 | B80: 18 | C80: =VLOOKUP($H$4,AADT_Data!A:AA,B80,FALSE) ->  | E80: 10
A81: 2001 | B81: 19 | C81: =VLOOKUP($H$4,AADT_Data!A:AA,B81,FALSE) ->  | E81: 9
A82: 2000 | B82: 20 | C82: =VLOOKUP($H$4,AADT_Data!A:AA,B82,FALSE) ->  | E82: 8
A83: 1999 | B83: 21 | C83: =VLOOKUP($H$4,AADT_Data!A:AA,B83,FALSE) ->  | E83: 7
A84: 1998 | B84: 22 | C84: =VLOOKUP($H$4,AADT_Data!A:AA,B84,FALSE) ->  | E84: 6
A85: 1997 | B85: 23 | C85: =VLOOKUP($H$4,AADT_Data!A:AA,B85,FALSE) ->  | E85: 5
A86: 1996 | B86: 24 | C86: =VLOOKUP($H$4,AADT_Data!A:AA,B86,FALSE) ->  | E86: 4
A87: 1995 | B87: 25 | C87: =VLOOKUP($H$4,AADT_Data!A:AA,B87,FALSE) ->  | E87: 3
A88: 1994 | B88: 26 | C88: =VLOOKUP($H$4,AADT_Data!A:AA,B88,FALSE) ->  | E88: 2
A89: 1992 | B89: 27 | C89: =VLOOKUP($H$4,AADT_Data!A:AA,B89,FALSE) ->  | D89: =IF(C89=0,0,A89) ->  | E89: 1 | F89: =IF(LARGE($D$64:$D$89,E89)=0,"",LARGE($D$64:$D$89,E89)) ->  | G89: =IF(ISNA(VLOOKUP(F89,$A$64:$C$89,3,FALSE)),"",VLOOKUP(F89,$A$64:$C$89,3,FALSE)) -> 
A176: County | B176: Factor | C176: Area Type
A177: Aitkin | B177: 0.95 | C177: High Growth Area
A178: Anoka | B178: 0.95 | C178: High Growth Area
A179: Becker | B179: 0.9387339609 | C179: Medium Growth Area
A180: Beltrami | B180: 0.95 | C180: High Growth Area
A181: Benton | B181: 0.95 | C181: High Growth Area
A182: Big Stone | B182: 0.8944759202 | C182: Low Growth Area
A183: Blue Earth | B183: 0.75 | C183: Medium Growth Area
A184: Brown | B184: 0.7896922659 | C184: Low Growth Area
A185: Carlton | B185: 0.95 | C185: Medium Growth Area
A186: Carver | B186: 0.95 | C186: High Growth Area
A187: Cass | B187: 0.95 | C187: High Growth Area
A188: Chippewa | B188: 0.8733104434 | C188: Low Growth Area
A189: Chisago | B189: 0.881279837 | C189: High Growth Area
A190: Clay | B190: 0.75 | C190: Low Growth Area
A191: Clearwater | B191: 0.8438234218 | C191: Low Growth Area
A192: Cook | B192: 0.75 | C192: Medium Growth Area
A193: Cottonwood | B193: 0.8331705696 | C193: Low Growth Area
A194: Crow Wing | B194: 0.8832312646 | C194: High Growth Area
A195: Dakota | B195: 0.8547421962 | C195: High Growth Area
A196: Dodge | B196: 0.95 | C196: High Growth Area
A197: Douglas | B197: 0.8873831958 | C197: High Growth Area
A198: Faribault | B198: 0.865981121 | C198: Low Growth Area
A199: Fillmore | B199: 0.8896061418 | C199: Low Growth Area
A200: Freeborn | B200: 0.755552827 | C200: Low Growth Area
A201: Goodhue | B201: 0.9273647987 | C201: Medium Growth Area
A202: Grant | B202: 0.75 | C202: Low Growth Area
A203: Hennepin | B203: 0.8272566422 | C203: Low Growth Area
A204: Houston | B204: 0.8378015226 | C204: Low Growth Area
A205: Hubbard | B205: 0.8346205138 | C205: High Growth Area
A206: Isanti | B206: 0.95 | C206: High Growth Area
A207: Itasca | B207: 0.8886716849 | C207: Medium Growth Area
A208: Jackson | B208: 0.9180626248 | C208: Medium Growth Area
A209: Kanabec | B209: 0.8135838922 | C209: Medium Growth Area
A210: Kandiyohi | B210: 0.8938419831 | C210: Medium Growth Area
A211: Kittson | B211: 0.8024358458 | C211: Low Growth Area
A212: Koochiching | B212: 0.7937489549 | C212: Low Growth Area
A213: Lac qui Parle | B213: 0.75 | C213: Low Growth Area
A214: Lake | B214: 0.8562919136 | C214: Low Growth Area
A215: Lake of the Woods | B215: 0.9138862817 | C215: Low Growth Area
A216: Le Sueur | B216: 0.95 | C216: Medium Growth Area
A217: Lincoln | B217: 0.8857449991 | C217: Low Growth Area
A218: Lyon | B218: 0.75 | C218: Low Growth Area
A219: Mahnomen | B219: 0.75 | C219: Low Growth Area
A220: Marshall | B220: 0.95 | C220: Low Growth Area
A221: Martin | B221: 0.8201303604 | C221: Low Growth Area
A222: McLeod | B222: 0.8928164106 | C222: Medium Growth Area
A223: Meeker | B223: 0.926111411 | C223: Medium Growth Area
A224: Mille Lacs | B224: 0.95 | C224: High Growth Area
A225: Morrison | B225: 0.9495694712 | C225: Medium Growth Area
A226: Mower | B226: 0.8302978459 | C226: Low Growth Area
A227: Murray | B227: 0.8387247211 | C227: Medium Growth Area
A228: Nicollet | B228: 0.8240013933 | C228: Medium Growth Area
A229: Nobles | B229: 0.7549960093 | C229: Low Growth Area
A230: Norman | B230: 0.8022447962 | C230: Low Growth Area
A231: Olmsted | B231: 0.95 | C231: High Growth Area
A232: Otter Tail | B232: 0.8614026285 | C232: Medium Growth Area
A233: Pennington | B233: 0.95 | C233: Medium Growth Area
A234: Pine | B234: 0.8448776659 | C234: High Growth Area
A235: Pipestone | B235: 0.75 | C235: Low Growth Area
A236: Polk | B236: 0.75 | C236: Low Growth Area
A237: Pope | B237: 0.9029074643 | C237: Medium Growth Area
A238: Ramsey | B238: 0.8087858109 | C238: Low Growth Area
A239: Red Lake | B239: 0.95 | C239: Medium Growth Area
A240: Redwood | B240: 0.75 | C240: Low Growth Area
A241: Renville | B241: 0.8480251476 | C241: Low Growth Area
A242: Rice | B242: 0.8220040162 | C242: Medium Growth Area
A243: Rock | B243: 0.75 | C243: Low Growth Area
A244: Roseau | B244: 0.8847517198 | C244: Medium Growth Area
A245: Scott | B245: 0.95 | C245: High Growth Area
A246: Sherburne | B246: 0.95 | C246: High Growth Area
A247: Sibley | B247: 0.8646549065 | C247: Medium Growth Area
A248: St. Louis | B248: 0.850777855 | C248: Low Growth Area
A249: Stearns | B249: 0.8586120378 | C249: High Growth Area
A250: Steele | B250: 0.8848664209 | C250: Medium Growth Area
A251: Stevens | B251: 0.7999567113 | C251: Low Growth Area
A252: Swift | B252: 0.8706429381 | C252: Low Growth Area
A253: Todd | B253: 0.8988708026 | C253: Medium Growth Area
A254: Traverse | B254: 0.7652278953 | C254: Low Growth Area
A255: Wabasha | B255: 0.8182478469 | C255: Low Growth Area
A256: Wadena | B256: 0.95 | C256: Medium Growth Area
A257: Waseca | B257: 0.7963073355 | C257: Low Growth Area
A258: Washington | B258: 0.95 | C258: High Growth Area
A259: Watonwan | B259: 0.75 | C259: Low Growth Area
A260: Wilkin | B260: 0.75 | C260: Low Growth Area
A261: Winona | B261: 0.8284012539 | C261: Low Growth Area
A262: Wright | B262: 0.95 | C262: High Growth Area
A263: Yellow Medicine | B263: 0.8780713455 | C263: Low Growth Area

Sheet ESAL A
A1: CUMULATIVE ESALS WORKSHEET | D1: ='Forecast A'!E1 -> SEGMENT A1 | H1: Non-print area | N1: ONE-WAY
A2: SP#: | B2: =IF(Cover!H13="","",Cover!H13) ->  | N2: TWO-WAY
A3: ROUTE: | B3: ='Forecast A'!B2 ->  | C3: TWO-WAY | D3: # LANES: | E3: =IF('Forecast A'!H5=0," ",'Forecast A'!H5) ->  | F3: DATE: | G3: =Cover!C10 -> 2019-05-29T08:06:35.500
A4: LOCATION: | B4: =IF('Forecast A'!B3=0," ",'Forecast A'!B3) -> 
A5: VCL SITE #: | B5: ='VC Avg'!B2 ->  | H5: Use the Defaults when an "A" Segment on a local road does not contain a VC Site
B6: YEAR | C6: AADT | D6: CALC HCADT | F6: INIT CALC 5AX TST
A7: BASE YEAR: | B7: ='Forecast A'!B4 -> 0 | C7: ='Forecast A'!I33 ->  | D7: =SUM(B11:B19)*C7 ->  | F7: =SUM(B15:B17)*C7 ->  | H7: If the segment splits, multiple the percent heavies by 0.89% to indicate the 5 AX+ TST MAX.
A8: FORECAST YEAR: | B8: ='Forecast A'!F4 ->  | C8: ='Forecast A'!I34 ->  | D8: =SUM(F11:F19)*C8 ->  | F8: =SUM(F15:F17)*C8 ->  | H8: Then take the 5AX+ TST MAX and subtract 0.89% to indicate the 5AX+ TST OTHER
A10: RESULTING PERCENTS | D10: BASE YR VOLUME | E10: Additonal Trucks | F10: FORECAST % | G10: FUTURE YR VOLUME | I10: VEHICLE TYPE | J10: URBAN | K10: RURAL
A11: 2AX-6TIRE SU | B11: ='VC Avg'!L11 ->  | D11: =ROUND($C$7*B11+E11,0) ->  | E11: 0 | F11: =B11 ->  | G11: =ROUND($C$8*B11+E11,0) ->  | I11: 2AX-6TIRE SU | J11: 0.0152 | K11: 0.0317
A12: 3AX+ SU | B12: ='VC Avg'!L12 ->  | D12: =ROUND($C$7*B12+E12,0) ->  | E12: 0 | F12: =B12 ->  | G12: =ROUND($C$8*B12+E12,0) ->  | I12: 3AX+ SU | J12: 0.0046 | K12: 0.0164
A13: 3AX TST | B13: ='VC Avg'!L13 ->  | E13: 0 | G13: =ROUND($C$8*B13+E13,0) ->  | I13: 3AX TST | J13: 0.0009 | K13: 0.0028
A14: 4AX TST | B14: ='VC Avg'!L14 ->  | E14: 0 | I14: 4AX TST | J14: 0.0012 | K14: 0.005
A15: 5AX+ TST | B15: =IF('VC Avg'!L20<0.3,'VC Avg'!L15,"0") ->  | E15: 0 | I15: 5AX+ TST | J15: 0.0089 | K15: 0.0326
A16: (5AX+ TST MAX) | B16: =IF('VC Avg'!L20>=0.3,'VC Avg'!K24,0) ->  | E16: 0 | F16: =B16 ->  | I16: TR TR, BUSES | J16: 0.0047 | K16: 0.012
A17: (5AX+ TST OTH) | B17: =IF('VC Avg'!L20>=0.3,'VC Avg'!K25,0) ->  | E17: 0 | F17: =B17 ->  | I17: TWIN TRAILERS | J17: 0.0002 | K17: 0.0002
A18: TR TR, BUSES | B18: ='VC Avg'!L16 ->  | E18: 0 | F18: =B18 ->  | I18: TOTAL | J18: =SUM(J11:J17) -> 0.0357 | K18: =SUM(K11:K17) -> 0.1007
A19: TWIN TRAILERS | B19: ='VC Avg'!L17 ->  | E19: 0
F21: =A24-A23 ->  | G21: YR DESIGN
A22: SUMMARIES: | C22: AADT | D22: HCADT | E22: HCADT % | F22: LANE CUMULATIVE ESAL
A23: =B7 -> 0 | B23: FORECAST: | C23: =C7 ->  | D23: =D7 ->  | E23: =D7/C23 ->  | F23: | | G23: |
A24: =B8 ->  | B24: FORECAST: | C24: =C8 ->  | D24: =D8 ->  | E24: =D8/C24 ->  | F24: ***************** | G24: *****************
F25: FLEXIBLE | G25: RIGID
A26: DESIGN LANE FACTOR: | C26: =IF(C3=N2,CHOOSE((E3)+1,#VALUE!,1,0.5,0.5,0.45,0.45,0.35,0.35),CHOOSE(E3,1,0.9,0.7,0.7,0.7,0.7)) ->  | F26: =ROUND(CHOOSE(C119,F119,F120,F121,F122,F123,F124,F125,F126,F127,F128,F129,F130,F131,F132,F133,F134,F135,F136,F137,F138,F139,F140,F141,F142,F143,F144,F145,F146,F147,F148,F149,F150,F151,F152,F153,F154)*1.12,-3) ->  | G26: =ROUND(CHOOSE(C119,G119,G120,G121,G122,G123,G124,G125,G126,G127,G128,G129,G130,G131,G132,G133,G134,G135,G136,G137,G138,G139,G140,G141,G142,G143,G144,G145,G146,G147,G148,G149,G150,G151,G152,G153,G154)*1.12,-3) -> 
F27: ***************** | G27: *****************
A29: ADDITIONAL OUTPUTS: | E29: ESAL FACTORS
B30: BASE % | C30: FORECAST % | E30: FLEXIBLE | F30: RIGID
A31: 2AX-6TIRE SU | B31: =D11/$C$23 ->  | C31: =G11/$C$24 ->  | E31: 0.25 | F31: =IF(E31<0.11,E31,E31-0.01) -> 0.24
A32: 3AX+ SU | E32: 0.58 | F32: =IF(E32<0.36,(E32*1.62364-0.070909)+0.01,(IF(E32<0.4,E32*1.62364-0.07909,(IF(E32<0.66,(E32*1.62364-0.07909)-0.01,(IF(E32<0.69,E32*1.62364-0.07909,(E32*1.62364-0.07909)+0.02))))))) -> 0.8526212
A33: 3AX TST | E33: 0.39 | F33: =IF(E33<0.28,E33-0.01,(IF(E33<0.56,E33-0.02,E33-0.03))) -> 0.37
A34: 4AX TST | E34: 0.51 | F34: =IF(E34<0.41,E34,(IF(E34<0.47,E34+0.01,(IF(E34<0.54,E34+0.02,(IF(E34<0.61,E34+0.03,(IF(E34<0.67,E34+0.04,E34+0.05))))))))) -> 0.53
A35: 5AX+ TST | E35: 1.13 | F35: =(+E35*1.71536-0.05351)+0.005 -> 1.8898468
A36: (5AX+ TST MAX) | E36: 2.4 | F36: =(+E36*1.71536-0.05351)+0.005 -> 4.068354
A37: (5AX+ TST OTH) | E37: 0.87 | F37: =(+E37*1.71536-0.05351)+0.005 -> 1.4438532
A38: TR TR, BUSES | E38: 0.57 | F38: =E38*1.35636-0.03091 -> 0.7422152
A39: TWIN TRAILERS | E39: 2.4 | F39: =(+E39*0.97519-0.01494)+0.005 -> 2.330516
A40: Notes:
A48: CUMULATIVE ESAL REPORT | D48: ='Forecast A'!E1 -> SEGMENT A1
E49: DATE: | F49: =+Cover!C10 -> 2019-05-29T08:06:35.500
A50: ROUTE #: | B50: ='Forecast A'!B2 ->  | C50: DISTRICT: | D50: =IF(Cover!C15=0," ",Cover!C15) ->  | E50: SP#: | F50: =IF(+Cover!H13=0," ",+Cover!H13) -> 
A51: FORECAST #: | B51: =IF(Cover!H12=0," ",Cover!H12) ->  | C51: COUNTY: | D51: =IF(+Cover!H16=0," ",Cover!H16) ->  | E51: MILES: | F51: ='Forecast A'!H3 -> 
A52: DESCRIPTION: | B52: ='Forecast A'!B3 -> 0
A53: AUTHOR: | B53: =IF(Cover!C13=0," ",Cover!C13) ->  | E53: AUTHOR'S DISTRICT: | F53: =IF(Cover!C14=0," ",Cover!C14) -> 
A55: BASE YEAR NUMBER OF LANES: | D55: =IF('Forecast A'!H5=0," ",'Forecast A'!H5) -> 
G56: YEARLY GROWTH (SIMPLE %)
A57: TRAFFIC SUMMARY | D57: BASE YEAR | F57: DESIGN YEAR
A58: =C3 -> TWO-WAY | D58: =B7 -> 0 | F58: =B8 -> 
A59: AADT: | D59: =C7 ->  | F59: =C8 ->  | G59: =((F59-D59)/($F$58-$D$58))/D59 -> 
A60: DESIGN LANE: | D60: =ROUND(C26*D59,-1) ->  | F60: =ROUND(C26*F59,-1) -> 
A61: HCADT: | D61: =IF(+$C$114=0,10*ROUND(SUM(D11:D19)/10,0),10*ROUND((SUM(D11:D19)+SUM('ESAL B1'!D13:D21))/10,0)) ->  | F61: =IF(+C114=0,10*ROUND(SUM(G11:G19)/10,0),10*ROUND((SUM(G11:G19)+SUM('ESAL B1'!G13:G21))/10,0)) -> 
A62: SINGLE UNITS: | D62: =IF(C114=0,10*ROUND((D11+D12)/10,0),10*ROUND((+'ESAL B1'!D13+'ESAL B1'!D14+D11+D12)/10,0)) ->  | F62: =IF($C$114=0,10*ROUND((G11+G12)/10,0),10*ROUND((+'ESAL B1'!G13+'ESAL B1'!G14+G11+G12)/10,0)) -> 
A63: TST'S: | D63: =IF($C$114=0,SUM(D13:D17),SUM(D13:D17)+SUM('ESAL B1'!D15:D19)) ->  | F63: =IF($C$114=0,SUM(G13:G17),SUM(G13:G17)+SUM('ESAL B1'!G15:G19)) -> 
A64: 5 Ax+: | D64: =SUM(D15:D17) ->  | F64: =SUM(G15:G17) -> 
A66: ESAL SUMMARY
A67: ANNUAL DESIGN LANE ESAL
A68: FLEXIBLE: | D68: =D115*C26*365.25 ->  | F68: =F115*C26*365.25 -> 
A69: RIGID: | D69: =E115*C26*365.25 ->  | F69: =G115*C26*365.25 -> 
A72: CUMULATIVE DESIGN-LANE ESALS (10 TON) | F72: Design-lane factor: | G72: =C26 -> 
A73: FOR VARIABLE TIME PERIODS
A76: BASE | B76: DESIGN | C76: TIME | D76: DESIGN-LANE | F76: ESALS
A77: YEAR | B77: YEAR | C77: PERIOD | D77: TST'S | F77: FLEXIBLE | G77: RIGID
A78: =D58 -> 0 | B78: =D58+10 -> 10 | C78: 10 Year | D78: =G72*(10*($F$63-$D$63)/(F58-D58)+D63) ->  | F78: =ROUND(F129*1.12,-3) ->  | G78: =ROUND(G129*1.12,-3) -> 
A80: =D58 -> 0 | B80: =D58+15 -> 15 | C80: 15 Year | D80: =G72*(15*($F$63-$D$63)/(F58-D58)+D63) ->  | F80: =ROUND(F134*1.12,-3) ->  | G80: =ROUND(G134*1.12,-3) -> 
A82: =D58 -> 0 | B82: =D58+20 -> 20 | C82: 20 Year | D82: =G72*(20*($F$63-$D$63)/(F58-D58)+D63) ->  | F82: =ROUND(F139*1.12,-3) ->  | G82: =ROUND(G139*1.12,-3) -> 
A84: =D58 -> 0 | B84: =D58+25 -> 25 | C84: 25 Year | D84: =G72*(25*($F$63-$D$63)/(F58-D58)+D63) ->  | F84: =ROUND(F144*1.12,-3) ->  | G84: =ROUND(G144*1.12,-3) -> 
A86: =D58 -> 0 | B86: =D58+30 -> 30 | C86: 30 Year | D86: =G72*(30*($F$63-$D$63)/(F58-D58)+D63) ->  | F86: =ROUND(F149*1.12,-3) ->  | G86: =ROUND(G149*1.12,-3) -> 
A88: =D58 -> 0 | B88: =D58+35 -> 35 | C88: 35 Year | D88: =G72*(35*($F$63-$D$63)/(F58-D58)+D63) ->  | F88: =ROUND(F154*1.12,-3) ->  | G88: =ROUND(G154*1.12,-3) -> 
B95: APPROVED BY: | F95: DATE:
A103: CUMULATIVE ESAL WORK AREA | D103: BY VOL | E103: BY VOL | F103: FY VOL | G103: FY VOL
B104: BYVOLS | C104: FYVOLS | D104: *BESAL | E104: *CESAL | F104: *BESAL | G104: *CESAL
B105: =D11 ->  | C105: =G11 ->  | D105: =E31*B105 ->  | E105: =F31*B105 ->  | F105: =E31*C105 ->  | G105: =F31*C105 -> 
D114: FLEX ADL | E114: RIG ADL | F114: FLEX ADL | G114: RIG ADL
C115: Esals Per Day | D115: =(C7-SUM(B105:B113))*0.0007+SUM(D105:D113) ->  | E115: =(C7-SUM(B105:B113))*0.0007+SUM(E105:E113) ->  | F115: =(C8-SUM(C105:C113))*0.0007+SUM(F105:F113) ->  | G115: =(C8-SUM(C105:C113))*0.0007+SUM(G105:G113) -> 
A117: CUMULATIVE ESAL CALCULATIONS (DESIGN LANE) | F117: FLEXIBLE | G117: RIGID
B118: INCLUSIVE | C118: YEARS | E118: DAYS
B119: FUTURE YR - BASE YR = | C119: =B8-B7+1 ->  | E119: 365.25 | F119: =$D$115*$E119*$C$26+F118 ->  | G119: =$E$115*$E119*$C$26+G118 -> 
E120: =E119+365.25 -> 730.5 | F120: =(365.25*$D$115+$E119*$A$123)*$C$26+F119 ->  | G120: =(365.25*$E$115+$E119*$B$123)*$C$26+G119 -> 
A121: ANNUAL AVERAGE CHANGE IN 2 WAY ADL | E121: 1095.75
A122: FLEXIBLE | B122: RIGID | E122: 1461
A123: =(F115-D115)/($C$119-1) ->  | B123: =(G115-E115)/($C$119-1) ->  | E123: 1826.25
E124: 2191.5
E125: 2556.75
E126: 2922
E127: 3287.25
E128: 3652.5
E129: 4017.75
E130: 4383
E131: 4748.25
E132: 5113.5
E133: 5478.75
E134: 5844
E135: 6209.25
E136: 6574.5
E137: 6939.75
E138: 7305
E139: 7670.25
E140: 8035.5
E141: 8400.75
E142: 8766
E143: 9131.25
E144: 9496.5
E145: 9861.75
E146: 10227
E147: 10592.25
E148: 10957.5
E149: 11322.75
E150: 11688
E151: 12053.25
E152: 12418.5
E153: 12783.75
E154: 13149

Sheet Forecast B1
A1: LEAST SQUARES WORKSHEET | E1: SEGMENT B1 | G1: Corresponds : | H1: ='Forecast A'!E1 -> SEGMENT A1 | J1: Non-print area
A2: ROUTE: | B2: =IF(Cover!H15="Interstate",Cover!J25&Cover!H14,IF(Cover!H15="US Trunk",Cover!J26&Cover!H14,IF(Cover!H15="MN Trunk",Cover!J27&Cover!H14,IF(Cover!H15="CSAH",Cover!J28&Cover!H14,IF(Cover!H15="CR",Cover!J29&Cover!H14," "))))) ->  | D2: SP#: | E2: =IF(Cover!H13=0," ",Cover!H13) ->  | G2: DATE : | H2: =Cover!C10 -> 2019-05-29T08:06:35.500
A3: LOCATION: | G3: Miles : | H3: =IF(H4="","",VLOOKUP(H4,AADT_Data!A:AB,28,FALSE)) ->  | J3: =IF(B3="","Location field is empty. Please enter location description. E.g. MN 169 to CSAH 5","") -> Location field is empty. Please enter location description. E.g. MN 169 to CSAH 5
A4: BASE YEAR: | B4: =IF('Forecast A'!B4=""," ",'Forecast A'!B4) ->  | E4: FORECAST YEAR: | F4: =IF(B4=" "," ",B4+20) ->  | G4: Seq # | J4: =IF(H4="","No Seq # is listed. Please enter sequence number","") -> No Seq # is listed. Please enter sequence number
G5: # of lanes | J5: =IF(H5="","Please indicate the number of lanes in this segment","") -> Please indicate the number of lanes in this segment
A6: YEAR | B6: FLOW MAP AADT (SEG A) | J6: Year | K6: AADT
C7: 850 | J7: =IF(LARGE($D$64:$D$89,E74)=0,"",LARGE($D$64:$D$89,E74)) ->  | K7: =IF(ISNA(VLOOKUP(F74,$A$64:$C$89,3,FALSE)),"",VLOOKUP(F74,$A$64:$C$89,3,FALSE)) ->  | L7: Note: only contains data
C8: 880 | L8: updated to 2016 AADT
C9: 880
C10: 1350
C11: 1150
C12: 1000
C13: 1150
C14: 1100
C15: 1100
C16: 1100
C17: 1000
J21: =IF(LARGE($D$64:$D$89,E88)=0,"",LARGE($D$64:$D$89,E88)) -> 
J22: =IF(LARGE($D$64:$D$89,E89)=0,"",LARGE($D$64:$D$89,E89)) ->  | K22: =IF(ISNA(VLOOKUP(F89,$A$64:$C$89,3,FALSE)),"",VLOOKUP(F89,$A$64:$C$89,3,FALSE)) -> 
A24: LEAST SQUARES BASED FORECASTS:
A25: Year | B25: AADT | D25: Calc | E25: ADT Calc
A26: =INDEX(A7:A22,MATCH(9.99999999999999E+307,B7:B22)) ->  | B26: =FORECAST(A26,B7:B22,A7:A22) ->  | D26: =VLOOKUP(A26,$A$11:$B$22,2,FALSE)-B26 ->  | E26: =B26+D26 -> 
A27: =B4 ->  | B27: =FORECAST(A27,B7:B22,A7:A22) ->  | E27: =B27+D26 ->  | F27: =E27 -> 
A28: =F4 ->  | B28: =FORECAST(A28,B7:B22,A7:A22) ->  | E28: =B28+D26 ->  | F28: =E26+(E28-E26)*F40 -> 
A30: Statistics | B30: AADT | E30: Raw Least Squares Forecasts | H30: Demographically Adjusted Forecasts
A31: R 2 | B31: =RSQ(B7:B22,A7:A22) ->  | E31: YEAR | F31: AADT | H31: YEAR | I31: AADT
A32: SLOPE | B32: =SLOPE(B7:B22,A7:A22) ->  | E32: =A26 ->  | F32: =ROUND(E26,-1) ->  | H32: =A26 ->  | I32: =F32 -> 
A33: INTERCEPT | B33: =INTERCEPT(B7:B22,A7:A22) ->  | E33: =A27 ->  | F33: =ROUND(E27,-1) ->  | H33: =A27 ->  | I33: =ROUND(((I34-I32)/(H34-H32)*(H33-H32)+I32),-1) -> 
A34: N | B34: =COUNT(B7:B22) -> 0 | E34: =A28 ->  | F34: =ROUND(E28,-1) ->  | H34: =A28 ->  | I34: =ROUND(F32*(1+H38*(H34-H32)),-1) -> 
A35: NOTE:
A36: County Adjustment Factors were developed to Apply to Projected AADT. They are based on 1992-2007 VMT, Population, Labor Force, Household, and Employment Data. | E36: Slope Over Base Year | H36: Slope Over Base Year
E37: =B32/F33 ->  | H37: =((I34-I33)/(H34-H33)/I33) -> 
H38: =IF(E37*F40<=0.5%,0.5%,E37*F40) -> 
D39: COUNTY | F39: COUNTY FACTOR | H39: GROWTH PROFILE
D40: =UPPER(VLOOKUP(Cover!H16,$A$174:$C$261,1,FALSE)) ->  | F40: =VLOOKUP(Cover!H16,$A$174:$C$261,2,FALSE) ->  | H40: =UPPER(VLOOKUP(Cover!H16,$A$174:$C$261,3,FALSE)) -> 
B61: AADT_Data column reference
A63: year | C63: aadt | D63: data years | E63: nth largest
A64: 2018 | B64: 2 | C64: =VLOOKUP($H$4,AADT_Data!A:AA,B64,FALSE) ->  | D64: =IF(C64=0,0,A64) ->  | E64: 26 | F64: =IF(LARGE($D$64:$D$89,E64)=0,"",LARGE($D$64:$D$89,E64)) ->  | G64: =IF(ISNA(VLOOKUP(F64,$A$64:$C$89,3,FALSE)),"",VLOOKUP(F64,$A$64:$C$89,3,FALSE)) -> 
A65: 2017 | B65: 3 | C65: =VLOOKUP($H$4,AADT_Data!A:AA,B65,FALSE) ->  | D65: =IF(C65=0,0,A65) ->  | E65: 25
A66: 2016 | B66: 4 | C66: =VLOOKUP($H$4,AADT_Data!A:AA,B66,FALSE) ->  | D66: =IF(C66=0,0,A66) ->  | E66: 24
A67: 2015 | B67: 5 | C67: =VLOOKUP($H$4,AADT_Data!A:AA,B67,FALSE) ->  | D67: =IF(C67=0,0,A67) ->  | E67: 23
A68: 2014 | B68: 6 | C68: =VLOOKUP($H$4,AADT_Data!A:AA,B68,FALSE) ->  | D68: =IF(C68=0,0,A68) ->  | E68: 22
A69: 2013 | B69: 7 | C69: =VLOOKUP($H$4,AADT_Data!A:AA,B69,FALSE) ->  | E69: 21
A70: 2012 | B70: 8 | C70: =VLOOKUP($H$4,AADT_Data!A:AA,B70,FALSE) ->  | E70: 20
A71: 2011 | B71: 9 | C71: =VLOOKUP($H$4,AADT_Data!A:AA,B71,FALSE) ->  | E71: 19
A72: 2010 | B72: 10 | C72: =VLOOKUP($H$4,AADT_Data!A:AA,B72,FALSE) ->  | E72: 18
A73: 2009 | B73: 11 | C73: =VLOOKUP($H$4,AADT_Data!A:AA,B73,FALSE) ->  | E73: 17
A74: 2008 | B74: 12 | C74: =VLOOKUP($H$4,AADT_Data!A:AA,B74,FALSE) ->  | E74: 16
A75: 2007 | B75: 13 | C75: =VLOOKUP($H$4,AADT_Data!A:AA,B75,FALSE) ->  | E75: 15
A76: 2006 | B76: 14 | C76: =VLOOKUP($H$4,AADT_Data!A:AA,B76,FALSE) ->  | E76: 14
A77: 2005 | B77: 15 | C77: =VLOOKUP($H$4,AADT_Data!A:AA,B77,FALSE) ->  | E77: 13
A78: 2004 | B78: 16 | C78: =VLOOKUP($H$4,AADT_Data!A:AA,B78,FALSE) ->  | E78: 12
A79: 2003 | B79: 17 | C79: =VLOOKUP($H$4,AADT_Data!A:AA,B79,FALSE) ->  | E79: 11
A80: 2002 | B80: 18 | C80: =VLOOKUP($H$4,AADT_Data!A:AA,B80,FALSE) ->  | E80: 10
A81: 2001 | B81: 19 | C81: =VLOOKUP($H$4,AADT_Data!A:AA,B81,FALSE) ->  | E81: 9
A82: 2000 | B82: 20 | C82: =VLOOKUP($H$4,AADT_Data!A:AA,B82,FALSE) ->  | E82: 8
A83: 1999 | B83: 21 | C83: =VLOOKUP($H$4,AADT_Data!A:AA,B83,FALSE) ->  | E83: 7
A84: 1998 | B84: 22 | C84: =VLOOKUP($H$4,AADT_Data!A:AA,B84,FALSE) ->  | E84: 6
A85: 1997 | B85: 23 | C85: =VLOOKUP($H$4,AADT_Data!A:AA,B85,FALSE) ->  | E85: 5
A86: 1996 | B86: 24 | C86: =VLOOKUP($H$4,AADT_Data!A:AA,B86,FALSE) ->  | E86: 4
A87: 1995 | B87: 25 | C87: =VLOOKUP($H$4,AADT_Data!A:AA,B87,FALSE) ->  | E87: 3
A88: 1994 | B88: 26 | C88: =VLOOKUP($H$4,AADT_Data!A:AA,B88,FALSE) ->  | E88: 2
A89: 1992 | B89: 27 | C89: =VLOOKUP($H$4,AADT_Data!A:AA,B89,FALSE) ->  | E89: 1 | F89: =IF(LARGE($D$64:$D$89,E89)=0,"",LARGE($D$64:$D$89,E89)) ->  | G89: =IF(ISNA(VLOOKUP(F89,$A$64:$C$89,3,FALSE)),"",VLOOKUP(F89,$A$64:$C$89,3,FALSE)) -> 
A174: County | B174: Factor | C174: Area Type
A175: Aitkin | B175: 0.95 | C175: High Growth Area
A176: Anoka | B176: 0.95 | C176: High Growth Area
A177: Becker | B177: 0.9387339609 | C177: Medium Growth Area
A178: Beltrami | B178: 0.95 | C178: High Growth Area
A179: Benton | B179: 0.95 | C179: High Growth Area
A180: Big Stone | B180: 0.8944759202 | C180: Low Growth Area
A181: Blue Earth | B181: 0.75 | C181: Medium Growth Area
A182: Brown | B182: 0.7896922659 | C182: Low Growth Area
A183: Carlton | B183: 0.95 | C183: Medium Growth Area
A184: Carver | B184: 0.95 | C184: High Growth Area
A185: Cass | B185: 0.95 | C185: High Growth Area
A186: Chippewa | B186: 0.8733104434 | C186: Low Growth Area
A187: Chisago | B187: 0.881279837 | C187: High Growth Area
A188: Clay | B188: 0.75 | C188: Low Growth Area
A189: Clearwater | B189: 0.8438234218 | C189: Low Growth Area
A190: Cook | B190: 0.75 | C190: Medium Growth Area
A191: Cottonwood | B191: 0.8331705696 | C191: Low Growth Area
A192: Crow Wing | B192: 0.8832312646 | C192: High Growth Area
A193: Dakota | B193: 0.8547421962 | C193: High Growth Area
A194: Dodge | B194: 0.95 | C194: High Growth Area
A195: Douglas | B195: 0.8873831958 | C195: High Growth Area
A196: Faribault | B196: 0.865981121 | C196: Low Growth Area
A197: Fillmore | B197: 0.8896061418 | C197: Low Growth Area
A198: Freeborn | B198: 0.755552827 | C198: Low Growth Area
A199: Goodhue | B199: 0.9273647987 | C199: Medium Growth Area
A200: Grant | B200: 0.75 | C200: Low Growth Area
A201: Hennepin | B201: 0.8272566422 | C201: Low Growth Area
A202: Houston | B202: 0.8378015226 | C202: Low Growth Area
A203: Hubbard | B203: 0.8346205138 | C203: High Growth Area
A204: Isanti | B204: 0.95 | C204: High Growth Area
A205: Itasca | B205: 0.8886716849 | C205: Medium Growth Area
A206: Jackson | B206: 0.9180626248 | C206: Medium Growth Area
A207: Kanabec | B207: 0.8135838922 | C207: Medium Growth Area
A208: Kandiyohi | B208: 0.8938419831 | C208: Medium Growth Area
A209: Kittson | B209: 0.8024358458 | C209: Low Growth Area
A210: Koochiching | B210: 0.7937489549 | C210: Low Growth Area
A211: Lac qui Parle | B211: 0.75 | C211: Low Growth Area
A212: Lake | B212: 0.8562919136 | C212: Low Growth Area
A213: Lake of the Woods | B213: 0.9138862817 | C213: Low Growth Area
A214: Le Sueur | B214: 0.95 | C214: Medium Growth Area
A215: Lincoln | B215: 0.8857449991 | C215: Low Growth Area
A216: Lyon | B216: 0.75 | C216: Low Growth Area
A217: Mahnomen | B217: 0.75 | C217: Low Growth Area
A218: Marshall | B218: 0.95 | C218: Low Growth Area
A219: Martin | B219: 0.8201303604 | C219: Low Growth Area
A220: McLeod | B220: 0.8928164106 | C220: Medium Growth Area
A221: Meeker | B221: 0.926111411 | C221: Medium Growth Area
A222: Mille Lacs | B222: 0.95 | C222: High Growth Area
A223: Morrison | B223: 0.9495694712 | C223: Medium Growth Area
A224: Mower | B224: 0.8302978459 | C224: Low Growth Area
A225: Murray | B225: 0.8387247211 | C225: Medium Growth Area
A226: Nicollet | B226: 0.8240013933 | C226: Medium Growth Area
A227: Nobles | B227: 0.7549960093 | C227: Low Growth Area
A228: Norman | B228: 0.8022447962 | C228: Low Growth Area
A229: Olmsted | B229: 0.95 | C229: High Growth Area
A230: Otter Tail | B230: 0.8614026285 | C230: Medium Growth Area
A231: Pennington | B231: 0.95 | C231: Medium Growth Area
A232: Pine | B232: 0.8448776659 | C232: High Growth Area
A233: Pipestone | B233: 0.75 | C233: Low Growth Area
A234: Polk | B234: 0.75 | C234: Low Growth Area
A235: Pope | B235: 0.9029074643 | C235: Medium Growth Area
A236: Ramsey | B236: 0.8087858109 | C236: Low Growth Area
A237: Red Lake | B237: 0.95 | C237: Medium Growth Area
A238: Redwood | B238: 0.75 | C238: Low Growth Area
A239: Renville | B239: 0.8480251476 | C239: Low Growth Area
A240: Rice | B240: 0.8220040162 | C240: Medium Growth Area
A241: Rock | B241: 0.75 | C241: Low Growth Area
A242: Roseau | B242: 0.8847517198 | C242: Medium Growth Area
A243: Scott | B243: 0.95 | C243: High Growth Area
A244: Sherburne | B244: 0.95 | C244: High Growth Area
A245: Sibley | B245: 0.8646549065 | C245: Medium Growth Area
A246: St. Louis | B246: 0.850777855 | C246: Low Growth Area
A247: Stearns | B247: 0.8586120378 | C247: High Growth Area
A248: Steele | B248: 0.8848664209 | C248: Medium Growth Area
A249: Stevens | B249: 0.7999567113 | C249: Low Growth Area
A250: Swift | B250: 0.8706429381 | C250: Low Growth Area
A251: Todd | B251: 0.8988708026 | C251: Medium Growth Area
A252: Traverse | B252: 0.7652278953 | C252: Low Growth Area
A253: Wabasha | B253: 0.8182478469 | C253: Low Growth Area
A254: Wadena | B254: 0.95 | C254: Medium Growth Area
A255: Waseca | B255: 0.7963073355 | C255: Low Growth Area
A256: Washington | B256: 0.95 | C256: High Growth Area
A257: Watonwan | B257: 0.75 | C257: Low Growth Area
A258: Wilkin | B258: 0.75 | C258: Low Growth Area
A259: Winona | B259: 0.8284012539 | C259: Low Growth Area
A260: Wright | B260: 0.95 | C260: High Growth Area
A261: Yellow Medicine | B261: 0.8780713455 | C261: Low Growth Area

Sheet ESAL B1
A1: CUMULATIVE ESAL WORKSHEET | D1: ='Forecast B1'!E1 -> SEGMENT B1 | J1: Non-print area | P1: ONE-WAY
A2: SP#: | B2: =IF(Cover!H13="","",Cover!H13) ->  | F2: CORRESPONDS: | G2: ='Forecast B1'!H1 -> SEGMENT A1 | P2: TWO-WAY
A3: ROUTE: | B3: ='Forecast B1'!B2 ->  | C3: TWO-WAY | D3: # LANES: | E3: =IF('Forecast B1'!H5=0," ",'Forecast B1'!H5) ->  | F3: DATE: | G3: =Cover!C10 -> 2019-05-29T08:06:35.500 | J3: Urban/Rural Classification
A4: LOCATION: | B4: =IF('Forecast B1'!B3=0," ",'Forecast B1'!B3) ->  | J4: =VLOOKUP('Forecast B1'!H4,'Urban&Rural'!A1:B18090,2,FALSE) -> 
B6: YEAR | C6: AADT | E6: AADT Difference from A Seg
A7: BASE YEAR: | B7: ='Forecast B1'!B4 ->  | C7: ='Forecast B1'!I33 ->  | E7: =C7-'ESAL A'!C7 ->  | N7: RURAL
A8: FORECAST YEAR: | B8: ='Forecast B1'!F4 ->  | C8: ='Forecast B1'!I34 ->  | E8: =C8-'ESAL A'!C8 ->  | N8: URBAN
C10: User Adjustment to Base Yr Vol | D10: Base Year Incremental Volume | E10: Base Year Volume | F10: User Adjustment to Future Yr Vol | G10: Future Year Incremental Volume | H10: Future Year Volume | I10: RESULTING PERCENTS | L10: VEHICLE TYPE | M10: URBAN | N10: RURAL
L11: 2AX-6TIRE SU | M11: 0.0152 | N11: 0.0317
A12: INCREMENTAL PROPORTIONS | L12: 3AX+ SU | M12: 0.0046 | N12: 0.0164
A13: 2AX-6TIRE SU | B13: =IF($E$7=0,'ESAL A'!B11,(D13+C13)/$E$7) ->  | C13: =IF(J13>0.5,0.5*'ESAL A'!D11-D13,IF(J13<-0.5,-0.5*'ESAL A'!D11-D13,0)) ->  | D13: =IF($J$4="urban",M11*$E$7,IF($J$4="rural",N11*$E$7,"See J3")) ->  | E13: ='ESAL A'!D11+(D13+C13) ->  | F13: =IF(K13>0.5,0.5*'ESAL A'!G11-G13,IF(K13<-0.5,-0.5*'ESAL A'!G11-G13,0)) ->  | G13: =B13*$E$8 ->  | H13: ='ESAL A'!G11+(G13+F13) ->  | I13: =H13/$C$8 ->  | J13: =D13/'ESAL A'!D11 ->  | K13: =G13/'ESAL A'!G11 ->  | L13: 3AX TST | M13: 0.0009 | N13: 0.0028
A14: 3AX+ SU | B14: =IF($E$7=0,'ESAL A'!B12,(D14+C14)/$E$7) ->  | C14: =IF(J14>0.5,0.5*'ESAL A'!D12-D14,IF(J14<-0.5,-0.5*'ESAL A'!D12-D14,0)) ->  | D14: =IF($J$4="urban",M12*$E$7,IF($J$4="rural",N12*$E$7,"See J3")) ->  | E14: ='ESAL A'!D12+(D14+C14) ->  | F14: =IF(K14>0.5,0.5*'ESAL A'!G12-G14,IF(K14<-0.5,-0.5*'ESAL A'!G12-G14,0)) ->  | G14: =B14*$E$8 ->  | H14: ='ESAL A'!G12+(G14+F14) ->  | I14: =H14/$C$8 ->  | J14: =D14/'ESAL A'!D12 ->  | K14: =G14/'ESAL A'!G12 ->  | L14: 4AX TST | M14: 0.0012 | N14: 0.005
A15: 3AX TST | B15: =IF($E$7=0,'ESAL A'!B13,(D15+C15)/$E$7) ->  | C15: =IF(J15>0.5,0.5*'ESAL A'!D13-D15,IF(J15<-0.5,-0.5*'ESAL A'!D13-D15,0)) ->  | D15: =IF($J$4="urban",M13*$E$7,IF($J$4="rural",N13*$E$7,"See J3")) ->  | E15: ='ESAL A'!D13+(D15+C15) ->  | F15: =IF(K15>0.5,0.5*'ESAL A'!G13-G15,IF(K15<-0.5,-0.5*'ESAL A'!G13-G15,0)) ->  | G15: =B15*$E$8 ->  | H15: ='ESAL A'!G13+(G15+F15) ->  | J15: =D15/'ESAL A'!D13 ->  | K15: =G15/'ESAL A'!G13 ->  | L15: 5AX+ TST | M15: 0.0089 | N15: 0.0326
A16: 4AX TST | B16: =IF($E$7=0,'ESAL A'!B14,(D16+C16)/$E$7) ->  | C16: =IF(J16>0.5,0.5*'ESAL A'!D14-D16,IF(J16<-0.5,-0.5*'ESAL A'!D14-D16,0)) ->  | D16: =IF($J$4="urban",M14*$E$7,IF($J$4="rural",N14*$E$7,"See J3")) ->  | E16: ='ESAL A'!D14+(D16+C16) ->  | F16: =IF(K16>0.5,0.5*'ESAL A'!G14-G16,IF(K16<-0.5,-0.5*'ESAL A'!G14-G16,0)) ->  | G16: =B16*$E$8 ->  | H16: ='ESAL A'!G14+(G16+F16) ->  | J16: =D16/'ESAL A'!D14 ->  | K16: =G16/'ESAL A'!G14 ->  | L16: TR TR, BUSES | M16: 0.0047 | N16: 0.012
A17: 5AX+ TST | B17: =IF('ESAL A'!B15=0,0,(D17+C17)/$E$7) ->  | C17: =IF(J17>0.5,0.5*SUM('ESAL A'!D15:D17)-D17,IF(J17<-0.5,-0.5*SUM('ESAL A'!D15:D17)-D17,0)) ->  | D17: =IF('ESAL A'!B15="0",0,IF($J$4="urban",M15*$E$7,IF($J$4="rural",N15*$E$7,"See J3"))) ->  | E17: =IF('ESAL A'!B15=0,"-",'ESAL A'!D15+D17) ->  | F17: =IF(K17>0.5,0.5*SUM('ESAL A'!G15:G17)-G17,IF(K17<-0.5,-0.5*SUM('ESAL A'!G15:G17)-G17,0)) ->  | G17: =B17*$E$8 ->  | H17: =IF('ESAL A'!B15=0,"-",'ESAL A'!G15+G17) ->  | I17: =IF(H17="-","-",H17/$C$8) ->  | J17: =D17/SUM('ESAL A'!D15:D17) ->  | K17: =G17/SUM('ESAL A'!G15:G17) ->  | L17: TWIN TRAILERS | M17: 0.0002 | N17: 0.0002
A18: (5AX+ TST MAX) | B18: =IF($E$7=0,'ESAL A'!B16,D18/$E$7) ->  | C18: 0 | D18: =IF('ESAL A'!B16=0,0,IF($J$4="urban",M15*$E$7*('ESAL A'!D16/SUM('ESAL A'!D16:D17))+C18,IF($J$4="rural",N15*$E$7*('ESAL A'!D16/SUM('ESAL A'!D16:D17))+C18,"See J3"))) ->  | E18: ='ESAL A'!D16+D18 ->  | F18: 0 | G18: =B18*$E$8+F18 ->  | H18: ='ESAL A'!G16+G18 ->  | I18: =H18/$C$8 ->  | J18: =IF('ESAL A'!D16=0,0,D18/'ESAL A'!D16) ->  | K18: =IF('ESAL A'!G16=0,0,G18/'ESAL A'!G16) ->  | L18: TOTAL | M18: =SUM(M11:M17) -> 0.0357 | N18: =SUM(N11:N17) -> 0.1007
A19: (5AX+ TST OTH) | B19: =IF($E$7=0,'ESAL A'!B17,D19/$E$7) ->  | C19: 0 | D19: =IF('ESAL A'!B16=0,0,IF($J$4="urban",M15*$E$7*('ESAL A'!D17/SUM('ESAL A'!D16:D17))+C19,IF($J$4="rural",N15*$E$7*('ESAL A'!D17/SUM('ESAL A'!D16:D17))+C19,"See J3"))) ->  | E19: ='ESAL A'!D17+D19 ->  | F19: 0 | G19: =B19*$E$8+F19 ->  | H19: ='ESAL A'!G17+G19 ->  | J19: =IF('ESAL A'!D17=0,0,D19/'ESAL A'!D17) ->  | K19: =IF('ESAL A'!G17=0,0,G19/'ESAL A'!G17) -> 
A20: TR TR, BUSES | B20: =IF($E$7=0,'ESAL A'!B18,(D20+C20)/$E$7) ->  | C20: =IF(J20>0.5,0.5*'ESAL A'!D18-D20,IF(J20<-0.5,-0.5*'ESAL A'!D18-D20,0)) ->  | D20: =IF($J$4="urban",M16*$E$7,IF($J$4="rural",N16*$E$7,"See J3")) ->  | E20: ='ESAL A'!D18+(D20+C20) ->  | F20: =IF(K20>0.5,0.5*'ESAL A'!G18-G20,IF(K20<-0.5,-0.5*'ESAL A'!G18-G20,0)) ->  | G20: =B20*$E$8 ->  | H20: ='ESAL A'!G18+(G20+F20) ->  | J20: =D20/'ESAL A'!D18 ->  | K20: =G20/'ESAL A'!G18 -> 
A21: TWIN TRAILERS | B21: =IF($E$7=0,'ESAL A'!B19,(D21+C21)/$E$7) ->  | C21: =IF(J21>0.5,0.5*'ESAL A'!D19-D21,IF(J21<-0.5,-0.5*'ESAL A'!D19-D21,0)) ->  | D21: =IF($J$4="urban",M17*$E$7,IF($J$4="rural",N17*$E$7,"See J3")) ->  | E21: ='ESAL A'!D19+(D21+C21) ->  | F21: =IF(K21>0.5,0.5*'ESAL A'!G19-G21,IF(K21<-0.5,-0.5*'ESAL A'!G19-G21,0)) ->  | G21: =B21*$E$8 ->  | H21: ='ESAL A'!G19+(G21+F21) ->  | J21: =IF('ESAL A'!D19=0,0,D21/'ESAL A'!D19) ->  | K21: =IF('ESAL A'!G19=0,0,G21/'ESAL A'!G19) -> 
A23: CLASSIFICATION: | B23: =J4 ->  | D23: ADDED | E23: COMBINED | F23: =B26-B25 ->  | G23: YR DESIGN
C24: AADT | D24: HCADT % | E24: HCADT % | F24: LANE CUMULATIVE ESAL
A25: BASE YEAR: | B25: =B7 ->  | C25: =E7 ->  | D25: =SUM(D13:D21)/C25 ->  | E25: =(SUM(D13:D21)+SUM('ESAL A'!D11:D19))/C7 ->  | F25: | | G25: |
A26: FORECAST YEAR: | B26: =B8 ->  | C26: =E8 ->  | D26: =SUM(G13:G21)/C26 ->  | E26: =(SUM(G13:G21)+SUM('ESAL A'!G11:G19))/C8 ->  | F26: ***************** | G26: *****************
A27: DESIGN LANE FACTOR: | C27: =IF(C3=P2,CHOOSE((E3)+1,#VALUE!,1,0.5,0.5,0.45,0.45,0.35,0.35),CHOOSE(E3,1,0.9,0.7,0.7,0.7,0.7)) ->  | F27: FLEXIBLE | G27: RIGID
E28: SEGMENT B INCREMENT ONLY: | F28: =ROUND(CHOOSE(C129,F129,F130,F131,F132,F133,F134,F135,F136,F137,F138,F139,F140,F141,F142,F143,F144,F145,F146,F147,F148,F149,F150,F151,F152,F153,F154,F155,F156,F157,F158,F159,F160,F161,F162,F163,F164)*1.12,-3) ->  | G28: =ROUND(CHOOSE(C129,G129,G130,G131,G132,G133,G134,G135,G136,G137,G138,G139,G140,G141,G142,G143,G144,G145,G146,G147,G148,G149,G150,G151,G152,G153,G154,G155,G156,G157,G158,G159,G160,G161,G162,G163,G164)*1.12,-3) -> 
E29: SEGMENT A + SEGMENT B: | F29: =ROUND(F28+'ESAL A'!F26*C27/'ESAL A'!C26,-3) ->  | G29: =ROUND(G28+'ESAL A'!G26*C27/'ESAL A'!C26,-3) -> 
F30: ***************** | G30: *****************
A32: ADDITIONAL OUTPUTS: | E32: ESAL FACTORS
B33: BASE % | C33: FORECAST % | E33: FLEXIBLE | F33: RIGID
A34: 2AX-6TIRE SU | B34: =D13/$C$25 ->  | C34: =G13/$C$26 ->  | E34: 0.25 | F34: =IF(E34<0.11,E34,E34-0.01) -> 0.24
A35: 3AX+ SU | E35: 0.58 | F35: =IF(E35<0.36,(E35*1.62364-0.070909)+0.01,(IF(E35<0.4,E35*1.62364-0.07909,(IF(E35<0.66,(E35*1.62364-0.07909)-0.01,(IF(E35<0.69,E35*1.62364-0.07909,(E35*1.62364-0.07909)+0.02))))))) -> 0.8526212
A36: 3AX TST | E36: 0.39 | F36: =IF(E36<0.28,E36-0.01,(IF(E36<0.56,E36-0.02,E36-0.03))) -> 0.37
A37: 4AX TST | E37: 0.51 | F37: =IF(E37<0.41,E37,(IF(E37<0.47,E37+0.01,(IF(E37<0.54,E37+0.02,(IF(E37<0.61,E37+0.03,(IF(E37<0.67,E37+0.04,E37+0.05))))))))) -> 0.53
A38: 5AX+ TST | E38: 1.13 | F38: =(+E38*1.71536-0.05351)+0.005 -> 1.8898468
A39: (5AX+ TST MAX) | E39: 2.4 | F39: =(+E39*1.71536-0.05351)+0.005 -> 4.068354
A40: (5AX+ TST OTH) | E40: 0.87 | F40: =(+E40*1.71536-0.05351)+0.005 -> 1.4438532
A41: TR TR, BUSES | E41: 0.57 | F41: =E41*1.35636-0.03091 -> 0.7422152
A42: TWIN TRAILERS | E42: 2.4 | F42: =(+E42*0.97519-0.01494)+0.005 -> 2.330516
A58: CUMULATIVE ESAL REPORT | D58: =D1 -> SEGMENT B1
G59: CORRESPONDS: | H59: ='Forecast B1'!H1 -> SEGMENT A1
A60: ROUTE #: | B60: ='Forecast B1'!B2 ->  | C60: DISTRICT: | D60: =IF(Cover!C15="","",Cover!C15) ->  | E60: SP#: | F60: =IF(Cover!H13="","",Cover!H13) ->  | G60: DATE: | H60: =Cover!C10 -> 2019-05-29T08:06:35.500
A61: FORECAST #: | B61: =IF(Cover!H12="","",Cover!H12) ->  | C61: COUNTY: | D61: =IF(Cover!H16="","",Cover!H16) ->  | E61: MILES: | F61: ='Forecast B1'!H3 -> 
A62: DESCRIPTION: | B62: =B4 -> 
A63: AUTHOR: | B63: =IF(Cover!C13="","",Cover!C13) ->  | E63: AUTHOR'S DISTRICT: | F63: =IF(Cover!C14="","",Cover!C14) -> 
A65: BASE YEAR NUMBER OF LANES: | D65: =IF('Forecast B1'!H5=0," ",'Forecast B1'!H5) -> 
G66: YEARLY GROWTH (SIMPLE %)
A67: TRAFFIC SUMMARY | D67: BASE YEAR | F67: DESIGN YEAR
A68: =C3 -> TWO-WAY | D68: =B7 ->  | F68: =B8 -> 
A69: AADT: | D69: =C7 ->  | F69: =C8 ->  | G69: =((F69-D69)/($F$68-$D$68))/D69 -> 
A70: DESIGN LANE: | D70: =ROUND(C27*D69,-1) ->  | F70: =ROUND(C27*F69,-1) -> 
A71: HCADT: | D71: =SUM(E13:E21) ->  | F71: =SUM(H13:H21) -> 
A72: SINGLE UNITS: | D72: =E13+E14 ->  | F72: =H13+H14 -> 
A73: TST'S: | D73: =SUM(E15:E19) ->  | F73: =SUM(H15:H19) -> 
A74: 5 Ax+: | D74: =SUM(E17:E19) ->  | F74: =SUM(H17:H19) -> 
A76: ESAL SUMMARY
A77: ANNUAL DESIGN LANE ESAL
A78: FLEXIBLE: | D78: =('ESAL A'!D115*'ESAL A'!C26+D125*C27)*365.25 ->  | F78: =('ESAL A'!F115*'ESAL A'!C26+F125*C27)*365.25 -> 
A79: RIGID: | D79: =('ESAL A'!E115*'ESAL A'!C26+E125*C27)*365.25 ->  | F79: =('ESAL A'!G115*'ESAL A'!C26+G125*C27)*365.25 -> 
A81: CUMULATIVE DESIGN-LANE ESALS (10 TON) | F81: Design-lane factor: | G81: =C27 -> 
A82: FOR VARIABLE TIME PERIODS
A86: BASE | B86: DESIGN | C86: TIME | D86: DESIGN-LANE | F86: ESALS
A87: YEAR | B87: YEAR | C87: PERIOD | D87: TST'S | F87: FLEXIBLE | G87: RIGID
A88: =D68 ->  | B88: =A88+10 ->  | C88: 10 Year | D88: =G81*(10*(F73-D73)/(F68-D68)+D73) ->  | F88: =ROUND(('ESAL A'!F129*C27/'ESAL A'!C26+F139)*1.12,-3) ->  | G88: =ROUND(('ESAL A'!G129*C27/'ESAL A'!C26+G139)*1.12,-3) -> 
A90: =D68 ->  | B90: =A90+15 ->  | C90: 15 Year | D90: =G81*(15*(F73-D73)/(F68-D68)+D73) ->  | F90: =ROUND(('ESAL A'!F134*C27/'ESAL A'!C26+F144)*1.12,-3) ->  | G90: =ROUND(('ESAL A'!G134*C27/'ESAL A'!C26+G144)*1.12,-3) -> 
A92: =D68 ->  | B92: =A92+20 ->  | C92: 20 Year | D92: =G81*(20*(F73-D73)/(F68-D68)+D73) ->  | F92: =ROUND(('ESAL A'!F139*C27/'ESAL A'!C26+F149)*1.12,-3) ->  | G92: =ROUND(('ESAL A'!G139*C27/'ESAL A'!C26+G149)*1.12,-3) -> 
A94: =D68 ->  | B94: =A94+25 ->  | C94: 25 Year | D94: =G81*(25*(F73-D73)/(F68-D68)+D73) ->  | F94: =ROUND(('ESAL A'!F144*C27/'ESAL A'!C26+F154)*1.12,-3) ->  | G94: =ROUND(('ESAL A'!G144*C27/'ESAL A'!C26+G154)*1.12,-3) -> 
A96: =D68 ->  | B96: =A96+30 ->  | C96: 30 Year | D96: =G81*(30*(F73-D73)/(F68-D68)+D73) ->  | F96: =ROUND(('ESAL A'!F149*C27/'ESAL A'!C26+F159)*1.12,-3) ->  | G96: =ROUND(('ESAL A'!G149*C27/'ESAL A'!C26+G159)*1.12,-3) -> 
A98: =D68 ->  | B98: =A98+35 ->  | C98: 35 Year | D98: =G81*(35*(F73-D73)/(F68-D68)+D73) ->  | F98: =ROUND(('ESAL A'!F154*C27/'ESAL A'!C26+F164)*1.12,-3) ->  | G98: =ROUND(('ESAL A'!G154*C27/'ESAL A'!C26+G164)*1.12,-3) -> 
B104: APPROVED BY: | F104: DATE:
A113: CUMULATIVE ESAL WORK AREA
B114: BYVOLS | C114: FYVOLS | D114: BY VOL * BESAL | E114: BY VOL *CESAL | F114: FY VOL *BESAL | G114: FY VOL *CESAL
B115: =D13+C13 ->  | C115: =G13+F13 ->  | D115: =E34*B115 ->  | E115: =F34*B115 ->  | F115: =E34*C115 ->  | G115: =F34*C115 -> 
A124: TWO WAY ADL --> | D124: FLEX ADL | E124: RIG ADL | F124: FLEX ADL | G124: RIG ADL
A125: | | D125: =$C$25*0.0007+SUM(D115:D123) ->  | E125: =$C$25*0.0007+SUM(E115:E123) ->  | F125: =$C$26*0.0007+SUM(F115:F123) ->  | G125: =$C$26*0.0007+SUM(G115:G123) -> 
A127: CUMULATIVE ESAL CALCULATIONS (DESIGN LANE) | F127: FLEXIBLE | G127: RIGID
B128: INCLUSIVE | C128: YEARS | E128: DAYS
A129: FUTURE YR - BASE YR = | C129: =B8-B7+1 ->  | E129: 365.25 | F129: =$D$125*$E129*$C$27+F128 ->  | G129: =$E$125*$E129*$C$27+G128 -> 
E130: 730.5 | F130: =(365.25*$D$125+$E129*$A$133)*$C$27+F129 ->  | G130: =(365.25*$E$125+$E129*$B$133)*$C$27+G129 -> 
A131: ANNUAL AVERAGE CHANGE IN 2 WAY ADL | E131: 1095.75
A132: FLEXIBLE | B132: RIGID | E132: 1461
A133: =(+F125-D125)/($C$129-1) ->  | B133: =(+G125-E125)/($C$129-1) ->  | E133: 1826.25
E134: 2191.5
E135: 2556.75
E136: 2922
E137: 3287.25
E138: 3652.5
E139: 4017.75
E140: 4383
E141: 4748.25
E142: 5113.5
E143: 5478.75
E144: 5844
E145: 6209.25
E146: 6574.5
E147: 6939.75
E148: 7305
E149: 7670.25
E150: 8035.5
E151: 8400.75
E152: 8766
E153: 9131.25
E154: 9496.5
E155: 9861.75
E156: 10227
E157: 10592.25
E158: 10957.5
E159: 11322.75
E160: 11688
E161: 12053.25
E162: 12418.5
E163: 12783.75
E164: 13149

Sheet Forecast B2
A1: LEAST SQUARES WORKSHEET | E1: SEGMENT B2 | G1: Corresponds : | H1: ='Forecast A'!E1 -> SEGMENT A1 | J1: Non-print area
A2: ROUTE: | B2: =IF(Cover!H15="Interstate",Cover!J25&Cover!H14,IF(Cover!H15="US Trunk",Cover!J26&Cover!H14,IF(Cover!H15="MN Trunk",Cover!J27&Cover!H14,IF(Cover!H15="CSAH",Cover!J28&Cover!H14,IF(Cover!H15="CR",Cover!J29&Cover!H14," "))))) ->  | D2: SP#: | E2: =IF(Cover!H13=0," ",Cover!H13) ->  | G2: DATE : | H2: =Cover!C10 -> 2019-05-29T08:06:35.500
A3: LOCATION: | G3: Miles : | H3: =IF(H4="","",VLOOKUP(H4,AADT_Data!A:AB,28,FALSE)) ->  | J3: =IF(B3="","Location field is empty. Please enter location description. E.g. MN 169 to CSAH 5","") -> Location field is empty. Please enter location description. E.g. MN 169 to CSAH 5
A4: BASE YEAR: | B4: =IF('Forecast A'!B4=0," ",'Forecast A'!B4) ->  | E4: FORECAST YEAR: | F4: =IF(B4=" "," ",B4+20) ->  | G4: Seq # | J4: =IF(H4="","No Seq # is listed. Please enter sequence number","") -> No Seq # is listed. Please enter sequence number
G5: # of lanes | J5: =IF(H5="","Please indicate the number of lanes in this segment","") -> Please indicate the number of lanes in this segment
A6: YEAR | B6: FLOW MAP AADT (SEG A) | J6: Year | K6: AADT
C7: 850 | J7: =IF(LARGE($D$64:$D$89,E74)=0,"",LARGE($D$64:$D$89,E74)) ->  | K7: =IF(ISNA(VLOOKUP(F74,$A$64:$C$89,3,FALSE)),"",VLOOKUP(F74,$A$64:$C$89,3,FALSE)) ->  | L7: Note: only contains data
C8: 880 | L8: updated to 2016 AADT
C9: 880
C10: 1350
C11: 1150
C12: 1000
C13: 1150
C14: 1100
C15: 1100
C16: 1100
C17: 1000
J21: =IF(LARGE($D$64:$D$89,E88)=0,"",LARGE($D$64:$D$89,E88)) -> 
J22: =IF(LARGE($D$64:$D$89,E89)=0,"",LARGE($D$64:$D$89,E89)) ->  | K22: =IF(ISNA(VLOOKUP(F89,$A$64:$C$89,3,FALSE)),"",VLOOKUP(F89,$A$64:$C$89,3,FALSE)) -> 
A24: LEAST SQUARES BASED FORECASTS:
A25: Year | B25: AADT | D25: Calc | E25: ADT Calc
A26: =INDEX(A7:A22,MATCH(9.99999999999999E+307,B7:B22)) ->  | B26: =FORECAST(A26,B7:B22,A7:A22) ->  | D26: =VLOOKUP(A26,$A$13:$B$22,2,FALSE)-B26 ->  | E26: =B26+D26 -> 
A27: =B4 ->  | B27: =FORECAST(A27,B7:B22,A7:A22) ->  | E27: =B27+D26 ->  | F27: =E27 -> 
A28: =F4 ->  | B28: =FORECAST(A28,B7:B22,A7:A22) ->  | E28: =B28+D26 ->  | F28: =E26+(E28-E26)*F40 -> 
A30: Statistics | B30: AADT | E30: Raw Least Squares Forecasts | H30: Demographically Adjusted Forecasts
A31: R 2 | B31: =RSQ(B7:B22,A7:A22) ->  | E31: YEAR | F31: AADT | H31: YEAR | I31: AADT
A32: SLOPE | B32: =SLOPE(B7:B22,A7:A22) ->  | E32: =A26 ->  | F32: =ROUND(E26,-1) ->  | H32: =A26 ->  | I32: =F32 -> 
A33: INTERCEPT | B33: =INTERCEPT(B7:B22,A7:A22) ->  | E33: =A27 ->  | F33: =ROUND(E27,-1) ->  | H33: =A27 ->  | I33: =ROUND(((I34-I32)/(H34-H32)*(H33-H32)+I32),-1) -> 
A34: N | B34: =COUNT(B7:B22) -> 0 | E34: =A28 ->  | F34: =ROUND(E28,-1) ->  | H34: =A28 ->  | I34: =ROUND(F32*(1+H38*(H34-H32)),-1) -> 
A35: NOTE:
A36: County Adjustment Factors were developed to Apply to Projected AADT. They are based on 1992-2007 VMT, Population, Labor Force, Household, and Employment Data. | E36: Slope Over Base Year | H36: Slope Over Base Year
E37: =B32/F33 ->  | H37: =((I34-I33)/(H34-H33)/I33) -> 
H38: =IF(E37*F40<=0.5%,0.5%,E37*F40) -> 
D39: COUNTY | F39: COUNTY FACTOR | H39: GROWTH PROFILE
D40: =UPPER(VLOOKUP(Cover!H16,$A$174:$C$261,1,FALSE)) ->  | F40: =VLOOKUP(Cover!H16,$A$174:$C$261,2,FALSE) ->  | H40: =UPPER(VLOOKUP(Cover!H16,$A$174:$C$261,3,FALSE)) -> 
B61: AADT_Data column reference
A63: year | C63: aadt | D63: data years | E63: nth largest
A64: 2018 | B64: 2 | C64: =VLOOKUP($H$4,AADT_Data!A:AA,B64,FALSE) ->  | D64: =IF(C64=0,0,A64) ->  | E64: 26 | F64: =IF(LARGE($D$64:$D$89,E64)=0,"",LARGE($D$64:$D$89,E64)) ->  | G64: =IF(ISNA(VLOOKUP(F64,$A$64:$C$89,3,FALSE)),"",VLOOKUP(F64,$A$64:$C$89,3,FALSE)) -> 
A65: 2017 | B65: 3 | C65: =VLOOKUP($H$4,AADT_Data!A:AA,B65,FALSE) ->  | D65: =IF(C65=0,0,A65) ->  | E65: 25
A66: 2016 | B66: 4 | C66: =VLOOKUP($H$4,AADT_Data!A:AA,B66,FALSE) ->  | D66: =IF(C66=0,0,A66) ->  | E66: 24
A67: 2015 | B67: 5 | C67: =VLOOKUP($H$4,AADT_Data!A:AA,B67,FALSE) ->  | D67: =IF(C67=0,0,A67) ->  | E67: 23
A68: 2014 | B68: 6 | C68: =VLOOKUP($H$4,AADT_Data!A:AA,B68,FALSE) ->  | D68: =IF(C68=0,0,A68) ->  | E68: 22
A69: 2013 | B69: 7 | C69: =VLOOKUP($H$4,AADT_Data!A:AA,B69,FALSE) ->  | E69: 21
A70: 2012 | B70: 8 | C70: =VLOOKUP($H$4,AADT_Data!A:AA,B70,FALSE) ->  | E70: 20
A71: 2011 | B71: 9 | C71: =VLOOKUP($H$4,AADT_Data!A:AA,B71,FALSE) ->  | E71: 19
A72: 2010 | B72: 10 | C72: =VLOOKUP($H$4,AADT_Data!A:AA,B72,FALSE) ->  | E72: 18
A73: 2009 | B73: 11 | C73: =VLOOKUP($H$4,AADT_Data!A:AA,B73,FALSE) ->  | E73: 17
A74: 2008 | B74: 12 | C74: =VLOOKUP($H$4,AADT_Data!A:AA,B74,FALSE) ->  | E74: 16
A75: 2007 | B75: 13 | C75: =VLOOKUP($H$4,AADT_Data!A:AA,B75,FALSE) ->  | E75: 15
A76: 2006 | B76: 14 | C76: =VLOOKUP($H$4,AADT_Data!A:AA,B76,FALSE) ->  | E76: 14
A77: 2005 | B77: 15 | C77: =VLOOKUP($H$4,AADT_Data!A:AA,B77,FALSE) ->  | E77: 13
A78: 2004 | B78: 16 | C78: =VLOOKUP($H$4,AADT_Data!A:AA,B78,FALSE) ->  | E78: 12
A79: 2003 | B79: 17 | C79: =VLOOKUP($H$4,AADT_Data!A:AA,B79,FALSE) ->  | E79: 11
A80: 2002 | B80: 18 | C80: =VLOOKUP($H$4,AADT_Data!A:AA,B80,FALSE) ->  | E80: 10
A81: 2001 | B81: 19 | C81: =VLOOKUP($H$4,AADT_Data!A:AA,B81,FALSE) ->  | E81: 9
A82: 2000 | B82: 20 | C82: =VLOOKUP($H$4,AADT_Data!A:AA,B82,FALSE) ->  | E82: 8
A83: 1999 | B83: 21 | C83: =VLOOKUP($H$4,AADT_Data!A:AA,B83,FALSE) ->  | E83: 7
A84: 1998 | B84: 22 | C84: =VLOOKUP($H$4,AADT_Data!A:AA,B84,FALSE) ->  | E84: 6
A85: 1997 | B85: 23 | C85: =VLOOKUP($H$4,AADT_Data!A:AA,B85,FALSE) ->  | E85: 5
A86: 1996 | B86: 24 | C86: =VLOOKUP($H$4,AADT_Data!A:AA,B86,FALSE) ->  | E86: 4
A87: 1995 | B87: 25 | C87: =VLOOKUP($H$4,AADT_Data!A:AA,B87,FALSE) ->  | E87: 3
A88: 1994 | B88: 26 | C88: =VLOOKUP($H$4,AADT_Data!A:AA,B88,FALSE) ->  | E88: 2
A89: 1992 | B89: 27 | C89: =VLOOKUP($H$4,AADT_Data!A:AA,B89,FALSE) ->  | E89: 1 | F89: =IF(LARGE($D$64:$D$89,E89)=0,"",LARGE($D$64:$D$89,E89)) ->  | G89: =IF(ISNA(VLOOKUP(F89,$A$64:$C$89,3,FALSE)),"",VLOOKUP(F89,$A$64:$C$89,3,FALSE)) -> 
A174: County | B174: Factor | C174: Area Type
A175: Aitkin | B175: 0.95 | C175: High Growth Area
A176: Anoka | B176: 0.95 | C176: High Growth Area
A177: Becker | B177: 0.9387339609 | C177: Medium Growth Area
A178: Beltrami | B178: 0.95 | C178: High Growth Area
A179: Benton | B179: 0.95 | C179: High Growth Area
A180: Big Stone | B180: 0.8944759202 | C180: Low Growth Area
A181: Blue Earth | B181: 0.75 | C181: Medium Growth Area
A182: Brown | B182: 0.7896922659 | C182: Low Growth Area
A183: Carlton | B183: 0.95 | C183: Medium Growth Area
A184: Carver | B184: 0.95 | C184: High Growth Area
A185: Cass | B185: 0.95 | C185: High Growth Area
A186: Chippewa | B186: 0.8733104434 | C186: Low Growth Area
A187: Chisago | B187: 0.881279837 | C187: High Growth Area
A188: Clay | B188: 0.75 | C188: Low Growth Area
A189: Clearwater | B189: 0.8438234218 | C189: Low Growth Area
A190: Cook | B190: 0.75 | C190: Medium Growth Area
A191: Cottonwood | B191: 0.8331705696 | C191: Low Growth Area
A192: Crow Wing | B192: 0.8832312646 | C192: High Growth Area
A193: Dakota | B193: 0.8547421962 | C193: High Growth Area
A194: Dodge | B194: 0.95 | C194: High Growth Area
A195: Douglas | B195: 0.8873831958 | C195: High Growth Area
A196: Faribault | B196: 0.865981121 | C196: Low Growth Area
A197: Fillmore | B197: 0.8896061418 | C197: Low Growth Area
A198: Freeborn | B198: 0.755552827 | C198: Low Growth Area
A199: Goodhue | B199: 0.9273647987 | C199: Medium Growth Area
A200: Grant | B200: 0.75 | C200: Low Growth Area
A201: Hennepin | B201: 0.8272566422 | C201: Low Growth Area
A202: Houston | B202: 0.8378015226 | C202: Low Growth Area
A203: Hubbard | B203: 0.8346205138 | C203: High Growth Area
A204: Isanti | B204: 0.95 | C204: High Growth Area
A205: Itasca | B205: 0.8886716849 | C205: Medium Growth Area
A206: Jackson | B206: 0.9180626248 | C206: Medium Growth Area
A207: Kanabec | B207: 0.8135838922 | C207: Medium Growth Area
A208: Kandiyohi | B208: 0.8938419831 | C208: Medium Growth Area
A209: Kittson | B209: 0.8024358458 | C209: Low Growth Area
A210: Koochiching | B210: 0.7937489549 | C210: Low Growth Area
A211: Lac qui Parle | B211: 0.75 | C211: Low Growth Area
A212: Lake | B212: 0.8562919136 | C212: Low Growth Area
A213: Lake of the Woods | B213: 0.9138862817 | C213: Low Growth Area
A214: Le Sueur | B214: 0.95 | C214: Medium Growth Area
A215: Lincoln | B215: 0.8857449991 | C215: Low Growth Area
A216: Lyon | B216: 0.75 | C216: Low Growth Area
A217: Mahnomen | B217: 0.75 | C217: Low Growth Area
A218: Marshall | B218: 0.95 | C218: Low Growth Area
A219: Martin | B219: 0.8201303604 | C219: Low Growth Area
A220: McLeod | B220: 0.8928164106 | C220: Medium Growth Area
A221: Meeker | B221: 0.926111411 | C221: Medium Growth Area
A222: Mille Lacs | B222: 0.95 | C222: High Growth Area
A223: Morrison | B223: 0.9495694712 | C223: Medium Growth Area
A224: Mower | B224: 0.8302978459 | C224: Low Growth Area
A225: Murray | B225: 0.8387247211 | C225: Medium Growth Area
A226: Nicollet | B226: 0.8240013933 | C226: Medium Growth Area
A227: Nobles | B227: 0.7549960093 | C227: Low Growth Area
A228: Norman | B228: 0.8022447962 | C228: Low Growth Area
A229: Olmsted | B229: 0.95 | C229: High Growth Area
A230: Otter Tail | B230: 0.8614026285 | C230: Medium Growth Area
A231: Pennington | B231: 0.95 | C231: Medium Growth Area
A232: Pine | B232: 0.8448776659 | C232: High Growth Area
A233: Pipestone | B233: 0.75 | C233: Low Growth Area
A234: Polk | B234: 0.75 | C234: Low Growth Area
A235: Pope | B235: 0.9029074643 | C235: Medium Growth Area
A236: Ramsey | B236: 0.8087858109 | C236: Low Growth Area
A237: Red Lake | B237: 0.95 | C237: Medium Growth Area
A238: Redwood | B238: 0.75 | C238: Low Growth Area
A239: Renville | B239: 0.8480251476 | C239: Low Growth Area
A240: Rice | B240: 0.8220040162 | C240: Medium Growth Area
A241: Rock | B241: 0.75 | C241: Low Growth Area
A242: Roseau | B242: 0.8847517198 | C242: Medium Growth Area
A243: Scott | B243: 0.95 | C243: High Growth Area
A244: Sherburne | B244: 0.95 | C244: High Growth Area
A245: Sibley | B245: 0.8646549065 | C245: Medium Growth Area
A246: St. Louis | B246: 0.850777855 | C246: Low Growth Area
A247: Stearns | B247: 0.8586120378 | C247: High Growth Area
A248: Steele | B248: 0.8848664209 | C248: Medium Growth Area
A249: Stevens | B249: 0.7999567113 | C249: Low Growth Area
A250: Swift | B250: 0.8706429381 | C250: Low Growth Area
A251: Todd | B251: 0.8988708026 | C251: Medium Growth Area
A252: Traverse | B252: 0.7652278953 | C252: Low Growth Area
A253: Wabasha | B253: 0.8182478469 | C253: Low Growth Area
A254: Wadena | B254: 0.95 | C254: Medium Growth Area
A255: Waseca | B255: 0.7963073355 | C255: Low Growth Area
A256: Washington | B256: 0.95 | C256: High Growth Area
A257: Watonwan | B257: 0.75 | C257: Low Growth Area
A258: Wilkin | B258: 0.75 | C258: Low Growth Area
A259: Winona | B259: 0.8284012539 | C259: Low Growth Area
A260: Wright | B260: 0.95 | C260: High Growth Area
A261: Yellow Medicine | B261: 0.8780713455 | C261: Low Growth Area

Sheet ESAL B2
A1: CUMULATIVE ESAL WORKSHEET | D1: ='Forecast B2'!E1 -> SEGMENT B2 | J1: Non-print area | P1: ONE-WAY
A2: SP#: | B2: =IF(Cover!H13="","",Cover!H13) ->  | F2: CORRESPONDS: | G2: ='Forecast B2'!H1 -> SEGMENT A1 | P2: TWO-WAY
A3: ROUTE: | B3: ='Forecast B2'!B2 ->  | C3: TWO-WAY | D3: # LANES: | E3: =IF('Forecast B2'!H5=0," ",'Forecast B2'!H5) ->  | F3: DATE: | G3: =Cover!C10 -> 2019-05-29T08:06:35.500 | J3: Urban/Rural Classification
A4: LOCATION: | B4: =IF('Forecast B2'!B3=0," ",'Forecast B2'!B3) ->  | J4: =VLOOKUP('Forecast B2'!H4,'Urban&Rural'!A1:B18090,2,FALSE) -> 
B6: YEAR | C6: AADT | E6: AADT Difference from A Seg
A7: BASE YEAR: | B7: ='Forecast B2'!B4 ->  | C7: ='Forecast B2'!I33 ->  | E7: =C7-'ESAL A'!C7 ->  | N7: RURAL
A8: FORECAST YEAR: | B8: ='Forecast B2'!F4 ->  | C8: ='Forecast B2'!I34 ->  | E8: =C8-'ESAL A'!C8 ->  | N8: URBAN
C10: User Adjustment to Base Yr Vol | D10: Base Year Incremental Volume | E10: Base Year Volume | F10: User Adjustment to Future Yr Vol | G10: Future Year Incremental Volume | H10: Future Year Volume | I10: RESULTING PERCENTS | L10: VEHICLE TYPE | M10: URBAN | N10: RURAL
L11: 2AX-6TIRE SU | M11: 0.0152 | N11: 0.0317
A12: INCREMENTAL PROPORTIONS | L12: 3AX+ SU | M12: 0.0046 | N12: 0.0164
A13: 2AX-6TIRE SU | B13: =IF($E$7=0,'ESAL A'!B11,(D13+C13)/$E$7) ->  | C13: =IF(J13>0.5,0.5*'ESAL A'!D11-D13,IF(J13<-0.5,-0.5*'ESAL A'!D11-D13,0)) ->  | D13: =IF($J$4="urban",M11*$E$7,IF($J$4="rural",N11*$E$7,"See J3")) ->  | E13: ='ESAL A'!D11+(D13+C13) ->  | F13: =IF(K13>0.5,0.5*'ESAL A'!G11-G13,IF(K13<-0.5,-0.5*'ESAL A'!G11-G13,0)) ->  | G13: =B13*$E$8 ->  | H13: ='ESAL A'!G11+(G13+F13) ->  | I13: =H13/$C$8 ->  | J13: =D13/'ESAL A'!D11 ->  | K13: =G13/'ESAL A'!G11 ->  | L13: 3AX TST | M13: 0.0009 | N13: 0.0028
A14: 3AX+ SU | B14: =IF($E$7=0,'ESAL A'!B12,(D14+C14)/$E$7) ->  | C14: =IF(J14>0.5,0.5*'ESAL A'!D12-D14,IF(J14<-0.5,-0.5*'ESAL A'!D12-D14,0)) ->  | D14: =IF($J$4="urban",M12*$E$7,IF($J$4="rural",N12*$E$7,"See J3")) ->  | E14: ='ESAL A'!D12+(D14+C14) ->  | F14: =IF(K14>0.5,0.5*'ESAL A'!G12-G14,IF(K14<-0.5,-0.5*'ESAL A'!G12-G14,0)) ->  | G14: =B14*$E$8 ->  | H14: ='ESAL A'!G12+(G14+F14) ->  | I14: =H14/$C$8 ->  | J14: =D14/'ESAL A'!D12 ->  | K14: =G14/'ESAL A'!G12 ->  | L14: 4AX TST | M14: 0.0012 | N14: 0.005
A15: 3AX TST | B15: =IF($E$7=0,'ESAL A'!B13,(D15+C15)/$E$7) ->  | C15: =IF(J15>0.5,0.5*'ESAL A'!D13-D15,IF(J15<-0.5,-0.5*'ESAL A'!D13-D15,0)) ->  | D15: =IF($J$4="urban",M13*$E$7,IF($J$4="rural",N13*$E$7,"See J3")) ->  | E15: ='ESAL A'!D13+(D15+C15) ->  | F15: =IF(K15>0.5,0.5*'ESAL A'!G13-G15,IF(K15<-0.5,-0.5*'ESAL A'!G13-G15,0)) ->  | G15: =B15*$E$8 ->  | H15: ='ESAL A'!G13+(G15+F15) ->  | J15: =D15/'ESAL A'!D13 ->  | K15: =G15/'ESAL A'!G13 ->  | L15: 5AX+ TST | M15: 0.0089 | N15: 0.0326
A16: 4AX TST | B16: =IF($E$7=0,'ESAL A'!B14,(D16+C16)/$E$7) ->  | C16: =IF(J16>0.5,0.5*'ESAL A'!D14-D16,IF(J16<-0.5,-0.5*'ESAL A'!D14-D16,0)) ->  | D16: =IF($J$4="urban",M14*$E$7,IF($J$4="rural",N14*$E$7,"See J3")) ->  | E16: ='ESAL A'!D14+(D16+C16) ->  | F16: =IF(K16>0.5,0.5*'ESAL A'!G14-G16,IF(K16<-0.5,-0.5*'ESAL A'!G14-G16,0)) ->  | G16: =B16*$E$8 ->  | H16: ='ESAL A'!G14+(G16+F16) ->  | J16: =D16/'ESAL A'!D14 ->  | K16: =G16/'ESAL A'!G14 ->  | L16: TR TR, BUSES | M16: 0.0047 | N16: 0.012
A17: 5AX+ TST | B17: =IF('ESAL A'!B15=0,0,(D17+C17)/$E$7) ->  | C17: =IF(J17>0.5,0.5*SUM('ESAL A'!D15:D17)-D17,IF(J17<-0.5,-0.5*SUM('ESAL A'!D15:D17)-D17,0)) ->  | D17: =IF('ESAL A'!B15="0",0,IF($J$4="urban",M15*$E$7,IF($J$4="rural",N15*$E$7,"See J3"))) ->  | E17: =IF('ESAL A'!B15=0,"-",'ESAL A'!D15+D17) ->  | F17: =IF(K17>0.5,0.5*SUM('ESAL A'!G15:G17)-G17,IF(K17<-0.5,-0.5*SUM('ESAL A'!G15:G17)-G17,0)) ->  | G17: =B17*$E$8 ->  | H17: =IF('ESAL A'!B15=0,"-",'ESAL A'!G15+G17) ->  | I17: =IF(H17="-","-",H17/$C$8) ->  | J17: =D17/SUM('ESAL A'!D15:D17) ->  | K17: =G17/SUM('ESAL A'!G15:G17) ->  | L17: TWIN TRAILERS | M17: 0.0002 | N17: 0.0002
A18: (5AX+ TST MAX) | B18: =IF($E$7=0,'ESAL A'!B16,D18/$E$7) ->  | C18: 0 | D18: =IF('ESAL A'!B16=0,0,IF($J$4="urban",M15*$E$7*('ESAL A'!D16/SUM('ESAL A'!D16:D17))+C18,IF($J$4="rural",N15*$E$7*('ESAL A'!D16/SUM('ESAL A'!D16:D17))+C18,"See J3"))) ->  | E18: ='ESAL A'!D16+D18 ->  | F18: 0 | G18: =B18*$E$8+F18 ->  | H18: ='ESAL A'!G16+G18 ->  | I18: =H18/$C$8 ->  | J18: =IF('ESAL A'!D16=0,0,D18/'ESAL A'!D16) ->  | K18: =IF('ESAL A'!G16=0,0,G18/'ESAL A'!G16) ->  | L18: TOTAL | M18: =SUM(M11:M17) -> 0.0357 | N18: =SUM(N11:N17) -> 0.1007
A19: (5AX+ TST OTH) | B19: =IF($E$7=0,'ESAL A'!B17,D19/$E$7) ->  | C19: 0 | D19: =IF('ESAL A'!B16=0,0,IF($J$4="urban",M15*$E$7*('ESAL A'!D17/SUM('ESAL A'!D16:D17))+C19,IF($J$4="rural",N15*$E$7*('ESAL A'!D17/SUM('ESAL A'!D16:D17))+C19,"See J3"))) ->  | E19: ='ESAL A'!D17+D19 ->  | F19: 0 | G19: =B19*$E$8+F19 ->  | H19: ='ESAL A'!G17+G19 ->  | J19: =IF('ESAL A'!D17=0,0,D19/'ESAL A'!D17) ->  | K19: =IF('ESAL A'!G17=0,0,G19/'ESAL A'!G17) -> 
A20: TR TR, BUSES | B20: =IF($E$7=0,'ESAL A'!B18,(D20+C20)/$E$7) ->  | C20: =IF(J20>0.5,0.5*'ESAL A'!D18-D20,IF(J20<-0.5,-0.5*'ESAL A'!D18-D20,0)) ->  | D20: =IF($J$4="urban",M16*$E$7,IF($J$4="rural",N16*$E$7,"See J3")) ->  | E20: ='ESAL A'!D18+(D20+C20) ->  | F20: =IF(K20>0.5,0.5*'ESAL A'!G18-G20,IF(K20<-0.5,-0.5*'ESAL A'!G18-G20,0)) ->  | G20: =B20*$E$8 ->  | H20: ='ESAL A'!G18+(G20+F20) ->  | J20: =D20/'ESAL A'!D18 ->  | K20: =G20/'ESAL A'!G18 -> 
A21: TWIN TRAILERS | B21: =IF($E$7=0,'ESAL A'!B19,(D21+C21)/$E$7) ->  | C21: =IF(J21>0.5,0.5*'ESAL A'!D19-D21,IF(J21<-0.5,-0.5*'ESAL A'!D19-D21,0)) ->  | D21: =IF($J$4="urban",M17*$E$7,IF($J$4="rural",N17*$E$7,"See J3")) ->  | E21: ='ESAL A'!D19+(D21+C21) ->  | F21: =IF(K21>0.5,0.5*'ESAL A'!G19-G21,IF(K21<-0.5,-0.5*'ESAL A'!G19-G21,0)) ->  | G21: =B21*$E$8 ->  | H21: ='ESAL A'!G19+(G21+F21) ->  | J21: =IF('ESAL A'!D19=0,0,D21/'ESAL A'!D19) ->  | K21: =IF('ESAL A'!G19=0,0,G21/'ESAL A'!G19) -> 
A23: CLASSIFICATION: | B23: =J4 ->  | D23: ADDED | E23: COMBINED | F23: =B26-B25 ->  | G23: YR DESIGN
C24: AADT | D24: HCADT % | E24: HCADT % | F24: LANE CUMULATIVE ESAL
A25: BASE YEAR: | B25: =B7 ->  | C25: =E7 ->  | D25: =SUM(D13:D21)/C25 ->  | E25: =(SUM(D13:D21)+SUM('ESAL A'!D11:D19))/C7 ->  | F25: | | G25: |
A26: FORECAST YEAR: | B26: =B8 ->  | C26: =E8 ->  | D26: =SUM(G13:G21)/C26 ->  | E26: =(SUM(G13:G21)+SUM('ESAL A'!G11:G19))/C8 ->  | F26: ***************** | G26: *****************
A27: DESIGN LANE FACTOR: | C27: =IF(C3=P2,CHOOSE((E3)+1,#VALUE!,1,0.5,0.5,0.45,0.45,0.35,0.35),CHOOSE(E3,1,0.9,0.7,0.7,0.7,0.7)) ->  | F27: FLEXIBLE | G27: RIGID
E28: SEGMENT B INCREMENT ONLY: | F28: =ROUND(CHOOSE(C129,F129,F130,F131,F132,F133,F134,F135,F136,F137,F138,F139,F140,F141,F142,F143,F144,F145,F146,F147,F148,F149,F150,F151,F152,F153,F154,F155,F156,F157,F158,F159,F160,F161,F162,F163,F164)*1.12,-3) ->  | G28: =ROUND(CHOOSE(C129,G129,G130,G131,G132,G133,G134,G135,G136,G137,G138,G139,G140,G141,G142,G143,G144,G145,G146,G147,G148,G149,G150,G151,G152,G153,G154,G155,G156,G157,G158,G159,G160,G161,G162,G163,G164)*1.12,-3) -> 
E29: SEGMENT A + SEGMENT B: | F29: =ROUND(F28+'ESAL A'!F26*C27/'ESAL A'!C26,-3) ->  | G29: =ROUND(G28+'ESAL A'!G26*C27/'ESAL A'!C26,-3) -> 
F30: ***************** | G30: *****************
A32: ADDITIONAL OUTPUTS: | E32: ESAL FACTORS
B33: BASE % | C33: FORECAST % | E33: FLEXIBLE | F33: RIGID
A34: 2AX-6TIRE SU | B34: =D13/$C$25 ->  | C34: =G13/$C$26 ->  | E34: 0.25 | F34: =IF(E34<0.11,E34,E34-0.01) -> 0.24
A35: 3AX+ SU | E35: 0.58 | F35: =IF(E35<0.36,(E35*1.62364-0.070909)+0.01,(IF(E35<0.4,E35*1.62364-0.07909,(IF(E35<0.66,(E35*1.62364-0.07909)-0.01,(IF(E35<0.69,E35*1.62364-0.07909,(E35*1.62364-0.07909)+0.02))))))) -> 0.8526212
A36: 3AX TST | E36: 0.39 | F36: =IF(E36<0.28,E36-0.01,(IF(E36<0.56,E36-0.02,E36-0.03))) -> 0.37
A37: 4AX TST | E37: 0.51 | F37: =IF(E37<0.41,E37,(IF(E37<0.47,E37+0.01,(IF(E37<0.54,E37+0.02,(IF(E37<0.61,E37+0.03,(IF(E37<0.67,E37+0.04,E37+0.05))))))))) -> 0.53
A38: 5AX+ TST | E38: 1.13 | F38: =(+E38*1.71536-0.05351)+0.005 -> 1.8898468
A39: (5AX+ TST MAX) | E39: 2.4 | F39: =(+E39*1.71536-0.05351)+0.005 -> 4.068354
A40: (5AX+ TST OTH) | E40: 0.87 | F40: =(+E40*1.71536-0.05351)+0.005 -> 1.4438532
A41: TR TR, BUSES | E41: 0.57 | F41: =E41*1.35636-0.03091 -> 0.7422152
A42: TWIN TRAILERS | E42: 2.4 | F42: =(+E42*0.97519-0.01494)+0.005 -> 2.330516
A58: CUMULATIVE ESAL REPORT | D58: =D1 -> SEGMENT B2
G59: CORRESPONDS: | H59: ='Forecast B2'!H1 -> SEGMENT A1
A60: ROUTE #: | B60: ='Forecast B2'!B2 ->  | C60: DISTRICT: | D60: =IF(Cover!C15="","",Cover!C15) ->  | E60: SP#: | F60: =IF(Cover!H13="","",Cover!H13) ->  | G60: DATE: | H60: =Cover!C10 -> 2019-05-29T08:06:35.500
A61: FORECAST #: | B61: =IF(Cover!H12="","",Cover!H12) ->  | C61: COUNTY: | D61: =IF(Cover!H16="","",Cover!H16) ->  | E61: MILES: | F61: ='Forecast B2'!H3 -> 
A62: DESCRIPTION: | B62: =B4 -> 
A63: AUTHOR: | B63: =IF(Cover!C13="","",Cover!C13) ->  | E63: AUTHOR'S DISTRICT: | F63: =IF(Cover!C14="","",Cover!C14) -> 
A65: BASE YEAR NUMBER OF LANES: | D65: =IF('Forecast B2'!H5=0," ",'Forecast B2'!H5) -> 
G66: YEARLY GROWTH (SIMPLE %)
A67: TRAFFIC SUMMARY | D67: BASE YEAR | F67: DESIGN YEAR
A68: =C3 -> TWO-WAY | D68: =B7 ->  | F68: =B8 -> 
A69: AADT: | D69: =C7 ->  | F69: =C8 ->  | G69: =((F69-D69)/($F$68-$D$68))/D69 -> 
A70: DESIGN LANE: | D70: =ROUND(C27*D69,-1) ->  | F70: =ROUND(C27*F69,-1) -> 
A71: HCADT: | D71: =SUM(E13:E21) ->  | F71: =SUM(H13:H21) -> 
A72: SINGLE UNITS: | D72: =E13+E14 ->  | F72: =H13+H14 -> 
A73: TST'S: | D73: =SUM(E15:E19) ->  | F73: =SUM(H15:H19) -> 
A74: 5 Ax+: | D74: =SUM(E17:E19) ->  | F74: =SUM(H17:H19) -> 
A76: ESAL SUMMARY
A77: ANNUAL DESIGN LANE ESAL
A78: FLEXIBLE: | D78: =('ESAL A'!D115*'ESAL A'!C26+D125*C27)*365.25 ->  | F78: =('ESAL A'!F115*'ESAL A'!C26+F125*C27)*365.25 -> 
A79: RIGID: | D79: =('ESAL A'!E115*'ESAL A'!C26+E125*C27)*365.25 ->  | F79: =('ESAL A'!G115*'ESAL A'!C26+G125*C27)*365.25 -> 
A81: CUMULATIVE DESIGN-LANE ESALS (10 TON) | F81: Design-lane factor: | G81: =C27 -> 
A82: FOR VARIABLE TIME PERIODS
A86: BASE | B86: DESIGN | C86: TIME | D86: DESIGN-LANE | F86: ESALS
A87: YEAR | B87: YEAR | C87: PERIOD | D87: TST'S | F87: FLEXIBLE | G87: RIGID
A88: =D68 ->  | B88: =A88+10 ->  | C88: 10 Year | D88: =G81*(10*(F73-D73)/(F68-D68)+D73) ->  | F88: =ROUND(('ESAL A'!F129*C27/'ESAL A'!C26+F139)*1.12,-3) ->  | G88: =ROUND(('ESAL A'!G129*C27/'ESAL A'!C26+G139)*1.12,-3) -> 
A90: =D68 ->  | B90: =A90+15 ->  | C90: 15 Year | D90: =G81*(15*(F73-D73)/(F68-D68)+D73) ->  | F90: =ROUND(('ESAL A'!F134*C27/'ESAL A'!C26+F144)*1.12,-3) ->  | G90: =ROUND(('ESAL A'!G134*C27/'ESAL A'!C26+G144)*1.12,-3) -> 
A92: =D68 ->  | B92: =A92+20 ->  | C92: 20 Year | D92: =G81*(20*(F73-D73)/(F68-D68)+D73) ->  | F92: =ROUND(('ESAL A'!F139*C27/'ESAL A'!C26+F149)*1.12,-3) ->  | G92: =ROUND(('ESAL A'!G139*C27/'ESAL A'!C26+G149)*1.12,-3) -> 
A94: =D68 ->  | B94: =A94+25 ->  | C94: 25 Year | D94: =G81*(25*(F73-D73)/(F68-D68)+D73) ->  | F94: =ROUND(('ESAL A'!F144*C27/'ESAL A'!C26+F154)*1.12,-3) ->  | G94: =ROUND(('ESAL A'!G144*C27/'ESAL A'!C26+G154)*1.12,-3) -> 
A96: =D68 ->  | B96: =A96+30 ->  | C96: 30 Year | D96: =G81*(30*(F73-D73)/(F68-D68)+D73) ->  | F96: =ROUND(('ESAL A'!F149*C27/'ESAL A'!C26+F159)*1.12,-3) ->  | G96: =ROUND(('ESAL A'!G149*C27/'ESAL A'!C26+G159)*1.12,-3) -> 
A98: =D68 ->  | B98: =A98+35 ->  | C98: 35 Year | D98: =G81*(35*(F73-D73)/(F68-D68)+D73) ->  | F98: =ROUND(('ESAL A'!F154*C27/'ESAL A'!C26+F164)*1.12,-3) ->  | G98: =ROUND(('ESAL A'!G154*C27/'ESAL A'!C26+G164)*1.12,-3) -> 
B104: APPROVED BY: | F104: DATE:
A113: CUMULATIVE ESAL WORK AREA
B114: BYVOLS | C114: FYVOLS | D114: BY VOL * BESAL | E114: BY VOL *CESAL | F114: FY VOL *BESAL | G114: FY VOL *CESAL
B115: =D13+C13 ->  | C115: =G13+F13 ->  | D115: =E34*B115 ->  | E115: =F34*B115 ->  | F115: =E34*C115 ->  | G115: =F34*C115 -> 
A124: TWO WAY ADL --> | D124: FLEX ADL | E124: RIG ADL | F124: FLEX ADL | G124: RIG ADL
A125: | | D125: =$C$25*0.0007+SUM(D115:D123) ->  | E125: =$C$25*0.0007+SUM(E115:E123) ->  | F125: =$C$26*0.0007+SUM(F115:F123) ->  | G125: =$C$26*0.0007+SUM(G115:G123) -> 
A127: CUMULATIVE ESAL CALCULATIONS (DESIGN LANE) | F127: FLEXIBLE | G127: RIGID
B128: INCLUSIVE | C128: YEARS | E128: DAYS
A129: FUTURE YR - BASE YR = | C129: =B8-B7+1 ->  | E129: 365.25 | F129: =$D$125*$E129*$C$27+F128 ->  | G129: =$E$125*$E129*$C$27+G128 -> 
E130: 730.5 | F130: =(365.25*$D$125+$E129*$A$133)*$C$27+F129 ->  | G130: =(365.25*$E$125+$E129*$B$133)*$C$27+G129 -> 
A131: ANNUAL AVERAGE CHANGE IN 2 WAY ADL | E131: 1095.75
A132: FLEXIBLE | B132: RIGID | E132: 1461
A133: =(+F125-D125)/($C$129-1) ->  | B133: =(+G125-E125)/($C$129-1) ->  | E133: 1826.25
E134: 2191.5
E135: 2556.75
E136: 2922
E137: 3287.25
E138: 3652.5
E139: 4017.75
E140: 4383
E141: 4748.25
E142: 5113.5
E143: 5478.75
E144: 5844
E145: 6209.25
E146: 6574.5
E147: 6939.75
E148: 7305
E149: 7670.25
E150: 8035.5
E151: 8400.75
E152: 8766
E153: 9131.25
E154: 9496.5
E155: 9861.75
E156: 10227
E157: 10592.25
E158: 10957.5
E159: 11322.75
E160: 11688
E161: 12053.25
E162: 12418.5
E163: 12783.75
E164: 13149

Sheet Forecast B3
A1: LEAST SQUARES WORKSHEET | E1: SEGMENT B3 | G1: Corresponds : | H1: ='Forecast A'!E1 -> SEGMENT A1 | J1: Non-print area
A2: ROUTE: | B2: =IF(Cover!H15="Interstate",Cover!J25&Cover!H14,IF(Cover!H15="US Trunk",Cover!J26&Cover!H14,IF(Cover!H15="MN Trunk",Cover!J27&Cover!H14,IF(Cover!H15="CSAH",Cover!J28&Cover!H14,IF(Cover!H15="CR",Cover!J29&Cover!H14," "))))) ->  | D2: SP#: | E2: =IF(Cover!H13=0," ",Cover!H13) ->  | G2: DATE : | H2: =Cover!C10 -> 2019-05-29T08:06:35.500
A3: LOCATION: | G3: Miles : | H3: =IF(H4="","",VLOOKUP(H4,AADT_Data!A:AB,28,FALSE)) ->  | J3: =IF(B3="","Location field is empty. Please enter location description. E.g. MN 169 to CSAH 5","") -> Location field is empty. Please enter location description. E.g. MN 169 to CSAH 5
A4: BASE YEAR: | B4: =IF('Forecast A'!B4=0," ",'Forecast A'!B4) ->  | E4: FORECAST YEAR: | F4: =IF(B4=" "," ",B4+20) ->  | G4: Seq # | J4: =IF(H4="","No Seq # is listed. Please enter sequence number","") -> No Seq # is listed. Please enter sequence number
G5: # of lanes | J5: =IF(H5="","Please indicate the number of lanes in this segment","") -> Please indicate the number of lanes in this segment
A6: YEAR | B6: FLOW MAP AADT (SEG A) | J6: Year | K6: AADT
C7: 850 | J7: =IF(LARGE($D$64:$D$89,E74)=0,"",LARGE($D$64:$D$89,E74)) ->  | K7: =IF(ISNA(VLOOKUP(F74,$A$64:$C$89,3,FALSE)),"",VLOOKUP(F74,$A$64:$C$89,3,FALSE)) ->  | L7: Note: only contains data
C8: 880 | L8: updated to 2016 AADT
C9: 880
C10: 1350
C11: 1150
C12: 1000
C13: 1150
C14: 1100
C15: 1100
C16: 1100
C17: 1000
J21: =IF(LARGE($D$64:$D$89,E88)=0,"",LARGE($D$64:$D$89,E88)) -> 
J22: =IF(LARGE($D$64:$D$89,E89)=0,"",LARGE($D$64:$D$89,E89)) ->  | K22: =IF(ISNA(VLOOKUP(F89,$A$64:$C$89,3,FALSE)),"",VLOOKUP(F89,$A$64:$C$89,3,FALSE)) -> 
A24: LEAST SQUARES BASED FORECASTS:
A25: Year | B25: AADT | D25: Calc | E25: ADT Calc
A26: =INDEX(A7:A22,MATCH(9.99999999999999E+307,B7:B22)) ->  | B26: =FORECAST(A26,B7:B22,A7:A22) ->  | D26: =VLOOKUP(A26,$A$11:$B$22,2,FALSE)-B26 ->  | E26: =B26+D26 -> 
A27: =B4 ->  | B27: =FORECAST(A27,B7:B22,A7:A22) ->  | E27: =B27+D26 ->  | F27: =E27 -> 
A28: =F4 ->  | B28: =FORECAST(A28,B7:B22,A7:A22) ->  | E28: =B28+D26 ->  | F28: =E26+(E28-E26)*F40 -> 
A30: Statistics | B30: AADT | E30: Raw Least Squares Forecasts | H30: Demographically Adjusted Forecasts
A31: R 2 | B31: =RSQ(B7:B22,A7:A22) ->  | E31: YEAR | F31: AADT | H31: YEAR | I31: AADT
A32: SLOPE | B32: =SLOPE(B7:B22,A7:A22) ->  | E32: =A26 ->  | F32: =ROUND(E26,-1) ->  | H32: =A26 ->  | I32: =F32 -> 
A33: INTERCEPT | B33: =INTERCEPT(B7:B22,A7:A22) ->  | E33: =A27 ->  | F33: =ROUND(E27,-1) ->  | H33: =A27 ->  | I33: =ROUND(((I34-I32)/(H34-H32)*(H33-H32)+I32),-1) -> 
A34: N | B34: =COUNT(B7:B22) -> 0 | E34: =A28 ->  | F34: =ROUND(E28,-1) ->  | H34: =A28 ->  | I34: =ROUND(F32*(1+H38*(H34-H32)),-1) -> 
A35: NOTE:
A36: County Adjustment Factors were developed to Apply to Projected AADT. They are based on 1992-2007 VMT, Population, Labor Force, Household, and Employment Data. | E36: Slope Over Base Year | H36: Slope Over Base Year
E37: =B32/F33 ->  | H37: =((I34-I33)/(H34-H33)/I33) -> 
H38: =IF(E37*F40<=0.5%,0.5%,E37*F40) -> 
D39: COUNTY | F39: COUNTY FACTOR | H39: GROWTH PROFILE
D40: =UPPER(VLOOKUP(Cover!H16,$A$174:$C$261,1,FALSE)) ->  | F40: =VLOOKUP(Cover!H16,$A$174:$C$261,2,FALSE) ->  | H40: =UPPER(VLOOKUP(Cover!H16,$A$174:$C$261,3,FALSE)) -> 
B61: AADT_Data column reference
A63: year | C63: aadt | D63: data years | E63: nth largest
A64: 2018 | B64: 2 | C64: =VLOOKUP($H$4,AADT_Data!A:AA,B64,FALSE) ->  | D64: =IF(C64=0,0,A64) ->  | E64: 26 | F64: =IF(LARGE($D$64:$D$89,E64)=0,"",LARGE($D$64:$D$89,E64)) ->  | G64: =IF(ISNA(VLOOKUP(F64,$A$64:$C$89,3,FALSE)),"",VLOOKUP(F64,$A$64:$C$89,3,FALSE)) -> 
A65: 2017 | B65: 3 | C65: =VLOOKUP($H$4,AADT_Data!A:AA,B65,FALSE) ->  | D65: =IF(C65=0,0,A65) ->  | E65: 25
A66: 2016 | B66: 4 | C66: =VLOOKUP($H$4,AADT_Data!A:AA,B66,FALSE) ->  | D66: =IF(C66=0,0,A66) ->  | E66: 24
A67: 2015 | B67: 5 | C67: =VLOOKUP($H$4,AADT_Data!A:AA,B67,FALSE) ->  | D67: =IF(C67=0,0,A67) ->  | E67: 23
A68: 2014 | B68: 6 | C68: =VLOOKUP($H$4,AADT_Data!A:AA,B68,FALSE) ->  | D68: =IF(C68=0,0,A68) ->  | E68: 22
A69: 2013 | B69: 7 | C69: =VLOOKUP($H$4,AADT_Data!A:AA,B69,FALSE) ->  | E69: 21
A70: 2012 | B70: 8 | C70: =VLOOKUP($H$4,AADT_Data!A:AA,B70,FALSE) ->  | E70: 20
A71: 2011 | B71: 9 | C71: =VLOOKUP($H$4,AADT_Data!A:AA,B71,FALSE) ->  | E71: 19
A72: 2010 | B72: 10 | C72: =VLOOKUP($H$4,AADT_Data!A:AA,B72,FALSE) ->  | E72: 18
A73: 2009 | B73: 11 | C73: =VLOOKUP($H$4,AADT_Data!A:AA,B73,FALSE) ->  | E73: 17
A74: 2008 | B74: 12 | C74: =VLOOKUP($H$4,AADT_Data!A:AA,B74,FALSE) ->  | E74: 16
A75: 2007 | B75: 13 | C75: =VLOOKUP($H$4,AADT_Data!A:AA,B75,FALSE) ->  | E75: 15
A76: 2006 | B76: 14 | C76: =VLOOKUP($H$4,AADT_Data!A:AA,B76,FALSE) ->  | E76: 14
A77: 2005 | B77: 15 | C77: =VLOOKUP($H$4,AADT_Data!A:AA,B77,FALSE) ->  | E77: 13
A78: 2004 | B78: 16 | C78: =VLOOKUP($H$4,AADT_Data!A:AA,B78,FALSE) ->  | E78: 12
A79: 2003 | B79: 17 | C79: =VLOOKUP($H$4,AADT_Data!A:AA,B79,FALSE) ->  | E79: 11
A80: 2002 | B80: 18 | C80: =VLOOKUP($H$4,AADT_Data!A:AA,B80,FALSE) ->  | E80: 10
A81: 2001 | B81: 19 | C81: =VLOOKUP($H$4,AADT_Data!A:AA,B81,FALSE) ->  | E81: 9
A82: 2000 | B82: 20 | C82: =VLOOKUP($H$4,AADT_Data!A:AA,B82,FALSE) ->  | E82: 8
A83: 1999 | B83: 21 | C83: =VLOOKUP($H$4,AADT_Data!A:AA,B83,FALSE) ->  | E83: 7
A84: 1998 | B84: 22 | C84: =VLOOKUP($H$4,AADT_Data!A:AA,B84,FALSE) ->  | E84: 6
A85: 1997 | B85: 23 | C85: =VLOOKUP($H$4,AADT_Data!A:AA,B85,FALSE) ->  | E85: 5
A86: 1996 | B86: 24 | C86: =VLOOKUP($H$4,AADT_Data!A:AA,B86,FALSE) ->  | E86: 4
A87: 1995 | B87: 25 | C87: =VLOOKUP($H$4,AADT_Data!A:AA,B87,FALSE) ->  | E87: 3
A88: 1994 | B88: 26 | C88: =VLOOKUP($H$4,AADT_Data!A:AA,B88,FALSE) ->  | E88: 2
A89: 1992 | B89: 27 | C89: =VLOOKUP($H$4,AADT_Data!A:AA,B89,FALSE) ->  | E89: 1 | F89: =IF(LARGE($D$64:$D$89,E89)=0,"",LARGE($D$64:$D$89,E89)) ->  | G89: =IF(ISNA(VLOOKUP(F89,$A$64:$C$89,3,FALSE)),"",VLOOKUP(F89,$A$64:$C$89,3,FALSE)) -> 
A174: County | B174: Factor | C174: Area Type
A175: Aitkin | B175: 0.95 | C175: High Growth Area
A176: Anoka | B176: 0.95 | C176: High Growth Area
A177: Becker | B177: 0.9387339609 | C177: Medium Growth Area
A178: Beltrami | B178: 0.95 | C178: High Growth Area
A179: Benton | B179: 0.95 | C179: High Growth Area
A180: Big Stone | B180: 0.8944759202 | C180: Low Growth Area
A181: Blue Earth | B181: 0.75 | C181: Medium Growth Area
A182: Brown | B182: 0.7896922659 | C182: Low Growth Area
A183: Carlton | B183: 0.95 | C183: Medium Growth Area
A184: Carver | B184: 0.95 | C184: High Growth Area
A185: Cass | B185: 0.95 | C185: High Growth Area
A186: Chippewa | B186: 0.8733104434 | C186: Low Growth Area
A187: Chisago | B187: 0.881279837 | C187: High Growth Area
A188: Clay | B188: 0.75 | C188: Low Growth Area
A189: Clearwater | B189: 0.8438234218 | C189: Low Growth Area
A190: Cook | B190: 0.75 | C190: Medium Growth Area
A191: Cottonwood | B191: 0.8331705696 | C191: Low Growth Area
A192: Crow Wing | B192: 0.8832312646 | C192: High Growth Area
A193: Dakota | B193: 0.8547421962 | C193: High Growth Area
A194: Dodge | B194: 0.95 | C194: High Growth Area
A195: Douglas | B195: 0.8873831958 | C195: High Growth Area
A196: Faribault | B196: 0.865981121 | C196: Low Growth Area
A197: Fillmore | B197: 0.8896061418 | C197: Low Growth Area
A198: Freeborn | B198: 0.755552827 | C198: Low Growth Area
A199: Goodhue | B199: 0.9273647987 | C199: Medium Growth Area
A200: Grant | B200: 0.75 | C200: Low Growth Area
A201: Hennepin | B201: 0.8272566422 | C201: Low Growth Area
A202: Houston | B202: 0.8378015226 | C202: Low Growth Area
A203: Hubbard | B203: 0.8346205138 | C203: High Growth Area
A204: Isanti | B204: 0.95 | C204: High Growth Area
A205: Itasca | B205: 0.8886716849 | C205: Medium Growth Area
A206: Jackson | B206: 0.9180626248 | C206: Medium Growth Area
A207: Kanabec | B207: 0.8135838922 | C207: Medium Growth Area
A208: Kandiyohi | B208: 0.8938419831 | C208: Medium Growth Area
A209: Kittson | B209: 0.8024358458 | C209: Low Growth Area
A210: Koochiching | B210: 0.7937489549 | C210: Low Growth Area
A211: Lac qui Parle | B211: 0.75 | C211: Low Growth Area
A212: Lake | B212: 0.8562919136 | C212: Low Growth Area
A213: Lake of the Woods | B213: 0.9138862817 | C213: Low Growth Area
A214: Le Sueur | B214: 0.95 | C214: Medium Growth Area
A215: Lincoln | B215: 0.8857449991 | C215: Low Growth Area
A216: Lyon | B216: 0.75 | C216: Low Growth Area
A217: Mahnomen | B217: 0.75 | C217: Low Growth Area
A218: Marshall | B218: 0.95 | C218: Low Growth Area
A219: Martin | B219: 0.8201303604 | C219: Low Growth Area
A220: McLeod | B220: 0.8928164106 | C220: Medium Growth Area
A221: Meeker | B221: 0.926111411 | C221: Medium Growth Area
A222: Mille Lacs | B222: 0.95 | C222: High Growth Area
A223: Morrison | B223: 0.9495694712 | C223: Medium Growth Area
A224: Mower | B224: 0.8302978459 | C224: Low Growth Area
A225: Murray | B225: 0.8387247211 | C225: Medium Growth Area
A226: Nicollet | B226: 0.8240013933 | C226: Medium Growth Area
A227: Nobles | B227: 0.7549960093 | C227: Low Growth Area
A228: Norman | B228: 0.8022447962 | C228: Low Growth Area
A229: Olmsted | B229: 0.95 | C229: High Growth Area
A230: Otter Tail | B230: 0.8614026285 | C230: Medium Growth Area
A231: Pennington | B231: 0.95 | C231: Medium Growth Area
A232: Pine | B232: 0.8448776659 | C232: High Growth Area
A233: Pipestone | B233: 0.75 | C233: Low Growth Area
A234: Polk | B234: 0.75 | C234: Low Growth Area
A235: Pope | B235: 0.9029074643 | C235: Medium Growth Area
A236: Ramsey | B236: 0.8087858109 | C236: Low Growth Area
A237: Red Lake | B237: 0.95 | C237: Medium Growth Area
A238: Redwood | B238: 0.75 | C238: Low Growth Area
A239: Renville | B239: 0.8480251476 | C239: Low Growth Area
A240: Rice | B240: 0.8220040162 | C240: Medium Growth Area
A241: Rock | B241: 0.75 | C241: Low Growth Area
A242: Roseau | B242: 0.8847517198 | C242: Medium Growth Area
A243: Scott | B243: 0.95 | C243: High Growth Area
A244: Sherburne | B244: 0.95 | C244: High Growth Area
A245: Sibley | B245: 0.8646549065 | C245: Medium Growth Area
A246: St. Louis | B246: 0.850777855 | C246: Low Growth Area
A247: Stearns | B247: 0.8586120378 | C247: High Growth Area
A248: Steele | B248: 0.8848664209 | C248: Medium Growth Area
A249: Stevens | B249: 0.7999567113 | C249: Low Growth Area
A250: Swift | B250: 0.8706429381 | C250: Low Growth Area
A251: Todd | B251: 0.8988708026 | C251: Medium Growth Area
A252: Traverse | B252: 0.7652278953 | C252: Low Growth Area
A253: Wabasha | B253: 0.8182478469 | C253: Low Growth Area
A254: Wadena | B254: 0.95 | C254: Medium Growth Area
A255: Waseca | B255: 0.7963073355 | C255: Low Growth Area
A256: Washington | B256: 0.95 | C256: High Growth Area
A257: Watonwan | B257: 0.75 | C257: Low Growth Area
A258: Wilkin | B258: 0.75 | C258: Low Growth Area
A259: Winona | B259: 0.8284012539 | C259: Low Growth Area
A260: Wright | B260: 0.95 | C260: High Growth Area
A261: Yellow Medicine | B261: 0.8780713455 | C261: Low Growth Area

Sheet ESAL B3
A1: CUMULATIVE ESAL WORKSHEET | D1: ='Forecast B3'!E1 -> SEGMENT B3 | J1: Non-print area | P1: ONE-WAY
A2: SP#: | B2: =IF(Cover!H13="","",Cover!H13) ->  | F2: CORRESPONDS: | G2: ='Forecast B3'!H1 -> SEGMENT A1 | P2: TWO-WAY
A3: ROUTE: | B3: ='Forecast B3'!B2 ->  | C3: TWO-WAY | D3: # LANES: | E3: =IF('Forecast B3'!H5=0," ",'Forecast B3'!H5) ->  | F3: DATE: | G3: =Cover!C10 -> 2019-05-29T08:06:35.500 | J3: Urban/Rural Classification
A4: LOCATION: | B4: =IF('Forecast B3'!B3=0," ",'Forecast B3'!B3) ->  | J4: =VLOOKUP('Forecast B3'!H4,'Urban&Rural'!A1:B18090,2,FALSE) -> 
B6: YEAR | C6: AADT | E6: AADT Difference from A Seg
A7: BASE YEAR: | B7: ='Forecast B3'!B4 ->  | C7: ='Forecast B3'!I33 ->  | E7: =C7-'ESAL A'!C7 ->  | N7: RURAL
A8: FORECAST YEAR: | B8: ='Forecast B3'!F4 ->  | C8: ='Forecast B3'!I34 ->  | E8: =C8-'ESAL A'!C8 ->  | N8: URBAN
C10: User Adjustment to Base Yr Vol | D10: Base Year Incremental Volume | E10: Base Year Volume | F10: User Adjustment to Future Yr Vol | G10: Future Year Incremental Volume | H10: Future Year Volume | I10: RESULTING PERCENTS | L10: VEHICLE TYPE | M10: URBAN | N10: RURAL
L11: 2AX-6TIRE SU | M11: 0.0152 | N11: 0.0317
A12: INCREMENTAL PROPORTIONS | L12: 3AX+ SU | M12: 0.0046 | N12: 0.0164
A13: 2AX-6TIRE SU | B13: =IF($E$7=0,'ESAL A'!B11,(D13+C13)/$E$7) ->  | C13: =IF(J13>0.5,0.5*'ESAL A'!D11-D13,IF(J13<-0.5,-0.5*'ESAL A'!D11-D13,0)) ->  | D13: =IF($J$4="urban",M11*$E$7,IF($J$4="rural",N11*$E$7,"See J3")) ->  | E13: ='ESAL A'!D11+(D13+C13) ->  | F13: =IF(K13>0.5,0.5*'ESAL A'!G11-G13,IF(K13<-0.5,-0.5*'ESAL A'!G11-G13,0)) ->  | G13: =B13*$E$8 ->  | H13: ='ESAL A'!G11+(G13+F13) ->  | I13: =H13/$C$8 ->  | J13: =D13/'ESAL A'!D11 ->  | K13: =G13/'ESAL A'!G11 ->  | L13: 3AX TST | M13: 0.0009 | N13: 0.0028
A14: 3AX+ SU | B14: =IF($E$7=0,'ESAL A'!B12,(D14+C14)/$E$7) ->  | C14: =IF(J14>0.5,0.5*'ESAL A'!D12-D14,IF(J14<-0.5,-0.5*'ESAL A'!D12-D14,0)) ->  | D14: =IF($J$4="urban",M12*$E$7,IF($J$4="rural",N12*$E$7,"See J3")) ->  | E14: ='ESAL A'!D12+(D14+C14) ->  | F14: =IF(K14>0.5,0.5*'ESAL A'!G12-G14,IF(K14<-0.5,-0.5*'ESAL A'!G12-G14,0)) ->  | G14: =B14*$E$8 ->  | H14: ='ESAL A'!G12+(G14+F14) ->  | I14: =H14/$C$8 ->  | J14: =D14/'ESAL A'!D12 ->  | K14: =G14/'ESAL A'!G12 ->  | L14: 4AX TST | M14: 0.0012 | N14: 0.005
A15: 3AX TST | B15: =IF($E$7=0,'ESAL A'!B13,(D15+C15)/$E$7) ->  | C15: =IF(J15>0.5,0.5*'ESAL A'!D13-D15,IF(J15<-0.5,-0.5*'ESAL A'!D13-D15,0)) ->  | D15: =IF($J$4="urban",M13*$E$7,IF($J$4="rural",N13*$E$7,"See J3")) ->  | E15: ='ESAL A'!D13+(D15+C15) ->  | F15: =IF(K15>0.5,0.5*'ESAL A'!G13-G15,IF(K15<-0.5,-0.5*'ESAL A'!G13-G15,0)) ->  | G15: =B15*$E$8 ->  | H15: ='ESAL A'!G13+(G15+F15) ->  | J15: =D15/'ESAL A'!D13 ->  | K15: =G15/'ESAL A'!G13 ->  | L15: 5AX+ TST | M15: 0.0089 | N15: 0.0326
A16: 4AX TST | B16: =IF($E$7=0,'ESAL A'!B14,(D16+C16)/$E$7) ->  | C16: =IF(J16>0.5,0.5*'ESAL A'!D14-D16,IF(J16<-0.5,-0.5*'ESAL A'!D14-D16,0)) ->  | D16: =IF($J$4="urban",M14*$E$7,IF($J$4="rural",N14*$E$7,"See J3")) ->  | E16: ='ESAL A'!D14+(D16+C16) ->  | F16: =IF(K16>0.5,0.5*'ESAL A'!G14-G16,IF(K16<-0.5,-0.5*'ESAL A'!G14-G16,0)) ->  | G16: =B16*$E$8 ->  | H16: ='ESAL A'!G14+(G16+F16) ->  | J16: =D16/'ESAL A'!D14 ->  | K16: =G16/'ESAL A'!G14 ->  | L16: TR TR, BUSES | M16: 0.0047 | N16: 0.012
A17: 5AX+ TST | B17: =IF('ESAL A'!B15=0,0,(D17+C17)/$E$7) ->  | C17: =IF(J17>0.5,0.5*SUM('ESAL A'!D15:D17)-D17,IF(J17<-0.5,-0.5*SUM('ESAL A'!D15:D17)-D17,0)) ->  | D17: =IF('ESAL A'!B15="0",0,IF($J$4="urban",M15*$E$7,IF($J$4="rural",N15*$E$7,"See J3"))) ->  | E17: =IF('ESAL A'!B15=0,"-",'ESAL A'!D15+D17) ->  | F17: =IF(K17>0.5,0.5*SUM('ESAL A'!G15:G17)-G17,IF(K17<-0.5,-0.5*SUM('ESAL A'!G15:G17)-G17,0)) ->  | G17: =B17*$E$8 ->  | H17: =IF('ESAL A'!B15=0,"-",'ESAL A'!G15+G17) ->  | I17: =IF(H17="-","-",H17/$C$8) ->  | J17: =D17/SUM('ESAL A'!D15:D17) ->  | K17: =G17/SUM('ESAL A'!G15:G17) ->  | L17: TWIN TRAILERS | M17: 0.0002 | N17: 0.0002
A18: (5AX+ TST MAX) | B18: =IF($E$7=0,'ESAL A'!B16,D18/$E$7) ->  | C18: 0 | D18: =IF('ESAL A'!B16=0,0,IF($J$4="urban",M15*$E$7*('ESAL A'!D16/SUM('ESAL A'!D16:D17))+C18,IF($J$4="rural",N15*$E$7*('ESAL A'!D16/SUM('ESAL A'!D16:D17))+C18,"See J3"))) ->  | E18: ='ESAL A'!D16+D18 ->  | F18: 0 | G18: =B18*$E$8+F18 ->  | H18: ='ESAL A'!G16+G18 ->  | I18: =H18/$C$8 ->  | J18: =IF('ESAL A'!D16=0,0,D18/'ESAL A'!D16) ->  | K18: =IF('ESAL A'!G16=0,0,G18/'ESAL A'!G16) ->  | L18: TOTAL | M18: =SUM(M11:M17) -> 0.0357 | N18: =SUM(N11:N17) -> 0.1007
A19: (5AX+ TST OTH) | B19: =IF($E$7=0,'ESAL A'!B17,D19/$E$7) ->  | C19: 0 | D19: =IF('ESAL A'!B16=0,0,IF($J$4="urban",M15*$E$7*('ESAL A'!D17/SUM('ESAL A'!D16:D17))+C19,IF($J$4="rural",N15*$E$7*('ESAL A'!D17/SUM('ESAL A'!D16:D17))+C19,"See J3"))) ->  | E19: ='ESAL A'!D17+D19 ->  | F19: 0 | G19: =B19*$E$8+F19 ->  | H19: ='ESAL A'!G17+G19 ->  | J19: =IF('ESAL A'!D17=0,0,D19/'ESAL A'!D17) ->  | K19: =IF('ESAL A'!G17=0,0,G19/'ESAL A'!G17) -> 
A20: TR TR, BUSES | B20: =IF($E$7=0,'ESAL A'!B18,(D20+C20)/$E$7) ->  | C20: =IF(J20>0.5,0.5*'ESAL A'!D18-D20,IF(J20<-0.5,-0.5*'ESAL A'!D18-D20,0)) ->  | D20: =IF($J$4="urban",M16*$E$7,IF($J$4="rural",N16*$E$7,"See J3")) ->  | E20: ='ESAL A'!D18+(D20+C20) ->  | F20: =IF(K20>0.5,0.5*'ESAL A'!G18-G20,IF(K20<-0.5,-0.5*'ESAL A'!G18-G20,0)) ->  | G20: =B20*$E$8 ->  | H20: ='ESAL A'!G18+(G20+F20) ->  | J20: =D20/'ESAL A'!D18 ->  | K20: =G20/'ESAL A'!G18 -> 
A21: TWIN TRAILERS | B21: =IF($E$7=0,'ESAL A'!B19,(D21+C21)/$E$7) ->  | C21: =IF(J21>0.5,0.5*'ESAL A'!D19-D21,IF(J21<-0.5,-0.5*'ESAL A'!D19-D21,0)) ->  | D21: =IF($J$4="urban",M17*$E$7,IF($J$4="rural",N17*$E$7,"See J3")) ->  | E21: ='ESAL A'!D19+(D21+C21) ->  | F21: =IF(K21>0.5,0.5*'ESAL A'!G19-G21,IF(K21<-0.5,-0.5*'ESAL A'!G19-G21,0)) ->  | G21: =B21*$E$8 ->  | H21: ='ESAL A'!G19+(G21+F21) ->  | J21: =IF('ESAL A'!D19=0,0,D21/'ESAL A'!D19) ->  | K21: =IF('ESAL A'!G19=0,0,G21/'ESAL A'!G19) -> 
A23: CLASSIFICATION: | B23: =J4 ->  | D23: ADDED | E23: COMBINED | F23: =B26-B25 ->  | G23: YR DESIGN
C24: AADT | D24: HCADT % | E24: HCADT % | F24: LANE CUMULATIVE ESAL
A25: BASE YEAR: | B25: =B7 ->  | C25: =E7 ->  | D25: =SUM(D13:D21)/C25 ->  | E25: =(SUM(D13:D21)+SUM('ESAL A'!D11:D19))/C7 ->  | F25: | | G25: |
A26: FORECAST YEAR: | B26: =B8 ->  | C26: =E8 ->  | D26: =SUM(G13:G21)/C26 ->  | E26: =(SUM(G13:G21)+SUM('ESAL A'!G11:G19))/C8 ->  | F26: ***************** | G26: *****************
A27: DESIGN LANE FACTOR: | C27: =IF(C3=P2,CHOOSE((E3)+1,#VALUE!,1,0.5,0.5,0.45,0.45,0.35,0.35),CHOOSE(E3,1,0.9,0.7,0.7,0.7,0.7)) ->  | F27: FLEXIBLE | G27: RIGID
E28: SEGMENT B INCREMENT ONLY: | F28: =ROUND(CHOOSE(C129,F129,F130,F131,F132,F133,F134,F135,F136,F137,F138,F139,F140,F141,F142,F143,F144,F145,F146,F147,F148,F149,F150,F151,F152,F153,F154,F155,F156,F157,F158,F159,F160,F161,F162,F163,F164)*1.12,-3) ->  | G28: =ROUND(CHOOSE(C129,G129,G130,G131,G132,G133,G134,G135,G136,G137,G138,G139,G140,G141,G142,G143,G144,G145,G146,G147,G148,G149,G150,G151,G152,G153,G154,G155,G156,G157,G158,G159,G160,G161,G162,G163,G164)*1.12,-3) -> 
E29: SEGMENT A + SEGMENT B: | F29: =ROUND(F28+'ESAL A'!F26*C27/'ESAL A'!C26,-3) ->  | G29: =ROUND(G28+'ESAL A'!G26*C27/'ESAL A'!C26,-3) -> 
F30: ***************** | G30: *****************
A32: ADDITIONAL OUTPUTS: | E32: ESAL FACTORS
B33: BASE % | C33: FORECAST % | E33: FLEXIBLE | F33: RIGID
A34: 2AX-6TIRE SU | B34: =D13/$C$25 ->  | C34: =G13/$C$26 ->  | E34: 0.25 | F34: =IF(E34<0.11,E34,E34-0.01) -> 0.24
A35: 3AX+ SU | E35: 0.58 | F35: =IF(E35<0.36,(E35*1.62364-0.070909)+0.01,(IF(E35<0.4,E35*1.62364-0.07909,(IF(E35<0.66,(E35*1.62364-0.07909)-0.01,(IF(E35<0.69,E35*1.62364-0.07909,(E35*1.62364-0.07909)+0.02))))))) -> 0.8526212
A36: 3AX TST | E36: 0.39 | F36: =IF(E36<0.28,E36-0.01,(IF(E36<0.56,E36-0.02,E36-0.03))) -> 0.37
A37: 4AX TST | E37: 0.51 | F37: =IF(E37<0.41,E37,(IF(E37<0.47,E37+0.01,(IF(E37<0.54,E37+0.02,(IF(E37<0.61,E37+0.03,(IF(E37<0.67,E37+0.04,E37+0.05))))))))) -> 0.53
A38: 5AX+ TST | E38: 1.13 | F38: =(+E38*1.71536-0.05351)+0.005 -> 1.8898468
A39: (5AX+ TST MAX) | E39: 2.4 | F39: =(+E39*1.71536-0.05351)+0.005 -> 4.068354
A40: (5AX+ TST OTH) | E40: 0.87 | F40: =(+E40*1.71536-0.05351)+0.005 -> 1.4438532
A41: TR TR, BUSES | E41: 0.57 | F41: =E41*1.35636-0.03091 -> 0.7422152
A42: TWIN TRAILERS | E42: 2.4 | F42: =(+E42*0.97519-0.01494)+0.005 -> 2.330516
A58: CUMULATIVE ESAL REPORT | D58: =D1 -> SEGMENT B3
G59: CORRESPONDS: | H59: ='Forecast B3'!H1 -> SEGMENT A1
A60: ROUTE #: | B60: ='Forecast B3'!B2 ->  | C60: DISTRICT: | D60: =IF(Cover!C15="","",Cover!C15) ->  | E60: SP#: | F60: =IF(Cover!H13="","",Cover!H13) ->  | G60: DATE: | H60: =Cover!C10 -> 2019-05-29T08:06:35.500
A61: FORECAST #: | B61: =IF(Cover!H12="","",Cover!H12) ->  | C61: COUNTY: | D61: =IF(Cover!H16="","",Cover!H16) ->  | E61: MILES: | F61: ='Forecast B3'!H3 -> 
A62: DESCRIPTION: | B62: =B4 -> 
A63: AUTHOR: | B63: =IF(Cover!C13="","",Cover!C13) ->  | E63: AUTHOR'S DISTRICT: | F63: =IF(Cover!C14="","",Cover!C14) -> 
A65: BASE YEAR NUMBER OF LANES: | D65: =IF('Forecast B3'!H5=0," ",'Forecast B3'!H5) -> 
G66: YEARLY GROWTH (SIMPLE %)
A67: TRAFFIC SUMMARY | D67: BASE YEAR | F67: DESIGN YEAR
A68: =C3 -> TWO-WAY | D68: =B7 ->  | F68: =B8 -> 
A69: AADT: | D69: =C7 ->  | F69: =C8 ->  | G69: =((F69-D69)/($F$68-$D$68))/D69 -> 
A70: DESIGN LANE: | D70: =ROUND(C27*D69,-1) ->  | F70: =ROUND(C27*F69,-1) -> 
A71: HCADT: | D71: =SUM(E13:E21) ->  | F71: =SUM(H13:H21) -> 
A72: SINGLE UNITS: | D72: =E13+E14 ->  | F72: =H13+H14 -> 
A73: TST'S: | D73: =SUM(E15:E19) ->  | F73: =SUM(H15:H19) -> 
A74: 5 Ax+: | D74: =SUM(E17:E19) ->  | F74: =SUM(H17:H19) -> 
A76: ESAL SUMMARY
A77: ANNUAL DESIGN LANE ESAL
A78: FLEXIBLE: | D78: =('ESAL A'!D115*'ESAL A'!C26+D125*C27)*365.25 ->  | F78: =('ESAL A'!F115*'ESAL A'!C26+F125*C27)*365.25 -> 
A79: RIGID: | D79: =('ESAL A'!E115*'ESAL A'!C26+E125*C27)*365.25 ->  | F79: =('ESAL A'!G115*'ESAL A'!C26+G125*C27)*365.25 -> 
A81: CUMULATIVE DESIGN-LANE ESALS (10 TON) | F81: Design-lane factor: | G81: =C27 -> 
A82: FOR VARIABLE TIME PERIODS
A86: BASE | B86: DESIGN | C86: TIME | D86: DESIGN-LANE | F86: ESALS
A87: YEAR | B87: YEAR | C87: PERIOD | D87: TST'S | F87: FLEXIBLE | G87: RIGID
A88: =D68 ->  | B88: =A88+10 ->  | C88: 10 Year | D88: =G81*(10*(F73-D73)/(F68-D68)+D73) ->  | F88: =ROUND(('ESAL A'!F129*C27/'ESAL A'!C26+F139)*1.12,-3) ->  | G88: =ROUND(('ESAL A'!G129*C27/'ESAL A'!C26+G139)*1.12,-3) -> 
A90: =D68 ->  | B90: =A90+15 ->  | C90: 15 Year | D90: =G81*(15*(F73-D73)/(F68-D68)+D73) ->  | F90: =ROUND(('ESAL A'!F134*C27/'ESAL A'!C26+F144)*1.12,-3) ->  | G90: =ROUND(('ESAL A'!G134*C27/'ESAL A'!C26+G144)*1.12,-3) -> 
A92: =D68 ->  | B92: =A92+20 ->  | C92: 20 Year | D92: =G81*(20*(F73-D73)/(F68-D68)+D73) ->  | F92: =ROUND(('ESAL A'!F139*C27/'ESAL A'!C26+F149)*1.12,-3) ->  | G92: =ROUND(('ESAL A'!G139*C27/'ESAL A'!C26+G149)*1.12,-3) -> 
A94: =D68 ->  | B94: =A94+25 ->  | C94: 25 Year | D94: =G81*(25*(F73-D73)/(F68-D68)+D73) ->  | F94: =ROUND(('ESAL A'!F144*C27/'ESAL A'!C26+F154)*1.12,-3) ->  | G94: =ROUND(('ESAL A'!G144*C27/'ESAL A'!C26+G154)*1.12,-3) -> 
A96: =D68 ->  | B96: =A96+30 ->  | C96: 30 Year | D96: =G81*(30*(F73-D73)/(F68-D68)+D73) ->  | F96: =ROUND(('ESAL A'!F149*C27/'ESAL A'!C26+F159)*1.12,-3) ->  | G96: =ROUND(('ESAL A'!G149*C27/'ESAL A'!C26+G159)*1.12,-3) -> 
A98: =D68 ->  | B98: =A98+35 ->  | C98: 35 Year | D98: =G81*(35*(F73-D73)/(F68-D68)+D73) ->  | F98: =ROUND(('ESAL A'!F154*C27/'ESAL A'!C26+F164)*1.12,-3) ->  | G98: =ROUND(('ESAL A'!G154*C27/'ESAL A'!C26+G164)*1.12,-3) -> 
B104: APPROVED BY: | F104: DATE:
A113: CUMULATIVE ESAL WORK AREA
B114: BYVOLS | C114: FYVOLS | D114: BY VOL * BESAL | E114: BY VOL *CESAL | F114: FY VOL *BESAL | G114: FY VOL *CESAL
B115: =D13+C13 ->  | C115: =G13+F13 ->  | D115: =E34*B115 ->  | E115: =F34*B115 ->  | F115: =E34*C115 ->  | G115: =F34*C115 -> 
A124: TWO WAY ADL --> | D124: FLEX ADL | E124: RIG ADL | F124: FLEX ADL | G124: RIG ADL
A125: | | D125: =$C$25*0.0007+SUM(D115:D123) ->  | E125: =$C$25*0.0007+SUM(E115:E123) ->  | F125: =$C$26*0.0007+SUM(F115:F123) ->  | G125: =$C$26*0.0007+SUM(G115:G123) -> 
A127: CUMULATIVE ESAL CALCULATIONS (DESIGN LANE) | F127: FLEXIBLE | G127: RIGID
B128: INCLUSIVE | C128: YEARS | E128: DAYS
A129: FUTURE YR - BASE YR = | C129: =B8-B7+1 ->  | E129: 365.25 | F129: =$D$125*$E129*$C$27+F128 ->  | G129: =$E$125*$E129*$C$27+G128 -> 
E130: 730.5 | F130: =(365.25*$D$125+$E129*$A$133)*$C$27+F129 ->  | G130: =(365.25*$E$125+$E129*$B$133)*$C$27+G129 -> 
A131: ANNUAL AVERAGE CHANGE IN 2 WAY ADL | E131: 1095.75
A132: FLEXIBLE | B132: RIGID | E132: 1461
A133: =(+F125-D125)/($C$129-1) ->  | B133: =(+G125-E125)/($C$129-1) ->  | E133: 1826.25
E134: 2191.5
E135: 2556.75
E136: 2922
E137: 3287.25
E138: 3652.5
E139: 4017.75
E140: 4383
E141: 4748.25
E142: 5113.5
E143: 5478.75
E144: 5844
E145: 6209.25
E146: 6574.5
E147: 6939.75
E148: 7305
E149: 7670.25
E150: 8035.5
E151: 8400.75
E152: 8766
E153: 9131.25
E154: 9496.5
E155: 9861.75
E156: 10227
E157: 10592.25
E158: 10957.5
E159: 11322.75
E160: 11688
E161: 12053.25
E162: 12418.5
E163: 12783.75
E164: 13149

Sheet Forecast B4
A1: LEAST SQUARES WORKSHEET | E1: SEGMENT B4 | G1: Corresponds : | H1: ='Forecast A'!E1 -> SEGMENT A1 | J1: Non-print area
A2: ROUTE: | B2: =IF(Cover!H15="Interstate",Cover!J25&Cover!H14,IF(Cover!H15="US Trunk",Cover!J26&Cover!H14,IF(Cover!H15="MN Trunk",Cover!J27&Cover!H14,IF(Cover!H15="CSAH",Cover!J28&Cover!H14,IF(Cover!H15="CR",Cover!J29&Cover!H14," "))))) ->  | D2: SP#: | E2: =IF(Cover!H13=0," ",Cover!H13) ->  | G2: DATE : | H2: =Cover!C10 -> 2019-05-29T08:06:35.500
A3: LOCATION: | G3: Miles : | H3: =IF(H4="","",VLOOKUP(H4,AADT_Data!A:AB,28,FALSE)) ->  | J3: =IF(B3="","Location field is empty. Please enter location description. E.g. MN 169 to CSAH 5","") -> Location field is empty. Please enter location description. E.g. MN 169 to CSAH 5
A4: BASE YEAR: | B4: =IF('Forecast A'!B4=0," ",'Forecast A'!B4) ->  | E4: FORECAST YEAR: | F4: =IF(B4=" "," ",B4+20) ->  | G4: Seq # | J4: =IF(H4="","No Seq # is listed. Please enter sequence number","") -> No Seq # is listed. Please enter sequence number
G5: # of lanes | J5: =IF(H5="","Please indicate the number of lanes in this segment","") -> Please indicate the number of lanes in this segment
A6: YEAR | B6: FLOW MAP AADT (SEG A) | J6: Year | K6: AADT
C7: 850 | J7: =IF(LARGE($D$64:$D$89,E74)=0,"",LARGE($D$64:$D$89,E74)) ->  | K7: =IF(ISNA(VLOOKUP(F74,$A$64:$C$89,3,FALSE)),"",VLOOKUP(F74,$A$64:$C$89,3,FALSE)) ->  | L7: Note: only contains data
C8: 880 | L8: updated to 2016 AADT
C9: 880
C10: 1350
C11: 1150
C12: 1000
C13: 1150
C14: 1100
C15: 1100
C16: 1100
C17: 1000
J21: =IF(LARGE($D$64:$D$89,E88)=0,"",LARGE($D$64:$D$89,E88)) -> 
J22: =IF(LARGE($D$64:$D$89,E89)=0,"",LARGE($D$64:$D$89,E89)) ->  | K22: =IF(ISNA(VLOOKUP(F89,$A$64:$C$89,3,FALSE)),"",VLOOKUP(F89,$A$64:$C$89,3,FALSE)) -> 
A24: LEAST SQUARES BASED FORECASTS:
A25: Year | B25: AADT | D25: Calc | E25: ADT Calc
A26: =INDEX(A7:A22,MATCH(9.99999999999999E+307,B7:B22)) ->  | B26: =FORECAST(A26,B7:B22,A7:A22) ->  | D26: =VLOOKUP(A26,$A$11:$B$22,2,FALSE)-B26 ->  | E26: =B26+D26 -> 
A27: =B4 ->  | B27: =FORECAST(A27,B7:B22,A7:A22) ->  | E27: =B27+D26 ->  | F27: =E27 -> 
A28: =F4 ->  | B28: =FORECAST(A28,B7:B22,A7:A22) ->  | E28: =B28+D26 ->  | F28: =E26+(E28-E26)*F40 -> 
A30: Statistics | B30: AADT | E30: Raw Least Squares Forecasts | H30: Demographically Adjusted Forecasts
A31: R 2 | B31: =RSQ(B7:B22,A7:A22) ->  | E31: YEAR | F31: AADT | H31: YEAR | I31: AADT
A32: SLOPE | B32: =SLOPE(B7:B22,A7:A22) ->  | E32: =A26 ->  | F32: =ROUND(E26,-1) ->  | H32: =A26 ->  | I32: =F32 -> 
A33: INTERCEPT | B33: =INTERCEPT(B7:B22,A7:A22) ->  | E33: =A27 ->  | F33: =ROUND(E27,-1) ->  | H33: =A27 ->  | I33: =ROUND(((I34-I32)/(H34-H32)*(H33-H32)+I32),-1) -> 
A34: N | B34: =COUNT(B7:B22) -> 0 | E34: =A28 ->  | F34: =ROUND(E28,-1) ->  | H34: =A28 ->  | I34: =ROUND(F32*(1+H38*(H34-H32)),-1) -> 
A35: NOTE:
A36: County Adjustment Factors were developed to Apply to Projected AADT. They are based on 1992-2007 VMT, Population, Labor Force, Household, and Employment Data. | E36: Slope Over Base Year | H36: Slope Over Base Year
E37: =B32/F33 ->  | H37: =((I34-I33)/(H34-H33)/I33) -> 
H38: =IF(E37*F40<=0.5%,0.5%,E37*F40) -> 
D39: COUNTY | F39: COUNTY FACTOR | H39: GROWTH PROFILE
D40: =UPPER(VLOOKUP(Cover!H16,$A$174:$C$261,1,FALSE)) ->  | F40: =VLOOKUP(Cover!H16,$A$174:$C$261,2,FALSE) ->  | H40: =UPPER(VLOOKUP(Cover!H16,$A$174:$C$261,3,FALSE)) -> 
B61: AADT_Data column reference
A63: year | C63: aadt | D63: data years | E63: nth largest
A64: 2018 | B64: 2 | C64: =VLOOKUP($H$4,AADT_Data!A:AA,B64,FALSE) ->  | D64: =IF(C64=0,0,A64) ->  | E64: 26 | F64: =IF(LARGE($D$64:$D$89,E64)=0,"",LARGE($D$64:$D$89,E64)) ->  | G64: =IF(ISNA(VLOOKUP(F64,$A$64:$C$89,3,FALSE)),"",VLOOKUP(F64,$A$64:$C$89,3,FALSE)) -> 
A65: 2017 | B65: 3 | C65: =VLOOKUP($H$4,AADT_Data!A:AA,B65,FALSE) ->  | D65: =IF(C65=0,0,A65) ->  | E65: 25
A66: 2016 | B66: 4 | C66: =VLOOKUP($H$4,AADT_Data!A:AA,B66,FALSE) ->  | D66: =IF(C66=0,0,A66) ->  | E66: 24
A67: 2015 | B67: 5 | C67: =VLOOKUP($H$4,AADT_Data!A:AA,B67,FALSE) ->  | D67: =IF(C67=0,0,A67) ->  | E67: 23
A68: 2014 | B68: 6 | C68: =VLOOKUP($H$4,AADT_Data!A:AA,B68,FALSE) ->  | D68: =IF(C68=0,0,A68) ->  | E68: 22
A69: 2013 | B69: 7 | C69: =VLOOKUP($H$4,AADT_Data!A:AA,B69,FALSE) ->  | E69: 21
A70: 2012 | B70: 8 | C70: =VLOOKUP($H$4,AADT_Data!A:AA,B70,FALSE) ->  | E70: 20
A71: 2011 | B71: 9 | C71: =VLOOKUP($H$4,AADT_Data!A:AA,B71,FALSE) ->  | E71: 19
A72: 2010 | B72: 10 | C72: =VLOOKUP($H$4,AADT_Data!A:AA,B72,FALSE) ->  | E72: 18
A73: 2009 | B73: 11 | C73: =VLOOKUP($H$4,AADT_Data!A:AA,B73,FALSE) ->  | E73: 17
A74: 2008 | B74: 12 | C74: =VLOOKUP($H$4,AADT_Data!A:AA,B74,FALSE) ->  | E74: 16
A75: 2007 | B75: 13 | C75: =VLOOKUP($H$4,AADT_Data!A:AA,B75,FALSE) ->  | E75: 15
A76: 2006 | B76: 14 | C76: =VLOOKUP($H$4,AADT_Data!A:AA,B76,FALSE) ->  | E76: 14
A77: 2005 | B77: 15 | C77: =VLOOKUP($H$4,AADT_Data!A:AA,B77,FALSE) ->  | E77: 13
A78: 2004 | B78: 16 | C78: =VLOOKUP($H$4,AADT_Data!A:AA,B78,FALSE) ->  | E78: 12
A79: 2003 | B79: 17 | C79: =VLOOKUP($H$4,AADT_Data!A:AA,B79,FALSE) ->  | E79: 11
A80: 2002 | B80: 18 | C80: =VLOOKUP($H$4,AADT_Data!A:AA,B80,FALSE) ->  | E80: 10
A81: 2001 | B81: 19 | C81: =VLOOKUP($H$4,AADT_Data!A:AA,B81,FALSE) ->  | E81: 9
A82: 2000 | B82: 20 | C82: =VLOOKUP($H$4,AADT_Data!A:AA,B82,FALSE) ->  | E82: 8
A83: 1999 | B83: 21 | C83: =VLOOKUP($H$4,AADT_Data!A:AA,B83,FALSE) ->  | E83: 7
A84: 1998 | B84: 22 | C84: =VLOOKUP($H$4,AADT_Data!A:AA,B84,FALSE) ->  | E84: 6
A85: 1997 | B85: 23 | C85: =VLOOKUP($H$4,AADT_Data!A:AA,B85,FALSE) ->  | E85: 5
A86: 1996 | B86: 24 | C86: =VLOOKUP($H$4,AADT_Data!A:AA,B86,FALSE) ->  | E86: 4
A87: 1995 | B87: 25 | C87: =VLOOKUP($H$4,AADT_Data!A:AA,B87,FALSE) ->  | E87: 3
A88: 1994 | B88: 26 | C88: =VLOOKUP($H$4,AADT_Data!A:AA,B88,FALSE) ->  | E88: 2
A89: 1992 | B89: 27 | C89: =VLOOKUP($H$4,AADT_Data!A:AA,B89,FALSE) ->  | E89: 1 | F89: =IF(LARGE($D$64:$D$89,E89)=0,"",LARGE($D$64:$D$89,E89)) ->  | G89: =IF(ISNA(VLOOKUP(F89,$A$64:$C$89,3,FALSE)),"",VLOOKUP(F89,$A$64:$C$89,3,FALSE)) -> 
A174: County | B174: Factor | C174: Area Type
A175: Aitkin | B175: 0.95 | C175: High Growth Area
A176: Anoka | B176: 0.95 | C176: High Growth Area
A177: Becker | B177: 0.9387339609 | C177: Medium Growth Area
A178: Beltrami | B178: 0.95 | C178: High Growth Area
A179: Benton | B179: 0.95 | C179: High Growth Area
A180: Big Stone | B180: 0.8944759202 | C180: Low Growth Area
A181: Blue Earth | B181: 0.75 | C181: Medium Growth Area
A182: Brown | B182: 0.7896922659 | C182: Low Growth Area
A183: Carlton | B183: 0.95 | C183: Medium Growth Area
A184: Carver | B184: 0.95 | C184: High Growth Area
A185: Cass | B185: 0.95 | C185: High Growth Area
A186: Chippewa | B186: 0.8733104434 | C186: Low Growth Area
A187: Chisago | B187: 0.881279837 | C187: High Growth Area
A188: Clay | B188: 0.75 | C188: Low Growth Area
A189: Clearwater | B189: 0.8438234218 | C189: Low Growth Area
A190: Cook | B190: 0.75 | C190: Medium Growth Area
A191: Cottonwood | B191: 0.8331705696 | C191: Low Growth Area
A192: Crow Wing | B192: 0.8832312646 | C192: High Growth Area
A193: Dakota | B193: 0.8547421962 | C193: High Growth Area
A194: Dodge | B194: 0.95 | C194: High Growth Area
A195: Douglas | B195: 0.8873831958 | C195: High Growth Area
A196: Faribault | B196: 0.865981121 | C196: Low Growth Area
A197: Fillmore | B197: 0.8896061418 | C197: Low Growth Area
A198: Freeborn | B198: 0.755552827 | C198: Low Growth Area
A199: Goodhue | B199: 0.9273647987 | C199: Medium Growth Area
A200: Grant | B200: 0.75 | C200: Low Growth Area
A201: Hennepin | B201: 0.8272566422 | C201: Low Growth Area
A202: Houston | B202: 0.8378015226 | C202: Low Growth Area
A203: Hubbard | B203: 0.8346205138 | C203: High Growth Area
A204: Isanti | B204: 0.95 | C204: High Growth Area
A205: Itasca | B205: 0.8886716849 | C205: Medium Growth Area
A206: Jackson | B206: 0.9180626248 | C206: Medium Growth Area
A207: Kanabec | B207: 0.8135838922 | C207: Medium Growth Area
A208: Kandiyohi | B208: 0.8938419831 | C208: Medium Growth Area
A209: Kittson | B209: 0.8024358458 | C209: Low Growth Area
A210: Koochiching | B210: 0.7937489549 | C210: Low Growth Area
A211: Lac qui Parle | B211: 0.75 | C211: Low Growth Area
A212: Lake | B212: 0.8562919136 | C212: Low Growth Area
A213: Lake of the Woods | B213: 0.9138862817 | C213: Low Growth Area
A214: Le Sueur | B214: 0.95 | C214: Medium Growth Area
A215: Lincoln | B215: 0.8857449991 | C215: Low Growth Area
A216: Lyon | B216: 0.75 | C216: Low Growth Area
A217: Mahnomen | B217: 0.75 | C217: Low Growth Area
A218: Marshall | B218: 0.95 | C218: Low Growth Area
A219: Martin | B219: 0.8201303604 | C219: Low Growth Area
A220: McLeod | B220: 0.8928164106 | C220: Medium Growth Area
A221: Meeker | B221: 0.926111411 | C221: Medium Growth Area
A222: Mille Lacs | B222: 0.95 | C222: High Growth Area
A223: Morrison | B223: 0.9495694712 | C223: Medium Growth Area
A224: Mower | B224: 0.8302978459 | C224: Low Growth Area
A225: Murray | B225: 0.8387247211 | C225: Medium Growth Area
A226: Nicollet | B226: 0.8240013933 | C226: Medium Growth Area
A227: Nobles | B227: 0.7549960093 | C227: Low Growth Area
A228: Norman | B228: 0.8022447962 | C228: Low Growth Area
A229: Olmsted | B229: 0.95 | C229: High Growth Area
A230: Otter Tail | B230: 0.8614026285 | C230: Medium Growth Area
A231: Pennington | B231: 0.95 | C231: Medium Growth Area
A232: Pine | B232: 0.8448776659 | C232: High Growth Area
A233: Pipestone | B233: 0.75 | C233: Low Growth Area
A234: Polk | B234: 0.75 | C234: Low Growth Area
A235: Pope | B235: 0.9029074643 | C235: Medium Growth Area
A236: Ramsey | B236: 0.8087858109 | C236: Low Growth Area
A237: Red Lake | B237: 0.95 | C237: Medium Growth Area
A238: Redwood | B238: 0.75 | C238: Low Growth Area
A239: Renville | B239: 0.8480251476 | C239: Low Growth Area
A240: Rice | B240: 0.8220040162 | C240: Medium Growth Area
A241: Rock | B241: 0.75 | C241: Low Growth Area
A242: Roseau | B242: 0.8847517198 | C242: Medium Growth Area
A243: Scott | B243: 0.95 | C243: High Growth Area
A244: Sherburne | B244: 0.95 | C244: High Growth Area
A245: Sibley | B245: 0.8646549065 | C245: Medium Growth Area
A246: St. Louis | B246: 0.850777855 | C246: Low Growth Area
A247: Stearns | B247: 0.8586120378 | C247: High Growth Area
A248: Steele | B248: 0.8848664209 | C248: Medium Growth Area
A249: Stevens | B249: 0.7999567113 | C249: Low Growth Area
A250: Swift | B250: 0.8706429381 | C250: Low Growth Area
A251: Todd | B251: 0.8988708026 | C251: Medium Growth Area
A252: Traverse | B252: 0.7652278953 | C252: Low Growth Area
A253: Wabasha | B253: 0.8182478469 | C253: Low Growth Area
A254: Wadena | B254: 0.95 | C254: Medium Growth Area
A255: Waseca | B255: 0.7963073355 | C255: Low Growth Area
A256: Washington | B256: 0.95 | C256: High Growth Area
A257: Watonwan | B257: 0.75 | C257: Low Growth Area
A258: Wilkin | B258: 0.75 | C258: Low Growth Area
A259: Winona | B259: 0.8284012539 | C259: Low Growth Area
A260: Wright | B260: 0.95 | C260: High Growth Area
A261: Yellow Medicine | B261: 0.8780713455 | C261: Low Growth Area

Sheet ESAL B4
A1: CUMULATIVE ESAL WORKSHEET | D1: ='Forecast B4'!E1 -> SEGMENT B4 | J1: Non-print area | P1: ONE-WAY
A2: SP#: | B2: =IF(Cover!H13="","",Cover!H13) ->  | F2: CORRESPONDS: | G2: ='Forecast B4'!H1 -> SEGMENT A1 | P2: TWO-WAY
A3: ROUTE: | B3: ='Forecast B4'!B2 ->  | C3: TWO-WAY | D3: # LANES: | E3: =IF('Forecast B4'!H5=0," ",'Forecast B4'!H5) ->  | F3: DATE: | G3: =Cover!C10 -> 2019-05-29T08:06:35.500 | J3: Urban/Rural Classification
A4: LOCATION: | B4: =IF('Forecast B4'!B3=0," ",'Forecast B4'!B3) ->  | J4: =VLOOKUP('Forecast B4'!H4,'Urban&Rural'!A1:B18090,2,FALSE) -> 
B6: YEAR | C6: AADT | E6: AADT Difference from A Seg
A7: BASE YEAR: | B7: ='Forecast B4'!B4 ->  | C7: ='Forecast B4'!I33 ->  | E7: =C7-'ESAL A'!C7 ->  | N7: RURAL
A8: FORECAST YEAR: | B8: ='Forecast B4'!F4 ->  | C8: ='Forecast B4'!I34 ->  | E8: =C8-'ESAL A'!C8 ->  | N8: URBAN
C10: User Adjustment to Base Yr Vol | D10: Base Year Incremental Volume | E10: Base Year Volume | F10: User Adjustment to Future Yr Vol | G10: Future Year Incremental Volume | H10: Future Year Volume | I10: RESULTING PERCENTS | L10: VEHICLE TYPE | M10: URBAN | N10: RURAL
L11: 2AX-6TIRE SU | M11: 0.0152 | N11: 0.0317
A12: INCREMENTAL PROPORTIONS | L12: 3AX+ SU | M12: 0.0046 | N12: 0.0164
A13: 2AX-6TIRE SU | B13: =IF($E$7=0,'ESAL A'!B11,(D13+C13)/$E$7) ->  | C13: =IF(J13>0.5,0.5*'ESAL A'!D11-D13,IF(J13<-0.5,-0.5*'ESAL A'!D11-D13,0)) ->  | D13: =IF($J$4="urban",M11*$E$7,IF($J$4="rural",N11*$E$7,"See J3")) ->  | E13: ='ESAL A'!D11+(D13+C13) ->  | F13: =IF(K13>0.5,0.5*'ESAL A'!G11-G13,IF(K13<-0.5,-0.5*'ESAL A'!G11-G13,0)) ->  | G13: =B13*$E$8 ->  | H13: ='ESAL A'!G11+(G13+F13) ->  | I13: =H13/$C$8 ->  | J13: =D13/'ESAL A'!D11 ->  | K13: =G13/'ESAL A'!G11 ->  | L13: 3AX TST | M13: 0.0009 | N13: 0.0028
A14: 3AX+ SU | B14: =IF($E$7=0,'ESAL A'!B12,(D14+C14)/$E$7) ->  | C14: =IF(J14>0.5,0.5*'ESAL A'!D12-D14,IF(J14<-0.5,-0.5*'ESAL A'!D12-D14,0)) ->  | D14: =IF($J$4="urban",M12*$E$7,IF($J$4="rural",N12*$E$7,"See J3")) ->  | E14: ='ESAL A'!D12+(D14+C14) ->  | F14: =IF(K14>0.5,0.5*'ESAL A'!G12-G14,IF(K14<-0.5,-0.5*'ESAL A'!G12-G14,0)) ->  | G14: =B14*$E$8 ->  | H14: ='ESAL A'!G12+(G14+F14) ->  | I14: =H14/$C$8 ->  | J14: =D14/'ESAL A'!D12 ->  | K14: =G14/'ESAL A'!G12 ->  | L14: 4AX TST | M14: 0.0012 | N14: 0.005
A15: 3AX TST | B15: =IF($E$7=0,'ESAL A'!B13,(D15+C15)/$E$7) ->  | C15: =IF(J15>0.5,0.5*'ESAL A'!D13-D15,IF(J15<-0.5,-0.5*'ESAL A'!D13-D15,0)) ->  | D15: =IF($J$4="urban",M13*$E$7,IF($J$4="rural",N13*$E$7,"See J3")) ->  | E15: ='ESAL A'!D13+(D15+C15) ->  | F15: =IF(K15>0.5,0.5*'ESAL A'!G13-G15,IF(K15<-0.5,-0.5*'ESAL A'!G13-G15,0)) ->  | G15: =B15*$E$8 ->  | H15: ='ESAL A'!G13+(G15+F15) ->  | J15: =D15/'ESAL A'!D13 ->  | K15: =G15/'ESAL A'!G13 ->  | L15: 5AX+ TST | M15: 0.0089 | N15: 0.0326
A16: 4AX TST | B16: =IF($E$7=0,'ESAL A'!B14,(D16+C16)/$E$7) ->  | C16: =IF(J16>0.5,0.5*'ESAL A'!D14-D16,IF(J16<-0.5,-0.5*'ESAL A'!D14-D16,0)) ->  | D16: =IF($J$4="urban",M14*$E$7,IF($J$4="rural",N14*$E$7,"See J3")) ->  | E16: ='ESAL A'!D14+(D16+C16) ->  | F16: =IF(K16>0.5,0.5*'ESAL A'!G14-G16,IF(K16<-0.5,-0.5*'ESAL A'!G14-G16,0)) ->  | G16: =B16*$E$8 ->  | H16: ='ESAL A'!G14+(G16+F16) ->  | J16: =D16/'ESAL A'!D14 ->  | K16: =G16/'ESAL A'!G14 ->  | L16: TR TR, BUSES | M16: 0.0047 | N16: 0.012
A17: 5AX+ TST | B17: =IF('ESAL A'!B15=0,0,(D17+C17)/$E$7) ->  | C17: =IF(J17>0.5,0.5*SUM('ESAL A'!D15:D17)-D17,IF(J17<-0.5,-0.5*SUM('ESAL A'!D15:D17)-D17,0)) ->  | D17: =IF('ESAL A'!B15="0",0,IF($J$4="urban",M15*$E$7,IF($J$4="rural",N15*$E$7,"See J3"))) ->  | E17: =IF('ESAL A'!B15=0,"-",'ESAL A'!D15+D17) ->  | F17: =IF(K17>0.5,0.5*SUM('ESAL A'!G15:G17)-G17,IF(K17<-0.5,-0.5*SUM('ESAL A'!G15:G17)-G17,0)) ->  | G17: =B17*$E$8 ->  | H17: =IF('ESAL A'!B15=0,"-",'ESAL A'!G15+G17) ->  | I17: =IF(H17="-","-",H17/$C$8) ->  | J17: =D17/SUM('ESAL A'!D15:D17) ->  | K17: =G17/SUM('ESAL A'!G15:G17) ->  | L17: TWIN TRAILERS | M17: 0.0002 | N17: 0.0002
A18: (5AX+ TST MAX) | B18: =IF($E$7=0,'ESAL A'!B16,D18/$E$7) ->  | C18: 0 | D18: =IF('ESAL A'!B16=0,0,IF($J$4="urban",M15*$E$7*('ESAL A'!D16/SUM('ESAL A'!D16:D17))+C18,IF($J$4="rural",N15*$E$7*('ESAL A'!D16/SUM('ESAL A'!D16:D17))+C18,"See J3"))) ->  | E18: ='ESAL A'!D16+D18 ->  | F18: 0 | G18: =B18*$E$8+F18 ->  | H18: ='ESAL A'!G16+G18 ->  | I18: =H18/$C$8 ->  | J18: =IF('ESAL A'!D16=0,0,D18/'ESAL A'!D16) ->  | K18: =IF('ESAL A'!G16=0,0,G18/'ESAL A'!G16) ->  | L18: TOTAL | M18: =SUM(M11:M17) -> 0.0357 | N18: =SUM(N11:N17) -> 0.1007
A19: (5AX+ TST OTH) | B19: =IF($E$7=0,'ESAL A'!B17,D19/$E$7) ->  | C19: 0 | D19: =IF('ESAL A'!B16=0,0,IF($J$4="urban",M15*$E$7*('ESAL A'!D17/SUM('ESAL A'!D16:D17))+C19,IF($J$4="rural",N15*$E$7*('ESAL A'!D17/SUM('ESAL A'!D16:D17))+C19,"See J3"))) ->  | E19: ='ESAL A'!D17+D19 ->  | F19: 0 | G19: =B19*$E$8+F19 ->  | H19: ='ESAL A'!G17+G19 ->  | J19: =IF('ESAL A'!D17=0,0,D19/'ESAL A'!D17) ->  | K19: =IF('ESAL A'!G17=0,0,G19/'ESAL A'!G17) -> 
A20: TR TR, BUSES | B20: =IF($E$7=0,'ESAL A'!B18,(D20+C20)/$E$7) ->  | C20: =IF(J20>0.5,0.5*'ESAL A'!D18-D20,IF(J20<-0.5,-0.5*'ESAL A'!D18-D20,0)) ->  | D20: =IF($J$4="urban",M16*$E$7,IF($J$4="rural",N16*$E$7,"See J3")) ->  | E20: ='ESAL A'!D18+(D20+C20) ->  | F20: =IF(K20>0.5,0.5*'ESAL A'!G18-G20,IF(K20<-0.5,-0.5*'ESAL A'!G18-G20,0)) ->  | G20: =B20*$E$8 ->  | H20: ='ESAL A'!G18+(G20+F20) ->  | J20: =D20/'ESAL A'!D18 ->  | K20: =G20/'ESAL A'!G18 -> 
A21: TWIN TRAILERS | B21: =IF($E$7=0,'ESAL A'!B19,(D21+C21)/$E$7) ->  | C21: =IF(J21>0.5,0.5*'ESAL A'!D19-D21,IF(J21<-0.5,-0.5*'ESAL A'!D19-D21,0)) ->  | D21: =IF($J$4="urban",M17*$E$7,IF($J$4="rural",N17*$E$7,"See J3")) ->  | E21: ='ESAL A'!D19+(D21+C21) ->  | F21: =IF(K21>0.5,0.5*'ESAL A'!G19-G21,IF(K21<-0.5,-0.5*'ESAL A'!G19-G21,0)) ->  | G21: =B21*$E$8 ->  | H21: ='ESAL A'!G19+(G21+F21) ->  | J21: =IF('ESAL A'!D19=0,0,D21/'ESAL A'!D19) ->  | K21: =IF('ESAL A'!G19=0,0,G21/'ESAL A'!G19) -> 
A23: CLASSIFICATION: | B23: =J4 ->  | D23: ADDED | E23: COMBINED | F23: =B26-B25 ->  | G23: YR DESIGN
C24: AADT | D24: HCADT % | E24: HCADT % | F24: LANE CUMULATIVE ESAL
A25: BASE YEAR: | B25: =B7 ->  | C25: =E7 ->  | D25: =SUM(D13:D21)/C25 ->  | E25: =(SUM(D13:D21)+SUM('ESAL A'!D11:D19))/C7 ->  | F25: | | G25: |
A26: FORECAST YEAR: | B26: =B8 ->  | C26: =E8 ->  | D26: =SUM(G13:G21)/C26 ->  | E26: =(SUM(G13:G21)+SUM('ESAL A'!G11:G19))/C8 ->  | F26: ***************** | G26: *****************
A27: DESIGN LANE FACTOR: | C27: =IF(C3=P2,CHOOSE((E3)+1,#VALUE!,1,0.5,0.5,0.45,0.45,0.35,0.35),CHOOSE(E3,1,0.9,0.7,0.7,0.7,0.7)) ->  | F27: FLEXIBLE | G27: RIGID
E28: SEGMENT B INCREMENT ONLY: | F28: =ROUND(CHOOSE(C129,F129,F130,F131,F132,F133,F134,F135,F136,F137,F138,F139,F140,F141,F142,F143,F144,F145,F146,F147,F148,F149,F150,F151,F152,F153,F154,F155,F156,F157,F158,F159,F160,F161,F162,F163,F164)*1.12,-3) ->  | G28: =ROUND(CHOOSE(C129,G129,G130,G131,G132,G133,G134,G135,G136,G137,G138,G139,G140,G141,G142,G143,G144,G145,G146,G147,G148,G149,G150,G151,G152,G153,G154,G155,G156,G157,G158,G159,G160,G161,G162,G163,G164)*1.12,-3) -> 
E29: SEGMENT A + SEGMENT B: | F29: =ROUND(F28+'ESAL A'!F26*C27/'ESAL A'!C26,-3) ->  | G29: =ROUND(G28+'ESAL A'!G26*C27/'ESAL A'!C26,-3) -> 
F30: ***************** | G30: *****************
A32: ADDITIONAL OUTPUTS: | E32: ESAL FACTORS
B33: BASE % | C33: FORECAST % | E33: FLEXIBLE | F33: RIGID
A34: 2AX-6TIRE SU | B34: =D13/$C$25 ->  | C34: =G13/$C$26 ->  | E34: 0.25 | F34: =IF(E34<0.11,E34,E34-0.01) -> 0.24
A35: 3AX+ SU | E35: 0.58 | F35: =IF(E35<0.36,(E35*1.62364-0.070909)+0.01,(IF(E35<0.4,E35*1.62364-0.07909,(IF(E35<0.66,(E35*1.62364-0.07909)-0.01,(IF(E35<0.69,E35*1.62364-0.07909,(E35*1.62364-0.07909)+0.02))))))) -> 0.8526212
A36: 3AX TST | E36: 0.39 | F36: =IF(E36<0.28,E36-0.01,(IF(E36<0.56,E36-0.02,E36-0.03))) -> 0.37
A37: 4AX TST | E37: 0.51 | F37: =IF(E37<0.41,E37,(IF(E37<0.47,E37+0.01,(IF(E37<0.54,E37+0.02,(IF(E37<0.61,E37+0.03,(IF(E37<0.67,E37+0.04,E37+0.05))))))))) -> 0.53
A38: 5AX+ TST | E38: 1.13 | F38: =(+E38*1.71536-0.05351)+0.005 -> 1.8898468
A39: (5AX+ TST MAX) | E39: 2.4 | F39: =(+E39*1.71536-0.05351)+0.005 -> 4.068354
A40: (5AX+ TST OTH) | E40: 0.87 | F40: =(+E40*1.71536-0.05351)+0.005 -> 1.4438532
A41: TR TR, BUSES | E41: 0.57 | F41: =E41*1.35636-0.03091 -> 0.7422152
A42: TWIN TRAILERS | E42: 2.4 | F42: =(+E42*0.97519-0.01494)+0.005 -> 2.330516
A58: CUMULATIVE ESAL REPORT | D58: =D1 -> SEGMENT B4
G59: CORRESPONDS: | H59: ='Forecast B4'!H1 -> SEGMENT A1
A60: ROUTE #: | B60: ='Forecast B4'!B2 ->  | C60: DISTRICT: | D60: =IF(Cover!C15="","",Cover!C15) ->  | E60: SP#: | F60: =IF(Cover!H13="","",Cover!H13) ->  | G60: DATE: | H60: =Cover!C10 -> 2019-05-29T08:06:35.500
A61: FORECAST #: | B61: =IF(Cover!H12="","",Cover!H12) ->  | C61: COUNTY: | D61: =IF(Cover!H16="","",Cover!H16) ->  | E61: MILES: | F61: ='Forecast B4'!H3 -> 
A62: DESCRIPTION: | B62: =B4 -> 
A63: AUTHOR: | B63: =IF(Cover!C13="","",Cover!C13) ->  | E63: AUTHOR'S DISTRICT: | F63: =IF(Cover!C14="","",Cover!C14) -> 
A65: BASE YEAR NUMBER OF LANES: | D65: =IF('Forecast B4'!H5=0," ",'Forecast B4'!H5) -> 
G66: YEARLY GROWTH (SIMPLE %)
A67: TRAFFIC SUMMARY | D67: BASE YEAR | F67: DESIGN YEAR
A68: =C3 -> TWO-WAY | D68: =B7 ->  | F68: =B8 -> 
A69: AADT: | D69: =C7 ->  | F69: =C8 ->  | G69: =((F69-D69)/($F$68-$D$68))/D69 -> 
A70: DESIGN LANE: | D70: =ROUND(C27*D69,-1) ->  | F70: =ROUND(C27*F69,-1) -> 
A71: HCADT: | D71: =SUM(E13:E21) ->  | F71: =SUM(H13:H21) -> 
A72: SINGLE UNITS: | D72: =E13+E14 ->  | F72: =H13+H14 -> 
A73: TST'S: | D73: =SUM(E15:E19) ->  | F73: =SUM(H15:H19) -> 
A74: 5 Ax+: | D74: =SUM(E17:E19) ->  | F74: =SUM(H17:H19) -> 
A76: ESAL SUMMARY
A77: ANNUAL DESIGN LANE ESAL
A78: FLEXIBLE: | D78: =('ESAL A'!D115*'ESAL A'!C26+D125*C27)*365.25 ->  | F78: =('ESAL A'!F115*'ESAL A'!C26+F125*C27)*365.25 -> 
A79: RIGID: | D79: =('ESAL A'!E115*'ESAL A'!C26+E125*C27)*365.25 ->  | F79: =('ESAL A'!G115*'ESAL A'!C26+G125*C27)*365.25 -> 
A81: CUMULATIVE DESIGN-LANE ESALS (10 TON) | F81: Design-lane factor: | G81: =C27 -> 
A82: FOR VARIABLE TIME PERIODS
A86: BASE | B86: DESIGN | C86: TIME | D86: DESIGN-LANE | F86: ESALS
A87: YEAR | B87: YEAR | C87: PERIOD | D87: TST'S | F87: FLEXIBLE | G87: RIGID
A88: =D68 ->  | B88: =A88+10 ->  | C88: 10 Year | D88: =G81*(10*(F73-D73)/(F68-D68)+D73) ->  | F88: =ROUND(('ESAL A'!F129*C27/'ESAL A'!C26+F139)*1.12,-3) ->  | G88: =ROUND(('ESAL A'!G129*C27/'ESAL A'!C26+G139)*1.12,-3) -> 
A90: =D68 ->  | B90: =A90+15 ->  | C90: 15 Year | D90: =G81*(15*(F73-D73)/(F68-D68)+D73) ->  | F90: =ROUND(('ESAL A'!F134*C27/'ESAL A'!C26+F144)*1.12,-3) ->  | G90: =ROUND(('ESAL A'!G134*C27/'ESAL A'!C26+G144)*1.12,-3) -> 
A92: =D68 ->  | B92: =A92+20 ->  | C92: 20 Year | D92: =G81*(20*(F73-D73)/(F68-D68)+D73) ->  | F92: =ROUND(('ESAL A'!F139*C27/'ESAL A'!C26+F149)*1.12,-3) ->  | G92: =ROUND(('ESAL A'!G139*C27/'ESAL A'!C26+G149)*1.12,-3) -> 
A94: =D68 ->  | B94: =A94+25 ->  | C94: 25 Year | D94: =G81*(25*(F73-D73)/(F68-D68)+D73) ->  | F94: =ROUND(('ESAL A'!F144*C27/'ESAL A'!C26+F154)*1.12,-3) ->  | G94: =ROUND(('ESAL A'!G144*C27/'ESAL A'!C26+G154)*1.12,-3) -> 
A96: =D68 ->  | B96: =A96+30 ->  | C96: 30 Year | D96: =G81*(30*(F73-D73)/(F68-D68)+D73) ->  | F96: =ROUND(('ESAL A'!F149*C27/'ESAL A'!C26+F159)*1.12,-3) ->  | G96: =ROUND(('ESAL A'!G149*C27/'ESAL A'!C26+G159)*1.12,-3) -> 
A98: =D68 ->  | B98: =A98+35 ->  | C98: 35 Year | D98: =G81*(35*(F73-D73)/(F68-D68)+D73) ->  | F98: =ROUND(('ESAL A'!F154*C27/'ESAL A'!C26+F164)*1.12,-3) ->  | G98: =ROUND(('ESAL A'!G154*C27/'ESAL A'!C26+G164)*1.12,-3) -> 
B104: APPROVED BY: | F104: DATE:
A113: CUMULATIVE ESAL WORK AREA
B114: BYVOLS | C114: FYVOLS | D114: BY VOL * BESAL | E114: BY VOL *CESAL | F114: FY VOL *BESAL | G114: FY VOL *CESAL
B115: =D13+C13 ->  | C115: =G13+F13 ->  | D115: =E34*B115 ->  | E115: =F34*B115 ->  | F115: =E34*C115 ->  | G115: =F34*C115 -> 
A124: TWO WAY ADL --> | D124: FLEX ADL | E124: RIG ADL | F124: FLEX ADL | G124: RIG ADL
A125: | | D125: =$C$25*0.0007+SUM(D115:D123) ->  | E125: =$C$25*0.0007+SUM(E115:E123) ->  | F125: =$C$26*0.0007+SUM(F115:F123) ->  | G125: =$C$26*0.0007+SUM(G115:G123) -> 
A127: CUMULATIVE ESAL CALCULATIONS (DESIGN LANE) | F127: FLEXIBLE | G127: RIGID
B128: INCLUSIVE | C128: YEARS | E128: DAYS
A129: FUTURE YR - BASE YR = | C129: =B8-B7+1 ->  | E129: 365.25 | F129: =$D$125*$E129*$C$27+F128 ->  | G129: =$E$125*$E129*$C$27+G128 -> 
E130: 730.5 | F130: =(365.25*$D$125+$E129*$A$133)*$C$27+F129 ->  | G130: =(365.25*$E$125+$E129*$B$133)*$C$27+G129 -> 
A131: ANNUAL AVERAGE CHANGE IN 2 WAY ADL | E131: 1095.75
A132: FLEXIBLE | B132: RIGID | E132: 1461
A133: =(+F125-D125)/($C$129-1) ->  | B133: =(+G125-E125)/($C$129-1) ->  | E133: 1826.25
E134: 2191.5
E135: 2556.75
E136: 2922
E137: 3287.25
E138: 3652.5
E139: 4017.75
E140: 4383
E141: 4748.25
E142: 5113.5
E143: 5478.75
E144: 5844
E145: 6209.25
E146: 6574.5
E147: 6939.75
E148: 7305
E149: 7670.25
E150: 8035.5
E151: 8400.75
E152: 8766
E153: 9131.25
E154: 9496.5
E155: 9861.75
E156: 10227
E157: 10592.25
E158: 10957.5
E159: 11322.75
E160: 11688
E161: 12053.25
E162: 12418.5
E163: 12783.75
E164: 13149

Sheet Forecast B5
A1: LEAST SQUARES WORKSHEET | E1: SEGMENT B5 | G1: Corresponds : | H1: ='Forecast A'!E1 -> SEGMENT A1 | J1: Non-print area
A2: ROUTE: | B2: =IF(Cover!H15="Interstate",Cover!J25&Cover!H14,IF(Cover!H15="US Trunk",Cover!J26&Cover!H14,IF(Cover!H15="MN Trunk",Cover!J27&Cover!H14,IF(Cover!H15="CSAH",Cover!J28&Cover!H14,IF(Cover!H15="CR",Cover!J29&Cover!H14," "))))) ->  | D2: SP#: | E2: =IF(Cover!H13=0," ",Cover!H13) ->  | G2: DATE : | H2: =Cover!C10 -> 2019-05-29T08:06:35.500
A3: LOCATION: | G3: Miles : | H3: =IF(H4="","",VLOOKUP(H4,AADT_Data!A:AB,28,FALSE)) ->  | J3: =IF(B3="","Location field is empty. Please enter location description. E.g. MN 169 to CSAH 5","") -> Location field is empty. Please enter location description. E.g. MN 169 to CSAH 5
A4: BASE YEAR: | B4: =IF('Forecast A'!B4=0," ",'Forecast A'!B4) ->  | E4: FORECAST YEAR: | F4: =IF(B4=" "," ",B4+20) ->  | G4: Seq # | J4: =IF(H4="","No Seq # is listed. Please enter sequence number","") -> No Seq # is listed. Please enter sequence number
G5: # of lanes | J5: =IF(H5="","Please indicate the number of lanes in this segment","") -> Please indicate the number of lanes in this segment
A6: YEAR | B6: FLOW MAP AADT (SEG A) | J6: Year | K6: AADT
C7: 850 | J7: =IF(LARGE($D$64:$D$89,E74)=0,"",LARGE($D$64:$D$89,E74)) ->  | K7: =IF(ISNA(VLOOKUP(F74,$A$64:$C$89,3,FALSE)),"",VLOOKUP(F74,$A$64:$C$89,3,FALSE)) ->  | L7: Note: only contains data
C8: 880 | L8: updated to 2016 AADT
C9: 880
C10: 1350
C11: 1150
C12: 1000
C13: 1150
C14: 1100
C15: 1100
C16: 1100
C17: 1000
J21: =IF(LARGE($D$64:$D$89,E88)=0,"",LARGE($D$64:$D$89,E88)) -> 
J22: =IF(LARGE($D$64:$D$89,E89)=0,"",LARGE($D$64:$D$89,E89)) ->  | K22: =IF(ISNA(VLOOKUP(F89,$A$64:$C$89,3,FALSE)),"",VLOOKUP(F89,$A$64:$C$89,3,FALSE)) -> 
A24: LEAST SQUARES BASED FORECASTS:
A25: Year | B25: AADT | D25: Calc | E25: ADT Calc
A26: =INDEX(A7:A22,MATCH(9.99999999999999E+307,B7:B22)) ->  | B26: =FORECAST(A26,B7:B22,A7:A22) ->  | D26: =VLOOKUP(A26,$A$11:$B$22,2,FALSE)-B26 ->  | E26: =B26+D26 -> 
A27: =B4 ->  | B27: =FORECAST(A27,B7:B22,A7:A22) ->  | E27: =B27+D26 ->  | F27: =E27 -> 
A28: =F4 ->  | B28: =FORECAST(A28,B7:B22,A7:A22) ->  | E28: =B28+D26 ->  | F28: =E26+(E28-E26)*F40 -> 
A30: Statistics | B30: AADT | E30: Raw Least Squares Forecasts | H30: Demographically Adjusted Forecasts
A31: R 2 | B31: =RSQ(B7:B22,A7:A22) ->  | E31: YEAR | F31: AADT | H31: YEAR | I31: AADT
A32: SLOPE | B32: =SLOPE(B7:B22,A7:A22) ->  | E32: =A26 ->  | F32: =ROUND(E26,-1) ->  | H32: =A26 ->  | I32: =F32 -> 
A33: INTERCEPT | B33: =INTERCEPT(B7:B22,A7:A22) ->  | E33: =A27 ->  | F33: =ROUND(E27,-1) ->  | H33: =A27 ->  | I33: =ROUND(((I34-I32)/(H34-H32)*(H33-H32)+I32),-1) -> 
A34: N | B34: =COUNT(B7:B22) -> 0 | E34: =A28 ->  | F34: =ROUND(E28,-1) ->  | H34: =A28 ->  | I34: =ROUND(F32*(1+H38*(H34-H32)),-1) -> 
A35: NOTE:
A36: County Adjustment Factors were developed to Apply to Projected AADT. They are based on 1992-2007 VMT, Population, Labor Force, Household, and Employment Data. | E36: Slope Over Base Year | H36: Slope Over Base Year
E37: =B32/F33 ->  | H37: =((I34-I33)/(H34-H33)/I33) -> 
H38: =IF(E37*F40<=0.5%,0.5%,E37*F40) -> 
D39: COUNTY | F39: COUNTY FACTOR | H39: GROWTH PROFILE
D40: =UPPER(VLOOKUP(Cover!H16,$A$174:$C$261,1,FALSE)) ->  | F40: =VLOOKUP(Cover!H16,$A$174:$C$261,2,FALSE) ->  | H40: =UPPER(VLOOKUP(Cover!H16,$A$174:$C$261,3,FALSE)) -> 
B61: AADT_Data column reference
A63: year | C63: aadt | D63: data years | E63: nth largest
A64: 2018 | B64: 2 | C64: =VLOOKUP($H$4,AADT_Data!A:AA,B64,FALSE) ->  | D64: =IF(C64=0,0,A64) ->  | E64: 26 | F64: =IF(LARGE($D$64:$D$89,E64)=0,"",LARGE($D$64:$D$89,E64)) ->  | G64: =IF(ISNA(VLOOKUP(F64,$A$64:$C$89,3,FALSE)),"",VLOOKUP(F64,$A$64:$C$89,3,FALSE)) -> 
A65: 2017 | B65: 3 | C65: =VLOOKUP($H$4,AADT_Data!A:AA,B65,FALSE) ->  | D65: =IF(C65=0,0,A65) ->  | E65: 25
A66: 2016 | B66: 4 | C66: =VLOOKUP($H$4,AADT_Data!A:AA,B66,FALSE) ->  | D66: =IF(C66=0,0,A66) ->  | E66: 24
A67: 2015 | B67: 5 | C67: =VLOOKUP($H$4,AADT_Data!A:AA,B67,FALSE) ->  | D67: =IF(C67=0,0,A67) ->  | E67: 23
A68: 2014 | B68: 6 | C68: =VLOOKUP($H$4,AADT_Data!A:AA,B68,FALSE) ->  | D68: =IF(C68=0,0,A68) ->  | E68: 22
A69: 2013 | B69: 7 | C69: =VLOOKUP($H$4,AADT_Data!A:AA,B69,FALSE) ->  | E69: 21
A70: 2012 | B70: 8 | C70: =VLOOKUP($H$4,AADT_Data!A:AA,B70,FALSE) ->  | E70: 20
A71: 2011 | B71: 9 | C71: =VLOOKUP($H$4,AADT_Data!A:AA,B71,FALSE) ->  | E71: 19
A72: 2010 | B72: 10 | C72: =VLOOKUP($H$4,AADT_Data!A:AA,B72,FALSE) ->  | E72: 18
A73: 2009 | B73: 11 | C73: =VLOOKUP($H$4,AADT_Data!A:AA,B73,FALSE) ->  | E73: 17
A74: 2008 | B74: 12 | C74: =VLOOKUP($H$4,AADT_Data!A:AA,B74,FALSE) ->  | E74: 16
A75: 2007 | B75: 13 | C75: =VLOOKUP($H$4,AADT_Data!A:AA,B75,FALSE) ->  | E75: 15
A76: 2006 | B76: 14 | C76: =VLOOKUP($H$4,AADT_Data!A:AA,B76,FALSE) ->  | E76: 14
A77: 2005 | B77: 15 | C77: =VLOOKUP($H$4,AADT_Data!A:AA,B77,FALSE) ->  | E77: 13
A78: 2004 | B78: 16 | C78: =VLOOKUP($H$4,AADT_Data!A:AA,B78,FALSE) ->  | E78: 12
A79: 2003 | B79: 17 | C79: =VLOOKUP($H$4,AADT_Data!A:AA,B79,FALSE) ->  | E79: 11
A80: 2002 | B80: 18 | C80: =VLOOKUP($H$4,AADT_Data!A:AA,B80,FALSE) ->  | E80: 10
A81: 2001 | B81: 19 | C81: =VLOOKUP($H$4,AADT_Data!A:AA,B81,FALSE) ->  | E81: 9
A82: 2000 | B82: 20 | C82: =VLOOKUP($H$4,AADT_Data!A:AA,B82,FALSE) ->  | E82: 8
A83: 1999 | B83: 21 | C83: =VLOOKUP($H$4,AADT_Data!A:AA,B83,FALSE) ->  | E83: 7
A84: 1998 | B84: 22 | C84: =VLOOKUP($H$4,AADT_Data!A:AA,B84,FALSE) ->  | E84: 6
A85: 1997 | B85: 23 | C85: =VLOOKUP($H$4,AADT_Data!A:AA,B85,FALSE) ->  | E85: 5
A86: 1996 | B86: 24 | C86: =VLOOKUP($H$4,AADT_Data!A:AA,B86,FALSE) ->  | E86: 4
A87: 1995 | B87: 25 | C87: =VLOOKUP($H$4,AADT_Data!A:AA,B87,FALSE) ->  | E87: 3
A88: 1994 | B88: 26 | C88: =VLOOKUP($H$4,AADT_Data!A:AA,B88,FALSE) ->  | E88: 2
A89: 1992 | B89: 27 | C89: =VLOOKUP($H$4,AADT_Data!A:AA,B89,FALSE) ->  | E89: 1 | F89: =IF(LARGE($D$64:$D$89,E89)=0,"",LARGE($D$64:$D$89,E89)) ->  | G89: =IF(ISNA(VLOOKUP(F89,$A$64:$C$89,3,FALSE)),"",VLOOKUP(F89,$A$64:$C$89,3,FALSE)) -> 
A174: County | B174: Factor | C174: Area Type
A175: Aitkin | B175: 0.95 | C175: High Growth Area
A176: Anoka | B176: 0.95 | C176: High Growth Area
A177: Becker | B177: 0.9387339609 | C177: Medium Growth Area
A178: Beltrami | B178: 0.95 | C178: High Growth Area
A179: Benton | B179: 0.95 | C179: High Growth Area
A180: Big Stone | B180: 0.8944759202 | C180: Low Growth Area
A181: Blue Earth | B181: 0.75 | C181: Medium Growth Area
A182: Brown | B182: 0.7896922659 | C182: Low Growth Area
A183: Carlton | B183: 0.95 | C183: Medium Growth Area
A184: Carver | B184: 0.95 | C184: High Growth Area
A185: Cass | B185: 0.95 | C185: High Growth Area
A186: Chippewa | B186: 0.8733104434 | C186: Low Growth Area
A187: Chisago | B187: 0.881279837 | C187: High Growth Area
A188: Clay | B188: 0.75 | C188: Low Growth Area
A189: Clearwater | B189: 0.8438234218 | C189: Low Growth Area
A190: Cook | B190: 0.75 | C190: Medium Growth Area
A191: Cottonwood | B191: 0.8331705696 | C191: Low Growth Area
A192: Crow Wing | B192: 0.8832312646 | C192: High Growth Area
A193: Dakota | B193: 0.8547421962 | C193: High Growth Area
A194: Dodge | B194: 0.95 | C194: High Growth Area
A195: Douglas | B195: 0.8873831958 | C195: High Growth Area
A196: Faribault | B196: 0.865981121 | C196: Low Growth Area
A197: Fillmore | B197: 0.8896061418 | C197: Low Growth Area
A198: Freeborn | B198: 0.755552827 | C198: Low Growth Area
A199: Goodhue | B199: 0.9273647987 | C199: Medium Growth Area
A200: Grant | B200: 0.75 | C200: Low Growth Area
A201: Hennepin | B201: 0.8272566422 | C201: Low Growth Area
A202: Houston | B202: 0.8378015226 | C202: Low Growth Area
A203: Hubbard | B203: 0.8346205138 | C203: High Growth Area
A204: Isanti | B204: 0.95 | C204: High Growth Area
A205: Itasca | B205: 0.8886716849 | C205: Medium Growth Area
A206: Jackson | B206: 0.9180626248 | C206: Medium Growth Area
A207: Kanabec | B207: 0.8135838922 | C207: Medium Growth Area
A208: Kandiyohi | B208: 0.8938419831 | C208: Medium Growth Area
A209: Kittson | B209: 0.8024358458 | C209: Low Growth Area
A210: Koochiching | B210: 0.7937489549 | C210: Low Growth Area
A211: Lac qui Parle | B211: 0.75 | C211: Low Growth Area
A212: Lake | B212: 0.8562919136 | C212: Low Growth Area
A213: Lake of the Woods | B213: 0.9138862817 | C213: Low Growth Area
A214: Le Sueur | B214: 0.95 | C214: Medium Growth Area
A215: Lincoln | B215: 0.8857449991 | C215: Low Growth Area
A216: Lyon | B216: 0.75 | C216: Low Growth Area
A217: Mahnomen | B217: 0.75 | C217: Low Growth Area
A218: Marshall | B218: 0.95 | C218: Low Growth Area
A219: Martin | B219: 0.8201303604 | C219: Low Growth Area
A220: McLeod | B220: 0.8928164106 | C220: Medium Growth Area
A221: Meeker | B221: 0.926111411 | C221: Medium Growth Area
A222: Mille Lacs | B222: 0.95 | C222: High Growth Area
A223: Morrison | B223: 0.9495694712 | C223: Medium Growth Area
A224: Mower | B224: 0.8302978459 | C224: Low Growth Area
A225: Murray | B225: 0.8387247211 | C225: Medium Growth Area
A226: Nicollet | B226: 0.8240013933 | C226: Medium Growth Area
A227: Nobles | B227: 0.7549960093 | C227: Low Growth Area
A228: Norman | B228: 0.8022447962 | C228: Low Growth Area
A229: Olmsted | B229: 0.95 | C229: High Growth Area
A230: Otter Tail | B230: 0.8614026285 | C230: Medium Growth Area
A231: Pennington | B231: 0.95 | C231: Medium Growth Area
A232: Pine | B232: 0.8448776659 | C232: High Growth Area
A233: Pipestone | B233: 0.75 | C233: Low Growth Area
A234: Polk | B234: 0.75 | C234: Low Growth Area
A235: Pope | B235: 0.9029074643 | C235: Medium Growth Area
A236: Ramsey | B236: 0.8087858109 | C236: Low Growth Area
A237: Red Lake | B237: 0.95 | C237: Medium Growth Area
A238: Redwood | B238: 0.75 | C238: Low Growth Area
A239: Renville | B239: 0.8480251476 | C239: Low Growth Area
A240: Rice | B240: 0.8220040162 | C240: Medium Growth Area
A241: Rock | B241: 0.75 | C241: Low Growth Area
A242: Roseau | B242: 0.8847517198 | C242: Medium Growth Area
A243: Scott | B243: 0.95 | C243: High Growth Area
A244: Sherburne | B244: 0.95 | C244: High Growth Area
A245: Sibley | B245: 0.8646549065 | C245: Medium Growth Area
A246: St. Louis | B246: 0.850777855 | C246: Low Growth Area
A247: Stearns | B247: 0.8586120378 | C247: High Growth Area
A248: Steele | B248: 0.8848664209 | C248: Medium Growth Area
A249: Stevens | B249: 0.7999567113 | C249: Low Growth Area
A250: Swift | B250: 0.8706429381 | C250: Low Growth Area
A251: Todd | B251: 0.8988708026 | C251: Medium Growth Area
A252: Traverse | B252: 0.7652278953 | C252: Low Growth Area
A253: Wabasha | B253: 0.8182478469 | C253: Low Growth Area
A254: Wadena | B254: 0.95 | C254: Medium Growth Area
A255: Waseca | B255: 0.7963073355 | C255: Low Growth Area
A256: Washington | B256: 0.95 | C256: High Growth Area
A257: Watonwan | B257: 0.75 | C257: Low Growth Area
A258: Wilkin | B258: 0.75 | C258: Low Growth Area
A259: Winona | B259: 0.8284012539 | C259: Low Growth Area
A260: Wright | B260: 0.95 | C260: High Growth Area
A261: Yellow Medicine | B261: 0.8780713455 | C261: Low Growth Area

Sheet ESAL B5
A1: CUMULATIVE ESAL WORKSHEET | D1: ='Forecast B5'!E1 -> SEGMENT B5 | J1: Non-print area | P1: ONE-WAY
A2: SP#: | B2: =IF(Cover!H13="","",Cover!H13) ->  | F2: CORRESPONDS: | G2: ='Forecast B5'!H1 -> SEGMENT A1 | P2: TWO-WAY
A3: ROUTE: | B3: ='Forecast B5'!B2 ->  | C3: TWO-WAY | D3: # LANES: | E3: =IF('Forecast B5'!H5=0," ",'Forecast B5'!H5) ->  | F3: DATE: | G3: =Cover!C10 -> 2019-05-29T08:06:35.500 | J3: Urban/Rural Classification
A4: LOCATION: | B4: =IF('Forecast B5'!B3=0," ",'Forecast B5'!B3) ->  | J4: =VLOOKUP('Forecast B5'!H4,'Urban&Rural'!A1:B18090,2,FALSE) -> 
B6: YEAR | C6: AADT | E6: AADT Difference from A Seg
A7: BASE YEAR: | B7: ='Forecast B5'!B4 ->  | C7: ='Forecast B5'!I33 ->  | E7: =C7-'ESAL A'!C7 ->  | N7: RURAL
A8: FORECAST YEAR: | B8: ='Forecast B5'!F4 ->  | C8: ='Forecast B5'!I34 ->  | E8: =C8-'ESAL A'!C8 ->  | N8: URBAN
C10: User Adjustment to Base Yr Vol | D10: Base Year Incremental Volume | E10: Base Year Volume | F10: User Adjustment to Future Yr Vol | G10: Future Year Incremental Volume | H10: Future Year Volume | I10: RESULTING PERCENTS | L10: VEHICLE TYPE | M10: URBAN | N10: RURAL
L11: 2AX-6TIRE SU | M11: 0.0152 | N11: 0.0317
A12: INCREMENTAL PROPORTIONS | L12: 3AX+ SU | M12: 0.0046 | N12: 0.0164
A13: 2AX-6TIRE SU | B13: =IF($E$7=0,'ESAL A'!B11,(D13+C13)/$E$7) ->  | C13: =IF(J13>0.5,0.5*'ESAL A'!D11-D13,IF(J13<-0.5,-0.5*'ESAL A'!D11-D13,0)) ->  | D13: =IF($J$4="urban",M11*$E$7,IF($J$4="rural",N11*$E$7,"See J3")) ->  | E13: ='ESAL A'!D11+(D13+C13) ->  | F13: =IF(K13>0.5,0.5*'ESAL A'!G11-G13,IF(K13<-0.5,-0.5*'ESAL A'!G11-G13,0)) ->  | G13: =B13*$E$8 ->  | H13: ='ESAL A'!G11+(G13+F13) ->  | I13: =H13/$C$8 ->  | J13: =D13/'ESAL A'!D11 ->  | K13: =G13/'ESAL A'!G11 ->  | L13: 3AX TST | M13: 0.0009 | N13: 0.0028
A14: 3AX+ SU | B14: =IF($E$7=0,'ESAL A'!B12,(D14+C14)/$E$7) ->  | C14: =IF(J14>0.5,0.5*'ESAL A'!D12-D14,IF(J14<-0.5,-0.5*'ESAL A'!D12-D14,0)) ->  | D14: =IF($J$4="urban",M12*$E$7,IF($J$4="rural",N12*$E$7,"See J3")) ->  | E14: ='ESAL A'!D12+(D14+C14) ->  | F14: =IF(K14>0.5,0.5*'ESAL A'!G12-G14,IF(K14<-0.5,-0.5*'ESAL A'!G12-G14,0)) ->  | G14: =B14*$E$8 ->  | H14: ='ESAL A'!G12+(G14+F14) ->  | I14: =H14/$C$8 ->  | J14: =D14/'ESAL A'!D12 ->  | K14: =G14/'ESAL A'!G12 ->  | L14: 4AX TST | M14: 0.0012 | N14: 0.005
A15: 3AX TST | B15: =IF($E$7=0,'ESAL A'!B13,(D15+C15)/$E$7) ->  | C15: =IF(J15>0.5,0.5*'ESAL A'!D13-D15,IF(J15<-0.5,-0.5*'ESAL A'!D13-D15,0)) ->  | D15: =IF($J$4="urban",M13*$E$7,IF($J$4="rural",N13*$E$7,"See J3")) ->  | E15: ='ESAL A'!D13+(D15+C15) ->  | F15: =IF(K15>0.5,0.5*'ESAL A'!G13-G15,IF(K15<-0.5,-0.5*'ESAL A'!G13-G15,0)) ->  | G15: =B15*$E$8 ->  | H15: ='ESAL A'!G13+(G15+F15) ->  | J15: =D15/'ESAL A'!D13 ->  | K15: =G15/'ESAL A'!G13 ->  | L15: 5AX+ TST | M15: 0.0089 | N15: 0.0326
A16: 4AX TST | B16: =IF($E$7=0,'ESAL A'!B14,(D16+C16)/$E$7) ->  | C16: =IF(J16>0.5,0.5*'ESAL A'!D14-D16,IF(J16<-0.5,-0.5*'ESAL A'!D14-D16,0)) ->  | D16: =IF($J$4="urban",M14*$E$7,IF($J$4="rural",N14*$E$7,"See J3")) ->  | E16: ='ESAL A'!D14+(D16+C16) ->  | F16: =IF(K16>0.5,0.5*'ESAL A'!G14-G16,IF(K16<-0.5,-0.5*'ESAL A'!G14-G16,0)) ->  | G16: =B16*$E$8 ->  | H16: ='ESAL A'!G14+(G16+F16) ->  | J16: =D16/'ESAL A'!D14 ->  | K16: =G16/'ESAL A'!G14 ->  | L16: TR TR, BUSES | M16: 0.0047 | N16: 0.012
A17: 5AX+ TST | B17: =IF('ESAL A'!B15=0,0,(D17+C17)/$E$7) ->  | C17: =IF(J17>0.5,0.5*SUM('ESAL A'!D15:D17)-D17,IF(J17<-0.5,-0.5*SUM('ESAL A'!D15:D17)-D17,0)) ->  | D17: =IF('ESAL A'!B15="0",0,IF($J$4="urban",M15*$E$7,IF($J$4="rural",N15*$E$7,"See J3"))) ->  | E17: =IF('ESAL A'!B15=0,"-",'ESAL A'!D15+D17) ->  | F17: =IF(K17>0.5,0.5*SUM('ESAL A'!G15:G17)-G17,IF(K17<-0.5,-0.5*SUM('ESAL A'!G15:G17)-G17,0)) ->  | G17: =B17*$E$8 ->  | H17: =IF('ESAL A'!B15=0,"-",'ESAL A'!G15+G17) ->  | I17: =IF(H17="-","-",H17/$C$8) ->  | J17: =D17/SUM('ESAL A'!D15:D17) ->  | K17: =G17/SUM('ESAL A'!G15:G17) ->  | L17: TWIN TRAILERS | M17: 0.0002 | N17: 0.0002
A18: (5AX+ TST MAX) | B18: =IF($E$7=0,'ESAL A'!B16,D18/$E$7) ->  | C18: 0 | D18: =IF('ESAL A'!B16=0,0,IF($J$4="urban",M15*$E$7*('ESAL A'!D16/SUM('ESAL A'!D16:D17))+C18,IF($J$4="rural",N15*$E$7*('ESAL A'!D16/SUM('ESAL A'!D16:D17))+C18,"See J3"))) ->  | E18: ='ESAL A'!D16+D18 ->  | F18: 0 | G18: =B18*$E$8+F18 ->  | H18: ='ESAL A'!G16+G18 ->  | I18: =H18/$C$8 ->  | J18: =IF('ESAL A'!D16=0,0,D18/'ESAL A'!D16) ->  | K18: =IF('ESAL A'!G16=0,0,G18/'ESAL A'!G16) ->  | L18: TOTAL | M18: =SUM(M11:M17) -> 0.0357 | N18: =SUM(N11:N17) -> 0.1007
A19: (5AX+ TST OTH) | B19: =IF($E$7=0,'ESAL A'!B17,D19/$E$7) ->  | C19: 0 | D19: =IF('ESAL A'!B16=0,0,IF($J$4="urban",M15*$E$7*('ESAL A'!D17/SUM('ESAL A'!D16:D17))+C19,IF($J$4="rural",N15*$E$7*('ESAL A'!D17/SUM('ESAL A'!D16:D17))+C19,"See J3"))) ->  | E19: ='ESAL A'!D17+D19 ->  | F19: 0 | G19: =B19*$E$8+F19 ->  | H19: ='ESAL A'!G17+G19 ->  | J19: =IF('ESAL A'!D17=0,0,D19/'ESAL A'!D17) ->  | K19: =IF('ESAL A'!G17=0,0,G19/'ESAL A'!G17) -> 
A20: TR TR, BUSES | B20: =IF($E$7=0,'ESAL A'!B18,(D20+C20)/$E$7) ->  | C20: =IF(J20>0.5,0.5*'ESAL A'!D18-D20,IF(J20<-0.5,-0.5*'ESAL A'!D18-D20,0)) ->  | D20: =IF($J$4="urban",M16*$E$7,IF($J$4="rural",N16*$E$7,"See J3")) ->  | E20: ='ESAL A'!D18+(D20+C20) ->  | F20: =IF(K20>0.5,0.5*'ESAL A'!G18-G20,IF(K20<-0.5,-0.5*'ESAL A'!G18-G20,0)) ->  | G20: =B20*$E$8 ->  | H20: ='ESAL A'!G18+(G20+F20) ->  | J20: =D20/'ESAL A'!D18 ->  | K20: =G20/'ESAL A'!G18 -> 
A21: TWIN TRAILERS | B21: =IF($E$7=0,'ESAL A'!B19,(D21+C21)/$E$7) ->  | C21: =IF(J21>0.5,0.5*'ESAL A'!D19-D21,IF(J21<-0.5,-0.5*'ESAL A'!D19-D21,0)) ->  | D21: =IF($J$4="urban",M17*$E$7,IF($J$4="rural",N17*$E$7,"See J3")) ->  | E21: ='ESAL A'!D19+(D21+C21) ->  | F21: =IF(K21>0.5,0.5*'ESAL A'!G19-G21,IF(K21<-0.5,-0.5*'ESAL A'!G19-G21,0)) ->  | G21: =B21*$E$8 ->  | H21: ='ESAL A'!G19+(G21+F21) ->  | J21: =IF('ESAL A'!D19=0,0,D21/'ESAL A'!D19) ->  | K21: =IF('ESAL A'!G19=0,0,G21/'ESAL A'!G19) -> 
A23: CLASSIFICATION: | B23: =J4 ->  | D23: ADDED | E23: COMBINED | F23: =B26-B25 ->  | G23: YR DESIGN
C24: AADT | D24: HCADT % | E24: HCADT % | F24: LANE CUMULATIVE ESAL
A25: BASE YEAR: | B25: =B7 ->  | C25: =E7 ->  | D25: =SUM(D13:D21)/C25 ->  | E25: =(SUM(D13:D21)+SUM('ESAL A'!D11:D19))/C7 ->  | F25: | | G25: |
A26: FORECAST YEAR: | B26: =B8 ->  | C26: =E8 ->  | D26: =SUM(G13:G21)/C26 ->  | E26: =(SUM(G13:G21)+SUM('ESAL A'!G11:G19))/C8 ->  | F26: ***************** | G26: *****************
A27: DESIGN LANE FACTOR: | C27: =IF(C3=P2,CHOOSE((E3)+1,#VALUE!,1,0.5,0.5,0.45,0.45,0.35,0.35),CHOOSE(E3,1,0.9,0.7,0.7,0.7,0.7)) ->  | F27: FLEXIBLE | G27: RIGID
E28: SEGMENT B INCREMENT ONLY: | F28: =ROUND(CHOOSE(C129,F129,F130,F131,F132,F133,F134,F135,F136,F137,F138,F139,F140,F141,F142,F143,F144,F145,F146,F147,F148,F149,F150,F151,F152,F153,F154,F155,F156,F157,F158,F159,F160,F161,F162,F163,F164)*1.12,-3) ->  | G28: =ROUND(CHOOSE(C129,G129,G130,G131,G132,G133,G134,G135,G136,G137,G138,G139,G140,G141,G142,G143,G144,G145,G146,G147,G148,G149,G150,G151,G152,G153,G154,G155,G156,G157,G158,G159,G160,G161,G162,G163,G164)*1.12,-3) -> 
E29: SEGMENT A + SEGMENT B: | F29: =ROUND(F28+'ESAL A'!F26*C27/'ESAL A'!C26,-3) ->  | G29: =ROUND(G28+'ESAL A'!G26*C27/'ESAL A'!C26,-3) -> 
F30: ***************** | G30: *****************
A32: ADDITIONAL OUTPUTS: | E32: ESAL FACTORS
B33: BASE % | C33: FORECAST % | E33: FLEXIBLE | F33: RIGID
A34: 2AX-6TIRE SU | B34: =D13/$C$25 ->  | C34: =G13/$C$26 ->  | E34: 0.25 | F34: =IF(E34<0.11,E34,E34-0.01) -> 0.24
A35: 3AX+ SU | E35: 0.58 | F35: =IF(E35<0.36,(E35*1.62364-0.070909)+0.01,(IF(E35<0.4,E35*1.62364-0.07909,(IF(E35<0.66,(E35*1.62364-0.07909)-0.01,(IF(E35<0.69,E35*1.62364-0.07909,(E35*1.62364-0.07909)+0.02))))))) -> 0.8526212
A36: 3AX TST | E36: 0.39 | F36: =IF(E36<0.28,E36-0.01,(IF(E36<0.56,E36-0.02,E36-0.03))) -> 0.37
A37: 4AX TST | E37: 0.51 | F37: =IF(E37<0.41,E37,(IF(E37<0.47,E37+0.01,(IF(E37<0.54,E37+0.02,(IF(E37<0.61,E37+0.03,(IF(E37<0.67,E37+0.04,E37+0.05))))))))) -> 0.53
A38: 5AX+ TST | E38: 1.13 | F38: =(+E38*1.71536-0.05351)+0.005 -> 1.8898468
A39: (5AX+ TST MAX) | E39: 2.4 | F39: =(+E39*1.71536-0.05351)+0.005 -> 4.068354
A40: (5AX+ TST OTH) | E40: 0.87 | F40: =(+E40*1.71536-0.05351)+0.005 -> 1.4438532
A41: TR TR, BUSES | E41: 0.57 | F41: =E41*1.35636-0.03091 -> 0.7422152
A42: TWIN TRAILERS | E42: 2.4 | F42: =(+E42*0.97519-0.01494)+0.005 -> 2.330516
A58: CUMULATIVE ESAL REPORT | D58: =D1 -> SEGMENT B5
G59: CORRESPONDS: | H59: ='Forecast B5'!H1 -> SEGMENT A1
A60: ROUTE #: | B60: ='Forecast B5'!B2 ->  | C60: DISTRICT: | D60: =IF(Cover!C15="","",Cover!C15) ->  | E60: SP#: | F60: =IF(Cover!H13="","",Cover!H13) ->  | G60: DATE: | H60: =Cover!C10 -> 2019-05-29T08:06:35.500
A61: FORECAST #: | B61: =IF(Cover!H12="","",Cover!H12) ->  | C61: COUNTY: | D61: =IF(Cover!H16="","",Cover!H16) ->  | E61: MILES: | F61: ='Forecast B5'!H3 -> 
A62: DESCRIPTION: | B62: =B4 -> 
A63: AUTHOR: | B63: =IF(Cover!C13="","",Cover!C13) ->  | E63: AUTHOR'S DISTRICT: | F63: =IF(Cover!C14="","",Cover!C14) -> 
A65: BASE YEAR NUMBER OF LANES: | D65: =IF('Forecast B5'!H5=0," ",'Forecast B5'!H5) -> 
G66: YEARLY GROWTH (SIMPLE %)
A67: TRAFFIC SUMMARY | D67: BASE YEAR | F67: DESIGN YEAR
A68: =C3 -> TWO-WAY | D68: =B7 ->  | F68: =B8 -> 
A69: AADT: | D69: =C7 ->  | F69: =C8 ->  | G69: =((F69-D69)/($F$68-$D$68))/D69 -> 
A70: DESIGN LANE: | D70: =ROUND(C27*D69,-1) ->  | F70: =ROUND(C27*F69,-1) -> 
A71: HCADT: | D71: =SUM(E13:E21) ->  | F71: =SUM(H13:H21) -> 
A72: SINGLE UNITS: | D72: =E13+E14 ->  | F72: =H13+H14 -> 
A73: TST'S: | D73: =SUM(E15:E19) ->  | F73: =SUM(H15:H19) -> 
A74: 5 Ax+: | D74: =SUM(E17:E19) ->  | F74: =SUM(H17:H19) -> 
A76: ESAL SUMMARY
A77: ANNUAL DESIGN LANE ESAL
A78: FLEXIBLE: | D78: =('ESAL A'!D115*'ESAL A'!C26+D125*C27)*365.25 ->  | F78: =('ESAL A'!F115*'ESAL A'!C26+F125*C27)*365.25 -> 
A79: RIGID: | D79: =('ESAL A'!E115*'ESAL A'!C26+E125*C27)*365.25 ->  | F79: =('ESAL A'!G115*'ESAL A'!C26+G125*C27)*365.25 -> 
A81: CUMULATIVE DESIGN-LANE ESALS (10 TON) | F81: Design-lane factor: | G81: =C27 -> 
A82: FOR VARIABLE TIME PERIODS
A86: BASE | B86: DESIGN | C86: TIME | D86: DESIGN-LANE | F86: ESALS
A87: YEAR | B87: YEAR | C87: PERIOD | D87: TST'S | F87: FLEXIBLE | G87: RIGID
A88: =D68 ->  | B88: =A88+10 ->  | C88: 10 Year | D88: =G81*(10*(F73-D73)/(F68-D68)+D73) ->  | F88: =ROUND(('ESAL A'!F129*C27/'ESAL A'!C26+F139)*1.12,-3) ->  | G88: =ROUND(('ESAL A'!G129*C27/'ESAL A'!C26+G139)*1.12,-3) -> 
A90: =D68 ->  | B90: =A90+15 ->  | C90: 15 Year | D90: =G81*(15*(F73-D73)/(F68-D68)+D73) ->  | F90: =ROUND(('ESAL A'!F134*C27/'ESAL A'!C26+F144)*1.12,-3) ->  | G90: =ROUND(('ESAL A'!G134*C27/'ESAL A'!C26+G144)*1.12,-3) -> 
A92: =D68 ->  | B92: =A92+20 ->  | C92: 20 Year | D92: =G81*(20*(F73-D73)/(F68-D68)+D73) ->  | F92: =ROUND(('ESAL A'!F139*C27/'ESAL A'!C26+F149)*1.12,-3) ->  | G92: =ROUND(('ESAL A'!G139*C27/'ESAL A'!C26+G149)*1.12,-3) -> 
A94: =D68 ->  | B94: =A94+25 ->  | C94: 25 Year | D94: =G81*(25*(F73-D73)/(F68-D68)+D73) ->  | F94: =ROUND(('ESAL A'!F144*C27/'ESAL A'!C26+F154)*1.12,-3) ->  | G94: =ROUND(('ESAL A'!G144*C27/'ESAL A'!C26+G154)*1.12,-3) -> 
A96: =D68 ->  | B96: =A96+30 ->  | C96: 30 Year | D96: =G81*(30*(F73-D73)/(F68-D68)+D73) ->  | F96: =ROUND(('ESAL A'!F149*C27/'ESAL A'!C26+F159)*1.12,-3) ->  | G96: =ROUND(('ESAL A'!G149*C27/'ESAL A'!C26+G159)*1.12,-3) -> 
A98: =D68 ->  | B98: =A98+35 ->  | C98: 35 Year | D98: =G81*(35*(F73-D73)/(F68-D68)+D73) ->  | F98: =ROUND(('ESAL A'!F154*C27/'ESAL A'!C26+F164)*1.12,-3) ->  | G98: =ROUND(('ESAL A'!G154*C27/'ESAL A'!C26+G164)*1.12,-3) -> 
B104: APPROVED BY: | F104: DATE:
A113: CUMULATIVE ESAL WORK AREA
B114: BYVOLS | C114: FYVOLS | D114: BY VOL * BESAL | E114: BY VOL *CESAL | F114: FY VOL *BESAL | G114: FY VOL *CESAL
B115: =D13+C13 ->  | C115: =G13+F13 ->  | D115: =E34*B115 ->  | E115: =F34*B115 ->  | F115: =E34*C115 ->  | G115: =F34*C115 -> 
A124: TWO WAY ADL --> | D124: FLEX ADL | E124: RIG ADL | F124: FLEX ADL | G124: RIG ADL
A125: | | D125: =$C$25*0.0007+SUM(D115:D123) ->  | E125: =$C$25*0.0007+SUM(E115:E123) ->  | F125: =$C$26*0.0007+SUM(F115:F123) ->  | G125: =$C$26*0.0007+SUM(G115:G123) -> 
A127: CUMULATIVE ESAL CALCULATIONS (DESIGN LANE) | F127: FLEXIBLE | G127: RIGID
B128: INCLUSIVE | C128: YEARS | E128: DAYS
A129: FUTURE YR - BASE YR = | C129: =B8-B7+1 ->  | E129: 365.25 | F129: =$D$125*$E129*$C$27+F128 ->  | G129: =$E$125*$E129*$C$27+G128 -> 
E130: 730.5 | F130: =(365.25*$D$125+$E129*$A$133)*$C$27+F129 ->  | G130: =(365.25*$E$125+$E129*$B$133)*$C$27+G129 -> 
A131: ANNUAL AVERAGE CHANGE IN 2 WAY ADL | E131: 1095.75
A132: FLEXIBLE | B132: RIGID | E132: 1461
A133: =(+F125-D125)/($C$129-1) ->  | B133: =(+G125-E125)/($C$129-1) ->  | E133: 1826.25
E134: 2191.5
E135: 2556.75
E136: 2922
E137: 3287.25
E138: 3652.5
E139: 4017.75
E140: 4383
E141: 4748.25
E142: 5113.5
E143: 5478.75
E144: 5844
E145: 6209.25
E146: 6574.5
E147: 6939.75
E148: 7305
E149: 7670.25
E150: 8035.5
E151: 8400.75
E152: 8766
E153: 9131.25
E154: 9496.5
E155: 9861.75
E156: 10227
E157: 10592.25
E158: 10957.5
E159: 11322.75
E160: 11688
E161: 12053.25
E162: 12418.5
E163: 12783.75
E164: 13149

Sheet Appendix
D4: Appendix
D7: Least Squares Analysis
D8: Vehicle Class Expansion Worksheet
D9: Vehicle Class Reports
D10: AADT Diagram
D11: Other Suppporting Documents

Sheet VC 1
A1: VEHICLE CLASS COUNT EXPANSION WORKSHEET 1 | J1: Non-print area | R1: New Seasonal Adjustment Factors For Urban Area
A2: SITE NUMBER: | G2: COUNTY: | H2: =IF(+Cover!$H$16=0," ",+Cover!$H$16) -> 
A3: SITE DESCRIPTION: | B3: =VLOOKUP(B2,'VC History'!A:F,6,FALSE) ->  | R3: Body Type | S3: Jan | T3: Feb | U3: Mar | V3: Apr | W3: May | X3: Jun | Y3: Jul | Z3: Aug | AA3: Sep | AB3: Oct | AC3: Nov | AD3: Dec
A4: PROJECT SP#: | B4: =IF(+Cover!$H$13=0," ",+Cover!$H$13) ->  | H4: YEAR OF COUNT: | R4: CARS+PICKUP | S4: 1.101818568 | T4: 1.042399606 | U4: 1.020715235 | V4: 0.9825595111 | W4: 0.9804214303 | X4: 0.9524454101 | Y4: 0.9021672653 | Z4: 0.8851863969 | AA4: 0.8463204291 | AB4: 0.9766528447 | AC4: 1.054754554 | AD4: 1.129700419
A5: MONTH NUMBER OF COUNT: | C5: =VLOOKUP(B2&I4,'VC Data'!A:M,4,FALSE) ->  | H5: CONSTRAIN AADT: | I5: =IF('Forecast A'!H4="","",VLOOKUP(I4,'Forecast A'!A7:B22,2)) ->  | K5: Constrain AADT is automated from the sequence number of the A segment | R5: 2ASU | S5: 0.9026364913 | T5: 0.9152095345 | U5: 0.8809693435 | V5: 0.8433149801 | W5: 0.8049514058 | X5: 0.9077923889 | Y5: 0.79842163 | Z5: 0.7463956493 | AA5: 0.6742423882 | AB5: 0.8110823695 | AC5: 0.878061286 | AD5: 0.9497618566
A6: 16 or 24 HR | B6: =IF(VLOOKUP(I4,K$15:L$25,2)="Manual",16,24) ->  | R6: 3+ASU | S6: 1.192485605 | T6: 1.196781163 | U6: 1.149691715 | V6: 0.8838166574 | W6: 0.7900560436 | X6: 0.8404904399 | Y6: 0.6830196815 | Z6: 0.6685616697 | AA6: 0.5786451918 | AB6: 0.6134526971 | AC6: 0.7366804617 | AD6: 1.001165084
A7: VEHICLE TYPE | C7: RAW COUNT | D7: AADT ADJ FACTOR | F7: ADJUSTED RAW | G7: VEH. TYPE PERCENTS | H7: A.C.F. | K7: URBAN / RURAL CLASSIFICATION | R7: 3A Semi | S7: 1.119647785 | T7: 1.098865688 | U7: 1.032355984 | V7: 0.9031212033 | W7: 0.8352405532 | X7: 0.8564495131 | Y7: 0.7867958545 | Z7: 0.6742755593 | AA7: 0.6669477105 | AB7: 0.8886683685 | AC7: 0.827933027 | AD7: 1.080772858
A8: CARS AND PICKUPS | C8: =VLOOKUP(B2&I4,'VC Data'!A:M,6,FALSE) ->  | D8: =IF(K8="RURAL",IF(B6=16,1.08,1)*CHOOSE((C5)+1,1,1.31,1.23,1.19,1.06,0.98,0.92,0.84,0.88,0.91,0.95,1.08,1.12),IF(B6=16,1.08,1)*CHOOSE((C5)+1,1,1.08,1.04,1.04,0.97,0.97,0.96,0.91,0.9,0.93,0.88,0.97,1)) ->  | F8: =IF(I5="",ROUND(D8*C8,0),I5-SUM(F9:F15)) ->  | H8: =IF(C16=0,"",C16/(((C8+C9)*2+(C10+C11)*3+(C12+C14)*4+(C13+C15)*5)/2)) ->  | K8: =VLOOKUP('Forecast A'!H4,'Urban&Rural'!A:B,2,FALSE) ->  | M8: <- Derived from the sequence number of the A segment | R8: 4A Semi | S8: 1.119647785 | T8: 1.098865688 | U8: 1.032355984 | V8: 0.9031212033 | W8: 0.8352405532 | X8: 0.8564495131 | Y8: 0.7867958545 | Z8: 0.6742755593 | AA8: 0.6669477105 | AB8: 0.8886683685 | AC8: 0.827933027 | AD8: 1.080772858
A9: 2 AXLE 6 TIRE | C9: =VLOOKUP(B2&I4,'VC Data'!A:M,7,FALSE) ->  | D9: =IF(K8="RURAL",IF(B6=16,1.08,1)*CHOOSE((C5)+1,1,1.02,0.93,0.96,0.89,0.85,0.87,0.83,0.83,0.76,0.77,0.88,1),IF(B6=16,1.08,1)*CHOOSE((C5)+1,1,0.96,0.88,0.92,0.9,0.89,0.86,0.8,0.76,0.83,0.76,0.79,0.84)) ->  | F9: =ROUND(D9*C9,0) ->  | G9: =F9/F16 ->  | R9: 5+A SEMI | S9: 0.8694207179 | T9: 0.8776904625 | U9: 0.8647540382 | V9: 0.8094064142 | W9: 0.792292913 | X9: 0.8333092409 | Y9: 0.7149806283 | Z9: 0.7108350254 | AA9: 0.6598929083 | AB9: 0.7505864443 | AC9: 0.8967585745 | AD9: 0.9413801686
A10: 3+ AXLE SINGLE UNIT | C10: =VLOOKUP(B2&I4,'VC Data'!A:M,8,FALSE) ->  | D10: =IF(K8="RURAL",IF(B6=16,1.07,1)*CHOOSE((C5)+1,1,1.24,1.17,1.12,0.89,0.76,0.71,0.7,0.66,0.65,0.64,0.86,1.09),IF(B6=16,1.07,1)*CHOOSE((C5)+1,1,1.23,1.16,1.21,0.86,0.75,0.67,0.59,0.54,0.64,0.64,0.8,1.09)) ->  | F10: =ROUND(D10*C10,0) ->  | G10: =F10/F16 ->  | R10: TT/BUS | S10: 1.406614623 | T10: 1.328803664 | U10: 1.158738771 | V10: 1.026157718 | W10: 0.9327073295 | X10: 0.8621004092 | Y10: 0.7705178987 | Z10: 0.623245916 | AA10: 0.5899275403 | AB10: 0.7789227543 | AC10: 0.8803850224 | AD10: 1.168382181
A11: 3 AXLE SEMI (TST) | C11: =VLOOKUP(B2&I4,'VC Data'!A:M,9,FALSE) ->  | D11: =IF(K8="RURAL",IF(B6=16,1.1,1)*CHOOSE((C5)+1,1,1.25,1.15,1.11,0.97,0.84,0.77,0.72,0.72,0.72,0.83,1.07,1.25),IF(B6=16,1.1,1)*CHOOSE((C5)+1,1,1.24,1.18,1.02,0.88,0.86,0.8,0.74,0.7,0.72,0.71,0.87,1.17)) ->  | G11: =F11/F16 ->  | K11: The table below will display available counts for VC site by year and type | N11: 2 | O11: 1 | R11: TWINS | S11: 0.890183558 | T11: 0.8452826494 | U11: 0.8246298829 | V11: 0.7536070918 | W11: 0.7787765432 | X11: 0.914883437 | Y11: 0.8313230333 | Z11: 0.7228027477 | AA11: 0.6972492539 | AB11: 0.7525653487 | AC11: 0.8886754755 | AD11: 0.8821039871
A12: 4 AXLE SEMI (TST) | C12: =VLOOKUP(B2&I4,'VC Data'!A:M,10,FALSE) ->  | D12: =IF(K8="RURAL",IF(B6=16,1.1,1)*CHOOSE((C5)+1,1,1.25,1.15,1.11,0.97,0.84,0.77,0.72,0.72,0.72,0.83,1.07,1.25),IF(B6=16,1.1,1)*CHOOSE((C5)+1,1,1.24,1.18,1.02,0.88,0.86,0.8,0.74,0.7,0.72,0.71,0.87,1.17)) ->  | G12: =F12/F16 ->  | O12: 2 | P12: 16
A13: 5+ AXLE SEMI (TST) | C13: =VLOOKUP(B2&I4,'VC Data'!A:M,11,FALSE) ->  | D13: =IF(K8="RURAL", IF(B6=16,1.17,1)*CHOOSE((C5)+1,1,0.93,0.86,0.87,0.82,0.79,0.79,0.82,0.78,0.8,0.73,0.87,0.9),IF(B6=16,1.17,1)*CHOOSE((C5)+1,1,1.02,0.99,1,0.79,0.75,0.71,0.69,0.65,0.7,0.76,0.76,0.99)) ->  | F13: =ROUND(D13*C13,0) ->  | G13: =F13/F16 ->  | K13: ="VC history for site: "&B2 -> VC history for site: | P13: 24 | R13: New Seasonal Adjustment Factors For Rural Area
A14: TR TR, BUSES | C14: =VLOOKUP(B2&I4,'VC Data'!A:M,12,FALSE) ->  | D14: =IF(K8="RURAL",IF(B6=16,1.09,1)*CHOOSE((C5)+1,1,1.6,1.44,1.31,0.99,0.81,0.75,0.67,0.68,0.7,0.68,0.96,1.4),IF(B6=16,1.09,1)*CHOOSE((C5)+1,1,1.51,1.31,1.19,1.03,0.92,0.82,0.76,0.71,0.74,0.77,0.94,1.07)) ->  | G14: =F14/F16 ->  | K14: Year | L14: Count Type
A15: TWIN TRAILERS | C15: =VLOOKUP(B2&I4,'VC Data'!A:M,13,FALSE) ->  | D15: =IF(K8="RURAL",IF(B6=16,1.3,1)*CHOOSE((C5)+1,1,0.95,0.86,0.92,0.86,0.86,0.75,0.8,0.76,0.75,0.7,0.82,0.76),IF(B6=16,1.3,1)*CHOOSE((C5)+1,1,1.07,1.02,1.02,0.84,0.78,0.74,0.69,0.65,0.67,0.77,0.93,1.09)) ->  | G15: =F15/F16 ->  | K15: =IF(INDEX('VC History'!A:A,M15)=$B$2,INDEX('VC History'!B:B,M15),"") ->  | L15: =IF(INDEX('VC History'!A:A,M15)=$B$2,INDEX('VC History'!D:D,M15),"") ->  | M15: =MATCH(B2,'VC History'!A:A,0) ->  | R15: Body Type | S15: Jan | T15: Feb | U15: Mar | V15: Apr | W15: May | X15: Jun | Y15: Jul | Z15: Aug | AA15: Sep | AB15: Oct | AC15: Nov | AD15: Dec
A16: TOTALS -----------> | C16: =SUM(C8:C15) ->  | D16: --------> | E16: =F16/C16 ->  | F16: =SUM(F8:F15) ->  | G16: =SUM(F9:F15)/F16 ->  | H16: (%HC) | K16: =IF(INDEX('VC History'!A:A,M16)=$B$2,INDEX('VC History'!B:B,M16),"") ->  | L16: =IF(INDEX('VC History'!A:A,M16)=$B$2,INDEX('VC History'!D:D,M16),"") ->  | M16: =M15+1 ->  | R16: CARS+PICKUP | S16: 1.31474341 | T16: 1.260555416 | U16: 1.21910632 | V16: 1.133579236 | W16: 0.9674365183 | X16: 0.8811334106 | Y16: 0.8068667431 | Z16: 0.8357105532 | AA16: 0.9492525986 | AB16: 1.029751516 | AC16: 1.125437083 | AD16: 1.198499723
K17: =IF(INDEX('VC History'!A:A,M17)=$B$2,INDEX('VC History'!B:B,M17),"") ->  | L17: =IF(INDEX('VC History'!A:A,M17)=$B$2,INDEX('VC History'!D:D,M17),"") ->  | R17: 2ASU | S17: 1.042113668 | T17: 1.079615196 | U17: 1.073531771 | V17: 0.9700373761 | W17: 0.8766061595 | X17: 0.8518294275 | Y17: 0.8505186426 | Z17: 0.8291160376 | AA17: 0.8099880704 | AB17: 0.8257555049 | AC17: 0.9336566414 | AD17: 0.9644660003
K18: =IF(INDEX('VC History'!A:A,M18)=$B$2,INDEX('VC History'!B:B,M18),"") ->  | L18: =IF(INDEX('VC History'!A:A,M18)=$B$2,INDEX('VC History'!D:D,M18),"") ->  | R18: 3+ASU | S18: 1.339197634 | T18: 1.439771113 | U18: 1.2792395 | V18: 0.9324515918 | W18: 0.8121908563 | X18: 0.6072317642 | Y18: 0.7099775765 | Z18: 0.6874079787 | AA18: 0.7041889955 | AB18: 0.6966682438 | AC18: 0.8492378659 | AD18: 1.245576541
A19: =+B2 -> 0 | K19: =IF(INDEX('VC History'!A:A,M19)=$B$2,INDEX('VC History'!B:B,M19),"") ->  | L19: =IF(INDEX('VC History'!A:A,M19)=$B$2,INDEX('VC History'!D:D,M19),"") ->  | Q19: 1 - January | R19: 3A Semi | S19: 1.574028515 | T19: 1.540791338 | U19: 1.492648881 | V19: 1.223354753 | W19: 0.8992402512 | X19: 0.8188352771 | Y19: 0.7347486488 | Z19: 0.6803021132 | AA19: 0.744357258 | AB19: 0.8756086261 | AC19: 1.096356596 | AD19: 1.273657955
A20: =+B3 ->  | K20: =IF(INDEX('VC History'!A:A,M20)=$B$2,INDEX('VC History'!B:B,M20),"") ->  | L20: =IF(INDEX('VC History'!A:A,M20)=$B$2,INDEX('VC History'!D:D,M20),"") ->  | Q20: 2 - February | R20: 4A Semi | S20: 1.574028515 | T20: 1.540791338 | U20: 1.492648881 | V20: 1.223354753 | W20: 0.8992402512 | X20: 0.8188352771 | Y20: 0.7347486488 | Z20: 0.6803021132 | AA20: 0.744357258 | AB20: 0.8756086261 | AC20: 1.096356596 | AD20: 1.273657955
K21: =IF(INDEX('VC History'!A:A,M21)=$B$2,INDEX('VC History'!B:B,M21),"") ->  | L21: =IF(INDEX('VC History'!A:A,M21)=$B$2,INDEX('VC History'!D:D,M21),"") ->  | Q21: 3 - March | R21: 5+A SEMI | S21: 0.9774273605 | T21: 0.9048104915 | U21: 0.8599070523 | V21: 0.8206315401 | W21: 0.7778721302 | X21: 0.7171337842 | Y21: 0.7732008439 | Z21: 0.7471229023 | AA21: 0.7637578228 | AB21: 0.7392151467 | AC21: 0.877552007 | AD21: 0.9310532595
K22: =IF(INDEX('VC History'!A:A,M22)=$B$2,INDEX('VC History'!B:B,M22),"") ->  | L22: =IF(INDEX('VC History'!A:A,M22)=$B$2,INDEX('VC History'!D:D,M22),"") ->  | Q22: 4 - April | R22: TT/BUS | S22: 2.053065092 | T22: 2.059457219 | U22: 1.54934048 | V22: 1.1114678 | W22: 0.8736816042 | X22: 0.7417814046 | Y22: 0.705897493 | Z22: 0.6679690633 | AA22: 0.7016210228 | AB22: 0.7888943814 | AC22: 1.01168125 | AD22: 1.575509804
K23: =IF(INDEX('VC History'!A:A,M23)=$B$2,INDEX('VC History'!B:B,M23),"") ->  | L23: =IF(INDEX('VC History'!A:A,M23)=$B$2,INDEX('VC History'!D:D,M23),"") ->  | Q23: 5 - May | R23: TWINS | S23: 1.420065205 | T23: 0.9516135039 | U23: 0.9414734563 | V23: 0.9360222446 | W23: 0.8601389411 | X23: 0.8665974564 | Y23: 0.8294879216 | Z23: 0.6612789319 | AA23: 0.6935770556 | AB23: 0.6096555077 | AC23: 0.7557197928 | AD23: 0.8949536413
K24: =IF(INDEX('VC History'!A:A,M24)=$B$2,INDEX('VC History'!B:B,M24),"") ->  | L24: =IF(INDEX('VC History'!A:A,M24)=$B$2,INDEX('VC History'!D:D,M24),"") ->  | Q24: 6 - June
K25: =IF(INDEX('VC History'!A:A,M25)=$B$2,INDEX('VC History'!B:B,M25),"") ->  | L25: =IF(INDEX('VC History'!A:A,M25)=$B$2,INDEX('VC History'!D:D,M25),"") ->  | M25: =M24+1 ->  | Q25: 7 - July
Q26: 8 - August
Q27: 9 - September
K28: 1 | L28: 16 | Q28: 10 - October
K29: 2 | L29: 24 | Q29: 11 - November
K30: 3 | L30: RURAL | Q30: 12 - December
K31: 4 | L31: URBAN
K32: 5
K33: 6
K34: 7
K35: 8
K36: 9
K37: 10
K38: 11
K39: 12
A52: =IF(K8="RURAL","Rural Factor is Selected", "Urban Factor is selected") -> 

Sheet VC 2
A1: VEHICLE CLASS COUNT EXPANSION WORKSHEET 2 | J1: Non-print area | R1: New Seasonal Adjustment Factors For Urban Area
A2: SITE NUMBER: | G2: COUNTY: | H2: =IF(+Cover!$H$16=0," ",+Cover!$H$16) -> 
A3: SITE DESCRIPTION: | B3: =VLOOKUP(B2,'VC History'!A:F,6,FALSE) ->  | R3: Body Type | S3: Jan | T3: Feb | U3: Mar | V3: Apr | W3: May | X3: Jun | Y3: Jul | Z3: Aug | AA3: Sep | AB3: Oct | AC3: Nov | AD3: Dec
A4: PROJECT SP#: | B4: =IF(+Cover!$H$13=0," ",+Cover!$H$13) ->  | H4: YEAR OF COUNT: | R4: CARS+PICKUP | S4: 1.101818568 | T4: 1.042399606 | U4: 1.020715235 | V4: 0.9825595111 | W4: 0.9804214303 | X4: 0.9524454101 | Y4: 0.9021672653 | Z4: 0.8851863969 | AA4: 0.8463204291 | AB4: 0.9766528447 | AC4: 1.054754554 | AD4: 1.129700419
A5: MONTH NUMBER OF COUNT: | C5: =VLOOKUP(B2&I4,'VC Data'!A:M,4,FALSE) ->  | H5: CONSTRAIN AADT: | I5: =IF('Forecast A'!H4="","",VLOOKUP(I4,'Forecast A'!A7:B22,2)) ->  | K5: Constrain AADT is automated from the sequence number of the A segment | R5: 2ASU | S5: 0.9026364913 | T5: 0.9152095345 | U5: 0.8809693435 | V5: 0.8433149801 | W5: 0.8049514058 | X5: 0.9077923889 | Y5: 0.79842163 | Z5: 0.7463956493 | AA5: 0.6742423882 | AB5: 0.8110823695 | AC5: 0.878061286 | AD5: 0.9497618566
A6: 16 or 24 HR | B6: =IF(VLOOKUP(I4,K$15:L$25,2)="Manual",16,24) ->  | R6: 3+ASU | S6: 1.192485605 | T6: 1.196781163 | U6: 1.149691715 | V6: 0.8838166574 | W6: 0.7900560436 | X6: 0.8404904399 | Y6: 0.6830196815 | Z6: 0.6685616697 | AA6: 0.5786451918 | AB6: 0.6134526971 | AC6: 0.7366804617 | AD6: 1.001165084
A7: VEHICLE TYPE | C7: RAW COUNT | D7: AADT ADJ FACTOR | F7: ADJUSTED RAW | G7: VEH. TYPE PERCENTS | H7: A.C.F. | K7: URBAN / RURAL CLASSIFICATION | R7: 3A Semi | S7: 1.119647785 | T7: 1.098865688 | U7: 1.032355984 | V7: 0.9031212033 | W7: 0.8352405532 | X7: 0.8564495131 | Y7: 0.7867958545 | Z7: 0.6742755593 | AA7: 0.6669477105 | AB7: 0.8886683685 | AC7: 0.827933027 | AD7: 1.080772858
A8: CARS AND PICKUPS | C8: =VLOOKUP(B2&I4,'VC Data'!A:M,6,FALSE) ->  | D8: =IF(K8="RURAL",IF(B6=16,1.08,1)*CHOOSE((C5)+1,1,1.31,1.23,1.19,1.06,0.98,0.92,0.84,0.88,0.91,0.95,1.08,1.12),IF(B6=16,1.08,1)*CHOOSE((C5)+1,1,1.08,1.04,1.04,0.97,0.97,0.96,0.91,0.9,0.93,0.88,0.97,1)) ->  | F8: =IF(I5="",ROUND(D8*C8,0),I5-SUM(F9:F15)) ->  | H8: =IF(C16=0,"",C16/(((C8+C9)*2+(C10+C11)*3+(C12+C14)*4+(C13+C15)*5)/2)) ->  | K8: =VLOOKUP('Forecast A'!H4,'Urban&Rural'!A:B,2,FALSE) ->  | M8: <- Derived from the sequence number of the A segment | R8: 4A Semi | S8: 1.119647785 | T8: 1.098865688 | U8: 1.032355984 | V8: 0.9031212033 | W8: 0.8352405532 | X8: 0.8564495131 | Y8: 0.7867958545 | Z8: 0.6742755593 | AA8: 0.6669477105 | AB8: 0.8886683685 | AC8: 0.827933027 | AD8: 1.080772858
A9: 2 AXLE 6 TIRE | C9: =VLOOKUP(B2&I4,'VC Data'!A:M,7,FALSE) ->  | D9: =IF(K8="RURAL",IF(B6=16,1.08,1)*CHOOSE((C5)+1,1,1.02,0.93,0.96,0.89,0.85,0.87,0.83,0.83,0.76,0.77,0.88,1),IF(B6=16,1.08,1)*CHOOSE((C5)+1,1,0.96,0.88,0.92,0.9,0.89,0.86,0.8,0.76,0.83,0.76,0.79,0.84)) ->  | F9: =IF(B6=16,ROUND(+D9*C9,0),(IF(B6=24,ROUND(D9*C9,0),#VALUE!))) ->  | G9: =IF(F9=0,0,+F9/F16) ->  | R9: 5+A SEMI | S9: 0.8694207179 | T9: 0.8776904625 | U9: 0.8647540382 | V9: 0.8094064142 | W9: 0.792292913 | X9: 0.8333092409 | Y9: 0.7149806283 | Z9: 0.7108350254 | AA9: 0.6598929083 | AB9: 0.7505864443 | AC9: 0.8967585745 | AD9: 0.9413801686
A10: 3+ AXLE SINGLE UNIT | C10: =VLOOKUP(B2&I4,'VC Data'!A:M,8,FALSE) ->  | D10: =IF(K8="RURAL",IF(B6=16,1.07,1)*CHOOSE((C5)+1,1,1.24,1.17,1.12,0.89,0.76,0.71,0.7,0.66,0.65,0.64,0.86,1.09),IF(B6=16,1.07,1)*CHOOSE((C5)+1,1,1.23,1.16,1.21,0.86,0.75,0.67,0.59,0.54,0.64,0.64,0.8,1.09)) ->  | F10: =IF(B6=16,ROUND(+D10*C10,0),(IF(B6=24,ROUND(D10*C10,0),#VALUE!))) ->  | G10: =IF(F10=0,0,+F10/F16) ->  | R10: TT/BUS | S10: 1.406614623 | T10: 1.328803664 | U10: 1.158738771 | V10: 1.026157718 | W10: 0.9327073295 | X10: 0.8621004092 | Y10: 0.7705178987 | Z10: 0.623245916 | AA10: 0.5899275403 | AB10: 0.7789227543 | AC10: 0.8803850224 | AD10: 1.168382181
A11: 3 AXLE SEMI (TST) | C11: =VLOOKUP(B2&I4,'VC Data'!A:M,9,FALSE) ->  | D11: =IF(K8="RURAL",IF(B6=16,1.1,1)*CHOOSE((C5)+1,1,1.25,1.15,1.11,0.97,0.84,0.77,0.72,0.72,0.72,0.83,1.07,1.25),IF(B6=16,1.1,1)*CHOOSE((C5)+1,1,1.24,1.18,1.02,0.88,0.86,0.8,0.74,0.7,0.72,0.71,0.87,1.17)) ->  | F11: =IF(B6=16,ROUND(+D11*C11,0),(IF(B6=24,ROUND(D11*C11,0),#VALUE!))) ->  | G11: =IF(F11=0,0,+F11/F16) ->  | K11: The table below will display available counts for VC site by year and type | N11: 2 | O11: 1 | R11: TWINS | S11: 0.890183558 | T11: 0.8452826494 | U11: 0.8246298829 | V11: 0.7536070918 | W11: 0.7787765432 | X11: 0.914883437 | Y11: 0.8313230333 | Z11: 0.7228027477 | AA11: 0.6972492539 | AB11: 0.7525653487 | AC11: 0.8886754755 | AD11: 0.8821039871
A12: 4 AXLE SEMI (TST) | C12: =VLOOKUP(B2&I4,'VC Data'!A:M,10,FALSE) ->  | D12: =IF(K8="RURAL",IF(B6=16,1.1,1)*CHOOSE((C5)+1,1,1.25,1.15,1.11,0.97,0.84,0.77,0.72,0.72,0.72,0.83,1.07,1.25),IF(B6=16,1.1,1)*CHOOSE((C5)+1,1,1.24,1.18,1.02,0.88,0.86,0.8,0.74,0.7,0.72,0.71,0.87,1.17)) ->  | F12: =IF(B6=16,ROUND(+D12*C12,0),(IF(B6=24,ROUND(D12*C12,0),#VALUE!))) ->  | G12: =IF(F12=0,0,+F12/F16) ->  | O12: 2 | P12: 16
A13: 5+ AXLE SEMI (TST) | C13: =VLOOKUP(B2&I4,'VC Data'!A:M,11,FALSE) ->  | D13: =IF(K8="RURAL", IF(B6=16,1.17,1)*CHOOSE((C5)+1,1,0.93,0.86,0.87,0.82,0.79,0.79,0.82,0.78,0.8,0.73,0.87,0.9),IF(B6=16,1.17,1)*CHOOSE((C5)+1,1,1.02,0.99,1,0.79,0.75,0.71,0.69,0.65,0.7,0.76,0.76,0.99)) ->  | F13: =IF(B6=16,ROUND(+D13*C13,0),(IF(B6=24,ROUND(D13*C13,0),#VALUE!))) ->  | G13: =IF(F13=0,0,+F13/F16) ->  | K13: ="VC history for site: "&B2 -> VC history for site: | P13: 24 | R13: New Seasonal Adjustment Factors For Rural Area
A14: TR TR, BUSES | C14: =VLOOKUP(B2&I4,'VC Data'!A:M,12,FALSE) ->  | D14: =IF(K8="RURAL",IF(B6=16,1.09,1)*CHOOSE((C5)+1,1,1.6,1.44,1.31,0.99,0.81,0.75,0.67,0.68,0.7,0.68,0.96,1.4),IF(B6=16,1.09,1)*CHOOSE((C5)+1,1,1.51,1.31,1.19,1.03,0.92,0.82,0.76,0.71,0.74,0.77,0.94,1.07)) ->  | F14: =IF(B6=16,ROUND(+D14*C14,0),(IF(B6=24,ROUND(D14*C14,0),#VALUE!))) ->  | G14: =IF(F14=0,0,+F14/F16) ->  | K14: Year | L14: Count Type
A15: TWIN TRAILERS | C15: =VLOOKUP(B2&I4,'VC Data'!A:M,13,FALSE) ->  | D15: =IF(K8="RURAL",IF(B6=16,1.3,1)*CHOOSE((C5)+1,1,0.95,0.86,0.92,0.86,0.86,0.75,0.8,0.76,0.75,0.7,0.82,0.76),IF(B6=16,1.3,1)*CHOOSE((C5)+1,1,1.07,1.02,1.02,0.84,0.78,0.74,0.69,0.65,0.67,0.77,0.93,1.09)) ->  | F15: =IF(B6=16,ROUND(+D15*C15,0),(IF(B6=24,ROUND(D15*C15,0),#VALUE!))) ->  | G15: =IF(F15=0,0,+F15/F16) ->  | K15: =IF(INDEX('VC History'!A:A,M15)=$B$2,INDEX('VC History'!B:B,M15),"") ->  | L15: =IF(INDEX('VC History'!A:A,M15)=$B$2,INDEX('VC History'!D:D,M15),"") ->  | M15: =MATCH(B2,'VC History'!A:A,0) ->  | R15: Body Type | S15: Jan | T15: Feb | U15: Mar | V15: Apr | W15: May | X15: Jun | Y15: Jul | Z15: Aug | AA15: Sep | AB15: Oct | AC15: Nov | AD15: Dec
A16: TOTALS -----------> | C16: =SUM(C8:C15) ->  | D16: --------> | E16: =+F16/C16 ->  | F16: =SUM(F8:F15) ->  | G16: =SUM(F9:F15)/F16 ->  | H16: (%HC) | K16: =IF(INDEX('VC History'!A:A,M16)=$B$2,INDEX('VC History'!B:B,M16),"") ->  | L16: =IF(INDEX('VC History'!A:A,M16)=$B$2,INDEX('VC History'!D:D,M16),"") ->  | M16: =M15+1 ->  | R16: CARS+PICKUP | S16: 1.31474341 | T16: 1.260555416 | U16: 1.21910632 | V16: 1.133579236 | W16: 0.9674365183 | X16: 0.8811334106 | Y16: 0.8068667431 | Z16: 0.8357105532 | AA16: 0.9492525986 | AB16: 1.029751516 | AC16: 1.125437083 | AD16: 1.198499723
K17: =IF(INDEX('VC History'!A:A,M17)=$B$2,INDEX('VC History'!B:B,M17),"") ->  | L17: =IF(INDEX('VC History'!A:A,M17)=$B$2,INDEX('VC History'!D:D,M17),"") ->  | R17: 2ASU | S17: 1.042113668 | T17: 1.079615196 | U17: 1.073531771 | V17: 0.9700373761 | W17: 0.8766061595 | X17: 0.8518294275 | Y17: 0.8505186426 | Z17: 0.8291160376 | AA17: 0.8099880704 | AB17: 0.8257555049 | AC17: 0.9336566414 | AD17: 0.9644660003
K18: =IF(INDEX('VC History'!A:A,M18)=$B$2,INDEX('VC History'!B:B,M18),"") ->  | L18: =IF(INDEX('VC History'!A:A,M18)=$B$2,INDEX('VC History'!D:D,M18),"") ->  | R18: 3+ASU | S18: 1.339197634 | T18: 1.439771113 | U18: 1.2792395 | V18: 0.9324515918 | W18: 0.8121908563 | X18: 0.6072317642 | Y18: 0.7099775765 | Z18: 0.6874079787 | AA18: 0.7041889955 | AB18: 0.6966682438 | AC18: 0.8492378659 | AD18: 1.245576541
A19: =+B2 -> 0 | K19: =IF(INDEX('VC History'!A:A,M19)=$B$2,INDEX('VC History'!B:B,M19),"") ->  | L19: =IF(INDEX('VC History'!A:A,M19)=$B$2,INDEX('VC History'!D:D,M19),"") ->  | Q19: 1 - January | R19: 3A Semi | S19: 1.574028515 | T19: 1.540791338 | U19: 1.492648881 | V19: 1.223354753 | W19: 0.8992402512 | X19: 0.8188352771 | Y19: 0.7347486488 | Z19: 0.6803021132 | AA19: 0.744357258 | AB19: 0.8756086261 | AC19: 1.096356596 | AD19: 1.273657955
A20: =+B3 ->  | K20: =IF(INDEX('VC History'!A:A,M20)=$B$2,INDEX('VC History'!B:B,M20),"") ->  | L20: =IF(INDEX('VC History'!A:A,M20)=$B$2,INDEX('VC History'!D:D,M20),"") ->  | Q20: 2 - February | R20: 4A Semi | S20: 1.574028515 | T20: 1.540791338 | U20: 1.492648881 | V20: 1.223354753 | W20: 0.8992402512 | X20: 0.8188352771 | Y20: 0.7347486488 | Z20: 0.6803021132 | AA20: 0.744357258 | AB20: 0.8756086261 | AC20: 1.096356596 | AD20: 1.273657955
K21: =IF(INDEX('VC History'!A:A,M21)=$B$2,INDEX('VC History'!B:B,M21),"") ->  | L21: =IF(INDEX('VC History'!A:A,M21)=$B$2,INDEX('VC History'!D:D,M21),"") ->  | Q21: 3 - March | R21: 5+A SEMI | S21: 0.9774273605 | T21: 0.9048104915 | U21: 0.8599070523 | V21: 0.8206315401 | W21: 0.7778721302 | X21: 0.7171337842 | Y21: 0.7732008439 | Z21: 0.7471229023 | AA21: 0.7637578228 | AB21: 0.7392151467 | AC21: 0.877552007 | AD21: 0.9310532595
K22: =IF(INDEX('VC History'!A:A,M22)=$B$2,INDEX('VC History'!B:B,M22),"") ->  | L22: =IF(INDEX('VC History'!A:A,M22)=$B$2,INDEX('VC History'!D:D,M22),"") ->  | Q22: 4 - April | R22: TT/BUS | S22: 2.053065092 | T22: 2.059457219 | U22: 1.54934048 | V22: 1.1114678 | W22: 0.8736816042 | X22: 0.7417814046 | Y22: 0.705897493 | Z22: 0.6679690633 | AA22: 0.7016210228 | AB22: 0.7888943814 | AC22: 1.01168125 | AD22: 1.575509804
K23: =IF(INDEX('VC History'!A:A,M23)=$B$2,INDEX('VC History'!B:B,M23),"") ->  | L23: =IF(INDEX('VC History'!A:A,M23)=$B$2,INDEX('VC History'!D:D,M23),"") ->  | Q23: 5 - May | R23: TWINS | S23: 1.420065205 | T23: 0.9516135039 | U23: 0.9414734563 | V23: 0.9360222446 | W23: 0.8601389411 | X23: 0.8665974564 | Y23: 0.8294879216 | Z23: 0.6612789319 | AA23: 0.6935770556 | AB23: 0.6096555077 | AC23: 0.7557197928 | AD23: 0.8949536413
K24: =IF(INDEX('VC History'!A:A,M24)=$B$2,INDEX('VC History'!B:B,M24),"") ->  | L24: =IF(INDEX('VC History'!A:A,M24)=$B$2,INDEX('VC History'!D:D,M24),"") ->  | Q24: 6 - June
K25: =IF(INDEX('VC History'!A:A,M25)=$B$2,INDEX('VC History'!B:B,M25),"") ->  | L25: =IF(INDEX('VC History'!A:A,M25)=$B$2,INDEX('VC History'!D:D,M25),"") ->  | Q25: 7 - July
Q26: 8 - August
Q27: 9 - September
K28: 1 | L28: 16 | Q28: 10 - October
K29: 2 | L29: 24 | Q29: 11 - November
K30: 3 | L30: RURAL | Q30: 12 - December
K31: 4 | L31: URBAN
K32: 5
K33: 6
K34: 7
K35: 8
K36: 9
K37: 10
K38: 11
K39: 12
A52: =IF(K8="RURAL","Rural Factor is Selected", "Urban Factor is selected") -> 

Sheet VC 3
A1: VEHICLE CLASS COUNT EXPANSION WORKSHEET 3 | J1: Non-print area | R1: New Seasonal Adjustment Factors For Urban Area
A2: SITE NUMBER: | G2: COUNTY: | H2: =IF(+Cover!$H$16=0," ",+Cover!$H$16) -> 
A3: SITE DESCRIPTION: | B3: =VLOOKUP(B2,'VC History'!A:F,6,FALSE) ->  | R3: Body Type | S3: Jan | T3: Feb | U3: Mar | V3: Apr | W3: May | X3: Jun | Y3: Jul | Z3: Aug | AA3: Sep | AB3: Oct | AC3: Nov | AD3: Dec
A4: PROJECT SP#: | B4: =IF(+Cover!$H$13=0," ",+Cover!$H$13) ->  | H4: YEAR OF COUNT: | R4: CARS+PICKUP | S4: 1.101818568 | T4: 1.042399606 | U4: 1.020715235 | V4: 0.9825595111 | W4: 0.9804214303 | X4: 0.9524454101 | Y4: 0.9021672653 | Z4: 0.8851863969 | AA4: 0.8463204291 | AB4: 0.9766528447 | AC4: 1.054754554 | AD4: 1.129700419
A5: MONTH NUMBER OF COUNT: | C5: =VLOOKUP(B2&I4,'VC Data'!A:M,4,FALSE) ->  | H5: CONSTRAIN AADT: | I5: =IF('Forecast A'!H4="","",VLOOKUP(I4,'Forecast A'!A7:B22,2)) ->  | K5: Constrain AADT is automated from the sequence number of the A segment | R5: 2ASU | S5: 0.9026364913 | T5: 0.9152095345 | U5: 0.8809693435 | V5: 0.8433149801 | W5: 0.8049514058 | X5: 0.9077923889 | Y5: 0.79842163 | Z5: 0.7463956493 | AA5: 0.6742423882 | AB5: 0.8110823695 | AC5: 0.878061286 | AD5: 0.9497618566
A6: 16 or 24 HR | B6: =IF(VLOOKUP(I4,K$15:L$25,2)="Manual",16,24) ->  | R6: 3+ASU | S6: 1.192485605 | T6: 1.196781163 | U6: 1.149691715 | V6: 0.8838166574 | W6: 0.7900560436 | X6: 0.8404904399 | Y6: 0.6830196815 | Z6: 0.6685616697 | AA6: 0.5786451918 | AB6: 0.6134526971 | AC6: 0.7366804617 | AD6: 1.001165084
A7: VEHICLE TYPE | C7: RAW COUNT | D7: AADT ADJ FACTOR | F7: ADJUSTED RAW | G7: VEH. TYPE PERCENTS | H7: A.C.F. | K7: URBAN / RURAL CLASSIFICATION | R7: 3A Semi | S7: 1.119647785 | T7: 1.098865688 | U7: 1.032355984 | V7: 0.9031212033 | W7: 0.8352405532 | X7: 0.8564495131 | Y7: 0.7867958545 | Z7: 0.6742755593 | AA7: 0.6669477105 | AB7: 0.8886683685 | AC7: 0.827933027 | AD7: 1.080772858
A8: CARS AND PICKUPS | C8: =VLOOKUP(B2&I4,'VC Data'!A:M,6,FALSE) ->  | D8: =IF(K8="RURAL",IF(B6=16,1.08,1)*CHOOSE((C5)+1,1,1.31,1.23,1.19,1.06,0.98,0.92,0.84,0.88,0.91,0.95,1.08,1.12),IF(B6=16,1.08,1)*CHOOSE((C5)+1,1,1.08,1.04,1.04,0.97,0.97,0.96,0.91,0.9,0.93,0.88,0.97,1)) ->  | F8: =IF(I5="",ROUND(D8*C8,0),I5-SUM(F9:F15)) ->  | H8: =IF(C16=0,"",C16/(((C8+C9)*2+(C10+C11)*3+(C12+C14)*4+(C13+C15)*5)/2)) ->  | K8: =VLOOKUP('Forecast A'!H4,'Urban&Rural'!A:B,2,FALSE) ->  | M8: <- Derived from the sequence number of the A segment | R8: 4A Semi | S8: 1.119647785 | T8: 1.098865688 | U8: 1.032355984 | V8: 0.9031212033 | W8: 0.8352405532 | X8: 0.8564495131 | Y8: 0.7867958545 | Z8: 0.6742755593 | AA8: 0.6669477105 | AB8: 0.8886683685 | AC8: 0.827933027 | AD8: 1.080772858
A9: 2 AXLE 6 TIRE | C9: =VLOOKUP(B2&I4,'VC Data'!A:M,7,FALSE) ->  | D9: =IF(K8="RURAL",IF(B6=16,1.08,1)*CHOOSE((C5)+1,1,1.02,0.93,0.96,0.89,0.85,0.87,0.83,0.83,0.76,0.77,0.88,1),IF(B6=16,1.08,1)*CHOOSE((C5)+1,1,0.96,0.88,0.92,0.9,0.89,0.86,0.8,0.76,0.83,0.76,0.79,0.84)) ->  | F9: =IF(B6=16,ROUND(+D9*C9,0),(IF(B6=24,ROUND(D9*C9,0),#VALUE!))) ->  | G9: =IF(F9=0,0,+F9/F16) ->  | R9: 5+A SEMI | S9: 0.8694207179 | T9: 0.8776904625 | U9: 0.8647540382 | V9: 0.8094064142 | W9: 0.792292913 | X9: 0.8333092409 | Y9: 0.7149806283 | Z9: 0.7108350254 | AA9: 0.6598929083 | AB9: 0.7505864443 | AC9: 0.8967585745 | AD9: 0.9413801686
A10: 3+ AXLE SINGLE UNIT | C10: =VLOOKUP(B2&I4,'VC Data'!A:M,8,FALSE) ->  | D10: =IF(K8="RURAL",IF(B6=16,1.07,1)*CHOOSE((C5)+1,1,1.24,1.17,1.12,0.89,0.76,0.71,0.7,0.66,0.65,0.64,0.86,1.09),IF(B6=16,1.07,1)*CHOOSE((C5)+1,1,1.23,1.16,1.21,0.86,0.75,0.67,0.59,0.54,0.64,0.64,0.8,1.09)) ->  | F10: =IF(B6=16,ROUND(+D10*C10,0),(IF(B6=24,ROUND(D10*C10,0),#VALUE!))) ->  | G10: =IF(F10=0,0,+F10/F16) ->  | R10: TT/BUS | S10: 1.406614623 | T10: 1.328803664 | U10: 1.158738771 | V10: 1.026157718 | W10: 0.9327073295 | X10: 0.8621004092 | Y10: 0.7705178987 | Z10: 0.623245916 | AA10: 0.5899275403 | AB10: 0.7789227543 | AC10: 0.8803850224 | AD10: 1.168382181
A11: 3 AXLE SEMI (TST) | C11: =VLOOKUP(B2&I4,'VC Data'!A:M,9,FALSE) ->  | D11: =IF(K8="RURAL",IF(B6=16,1.1,1)*CHOOSE((C5)+1,1,1.25,1.15,1.11,0.97,0.84,0.77,0.72,0.72,0.72,0.83,1.07,1.25),IF(B6=16,1.1,1)*CHOOSE((C5)+1,1,1.24,1.18,1.02,0.88,0.86,0.8,0.74,0.7,0.72,0.71,0.87,1.17)) ->  | F11: =IF(B6=16,ROUND(+D11*C11,0),(IF(B6=24,ROUND(D11*C11,0),#VALUE!))) ->  | G11: =IF(F11=0,0,+F11/F16) ->  | K11: The table below will display available counts for VC site by year and type | N11: 2 | O11: 1 | R11: TWINS | S11: 0.890183558 | T11: 0.8452826494 | U11: 0.8246298829 | V11: 0.7536070918 | W11: 0.7787765432 | X11: 0.914883437 | Y11: 0.8313230333 | Z11: 0.7228027477 | AA11: 0.6972492539 | AB11: 0.7525653487 | AC11: 0.8886754755 | AD11: 0.8821039871
A12: 4 AXLE SEMI (TST) | C12: =VLOOKUP(B2&I4,'VC Data'!A:M,10,FALSE) ->  | D12: =IF(K8="RURAL",IF(B6=16,1.1,1)*CHOOSE((C5)+1,1,1.25,1.15,1.11,0.97,0.84,0.77,0.72,0.72,0.72,0.83,1.07,1.25),IF(B6=16,1.1,1)*CHOOSE((C5)+1,1,1.24,1.18,1.02,0.88,0.86,0.8,0.74,0.7,0.72,0.71,0.87,1.17)) ->  | F12: =IF(B6=16,ROUND(+D12*C12,0),(IF(B6=24,ROUND(D12*C12,0),#VALUE!))) ->  | G12: =IF(F12=0,0,+F12/F16) ->  | O12: 2 | P12: 16
A13: 5+ AXLE SEMI (TST) | C13: =VLOOKUP(B2&I4,'VC Data'!A:M,11,FALSE) ->  | D13: =IF(K8="RURAL", IF(B6=16,1.17,1)*CHOOSE((C5)+1,1,0.93,0.86,0.87,0.82,0.79,0.79,0.82,0.78,0.8,0.73,0.87,0.9),IF(B6=16,1.17,1)*CHOOSE((C5)+1,1,1.02,0.99,1,0.79,0.75,0.71,0.69,0.65,0.7,0.76,0.76,0.99)) ->  | F13: =IF(B6=16,ROUND(+D13*C13,0),(IF(B6=24,ROUND(D13*C13,0),#VALUE!))) ->  | G13: =IF(F13=0,0,+F13/F16) ->  | K13: ="VC history for site: "&B2 -> VC history for site: | P13: 24 | R13: New Seasonal Adjustment Factors For Rural Area
A14: TR TR, BUSES | C14: =VLOOKUP(B2&I4,'VC Data'!A:M,12,FALSE) ->  | D14: =IF(K8="RURAL",IF(B6=16,1.09,1)*CHOOSE((C5)+1,1,1.6,1.44,1.31,0.99,0.81,0.75,0.67,0.68,0.7,0.68,0.96,1.4),IF(B6=16,1.09,1)*CHOOSE((C5)+1,1,1.51,1.31,1.19,1.03,0.92,0.82,0.76,0.71,0.74,0.77,0.94,1.07)) ->  | F14: =IF(B6=16,ROUND(+D14*C14,0),(IF(B6=24,ROUND(D14*C14,0),#VALUE!))) ->  | G14: =IF(F14=0,0,+F14/F16) ->  | K14: Year | L14: Count Type
A15: TWIN TRAILERS | C15: =VLOOKUP(B2&I4,'VC Data'!A:M,13,FALSE) ->  | D15: =IF(K8="RURAL",IF(B6=16,1.3,1)*CHOOSE((C5)+1,1,0.95,0.86,0.92,0.86,0.86,0.75,0.8,0.76,0.75,0.7,0.82,0.76),IF(B6=16,1.3,1)*CHOOSE((C5)+1,1,1.07,1.02,1.02,0.84,0.78,0.74,0.69,0.65,0.67,0.77,0.93,1.09)) ->  | F15: =IF(B6=16,ROUND(+D15*C15,0),(IF(B6=24,ROUND(D15*C15,0),#VALUE!))) ->  | G15: =IF(F15=0,0,+F15/F16) ->  | K15: =IF(INDEX('VC History'!A:A,M15)=$B$2,INDEX('VC History'!B:B,M15),"") ->  | L15: =IF(INDEX('VC History'!A:A,M15)=$B$2,INDEX('VC History'!D:D,M15),"") ->  | M15: =MATCH(B2,'VC History'!A:A,0) ->  | R15: Body Type | S15: Jan | T15: Feb | U15: Mar | V15: Apr | W15: May | X15: Jun | Y15: Jul | Z15: Aug | AA15: Sep | AB15: Oct | AC15: Nov | AD15: Dec
A16: TOTALS -----------> | C16: =SUM(C8:C15) ->  | D16: --------> | E16: =+F16/C16 ->  | F16: =SUM(F8:F15) ->  | G16: =SUM(F9:F15)/F16 ->  | H16: (%HC) | K16: =IF(INDEX('VC History'!A:A,M16)=$B$2,INDEX('VC History'!B:B,M16),"") ->  | L16: =IF(INDEX('VC History'!A:A,M16)=$B$2,INDEX('VC History'!D:D,M16),"") ->  | M16: =M15+1 ->  | R16: CARS+PICKUP | S16: 1.31474341 | T16: 1.260555416 | U16: 1.21910632 | V16: 1.133579236 | W16: 0.9674365183 | X16: 0.8811334106 | Y16: 0.8068667431 | Z16: 0.8357105532 | AA16: 0.9492525986 | AB16: 1.029751516 | AC16: 1.125437083 | AD16: 1.198499723
K17: =IF(INDEX('VC History'!A:A,M17)=$B$2,INDEX('VC History'!B:B,M17),"") ->  | L17: =IF(INDEX('VC History'!A:A,M17)=$B$2,INDEX('VC History'!D:D,M17),"") ->  | R17: 2ASU | S17: 1.042113668 | T17: 1.079615196 | U17: 1.073531771 | V17: 0.9700373761 | W17: 0.8766061595 | X17: 0.8518294275 | Y17: 0.8505186426 | Z17: 0.8291160376 | AA17: 0.8099880704 | AB17: 0.8257555049 | AC17: 0.9336566414 | AD17: 0.9644660003
K18: =IF(INDEX('VC History'!A:A,M18)=$B$2,INDEX('VC History'!B:B,M18),"") ->  | L18: =IF(INDEX('VC History'!A:A,M18)=$B$2,INDEX('VC History'!D:D,M18),"") ->  | R18: 3+ASU | S18: 1.339197634 | T18: 1.439771113 | U18: 1.2792395 | V18: 0.9324515918 | W18: 0.8121908563 | X18: 0.6072317642 | Y18: 0.7099775765 | Z18: 0.6874079787 | AA18: 0.7041889955 | AB18: 0.6966682438 | AC18: 0.8492378659 | AD18: 1.245576541
A19: =+B2 -> 0 | K19: =IF(INDEX('VC History'!A:A,M19)=$B$2,INDEX('VC History'!B:B,M19),"") ->  | L19: =IF(INDEX('VC History'!A:A,M19)=$B$2,INDEX('VC History'!D:D,M19),"") ->  | Q19: 1 - January | R19: 3A Semi | S19: 1.574028515 | T19: 1.540791338 | U19: 1.492648881 | V19: 1.223354753 | W19: 0.8992402512 | X19: 0.8188352771 | Y19: 0.7347486488 | Z19: 0.6803021132 | AA19: 0.744357258 | AB19: 0.8756086261 | AC19: 1.096356596 | AD19: 1.273657955
A20: =+B3 ->  | K20: =IF(INDEX('VC History'!A:A,M20)=$B$2,INDEX('VC History'!B:B,M20),"") ->  | L20: =IF(INDEX('VC History'!A:A,M20)=$B$2,INDEX('VC History'!D:D,M20),"") ->  | Q20: 2 - February | R20: 4A Semi | S20: 1.574028515 | T20: 1.540791338 | U20: 1.492648881 | V20: 1.223354753 | W20: 0.8992402512 | X20: 0.8188352771 | Y20: 0.7347486488 | Z20: 0.6803021132 | AA20: 0.744357258 | AB20: 0.8756086261 | AC20: 1.096356596 | AD20: 1.273657955
K21: =IF(INDEX('VC History'!A:A,M21)=$B$2,INDEX('VC History'!B:B,M21),"") ->  | L21: =IF(INDEX('VC History'!A:A,M21)=$B$2,INDEX('VC History'!D:D,M21),"") ->  | Q21: 3 - March | R21: 5+A SEMI | S21: 0.9774273605 | T21: 0.9048104915 | U21: 0.8599070523 | V21: 0.8206315401 | W21: 0.7778721302 | X21: 0.7171337842 | Y21: 0.7732008439 | Z21: 0.7471229023 | AA21: 0.7637578228 | AB21: 0.7392151467 | AC21: 0.877552007 | AD21: 0.9310532595
K22: =IF(INDEX('VC History'!A:A,M22)=$B$2,INDEX('VC History'!B:B,M22),"") ->  | L22: =IF(INDEX('VC History'!A:A,M22)=$B$2,INDEX('VC History'!D:D,M22),"") ->  | Q22: 4 - April | R22: TT/BUS | S22: 2.053065092 | T22: 2.059457219 | U22: 1.54934048 | V22: 1.1114678 | W22: 0.8736816042 | X22: 0.7417814046 | Y22: 0.705897493 | Z22: 0.6679690633 | AA22: 0.7016210228 | AB22: 0.7888943814 | AC22: 1.01168125 | AD22: 1.575509804
K23: =IF(INDEX('VC History'!A:A,M23)=$B$2,INDEX('VC History'!B:B,M23),"") ->  | L23: =IF(INDEX('VC History'!A:A,M23)=$B$2,INDEX('VC History'!D:D,M23),"") ->  | Q23: 5 - May | R23: TWINS | S23: 1.420065205 | T23: 0.9516135039 | U23: 0.9414734563 | V23: 0.9360222446 | W23: 0.8601389411 | X23: 0.8665974564 | Y23: 0.8294879216 | Z23: 0.6612789319 | AA23: 0.6935770556 | AB23: 0.6096555077 | AC23: 0.7557197928 | AD23: 0.8949536413
K24: =IF(INDEX('VC History'!A:A,M24)=$B$2,INDEX('VC History'!B:B,M24),"") ->  | L24: =IF(INDEX('VC History'!A:A,M24)=$B$2,INDEX('VC History'!D:D,M24),"") ->  | Q24: 6 - June
K25: =IF(INDEX('VC History'!A:A,M25)=$B$2,INDEX('VC History'!B:B,M25),"") ->  | L25: =IF(INDEX('VC History'!A:A,M25)=$B$2,INDEX('VC History'!D:D,M25),"") ->  | Q25: 7 - July
Q26: 8 - August
Q27: 9 - September
K28: 1 | L28: 16 | Q28: 10 - October
K29: 2 | L29: 24 | Q29: 11 - November
K30: 3 | L30: RURAL | Q30: 12 - December
K31: 4 | L31: URBAN
K32: 5
K33: 6
K34: 7
K35: 8
K36: 9
K37: 10
K38: 11
K39: 12
A52: =IF(K8="RURAL","Rural Factor is Selected", "Urban Factor is selected") -> 

Sheet VC 4
A1: VEHICLE CLASS COUNT EXPANSION WORKSHEET 4 | J1: Non-print area | R1: New Seasonal Adjustment Factors For Urban Area
A2: SITE NUMBER: | G2: COUNTY: | H2: =IF(+Cover!$H$16=0," ",+Cover!$H$16) -> 
A3: SITE DESCRIPTION: | B3: =VLOOKUP(B2,'VC History'!A:F,6,FALSE) ->  | R3: Body Type | S3: Jan | T3: Feb | U3: Mar | V3: Apr | W3: May | X3: Jun | Y3: Jul | Z3: Aug | AA3: Sep | AB3: Oct | AC3: Nov | AD3: Dec
A4: PROJECT SP#: | B4: =IF(+Cover!$H$13=0," ",+Cover!$H$13) ->  | H4: YEAR OF COUNT: | R4: CARS+PICKUP | S4: 1.101818568 | T4: 1.042399606 | U4: 1.020715235 | V4: 0.9825595111 | W4: 0.9804214303 | X4: 0.9524454101 | Y4: 0.9021672653 | Z4: 0.8851863969 | AA4: 0.8463204291 | AB4: 0.9766528447 | AC4: 1.054754554 | AD4: 1.129700419
A5: MONTH NUMBER OF COUNT: | C5: =VLOOKUP(B2&I4,'VC Data'!A:M,4,FALSE) ->  | H5: CONSTRAIN AADT: | I5: =IF('Forecast A'!H4="","",VLOOKUP(I4,'Forecast A'!A7:B22,2)) ->  | K5: Constrain AADT is automated from the sequence number of the A segment | R5: 2ASU | S5: 0.9026364913 | T5: 0.9152095345 | U5: 0.8809693435 | V5: 0.8433149801 | W5: 0.8049514058 | X5: 0.9077923889 | Y5: 0.79842163 | Z5: 0.7463956493 | AA5: 0.6742423882 | AB5: 0.8110823695 | AC5: 0.878061286 | AD5: 0.9497618566
A6: 16 or 24 HR | B6: =IF(VLOOKUP(I4,K$15:L$25,2)="Manual",16,24) ->  | R6: 3+ASU | S6: 1.192485605 | T6: 1.196781163 | U6: 1.149691715 | V6: 0.8838166574 | W6: 0.7900560436 | X6: 0.8404904399 | Y6: 0.6830196815 | Z6: 0.6685616697 | AA6: 0.5786451918 | AB6: 0.6134526971 | AC6: 0.7366804617 | AD6: 1.001165084
A7: VEHICLE TYPE | C7: RAW COUNT | D7: AADT ADJ FACTOR | F7: ADJUSTED RAW | G7: VEH. TYPE PERCENTS | H7: A.C.F. | K7: URBAN / RURAL CLASSIFICATION | R7: 3A Semi | S7: 1.119647785 | T7: 1.098865688 | U7: 1.032355984 | V7: 0.9031212033 | W7: 0.8352405532 | X7: 0.8564495131 | Y7: 0.7867958545 | Z7: 0.6742755593 | AA7: 0.6669477105 | AB7: 0.8886683685 | AC7: 0.827933027 | AD7: 1.080772858
A8: CARS AND PICKUPS | C8: =VLOOKUP(B2&I4,'VC Data'!A:M,6,FALSE) ->  | D8: =IF(K8="RURAL",IF(B6=16,1.08,1)*CHOOSE((C5)+1,1,1.31,1.23,1.19,1.06,0.98,0.92,0.84,0.88,0.91,0.95,1.08,1.12),IF(B6=16,1.08,1)*CHOOSE((C5)+1,1,1.08,1.04,1.04,0.97,0.97,0.96,0.91,0.9,0.93,0.88,0.97,1)) ->  | F8: =IF(I5="",ROUND(D8*C8,0),I5-SUM(F9:F15)) ->  | H8: =IF(C16=0,"",C16/(((C8+C9)*2+(C10+C11)*3+(C12+C14)*4+(C13+C15)*5)/2)) ->  | K8: =VLOOKUP('Forecast A'!H4,'Urban&Rural'!A:B,2,FALSE) ->  | M8: <- Derived from the sequence number of the A segment | R8: 4A Semi | S8: 1.119647785 | T8: 1.098865688 | U8: 1.032355984 | V8: 0.9031212033 | W8: 0.8352405532 | X8: 0.8564495131 | Y8: 0.7867958545 | Z8: 0.6742755593 | AA8: 0.6669477105 | AB8: 0.8886683685 | AC8: 0.827933027 | AD8: 1.080772858
A9: 2 AXLE 6 TIRE | C9: =VLOOKUP(B2&I4,'VC Data'!A:M,7,FALSE) ->  | D9: =IF(K8="RURAL",IF(B6=16,1.08,1)*CHOOSE((C5)+1,1,1.02,0.93,0.96,0.89,0.85,0.87,0.83,0.83,0.76,0.77,0.88,1),IF(B6=16,1.08,1)*CHOOSE((C5)+1,1,0.96,0.88,0.92,0.9,0.89,0.86,0.8,0.76,0.83,0.76,0.79,0.84)) ->  | F9: =IF(B6=16,ROUND(+D9*C9,0),(IF(B6=24,ROUND(D9*C9,0),#VALUE!))) ->  | G9: =IF(F9=0,0,+F9/F16) ->  | R9: 5+A SEMI | S9: 0.8694207179 | T9: 0.8776904625 | U9: 0.8647540382 | V9: 0.8094064142 | W9: 0.792292913 | X9: 0.8333092409 | Y9: 0.7149806283 | Z9: 0.7108350254 | AA9: 0.6598929083 | AB9: 0.7505864443 | AC9: 0.8967585745 | AD9: 0.9413801686
A10: 3+ AXLE SINGLE UNIT | C10: =VLOOKUP(B2&I4,'VC Data'!A:M,8,FALSE) ->  | D10: =IF(K8="RURAL",IF(B6=16,1.07,1)*CHOOSE((C5)+1,1,1.24,1.17,1.12,0.89,0.76,0.71,0.7,0.66,0.65,0.64,0.86,1.09),IF(B6=16,1.07,1)*CHOOSE((C5)+1,1,1.23,1.16,1.21,0.86,0.75,0.67,0.59,0.54,0.64,0.64,0.8,1.09)) ->  | F10: =IF(B6=16,ROUND(+D10*C10,0),(IF(B6=24,ROUND(D10*C10,0),#VALUE!))) ->  | G10: =IF(F10=0,0,+F10/F16) ->  | R10: TT/BUS | S10: 1.406614623 | T10: 1.328803664 | U10: 1.158738771 | V10: 1.026157718 | W10: 0.9327073295 | X10: 0.8621004092 | Y10: 0.7705178987 | Z10: 0.623245916 | AA10: 0.5899275403 | AB10: 0.7789227543 | AC10: 0.8803850224 | AD10: 1.168382181
A11: 3 AXLE SEMI (TST) | C11: =VLOOKUP(B2&I4,'VC Data'!A:M,9,FALSE) ->  | D11: =IF(K8="RURAL",IF(B6=16,1.1,1)*CHOOSE((C5)+1,1,1.25,1.15,1.11,0.97,0.84,0.77,0.72,0.72,0.72,0.83,1.07,1.25),IF(B6=16,1.1,1)*CHOOSE((C5)+1,1,1.24,1.18,1.02,0.88,0.86,0.8,0.74,0.7,0.72,0.71,0.87,1.17)) ->  | F11: =IF(B6=16,ROUND(+D11*C11,0),(IF(B6=24,ROUND(D11*C11,0),#VALUE!))) ->  | G11: =IF(F11=0,0,+F11/F16) ->  | K11: The table below will display available counts for VC site by year and type | N11: 2 | O11: 1 | R11: TWINS | S11: 0.890183558 | T11: 0.8452826494 | U11: 0.8246298829 | V11: 0.7536070918 | W11: 0.7787765432 | X11: 0.914883437 | Y11: 0.8313230333 | Z11: 0.7228027477 | AA11: 0.6972492539 | AB11: 0.7525653487 | AC11: 0.8886754755 | AD11: 0.8821039871
A12: 4 AXLE SEMI (TST) | C12: =VLOOKUP(B2&I4,'VC Data'!A:M,10,FALSE) ->  | D12: =IF(K8="RURAL",IF(B6=16,1.1,1)*CHOOSE((C5)+1,1,1.25,1.15,1.11,0.97,0.84,0.77,0.72,0.72,0.72,0.83,1.07,1.25),IF(B6=16,1.1,1)*CHOOSE((C5)+1,1,1.24,1.18,1.02,0.88,0.86,0.8,0.74,0.7,0.72,0.71,0.87,1.17)) ->  | F12: =IF(B6=16,ROUND(+D12*C12,0),(IF(B6=24,ROUND(D12*C12,0),#VALUE!))) ->  | G12: =IF(F12=0,0,+F12/F16) ->  | O12: 2 | P12: 16
A13: 5+ AXLE SEMI (TST) | C13: =VLOOKUP(B2&I4,'VC Data'!A:M,11,FALSE) ->  | D13: =IF(K8="RURAL", IF(B6=16,1.17,1)*CHOOSE((C5)+1,1,0.93,0.86,0.87,0.82,0.79,0.79,0.82,0.78,0.8,0.73,0.87,0.9),IF(B6=16,1.17,1)*CHOOSE((C5)+1,1,1.02,0.99,1,0.79,0.75,0.71,0.69,0.65,0.7,0.76,0.76,0.99)) ->  | F13: =IF(B6=16,ROUND(+D13*C13,0),(IF(B6=24,ROUND(D13*C13,0),#VALUE!))) ->  | G13: =IF(F13=0,0,+F13/F16) ->  | K13: ="VC history for site: "&B2 -> VC history for site: | P13: 24 | R13: New Seasonal Adjustment Factors For Rural Area
A14: TR TR, BUSES | C14: =VLOOKUP(B2&I4,'VC Data'!A:M,12,FALSE) ->  | D14: =IF(K8="RURAL",IF(B6=16,1.09,1)*CHOOSE((C5)+1,1,1.6,1.44,1.31,0.99,0.81,0.75,0.67,0.68,0.7,0.68,0.96,1.4),IF(B6=16,1.09,1)*CHOOSE((C5)+1,1,1.51,1.31,1.19,1.03,0.92,0.82,0.76,0.71,0.74,0.77,0.94,1.07)) ->  | F14: =IF(B6=16,ROUND(+D14*C14,0),(IF(B6=24,ROUND(D14*C14,0),#VALUE!))) ->  | G14: =IF(F14=0,0,+F14/F16) ->  | K14: Year | L14: Count Type
A15: TWIN TRAILERS | C15: =VLOOKUP(B2&I4,'VC Data'!A:M,13,FALSE) ->  | D15: =IF(K8="RURAL",IF(B6=16,1.3,1)*CHOOSE((C5)+1,1,0.95,0.86,0.92,0.86,0.86,0.75,0.8,0.76,0.75,0.7,0.82,0.76),IF(B6=16,1.3,1)*CHOOSE((C5)+1,1,1.07,1.02,1.02,0.84,0.78,0.74,0.69,0.65,0.67,0.77,0.93,1.09)) ->  | F15: =IF(B6=16,ROUND(+D15*C15,0),(IF(B6=24,ROUND(D15*C15,0),#VALUE!))) ->  | G15: =IF(F15=0,0,+F15/F16) ->  | K15: =IF(INDEX('VC History'!A:A,M15)=$B$2,INDEX('VC History'!B:B,M15),"") ->  | L15: =IF(INDEX('VC History'!A:A,M15)=$B$2,INDEX('VC History'!D:D,M15),"") ->  | M15: =MATCH(B2,'VC History'!A:A,0) ->  | R15: Body Type | S15: Jan | T15: Feb | U15: Mar | V15: Apr | W15: May | X15: Jun | Y15: Jul | Z15: Aug | AA15: Sep | AB15: Oct | AC15: Nov | AD15: Dec
A16: TOTALS -----------> | C16: =SUM(C8:C15) ->  | D16: --------> | E16: =+F16/C16 ->  | F16: =SUM(F8:F15) ->  | G16: =SUM(F9:F15)/F16 ->  | H16: (%HC) | K16: =IF(INDEX('VC History'!A:A,M16)=$B$2,INDEX('VC History'!B:B,M16),"") ->  | L16: =IF(INDEX('VC History'!A:A,M16)=$B$2,INDEX('VC History'!D:D,M16),"") ->  | M16: =M15+1 ->  | R16: CARS+PICKUP | S16: 1.31474341 | T16: 1.260555416 | U16: 1.21910632 | V16: 1.133579236 | W16: 0.9674365183 | X16: 0.8811334106 | Y16: 0.8068667431 | Z16: 0.8357105532 | AA16: 0.9492525986 | AB16: 1.029751516 | AC16: 1.125437083 | AD16: 1.198499723
K17: =IF(INDEX('VC History'!A:A,M17)=$B$2,INDEX('VC History'!B:B,M17),"") ->  | L17: =IF(INDEX('VC History'!A:A,M17)=$B$2,INDEX('VC History'!D:D,M17),"") ->  | R17: 2ASU | S17: 1.042113668 | T17: 1.079615196 | U17: 1.073531771 | V17: 0.9700373761 | W17: 0.8766061595 | X17: 0.8518294275 | Y17: 0.8505186426 | Z17: 0.8291160376 | AA17: 0.8099880704 | AB17: 0.8257555049 | AC17: 0.9336566414 | AD17: 0.9644660003
K18: =IF(INDEX('VC History'!A:A,M18)=$B$2,INDEX('VC History'!B:B,M18),"") ->  | L18: =IF(INDEX('VC History'!A:A,M18)=$B$2,INDEX('VC History'!D:D,M18),"") ->  | R18: 3+ASU | S18: 1.339197634 | T18: 1.439771113 | U18: 1.2792395 | V18: 0.9324515918 | W18: 0.8121908563 | X18: 0.6072317642 | Y18: 0.7099775765 | Z18: 0.6874079787 | AA18: 0.7041889955 | AB18: 0.6966682438 | AC18: 0.8492378659 | AD18: 1.245576541
A19: =+B2 -> 0 | K19: =IF(INDEX('VC History'!A:A,M19)=$B$2,INDEX('VC History'!B:B,M19),"") ->  | L19: =IF(INDEX('VC History'!A:A,M19)=$B$2,INDEX('VC History'!D:D,M19),"") ->  | Q19: 1 - January | R19: 3A Semi | S19: 1.574028515 | T19: 1.540791338 | U19: 1.492648881 | V19: 1.223354753 | W19: 0.8992402512 | X19: 0.8188352771 | Y19: 0.7347486488 | Z19: 0.6803021132 | AA19: 0.744357258 | AB19: 0.8756086261 | AC19: 1.096356596 | AD19: 1.273657955
A20: =+B3 ->  | K20: =IF(INDEX('VC History'!A:A,M20)=$B$2,INDEX('VC History'!B:B,M20),"") ->  | L20: =IF(INDEX('VC History'!A:A,M20)=$B$2,INDEX('VC History'!D:D,M20),"") ->  | Q20: 2 - February | R20: 4A Semi | S20: 1.574028515 | T20: 1.540791338 | U20: 1.492648881 | V20: 1.223354753 | W20: 0.8992402512 | X20: 0.8188352771 | Y20: 0.7347486488 | Z20: 0.6803021132 | AA20: 0.744357258 | AB20: 0.8756086261 | AC20: 1.096356596 | AD20: 1.273657955
K21: =IF(INDEX('VC History'!A:A,M21)=$B$2,INDEX('VC History'!B:B,M21),"") ->  | L21: =IF(INDEX('VC History'!A:A,M21)=$B$2,INDEX('VC History'!D:D,M21),"") ->  | Q21: 3 - March | R21: 5+A SEMI | S21: 0.9774273605 | T21: 0.9048104915 | U21: 0.8599070523 | V21: 0.8206315401 | W21: 0.7778721302 | X21: 0.7171337842 | Y21: 0.7732008439 | Z21: 0.7471229023 | AA21: 0.7637578228 | AB21: 0.7392151467 | AC21: 0.877552007 | AD21: 0.9310532595
K22: =IF(INDEX('VC History'!A:A,M22)=$B$2,INDEX('VC History'!B:B,M22),"") ->  | L22: =IF(INDEX('VC History'!A:A,M22)=$B$2,INDEX('VC History'!D:D,M22),"") ->  | Q22: 4 - April | R22: TT/BUS | S22: 2.053065092 | T22: 2.059457219 | U22: 1.54934048 | V22: 1.1114678 | W22: 0.8736816042 | X22: 0.7417814046 | Y22: 0.705897493 | Z22: 0.6679690633 | AA22: 0.7016210228 | AB22: 0.7888943814 | AC22: 1.01168125 | AD22: 1.575509804
K23: =IF(INDEX('VC History'!A:A,M23)=$B$2,INDEX('VC History'!B:B,M23),"") ->  | L23: =IF(INDEX('VC History'!A:A,M23)=$B$2,INDEX('VC History'!D:D,M23),"") ->  | Q23: 5 - May | R23: TWINS | S23: 1.420065205 | T23: 0.9516135039 | U23: 0.9414734563 | V23: 0.9360222446 | W23: 0.8601389411 | X23: 0.8665974564 | Y23: 0.8294879216 | Z23: 0.6612789319 | AA23: 0.6935770556 | AB23: 0.6096555077 | AC23: 0.7557197928 | AD23: 0.8949536413
K24: =IF(INDEX('VC History'!A:A,M24)=$B$2,INDEX('VC History'!B:B,M24),"") ->  | L24: =IF(INDEX('VC History'!A:A,M24)=$B$2,INDEX('VC History'!D:D,M24),"") ->  | Q24: 6 - June
K25: =IF(INDEX('VC History'!A:A,M25)=$B$2,INDEX('VC History'!B:B,M25),"") ->  | L25: =IF(INDEX('VC History'!A:A,M25)=$B$2,INDEX('VC History'!D:D,M25),"") ->  | Q25: 7 - July
Q26: 8 - August
Q27: 9 - September
K28: 1 | L28: 16 | Q28: 10 - October
K29: 2 | L29: 24 | Q29: 11 - November
K30: 3 | L30: RURAL | Q30: 12 - December
K31: 4 | L31: URBAN
K32: 5
K33: 6
K34: 7
K35: 8
K36: 9
K37: 10
K38: 11
K39: 12
A52: =IF(K8="RURAL","Rural Factor is Selected", "Urban Factor is selected") -> 

Sheet VC Avg
A1: Vehicle Class Count Averages Worksheet
A2: VCC Site Num: | B2: =IF('VC 1'!B2=0," ",'VC 1'!B2) -> 
A3: Route: | B3: =IF(Cover!H15="Interstate",Cover!J25&Cover!H14,IF(Cover!H15="US Trunk",Cover!J26&Cover!H14,IF(Cover!H15="MN Trunk",Cover!J27&Cover!H14,IF(Cover!H15="CSAH",Cover!J28&Cover!H14,IF(Cover!H15="CR",Cover!J29&Cover!H14," "))))) -> 
A4: Descripton: | B4: =IF('VC 1'!B3=0," ",'VC 1'!B3) -> 
C6: VC Count 1 | E6: VC Count 2 | G6: VC Count 3 | I6: VC Count 4
B7: Type | C7: Year | D7: Pct | E7: Year | F7: Pct | G7: Year | H7: Pct | I7: Year | J7: Pct | K7: Avg | L7: Avg
C8: =+'VC 1'!$I$4 -> 0 | E8: =+'VC 2'!$I$4 -> 0 | G8: =+'VC 3'!$I$4 -> 0 | I8: =+'VC 4'!$I$4 -> 0 | K8: Truck | L8: Vehicle
B9: Man/Tube | C9: =IF('VC 1'!$B$6=16,"Manual",IF('VC 1'!$B$6=24,"Tube",0)) ->  | E9: =IF('VC 2'!$B$6=16,"Manual",IF('VC 2'!$B$6=24,"Tube",0)) ->  | G9: =IF('VC 3'!$B$6=16,"Manual",IF('VC 3'!$B$6=24,"Tube",0)) ->  | I9: =IF('VC 4'!$B$6=16,"Manual",IF('VC 4'!$B$6=24,"Tube",0)) ->  | K9: Volumes | L9: Pctages
A10: 1 | B10: Cars | C10: ='VC 1'!F8 ->  | D10: =C10/C$18 ->  | E10: ='VC 2'!F8 ->  | F10: =E10/E$18 ->  | G10: ='VC 3'!F8 ->  | H10: =G10/G$18 ->  | I10: ='VC 4'!F8 ->  | J10: =I10/I$18 ->  | K10: =AVERAGEIF(C63:F63,">-1") ->  | L10: =AVERAGEIF(H63:K63,">-1") -> 
A11: 2 | B11: 2 ASU | C11: ='VC 1'!F9 ->  | E11: ='VC 2'!F9 ->  | G11: ='VC 3'!F9 ->  | I11: ='VC 4'!F9 -> 
A12: 3 | B12: 3+ASU | C12: ='VC 1'!F10 ->  | E12: ='VC 2'!F10 ->  | G12: ='VC 3'!F10 ->  | I12: ='VC 4'!F10 -> 
A13: 4 | B13: 3ASemi | C13: ='VC 1'!F11 ->  | E13: ='VC 2'!F11 ->  | G13: ='VC 3'!F11 ->  | I13: ='VC 4'!F11 -> 
A14: 5 | B14: 4ASemi | C14: ='VC 1'!F12 ->  | E14: ='VC 2'!F12 ->  | G14: ='VC 3'!F12 ->  | I14: ='VC 4'!F12 -> 
A15: 6 | B15: 5+Asemi | C15: ='VC 1'!F13 ->  | E15: ='VC 2'!F13 ->  | G15: ='VC 3'!F13 ->  | I15: ='VC 4'!F13 -> 
A16: 7 | B16: TT/BUS | C16: ='VC 1'!F14 ->  | E16: ='VC 2'!F14 ->  | G16: ='VC 3'!F14 ->  | I16: ='VC 4'!F14 -> 
A17: 8 | B17: Twins | C17: ='VC 1'!F15 ->  | E17: ='VC 2'!F15 ->  | G17: ='VC 3'!F15 ->  | I17: ='VC 4'!F15 -> 
A18: Total | C18: =SUM(C10:C17) ->  | D18: =SUM(D11:D17) ->  | E18: =SUM(E10:E17) ->  | F18: =SUM(F11:F17) ->  | G18: =SUM(G10:G17) ->  | H18: =SUM(H11:H17) ->  | I18: =SUM(I10:I17) ->  | J18: =SUM(J11:J17) -> 
A19: Total Heavy Comm | C19: =SUM(C11:C17) ->  | E19: =SUM(E11:E17) ->  | G19: =SUM(G11:G17) ->  | I19: =SUM(I11:I17) ->  | K19: =AVERAGEIF(C19:J19,">-1") ->  | L19: =SUM(L10:L17) -> 
A20: Heavy 5+ Ax Semi* | D20: =IF(C9="Manual",VLOOKUP(B2&C8,'% Heavies'!D:L,9,FALSE)," ") ->  | F20: =IF(E9="Manual",VLOOKUP(B2&E8,'% Heavies'!D:L,9,FALSE)," ") ->  | H20: =IF(G9="Manual",VLOOKUP(B2&G8,'% Heavies'!D:L,9,FALSE)," ") ->  | J20: =IF(I9="Manual",VLOOKUP(B2&I8,'% Heavies'!D:L,9,FALSE)," ") ->  | L20: =AVERAGEIF(C20:J20,">-1") -> 
A21: Axle Corr Factor | D21: ='VC 1'!H8 ->  | F21: ='VC 2'!H8 ->  | H21: ='VC 3'!H8 ->  | J21: ='VC 4'!H8 ->  | L21: =AVERAGEIF(D21:J21,">-1") -> 
A23: * Heavy 5+ Ax Semi = Tank, Dump, Grain, and Stake Loaded | K23: Heavy 5 Axle Semi Split
A24: When the Tank, Dumps, Grains and Loaded Stakes are 30% or more of the 5 axle semis, | K24: =$L$15*$L$20 ->  | L24: Max
A25: then they are automatically split into max and other categories | K25: =$L$15-$K$24 ->  | L25: Others
A26: Don’t use tube collected previous to 1990. | K26: =IF(L20<30%,"DON'T SPLIT","SPLIT") -> 
C63: =IF(C10="","",C10) ->  | D63: =IF(E10="","",E10) ->  | E63: =IF(G10="","",G10) ->  | F63: =IF(I10="","",I10) ->  | H63: =IF(D10="","",D10) ->  | I63: =IF(F10="","",F10) ->  | J63: =IF(H10="","",H10) ->  | K63: =IF(J10="","",J10) -> 
C64: =IF(C11="","",C11) ->  | D64: =IF(E11="","",E11) ->  | E64: =IF(G11="","",G11) ->  | F64: =IF(I11="","",I11) ->  | H64: =IF(D11="","",D11) ->  | I64: =IF(F11="","",F11) ->  | J64: =IF(H11="","",H11) ->  | K64: =IF(J11="","",J11) -> 

Sheet AADT_Data (hidden)
A1: SEQNUM | B1: AADT 2018 | C1: AADT_2017 | D1: AADT_2016 | E1: AADT_2015 | F1: AADT_2014 | G1: AADT_2013 | H1: AADT_2012 | I1: AADT_2011 | J1: AADT_2010 | K1: AADT_2009 | L1: AADT_2008 | M1: AADT_2007 | N1: AADT_2006 | O1: AADT_2005 | P1: AADT_2004 | Q1: AADT_2003 | R1: AADT_2002 | S1: AADT_2001 | T1: AADT_2000 | U1: AADT_1999 | V1: AADT_1998 | W1: AADT_1997 | X1: AADT_1996 | Y1: AADT_1995 | Z1: AADT_1994 | AA1: AADT_1992 | AB1: Length in Miles
A2: 1 | B2: 600 | D2: 630 | F2: 620 | H2: 640 | J2: 620 | L2: 660 | N2: 690 | P2: 760 | R2: 860 | T2: 890 | V2: 700 | X2: 700 | Z2: 650 | AA2: 650 | AB2: 13.38709981
A3: 4 | B3: 2050 | D3: 2050 | F3: 2100 | H3: 2100 | J3: 2050 | L3: 1950 | N3: 2100 | P3: 2300 | R3: 2350 | T3: 2100 | V3: 2100 | X3: 2300 | Z3: 1850 | AA3: 1850 | AB3: 1.643368202
A4: 9 | B4: 1450 | D4: 1400 | F4: 1500 | H4: 1600 | J4: 1700 | L4: 1550 | N4: 1650 | P4: 1600 | R4: 1400 | T4: 1200 | V4: 1400 | X4: 1250 | Z4: 1350 | AA4: 1000 | AB4: 5.111867982
A5: 13 | B5: 2500 | D5: 2500 | F5: 2400 | H5: 2400 | J5: 2550 | L5: 2350 | N5: 2450 | P5: 2700 | R5: 2250 | T5: 2150 | V5: 2350 | X5: 1750 | Z5: 2300 | AA5: 2000 | AB5: 4.093222231
A6: 14 | B6: 960 | D6: 920 | F6: 930 | H6: 1050 | J6: 1050 | L6: 950 | N6: 1000 | P6: 1250 | R6: 1350 | T6: 1500 | V6: 920 | X6: 780 | Z6: 750 | AA6: 650 | AB6: 12.62164426
A7: 16 | B7: 2900 | D7: 3100 | F7: 3050 | H7: 3150 | J7: 3250 | L7: 3000 | N7: 3300 | P7: 3850 | R7: 3300 | T7: 3600 | V7: 3500 | X7: 2850 | Z7: 2550 | AA7: 2350 | AB7: 1.795439329
A8: 17 | B8: 350 | D8: 320 | F8: 330 | H8: 345 | J8: 370 | L8: 370 | N8: 400 | P8: 400 | R8: 475 | T8: 350 | V8: 350 | X8: 370 | Z8: 325 | AA8: 350 | AB8: 13.12687343
A9: 20 | B9: 2300 | D9: 2200 | F9: 2200 | H9: 2250 | J9: 2150 | L9: 2000 | N9: 2100 | P9: 2400 | R9: 2150 | T9: 2150 | V9: 2100 | X9: 2350 | Z9: 1900 | AA9: 1900 | AB9: 6.28246721
A10: 21 | B10: 3300 | D10: 3050 | F10: 2800 | H10: 2900 | J10: 3000 | L10: 2800 | N10: 3050 | P10: 3100 | R10: 2400 | T10: 2400 | V10: 2050 | X10: 1950 | Z10: 2200 | AB10: 3.223392723
A11: 22 | B11: 1600 | D11: 1400 | F11: 1350 | H11: 1250 | J11: 1150 | L11: 1100 | N11: 1200 | P11: 1250 | R11: 1000 | T11: 1000 | V11: 1150 | X11: 1250 | Z11: 890 | AA11: 900 | AB11: 18.28415193
A12: 23 | B12: 3600 | D12: 3650 | F12: 3500 | H12: 3750 | J12: 4050 | L12: 4050 | N12: 4350 | P12: 3950 | R12: 3300 | T12: 3100 | V12: 3000 | X12: 3050 | Z12: 2800 | AB12: 7.723850336
A13: 24 | B13: 2800 | D13: 2500 | F13: 2450 | H13: 2200 | J13: 2050 | L13: 2150 | N13: 2150 | P13: 2150 | R13: 1850 | T13: 1850 | V13: 1800 | X13: 1750 | Z13: 1600 | AB13: 1.601194199
A14: 25 | B14: 3000 | D14: 3000 | F14: 3050 | H14: 2700 | J14: 3100 | L14: 2850 | N14: 3050 | P14: 2800 | R14: 2450 | T14: 2100 | V14: 2550 | X14: 2450 | Z14: 2100 | AA14: 1900 | AB14: 0.6370741172
A15: 28 | B15: 6100 | D15: 6300 | F15: 6300 | H15: 5500 | J15: 6200 | L15: 5900 | N15: 6100 | P15: 5800 | R15: 4900 | T15: 4400 | V15: 4500 | X15: 3900 | Z15: 3600 | AA15: 3300 | AB15: 1.753691592
A16: 30 | B16: 2450 | D16: 2500 | F16: 2300 | H16: 2250 | J16: 2050 | L16: 2050 | N16: 2250 | P16: 2500 | R16: 2100 | T16: 2100 | V16: 2500 | X16: 2100 | Z16: 1950 | AA16: 1750 | AB16: 1.978837453
A17: 31 | B17: 4750 | D17: 4700 | F17: 4400 | H17: 4300 | J17: 4800 | L17: 4600 | N17: 5200 | P17: 5000 | R17: 3750 | T17: 3750 | V17: 2500 | X17: 4100 | Z17: 2350 | AA17: 3250 | AB17: 6.939225348
A18: 32 | B18: 2550 | D18: 2700 | F18: 2750 | H18: 2500 | J18: 2650 | L18: 2450 | N18: 2750 | P18: 2650 | R18: 2400 | T18: 2400 | V18: 2000 | X18: 3200 | Z18: 2500 | AA18: 2850 | AB18: 6.569565882
A19: 33 | B19: 2550 | D19: 2350 | F19: 2350 | H19: 2300 | J19: 2450 | L19: 2300 | N19: 2500 | P19: 2450 | R19: 1750 | T19: 1750 | V19: 2450 | X19: 2150 | Z19: 2000 | AA19: 2000 | AB19: 7.182246055
A20: 34 | B20: 2600 | D20: 2400 | F20: 2600 | H20: 2800 | J20: 2500 | L20: 2300 | N20: 2400 | P20: 2900 | R20: 2900 | T20: 2200 | V20: 2800 | X20: 2250 | Z20: 2150 | AA20: 1650 | AB20: 3.255314596
A21: 35 | B21: 4200 | D21: 4100 | F21: 3950 | H21: 3450 | J21: 3900 | L21: 3600 | N21: 3800 | P21: 3900 | R21: 4250 | T21: 3350 | V21: 3700 | X21: 3300 | Z21: 3100 | AA21: 2550 | AB21: 2.167998467
A22: 36 | D22: 510 | G22: 455 | H22: 510 | J22: 590 | L22: 600 | N22: 680 | P22: 790 | R22: 850 | T22: 470 | V22: 700 | X22: 510 | Z22: 430 | AB22: 8.953785592
A23: 39 | D23: 780 | G23: 710 | H23: 730 | J23: 720 | L23: 750 | N23: 820 | P23: 840 | R23: 1150 | T23: 495 | V23: 700 | X23: 660 | Z23: 640 | AB23: 0.554251665
A24: 42 | B24: 2250 | D24: 2100 | F24: 2050 | H24: 1900 | J24: 2050 | L24: 2100 | N24: 2250 | P24: 2000 | R24: 2250 | T24: 1400 | V24: 2100 | X24: 1850 | Z24: 1700 | AB24: 13.19773667
A25: 43 | B25: 1850 | D25: 2000 | F25: 1850 | H25: 1750 | J25: 1650 | L25: 1600 | N25: 1800 | P25: 1700 | R25: 1650 | T25: 1650 | V25: 1550 | X25: 1550 | Z25: 1400 | AB25: 2.290046096
A26: 44 | B26: 1350 | D26: 1400 | F26: 1400 | H26: 1300 | J26: 1250 | L26: 1100 | N26: 1200 | P26: 1400 | R26: 1350 | T26: 1250 | V26: 1150 | X26: 1150 | Z26: 960 | AA26: 800 | AB26: 15.69006262
A27: 46 | B27: 2150 | D27: 2000 | F27: 1950 | H27: 1950 | J27: 2100 | L27: 2000 | N27: 2150 | P27: 1950 | R27: 1850 | T27: 1450 | V27: 2600 | X27: 2250 | Z27: 1650 | AB27: 4.383350457
A28: 47 | B28: 3650 | D28: 3850 | F28: 3800 | H28: 3600 | J28: 3450 | L28: 3700 | N28: 4000 | P28: 3700 | R28: 3950 | T28: 3650 | V28: 3450 | X28: 3500 | Z28: 2750 | AB28: 8.450985653
A29: 50 | B29: 650 | D29: 710 | F29: 640 | H29: 640 | J29: 710 | L29: 600 | N29: 690 | P29: 780 | R29: 670 | T29: 620 | V29: 690 | X29: 590 | Z29: 550 | AA29: 560 | AB29: 9.386308596
A30: 51 | B30: 1350 | D30: 1250 | F30: 1250 | H30: 1200 | J30: 1100 | L30: 1100 | N30: 1200 | P30: 1250 | R30: 1400 | T30: 1250 | V30: 1150 | X30: 810 | Z30: 950 | AB30: 1.184391834
A31: 52 | B31: 2300 | D31: 2200 | F31: 2300 | H31: 2400 | J31: 2200 | L31: 2050 | N31: 2200 | P31: 2100 | R31: 2150 | T31: 2100 | V31: 1850 | X31: 1600 | Z31: 1600 | AB31: 0.377642439
A32: 53 | B32: 1450 | D32: 1350 | F32: 1150 | H32: 1250 | J32: 1200 | L32: 1100 | N32: 1100 | P32: 1200 | R32: 1200 | T32: 1250 | V32: 1000 | X32: 930 | Z32: 1100 | AA32: 950 | AB32: 1.441231862
A33: 55 | B33: 1550 | D33: 1450 | F33: 1500 | H33: 1350 | J33: 1250 | L33: 1200 | N33: 1300 | P33: 1400 | R33: 1600 | T33: 1300 | V33: 1250 | X33: 1800 | Z33: 1200 | AA33: 1300 | AB33: 0.6083760522
A34: 57 | B34: 2500 | D34: 2300 | F34: 2400 | H34: 2650 | J34: 2750 | L34: 2550 | N34: 2850 | P34: 2550 | R34: 2250 | T34: 2350 | V34: 2350 | X34: 2300 | Z34: 2250 | AA34: 1450 | AB34: 1.734344148
A35: 58 | B35: 1200 | D35: 1200 | F35: 1100 | H35: 1050 | J35: 1150 | L35: 1200 | N35: 1300 | P35: 1200 | R35: 1150 | T35: 890 | V35: 890 | X35: 1000 | Z35: 910 | AA35: 795 | AB35: 2.886227695
A36: 59 | B36: 970 | D36: 940 | F36: 930 | H36: 910 | J36: 980 | L36: 890 | N36: 1000 | P36: 1050 | R36: 970 | T36: 850 | V36: 950 | X36: 880 | Z36: 770 | AA36: 795 | AB36: 13.51886567
A37: 60 | B37: 2750 | D37: 3050 | F37: 3000 | H37: 2900 | J37: 2750 | L37: 2800 | N37: 2900 | P37: 2900 | R37: 2600 | T37: 2500 | V37: 2500 | X37: 2350 | Z37: 2350 | AA37: 1950 | AB37: 8.1064704
A38: 61 | B38: 1200 | D38: 1250 | F38: 1200 | H38: 1250 | J38: 1300 | L38: 1250 | N38: 1400 | P38: 1350 | R38: 1300 | T38: 1000 | V38: 1000 | X38: 920 | Z38: 860 | AA38: 790 | AB38: 14.94398625
A39: 65 | B39: 3250 | D39: 3350 | F39: 3200 | H39: 3100 | J39: 3500 | L39: 3250 | N39: 3400 | P39: 3300 | R39: 2950 | T39: 2450 | V39: 2450 | X39: 2850 | Z39: 2650 | AB39: 0.7633881782
A40: 67 | B40: 8600 | D40: 8900 | F40: 8800 | H40: 8900 | J40: 9800 | L40: 9800 | N40: 11000 | P40: 10000 | R40: 8600 | T40: 9000 | V40: 7000 | X40: 7300 | Z40: 7400 | AB40: 0.2125179242
A41: 68 | B41: 7600 | D41: 7800 | F41: 7500 | H41: 7400 | J41: 7700 | L41: 7300 | N41: 7600 | P41: 7500 | R41: 6400 | T41: 5400 | V41: 5700 | X41: 6100 | Z41: 5500 | AA41: 4400 | AB41: 1.286339984
A42: 69 | B42: 4000 | D42: 4150 | F42: 4100 | H42: 3900 | J42: 4600 | L42: 4450 | N42: 4800 | P42: 4700 | R42: 4050 | T42: 3200 | V42: 3250 | X42: 2750 | Z42: 3000 | AB42: 0.5118095739
A43: 72 | B43: 8300 | D43: 8300 | F43: 8500 | H43: 8400 | J43: 9000 | L43: 9400 | N43: 9700 | P43: 9000 | R43: 7900 | T43: 7100 | V43: 7600 | X43: 8100 | Z43: 7900 | AB43: 0.06587483739
A44: 73 | B44: 9400 | D44: 9000 | F44: 8600 | H44: 8800 | J44: 9400 | L44: 9100 | N44: 9500 | P44: 9400 | R44: 8300 | T44: 8200 | V44: 6600 | X44: 6100 | Z44: 7800 | AB44: 0.5005161287
A45: 74 | B45: 8900 | D45: 8900 | F45: 8400 | H45: 7600 | J45: 9100 | L45: 8600 | N45: 9000 | P45: 8400 | R45: 7800 | T45: 8300 | V45: 7700 | X45: 6300 | Z45: 7800 | AA45: 5900 | AB45: 0.9863279527
A46: 76 | B46: 7600 | D46: 8000 | F46: 8100 | H46: 7200 | J46: 8000 | L46: 7400 | N46: 8400 | P46: 7800 | R46: 6800 | T46: 7100 | V46: 6200 | X46: 5400 | Z46: 5600 | AB46: 0.9404229221
A47: 80 | B47: 3000 | D47: 3050 | F47: 3050 | H47: 3250 | J47: 3350 | L47: 3200 | N47: 3500 | P47: 3900 | R47: 3550 | T47: 3550 | V47: 2900 | X47: 2700 | Z47: 2500 | AA47: 2700 | AB47: 7.589520712
A48: 81 | B48: 5300 | D48: 5100 | F48: 5200 | H48: 5000 | J48: 5300 | L48: 5200 | N48: 5400 | P48: 4950 | R48: 4350 | T48: 4350 | V48: 4600 | X48: 4350 | Z48: 4300 | AA48: 3700 | AB48: 4.88377122
A49: 82 | B49: 3800 | D49: 4000 | F49: 4050 | H49: 4550 | J49: 5400 | L49: 6400 | N49: 6700 | P49: 6300 | R49: 6200 | T49: 6200 | V49: 6200 | X49: 5700 | Z49: 3700 | AB49: 0.6054756741
A50: 84 | B50: 11800 | D50: 12000 | F50: 11500 | H50: 10700 | J50: 11300 | L50: 10600 | N50: 10900 | P50: 10800 | R50: 9400 | T50: 8700 | V50: 6900 | X50: 8800 | Z50: 7800 | AA50: 6500 | AB50: 3.84500491
A51: 87 | B51: 9400 | D51: 9100 | F51: 8500 | H51: 8000 | J51: 7600 | L51: 7200 | N51: 7400 | P51: 7900 | R51: 6900 | T51: 7000 | V51: 6000 | X51: 6400 | Z51: 4400 | AA51: 5000 | AB51: 1.650777199
A52: 89 | B52: 3500 | D52: 3350 | F52: 3550 | H52: 3450 | J52: 3650 | L52: 3550 | N52: 3650 | P52: 3950 | R52: 3300 | T52: 3550 | V52: 3450 | X52: 2800 | Z52: 2600 | AB52: 2.548676923
A53: 90 | B53: 5400 | D53: 5000 | F53: 4750 | H53: 4650 | J53: 4950 | L53: 4900 | N53: 5500 | P53: 5300 | R53: 4950 | T53: 4500 | V53: 4550 | X53: 3600 | Z53: 4150 | AA53: 3200 | AB53: 2.360117317
A54: 91 | B54: 6100 | D54: 5500 | F54: 5400 | H54: 6100 | J54: 5800 | L54: 5800 | N54: 6400 | P54: 6100 | R54: 5900 | T54: 4500 | V54: 3900 | X54: 4400 | Z54: 4200 | AB54: 2.598473332
A55: 94 | B55: 5600 | D55: 5100 | F55: 4750 | H55: 4950 | J55: 5300 | L55: 4950 | N55: 5500 | P55: 5500 | R55: 5200 | T55: 4450 | V55: 4450 | X55: 4050 | Z55: 3200 | AB55: 3.537126772
A56: 95 | B56: 6400 | F56: 5900 | H56: 5900 | J56: 6200 | L56: 5800 | N56: 5500 | P56: 6100 | R56: 5500 | T56: 6000 | V56: 6000 | X56: 5500 | Z56: 4750 | AB56: 1.386214785
A57: 98 | B57: 6800 | D57: 6600 | F57: 6200 | H57: 6400 | J57: 6200 | L57: 6400 | N57: 6300 | P57: 6500 | R57: 5500 | T57: 4450 | V57: 4450 | X57: 4050 | Z57: 5100 | AA57: 5500 | AB57: 0.9201614935
A58: 99 | B58: 5500 | D58: 5200 | F58: 4800 | H58: 4950 | J58: 4900 | L58: 4900 | N58: 4900 | P58: 5500 | R58: 4700 | T58: 4800 | V58: 4450 | X58: 4050 | Z58: 5100 | AA58: 5500 | AB58: 1.075344798
A59: 106 | B59: 3950 | D59: 3900 | F59: 3650 | H59: 3850 | J59: 3950 | L59: 3750 | N59: 3550 | P59: 3750 | R59: 3800 | T59: 3250 | V59: 3550 | X59: 2950 | Z59: 2450 | AA59: 3050 | AB59: 17.39175409
A60: 108 | D60: 1500 | H60: 1450 | L60: 1550 | P60: 1550 | R60: 1650 | T60: 1200 | V60: 910 | X60: 900 | Z60: 910 | AA60: 830 | AB60: 3.824221418
A61: 109 | D61: 2650 | H61: 2500 | L61: 2250 | P61: 2250 | R61: 2600 | T61: 1500 | V61: 2250 | X61: 2250 | Z61: 2100 | AB61: 0.4132319846
A62: 110 | B62: 790 | D62: 810 | F62: 700 | H62: 620 | J62: 670 | L62: 700 | N62: 650 | P62: 680 | R62: 770 | T62: 620 | V62: 650 | X62: 560 | Z62: 475 | AB62: 4.177631015
A63: 111 | B63: 1050 | D63: 1050 | F63: 1000 | H63: 900 | J63: 910 | L63: 930 | N63: 880 | P63: 940 | R63: 970 | T63: 870 | V63: 800 | X63: 690 | Z63: 700 | AA63: 600 | AB63: 7.356993554
A64: 112 | B64: 860 | D64: 890 | F64: 800 | H64: 730 | J64: 710 | L64: 740 | N64: 770 | P64: 770 | R64: 940 | T64: 620 | V64: 560 | X64: 550 | Z64: 490 | AA64: 430 | AB64: 2.803423489
A65: 113 | B65: 1100 | D65: 1150 | F65: 1000 | H65: 870 | J65: 900 | L65: 960 | N65: 950 | P65: 970 | R65: 1100 | T65: 700 | V65: 720 | X65: 690 | Z65: 620 | AB65: 2.713039894
A66: 114 | B66: 910 | D66: 920 | F66: 730 | H66: 660 | J66: 710 | L66: 770 | N66: 760 | P66: 730 | R66: 830 | T66: 630 | V66: 710 | X66: 570 | Z66: 520 | AA66: 380 | AB66: 2.184882288
A67: 115 | B67: 1600 | D67: 1450 | F67: 1450 | H67: 1450 | J67: 1400 | L67: 1400 | N67: 1500 | P67: 1700 | R67: 1950 | T67: 1350 | V67: 1350 | X67: 1250 | Z67: 1600 | AA67: 1600 | AB67: 2.209129897
A68: 116 | B68: 1150 | D68: 1150 | F68: 1200 | H68: 990 | J68: 1000 | L68: 1050 | N68: 1050 | P68: 1250 | R68: 1400 | T68: 930 | V68: 1100 | X68: 950 | Z68: 680 | AA68: 770 | AB68: 6.812005203
A69: 117 | B69: 4400 | D69: 4050 | F69: 3750 | H69: 3800 | J69: 4050 | L69: 3950 | N69: 4150 | P69: 4250 | R69: 3950 | T69: 3300 | V69: 3300 | X69: 2950 | Z69: 2950 | AA69: 2550 | AB69: 0.1744689996
A70: 118 | B70: 3600 | D70: 3350 | F70: 3100 | H70: 3250 | J70: 3350 | L70: 3350 | N70: 3550 | P70: 3600 | R70: 3500 | T70: 2950 | V70: 2950 | X70: 2650 | Z70: 2550 | AB70: 4.760082963
A71: 119 | B71: 2500 | D71: 2600 | F71: 2650 | H71: 2400 | J71: 2500 | L71: 2350 | N71: 2500 | P71: 2500 | R71: 2150 | T71: 1950 | V71: 1550 | X71: 1950 | Z71: 1850 | AA71: 1650 | AB71: 13.31933642
A72: 121 | B72: 3450 | D72: 3650 | F72: 3400 | H72: 3500 | J72: 3650 | L72: 3650 | N72: 3800 | P72: 3950 | R72: 3750 | T72: 3550 | V72: 3550 | X72: 2800 | Z72: 1800 | AA72: 2500 | AB72: 7.440909308
A73: 122 | D73: 620 | F73: 660 | H73: 560 | J73: 570 | L73: 620 | N73: 650 | P73: 710 | R73: 750 | T73: 540 | V73: 660 | X73: 510 | Z73: 495 | AA73: 445 | AB73: 5.896802681
A74: 124 | B74: 3250 | D74: 3100 | F74: 2950 | H74: 3050 | J74: 3150 | L74: 3000 | N74: 3150 | P74: 3400 | R74: 3200 | T74: 2950 | V74: 2950 | X74: 2650 | Z74: 2650 | AB74: 0.5049083509
A75: 125 | D75: 180 | F75: 195 | H75: 205 | J75: 210 | L75: 215 | N75: 225 | P75: 225 | R75: 265 | T75: 175 | V75: 220 | X75: 185 | Z75: 195 | AA75: 170 | AB75: 1.935656713
A76: 126 | D76: 325 | F76: 345 | H76: 350 | J76: 355 | L76: 390 | N76: 355 | P76: 415 | R76: 480 | T76: 435 | V76: 510 | X76: 470 | Z76: 445 | AA76: 305 | AB76: 0.9990622293
A77: 128 | B77: 280 | D77: 265 | F77: 255 | H77: 285 | J77: 270 | L77: 300 | N77: 325 | P77: 355 | R77: 410 | T77: 385 | V77: 445 | X77: 405 | Z77: 275 | AA77: 315 | AB77: 7.204093112
A78: 129 | B78: 185 | D78: 180 | F78: 170 | H78: 200 | J78: 200 | L78: 230 | N78: 245 | P78: 245 | R78: 260 | T78: 230 | V78: 275 | X78: 255 | Z78: 240 | AB78: 8.084688458
A79: 130 | B79: 2100 | D79: 2000 | F79: 1900 | H79: 1700 | J79: 1750 | L79: 1850 | N79: 2000 | P79: 1950 | R79: 2000 | T79: 1700 | V79: 1650 | X79: 1450 | Z79: 1150 | AB79: 0.1142090874
A80: 131 | B80: 2200 | D80: 2000 | F80: 2100 | H80: 1750 | J80: 1850 | L80: 1900 | N80: 2050 | P80: 2000 | R80: 2000 | T80: 1750 | V80: 1550 | X80: 1350 | Z80: 1400 | AB80: 0.4777060422
A81: 134 | B81: 2600 | D81: 2400 | F81: 2300 | H81: 2300 | J81: 2100 | L81: 2050 | N81: 2200 | P81: 2400 | R81: 2100 | T81: 2400 | V81: 2450 | X81: 2450 | Z81: 2000 | AB81: 0.3482918195
A82: 135 | B82: 4150 | D82: 4150 | F82: 4000 | H82: 4050 | J82: 3700 | L82: 3850 | N82: 4600 | P82: 4200 | R82: 4100 | T82: 4100 | V82: 5100 | X82: 3900 | Z82: 3300 | AB82: 0.06744061362
A83: 136 | B83: 2800 | D83: 2750 | F83: 2600 | H83: 2350 | J83: 2350 | L83: 2350 | N83: 2550 | P83: 2450 | R83: 2750 | T83: 2200 | V83: 2500 | X83: 2550 | Z83: 2250 | AB83: 0.1095737367
A84: 137 | B84: 2500 | D84: 2350 | F84: 2450 | H84: 2050 | J84: 2050 | L84: 2250 | N84: 2450 | P84: 2850 | R84: 3350 | T84: 1050 | V84: 1050 | X84: 1000 | Z84: 1400 | AB84: 0.5790446741
A85: 142 | D85: 1600 | H85: 1300 | L85: 1450 | P85: 1700 | R85: 1950 | T85: 1300 | V85: 1250 | X85: 1200 | Z85: 1300 | AB85: 0.161574946
A86: 144 | B86: 4400 | D86: 4600 | F86: 4900 | H86: 4650 | J86: 4400 | L86: 4050 | N86: 3750 | P86: 4000 | R86: 4200 | T86: 3950 | V86: 3900 | X86: 3200 | Z86: 3150 | AA86: 3150 | AB86: 5.455188701
A87: 149 | B87: 13400 | D87: 12700 | F87: 12000 | H87: 11600 | J87: 11800 | L87: 11000 | N87: 10600 | P87: 11900 | R87: 10400 | T87: 9200 | V87: 10000 | X87: 8900 | Z87: 8500 | AA87: 8100 | AB87: 18.74842124
A88: 159 | B88: 13500 | D88: 12800 | F88: 12200 | H88: 11700 | J88: 11400 | L88: 11800 | N88: 12400 | P88: 11600 | R88: 10700 | T88: 9400 | V88: 8500 | X88: 8500 | Z88: 8700 | AB88: 1.496387454
A89: 161 | B89: 13100 | D89: 12600 | F89: 12300 | H89: 11800 | J89: 11700 | L89: 12200 | N89: 13300 | P89: 12500 | R89: 10900 | T89: 10300 | V89: 9800 | X89: 8200 | Z89: 9650 | AA89: 8700 | AB89: 1.279327086
A90: 163 | B90: 14200 | D90: 13900 | F90: 14000 | H90: 13300 | J90: 12600 | L90: 13000 | N90: 14100 | P90: 13500 | R90: 12200 | T90: 13600 | V90: 13500 | X90: 13200 | Z90: 13100 | AB90: 0.9844094381
A91: 167 | B91: 16900 | D91: 16400 | F91: 16200 | H91: 16100 | J91: 15900 | L91: 16400 | N91: 18000 | P91: 18100 | R91: 15000 | T91: 13900 | V91: 13500 | X91: 14400 | Z91: 12750 | AB91: 0.6202533446
A92: 171 | B92: 14400 | D92: 13400 | F92: 13300 | H92: 14000 | J92: 13400 | L92: 12600 | N92: 12400 | P92: 11600 | R92: 10100 | T92: 9200 | V92: 9400 | X92: 9500 | Z92: 8300 | AB92: 0.3268495932
A93: 172 | B93: 7700 | D93: 7600 | F93: 8000 | H93: 8100 | J93: 7700 | L93: 8000 | N93: 8300 | P93: 8300 | R93: 5800 | T93: 6200 | V93: 6300 | X93: 6800 | Z93: 6100 | AA93: 5200 | AB93: 2.134448261
A94: 173 | B94: 18800 | F94: 20100 | H94: 20300 | J94: 19500 | L94: 18500 | N94: 19400 | P94: 18900 | R94: 13900 | T94: 13100 | V94: 13600 | X94: 13400 | Z94: 12650 | AA94: 12200 | AB94: 1.153505839
A95: 176 | B95: 9300 | D95: 8800 | F95: 8400 | H95: 8900 | J95: 8900 | L95: 8100 | N95: 9100 | P95: 8300 | R95: 7300 | T95: 6700 | V95: 6700 | X95: 5600 | Z95: 5500 | AA95: 5400 | AB95: 1.864134422
A96: 177 | B96: 8500 | D96: 8000 | F96: 8100 | H96: 8100 | J96: 8000 | L96: 7700 | N96: 7400 | P96: 6600 | R96: 5800 | T96: 5800 | V96: 5800 | X96: 6300 | Z96: 5700 | AB96: 0.4403460764
A97: 178 | B97: 11500 | D97: 10400 | F97: 9800 | H97: 10000 | J97: 10000 | L97: 10200 | N97: 10500 | P97: 9500 | R97: 8300 | T97: 8000 | V97: 8000 | X97: 9800 | Z97: 7600 | AB97: 0.7271239295
A98: 179 | B98: 8600 | D98: 7800 | F98: 7600 | H98: 8000 | J98: 8000 | L98: 8300 | N98: 8600 | P98: 8700 | R98: 7600 | T98: 6800 | V98: 6300 | X98: 7000 | Z98: 6200 | AB98: 0.1277101305
A99: 182 | D99: 9500 | F99: 9500 | H99: 9100 | J99: 9600 | L99: 9000 | N99: 9550 | P99: 9900 | R99: 10300 | T99: 8400 | V99: 7500 | X99: 6800 | Z99: 7200 | AA99: 8300 | AB99: 3.608988675
A100: 183 | B100: 5900 | D100: 5700 | F100: 5500 | H100: 5300 | J100: 5600 | L100: 5200 | N100: 5200 | P100: 5500 | R100: 5600 | T100: 4450 | V100: 4300 | X100: 3550 | Z100: 4050 | AA100: 7000 | AB100: 3.878401312
A101: 185 | B101: 9300 | D101: 8200 | F101: 8600 | H101: 7500 | J101: 8000 | L101: 7500 | N101: 8600 | P101: 9200 | R101: 9200 | T101: 6900 | V101: 5000 | X101: 6500 | Z101: 7600 | AA101: 5200 | AB101: 1.451277255
A102: 187 | B102: 5900 | D102: 6000 | F102: 5700 | H102: 6100 | J102: 7200 | L102: 7200 | N102: 7700 | P102: 8400 | R102: 8500 | T102: 5500 | V102: 5800 | X102: 6000 | Z102: 6900 | AB102: 1.870567934
A103: 188 | B103: 6900 | D103: 6600 | F103: 6200 | H103: 5600 | J103: 5800 | L103: 6000 | N103: 6300 | P103: 6100 | R103: 5900 | T103: 5200 | V103: 5200 | X103: 5400 | Z103: 4950 | AB103: 1.596891927
A104: 191 | B104: 8100 | D104: 7600 | F104: 7100 | H104: 6800 | J104: 7000 | L104: 6700 | N104: 6500 | P104: 6800 | R104: 6500 | T104: 5200 | V104: 5100 | X104: 5900 | Z104: 4000 | AA104: 3600 | AB104: 2.708964015
A105: 193 | B105: 4100 | D105: 3200 | F105: 3550 | J105: 3550 | L105: 3300 | N105: 3450 | P105: 3450 | R105: 3550 | T105: 3450 | V105: 3550 | X105: 2900 | Z105: 2650 | AB105: 1.192746278
A106: 196 | B106: 2150 | D106: 1950 | F106: 2050 | H106: 2000 | J106: 2050 | L106: 1950 | N106: 2200 | P106: 1850 | R106: 2100 | T106: 1750 | V106: 1150 | X106: 1450 | Z106: 1500 | AA106: 1300 | AB106: 9.154701098
A107: 200 | B107: 1600 | D107: 1550 | F107: 1650 | H107: 1650 | J107: 1500 | L107: 1250 | N107: 1300 | P107: 1350 | R107: 1550 | T107: 1150 | V107: 830 | X107: 1100 | Z107: 1100 | AA107: 900 | AB107: 13.81286465
A108: 201 | B108: 230 | D108: 235 | F108: 265 | H108: 250 | J108: 235 | L108: 205 | N108: 225 | P108: 250 | R108: 295 | T108: 315 | V108: 255 | X108: 290 | Z108: 260 | AA108: 350 | AB108: 6.037616788
A109: 202 | B109: 35 | F109: 45 | H109: 55 | J109: 55 | L109: 45 | N109: 50 | P109: 55 | R109: 65 | T109: 80 | V109: 85 | X109: 90 | Z109: 90 | AA109: 145 | AB109: 16.97738883
A110: 203 | B110: 200 | D110: 215 | F110: 230 | H110: 210 | J110: 230 | L110: 235 | N110: 200 | P110: 210 | R110: 275 | T110: 240 | V110: 220 | X110: 220 | Z110: 200 | AA110: 215 | AB110: 12.98542494
A111: 206 | B111: 590 | D111: 570 | F111: 610 | H111: 530 | J111: 540 | L111: 500 | N111: 540 | P111: 530 | R111: 730 | T111: 680 | V111: 590 | X111: 570 | Z111: 530 | AA111: 440 | AB111: 1.065607956
A112: 207 | B112: 1100 | D112: 1250 | F112: 1400 | H112: 1200 | J112: 1150 | L112: 1200 | N112: 1400 | P112: 1100 | R112: 1400 | T112: 1250 | V112: 960 | X112: 810 | Z112: 860 | AB112: 4.597128191
A113: 208 | D113: 1100 | F113: 1100 | H113: 1000 | J113: 1050 | L113: 950 | N113: 1100 | P113: 780 | R113: 1150 | T113: 900 | V113: 770 | X113: 820 | Z113: 570 | AA113: 770 | AB113: 5.067072614
A114: 209 | B114: 1250 | D114: 1400 | F114: 1350 | H114: 1350 | J114: 1300 | L114: 1200 | N114: 1250 | P114: 1050 | R114: 1350 | T114: 1050 | V114: 1250 | X114: 1050 | Z114: 840 | AA114: 1100 | AB114: 8.057420998
A115: 210 | D115: 305 | F115: 320 | H115: 335 | J115: 375 | L115: 395 | N115: 465 | P115: 410 | R115: 520 | T115: 440 | V115: 350 | X115: 400 | Z115: 290 | AA115: 295 | AB115: 16.49331443
A116: 212 | B116: 3000 | D116: 2950 | F116: 3100 | H116: 3100 | J116: 2900 | L116: 2700 | N116: 2650 | P116: 2350 | R116: 1900 | T116: 1700 | V116: 1600 | X116: 1600 | Z116: 1600 | AB116: 2.552406175
A117: 215 | B117: 4050 | D117: 3800 | F117: 4050 | H117: 4450 | J117: 4650 | L117: 4450 | N117: 4700 | P117: 4750 | R117: 4250 | T117: 3400 | V117: 2900 | X117: 3250 | Z117: 2500 | AA117: 2750 | AB117: 2.885786463
A118: 216 | B118: 6000 | F118: 6100 | H118: 5600 | J118: 5300 | L118: 5000 | N118: 5000 | P118: 5500 | R118: 5400 | T118: 3900 | V118: 3450 | X118: 2700 | Z118: 3150 | AA118: 3800 | AB118: 1.146303395
A119: 217 | B119: 3800 | D119: 3700 | F119: 4000 | H119: 4050 | J119: 3500 | L119: 3100 | N119: 3250 | P119: 3350 | R119: 3400 | T119: 2600 | V119: 2150 | X119: 1750 | Z119: 2100 | AA119: 2350 | AB119: 1.072064377
A120: 218 | B120: 3300 | D120: 3150 | F120: 3850 | H120: 3300 | J120: 3050 | L120: 2900 | N120: 2950 | P120: 3000 | R120: 3000 | T120: 2300 | V120: 1950 | X120: 2050 | Z120: 1850 | AA120: 2200 | AB120: 9.29058208
A121: 219 | B121: 4550 | D121: 4700 | F121: 5600 | H121: 5200 | J121: 5000 | L121: 4800 | N121: 5200 | P121: 5400 | R121: 4850 | T121: 3500 | V121: 3050 | X121: 2800 | Z121: 2600 | AA121: 3150 | AB121: 1.274751458
A122: 220 | B122: 1000 | D122: 980 | F122: 1050 | H122: 1050 | J122: 1250 | L122: 1150 | N122: 1300 | P122: 1200 | R122: 1300 | T122: 1200 | V122: 940 | X122: 1000 | Z122: 840 | AB122: 0.3157504979
A123: 223 | B123: 750 | D123: 830 | F123: 900 | H123: 860 | J123: 1000 | L123: 900 | N123: 960 | P123: 910 | R123: 1050 | T123: 950 | V123: 730 | X123: 730 | Z123: 680 | AA123: 880 | AB123: 15.86105904
A124: 225 | B124: 2400 | D124: 2400 | F124: 2550 | H124: 2700 | J124: 2600 | L124: 2650 | N124: 2750 | P124: 2850 | R124: 2850 | T124: 2900 | V124: 2650 | X124: 2100 | Z124: 2200 | AB124: 1.994940861
A125: 226 | D125: 9100 | F125: 8900 | H125: 8500 | J125: 9000 | L125: 8700 | N125: 9300 | P125: 8200 | R125: 7900 | T125: 7400 | V125: 7900 | X125: 5200 | Z125: 7800 | AB125: 1.352581593
A126: 232 | B126: 1700 | D126: 1500 | F126: 1500 | H126: 1350 | J126: 1500 | L126: 1650 | N126: 1850 | P126: 1550 | R126: 1650 | T126: 1600 | V126: 1050 | X126: 1500 | Z126: 1300 | AB126: 0.114963879
A127: 233 | B127: 1300 | D127: 1150 | F127: 1200 | H127: 1400 | J127: 1500 | L127: 1400 | N127: 1700 | P127: 1350 | R127: 1850 | T127: 1850 | V127: 1500 | X127: 1450 | Z127: 1200 | AB127: 0.1457334499
A128: 234 | B128: 1150 | D128: 1050 | F128: 1050 | H128: 1100 | J128: 1150 | L128: 1200 | N128: 1450 | P128: 1250 | R128: 1400 | T128: 1150 | V128: 970 | X128: 1050 | Z128: 1000 | AB128: 0.5008047813
A129: 235 | B129: 3350 | D129: 2700 | F129: 3150 | H129: 3250 | J129: 3450 | L129: 3400 | N129: 3400 | P129: 3300 | R129: 3350 | T129: 3150 | V129: 3150 | X129: 2850 | Z129: 2800 | AA129: 2500 | AB129: 13.71351291
A130: 236 | B130: 1800 | D130: 1600 | F130: 1500 | H130: 1600 | J130: 1700 | L130: 1700 | N130: 1600 | P130: 1700 | R130: 1600 | T130: 1700 | V130: 1550 | X130: 1300 | Z130: 1300 | AB130: 0.3586438386
A131: 237 | B131: 1750 | D131: 1500 | F131: 1400 | H131: 1300 | J131: 1350 | L131: 1450 | N131: 1400 | P131: 1450 | R131: 1200 | T131: 1450 | V131: 1350 | X131: 1200 | Z131: 1400 | AA131: 1250 | AB131: 0.2377056088
A132: 238 | B132: 1850 | D132: 1600 | F132: 1650 | H132: 1700 | J132: 1850 | L132: 2150 | N132: 2400 | P132: 1950 | R132: 2050 | T132: 2150 | V132: 1750 | X132: 1500 | Z132: 1300 | AA132: 1550 | AB132: 1.783419932
A133: 239 | B133: 3050 | D133: 3050 | F133: 2900 | H133: 2900 | J133: 2900 | L133: 2950 | N133: 2900 | P133: 2950 | R133: 3050 | T133: 3150 | V133: 2850 | X133: 2450 | Z133: 2700 | AB133: 0.5938601963
A134: 240 | B134: 7500 | D134: 7800 | F134: 7300 | H134: 6700 | J134: 6900 | L134: 6900 | N134: 7400 | P134: 7500 | R134: 7500 | T134: 6700 | V134: 6700 | X134: 5600 | Z134: 6200 | AA134: 4150 | AB134: 5.519105105
A135: 244 | D135: 9300 | F135: 8800 | H135: 8600 | J135: 8700 | L135: 9200 | N135: 9500 | P135: 9100 | R135: 10000 | T135: 10000 | V135: 7800 | X135: 9500 | Z135: 7100 | AB135: 0.2169356758
A136: 245 | B136: 15100 | D136: 13700 | F136: 13400 | H136: 15400 | J136: 14700 | L136: 15300 | N136: 15400 | P136: 15400 | R136: 15400 | T136: 15400 | V136: 15400 | X136: 17600 | Z136: 15600 | AB136: 0.148719858
A137: 246 | B137: 21100 | D137: 22400 | F137: 22900 | H137: 22500 | J137: 23000 | L137: 23900 | N137: 26000 | P137: 24600 | R137: 24100 | T137: 24100 | V137: 21200 | X137: 26000 | Z137: 21500 | AB137: 0.08585062477
A138: 248 | B138: 11200 | D138: 10400 | F138: 9800 | H138: 9300 | J138: 9800 | L138: 9300 | N138: 9800 | P138: 9700 | R138: 12100 | T138: 7200 | V138: 6500 | X138: 6400 | Z138: 4900 | AA138: 5100 | AB138: 3.506958141
A139: 250 | B139: 23200 | D139: 22900 | F139: 23300 | H139: 22200 | J139: 22500 | L139: 22900 | N139: 24000 | P139: 22400 | R139: 19800 | T139: 19800 | V139: 19800 | X139: 20800 | Z139: 21500 | AB139: 0.7963903012
A140: 251 | B140: 19700 | D140: 18600 | F140: 17800 | H140: 19100 | J140: 20100 | L140: 19800 | N140: 21500 | P140: 22400 | R140: 22400 | T140: 22400 | V140: 19100 | X140: 19700 | Z140: 14000 | AB140: 0.219471101
A141: 252 | B141: 15000 | D141: 16000 | F141: 16100 | H141: 15800 | J141: 15800 | L141: 15900 | N141: 17100 | P141: 16300 | R141: 16300 | T141: 16300 | V141: 16300 | X141: 17100 | Z141: 14000 | AB141: 0.2761890707
A142: 253 | B142: 12700 | D142: 12800 | F142: 15100 | H142: 14400 | J142: 14500 | L142: 15100 | N142: 16500 | P142: 16700 | R142: 17300 | T142: 17300 | V142: 16100 | X142: 17200 | Z142: 17500 | AB142: 0.5414087373
A143: 254 | B143: 11200 | D143: 10200 | F143: 11000 | H143: 12400 | J143: 13100 | L143: 12900 | N143: 13100 | P143: 12100 | R143: 13100 | T143: 12300 | V143: 13900 | X143: 20500 | Z143: 14200 | AB143: 0.04168744307
A144: 255 | B144: 13200 | D144: 11500 | F144: 11900 | H144: 15300 | J144: 15600 | L144: 16500 | N144: 17700 | P144: 17100 | R144: 17100 | T144: 17100 | V144: 17100 | X144: 17300 | Z144: 18400 | AB144: 0.04760008765
A145: 256 | B145: 14600 | D145: 16500 | F145: 15800 | H145: 16300 | J145: 17000 | L145: 19000 | N145: 21000 | P145: 19200 | R145: 16900 | T145: 16900 | V145: 18000 | X145: 17100 | Z145: 16400 | AB145: 0.4431366498
A146: 257 | B146: 12100 | D146: 12200 | F146: 13700 | H146: 15100 | J146: 15600 | L146: 14900 | N146: 15000 | P146: 16000 | R146: 13100 | T146: 13000 | V146: 15200 | X146: 11700 | Z146: 11000 | AB146: 0.3411852546
A147: 259 | B147: 10900 | D147: 10200 | F147: 9600 | H147: 9900 | J147: 10100 | L147: 9700 | N147: 9100 | P147: 9800 | R147: 9300 | T147: 8100 | V147: 7100 | X147: 6600 | Z147: 6000 | AB147: 0.7178395645
A148: 261 | B148: 10700 | D148: 9700 | F148: 9100 | H148: 8800 | J148: 9100 | L148: 8600 | N148: 8300 | P148: 9600 | R148: 7100 | T148: 5900 | V148: 5300 | X148: 4700 | Z148: 4750 | AB148: 0.6323249958
A149: 263 | B149: 5200 | D149: 5000 | F149: 4600 | H149: 3700 | J149: 4050 | L149: 4100 | N149: 4450 | P149: 4400 | R149: 5300 | T149: 4150 | V149: 4600 | X149: 3600 | Z149: 3500 | AB149: 1.174698795
A150: 265 | B150: 18100 | D150: 17100 | F150: 17600 | H150: 15900 | J150: 16400 | L150: 15400 | N150: 16300 | P150: 15800 | R150: 15700 | T150: 14500 | V150: 14000 | X150: 10900 | Z150: 12000 | AA150: 10500 | AB150: 1.040198277
A151: 267 | D151: 12800 | F151: 12600 | H151: 12000 | J151: 13000 | L151: 12400 | N151: 12800 | P151: 11300 | R151: 12600 | T151: 11400 | V151: 11100 | X151: 10000 | Z151: 9600 | AB151: 3.547459462
A152: 269 | C152: 2650 | E152: 2450 | G152: 2350 | I152: 2400 | K152: 2250 | N152: 2500 | P152: 2700 | R152: 2750 | T152: 2100 | V152: 2400 | X152: 2050 | Z152: 1900 | AA152: 1700 | AB152: 10.11207754
A153: 271 | C153: 4750 | E153: 4350 | G153: 4500 | I153: 4100 | K153: 3750 | N153: 4250 | P153: 3800 | R153: 4200 | T153: 3450 | V153: 3700 | X153: 3450 | Z153: 2850 | AA153: 2800 | AB153: 5.057203317
A154: 272 | D154: 2800 | E154: 2600 | G154: 2600 | I154: 2750 | K154: 2750 | N154: 2800 | P154: 3000 | R154: 2950 | T154: 2000 | V154: 2550 | X154: 2050 | Z154: 1900 | AA154: 1800 | AB154: 4.026143118
A155: 275 | E155: 8400 | G155: 7700 | I155: 7100 | K155: 7000 | N155: 7300 | P155: 8000 | R155: 7100 | T155: 7100 | V155: 7200 | X155: 7500 | Z155: 6100 | AA155: 5800 | AB155: 7.153185185
A156: 276 | C156: 5700 | E156: 5300 | G156: 5100 | I156: 4800 | K156: 4550 | N156: 5000 | P156: 4750 | R156: 4650 | T156: 3700 | V156: 3650 | X156: 4200 | Z156: 3800 | AA156: 3350 | AB156: 1.635636769
A157: 277 | E157: 13000 | G157: 12100 | I157: 12000 | K157: 11800 | N157: 13200 | P157: 11800 | R157: 12500 | T157: 12600 | V157: 11000 | X157: 10000 | Z157: 10800 | AB157: 2.011786175
A158: 278 | C158: 16500 | E158: 15100 | G158: 14500 | I158: 15100 | K158: 14300 | N158: 16000 | P158: 14900 | R158: 15000 | T158: 14500 | V158: 12900 | X158: 9500 | Z158: 12000 | AA158: 11400 | AB158: 1.692851774
A159: 279 | C159: 31000 | E159: 29000 | G159: 28500 | I159: 30000 | K159: 31000 | N159: 31000 | P159: 28000 | R159: 28400 | T159: 26300 | V159: 25300 | X159: 24500 | Z159: 15300 | AA159: 16100 | AB159: 3.681671548
A160: 281 | C160: 6200 | E160: 5500 | G160: 5300 | I160: 5600 | K160: 5400 | N160: 5500 | P160: 5600 | R160: 5100 | T160: 4950 | V160: 4900 | X160: 4600 | Z160: 4100 | AB160: 8.22567981
A161: 287 | C161: 1450 | E161: 1350 | G161: 1250 | I161: 1300 | K161: 1400 | N161: 1550 | P161: 1850 | R161: 1550 | T161: 1550 | V161: 1400 | X161: 1300 | Z161: 1250 | AB161: 7.145874808
A162: 290 | C162: 4150 | E162: 3750 | G162: 3750 | I162: 3950 | K162: 4150 | N162: 4250 | P162: 4450 | R162: 4100 | T162: 3400 | V162: 3750 | X162: 3000 | Z162: 2750 | AA162: 2400 | AB162: 0.5181283845
A163: 291 | C163: 7500 | E163: 7100 | G163: 7100 | I163: 7000 | K163: 7300 | N163: 7600 | P163: 7300 | R163: 6500 | T163: 6500 | V163: 6700 | X163: 5800 | Z163: 5600 | AA163: 5300 | AB163: 1.148446542
A164: 294 | C164: 10100 | E164: 9700 | G164: 9300 | I164: 9700 | K164: 10000 | N164: 10400 | P164: 10300 | R164: 9200 | T164: 9000 | V164: 8400 | X164: 8400 | Z164: 7400 | AB164: 0.814596133
A165: 297 | C165: 4900 | E165: 4900 | G165: 4000 | I165: 4750 | K165: 5100 | N165: 4650 | P165: 5200 | R165: 4550 | T165: 2850 | V165: 2450 | X165: 2400 | Z165: 1950 | AB165: 0.6230612313
A166: 298 | C166: 2700 | E166: 2600 | G166: 2550 | I166: 2750 | K166: 2650 | N166: 2750 | P166: 3100 | R166: 2850 | T166: 2350 | V166: 2150 | X166: 2650 | Z166: 2300 | AA166: 2350 | AB166: 3.505616272
A167: 300 | C167: 2000 | E167: 2000 | G167: 1850 | I167: 1950 | K167: 2100 | N167: 2150 | P167: 2600 | R167: 2100 | T167: 1950 | V167: 1700 | X167: 1850 | Z167: 1750 | AB167: 2.021962481
A168: 302 | C168: 7100 | E168: 6600 | G168: 6300 | I168: 6500 | K168: 6500 | N168: 6300 | P168: 6600 | R168: 6200 | T168: 5900 | V168: 5700 | X168: 4100 | Z168: 4500 | AB168: 0.9484391492
A169: 303 | C169: 6600 | E169: 6000 | G169: 6000 | I169: 6300 | K169: 5900 | N169: 6500 | P169: 6300 | R169: 6300 | T169: 6200 | V169: 5900 | X169: 5600 | Z169: 4250 | AB169: 0.1359769922
A170: 304 | C170: 25500 | E170: 23900 | G170: 20500 | I170: 24000 | K170: 24500 | N170: 25200 | P170: 25000 | R170: 22800 | T170: 21800 | V170: 19300 | X170: 18300 | Z170: 15200 | AA170: 14900 | AB170: 6.009458756
A171: 309 | C171: 25000 | E171: 25600 | G171: 23600 | I171: 21900 | K171: 24300 | N171: 24300 | P171: 22400 | R171: 22700 | T171: 20600 | V171: 18600 | X171: 19700 | Z171: 17500 | AB171: 0.5599242696
A172: 311 | C172: 23900 | E172: 22200 | G172: 21300 | I172: 22300 | K172: 24500 | N172: 26300 | P172: 22700 | R172: 23900 | T172: 19700 | V172: 16900 | X172: 18100 | Z172: 18400 | AB172: 0.9740746464
A173: 313 | C173: 26500 | E173: 25000 | G173: 26000 | I173: 25000 | K173: 24300 | N173: 24300 | P173: 24400 | R173: 22600 | T173: 21100 | V173: 20100 | X173: 21100 | Z173: 19600 | AA173: 16200 | AB173: 2.319314061
A174: 315 | C174: 27000 | E174: 25500 | G174: 24500 | I174: 25500 | K174: 25500 | N174: 25500 | P174: 26000 | R174: 26200 | T174: 26400 | V174: 22000 | X174: 20600 | Z174: 21300 | AB174: 0.2511100678
A175: 319 | C175: 20900 | E175: 20300 | G175: 21200 | I175: 21000 | K175: 25000 | N175: 25000 | P175: 19800 | R175: 22600 | T175: 18700 | V175: 17600 | X175: 14600 | Z175: 13800 | AA175: 12500 | AB175: 3.375916176
A176: 327 | B176: 910 | D176: 890 | F176: 950 | H176: 930 | J176: 940 | L176: 840 | N176: 900 | P176: 940 | R176: 1000 | T176: 1000 | V176: 940 | X176: 1050 | Z176: 790 | AA176: 700 | AB176: 7.142229325
A177: 335 | B177: 1000 | D177: 1050 | F177: 1100 | H177: 930 | J177: 880 | L177: 950 | N177: 850 | P177: 930 | R177: 780 | T177: 690 | V177: 620 | X177: 700 | Z177: 650 | AB177: 8.76987004
A178: 337 | B178: 1750 | D178: 1650 | F178: 1650 | H178: 1450 | J178: 1550 | L178: 1450 | N178: 1350 | P178: 1350 | R178: 1250 | T178: 1550 | V178: 1400 | X178: 1450 | Z178: 1300 | AB178: 10.20299826
A179: 338 | B179: 355 | D179: 365 | F179: 385 | H179: 355 | J179: 395 | L179: 370 | N179: 410 | P179: 350 | R179: 420 | T179: 305 | V179: 340 | X179: 305 | Z179: 380 | AA179: 325 | AB179: 6.566243447
A180: 342 | B180: 170 | D180: 170 | F180: 170 | H180: 180 | J180: 200 | L180: 165 | N180: 165 | P180: 165 | R180: 205 | T180: 170 | V180: 160 | X180: 190 | Z180: 175 | AA180: 150 | AB180: 5.162219641
A181: 343 | B181: 270 | D181: 220 | F181: 195 | H181: 205 | J181: 190 | L181: 240 | N181: 300 | P181: 230 | R181: 265 | T181: 210 | V181: 205 | X181: 290 | Z181: 325 | AA181: 275 | AB181: 6.961476441
A182: 346 | B182: 1050 | D182: 950 | F182: 1000 | H182: 1000 | J182: 1150 | L182: 1100 | N182: 1100 | P182: 1200 | R182: 1100 | T182: 1250 | V182: 1100 | X182: 1050 | Z182: 1150 | AA182: 900 | AB182: 0.3332349178
A183: 349 | B183: 720 | D183: 700 | F183: 680 | H183: 620 | J183: 690 | L183: 750 | N183: 820 | P183: 820 | R183: 670 | T183: 760 | V183: 690 | X183: 790 | Z183: 740 | AA183: 580 | AB183: 6.833975102
A184: 353 | B184: 1100 | D184: 1200 | F184: 1150 | H184: 1135 | J184: 1150 | L184: 1050 | N184: 1150 | P184: 1200 | R184: 1400 | T184: 1400 | V184: 1200 | X184: 1250 | Z184: 1150 | AB184: 0.5013872919
A185: 355 | B185: 1650 | D185: 1700 | F185: 1700 | H185: 1600 | J185: 1450 | L185: 1500 | N185: 1600 | P185: 1600 | R185: 1800 | T185: 1900 | V185: 1900 | X185: 1900 | Z185: 1650 | AB185: 0.2028491009
A186: 356 | B186: 1500 | D186: 1400 | F186: 1300 | H186: 1250 | J186: 1150 | L186: 1200 | N186: 1300 | P186: 1500 | R186: 1400 | T186: 1550 | V186: 1400 | X186: 1550 | Z186: 1250 | AB186: 0.07000025024
A187: 362 | B187: 960 | D187: 1000 | F187: 1050 | H187: 970 | J187: 1150 | L187: 1000 | N187: 1100 | P187: 1150 | R187: 1150 | T187: 1300 | V187: 1200 | X187: 1300 | Z187: 1250 | AB187: 0.3321619256
A188: 363 | B188: 1750 | D188: 1750 | F188: 1600 | H188: 1450 | J188: 1500 | L188: 1350 | N188: 1400 | P188: 1600 | R188: 1350 | T188: 1250 | V188: 1100 | X188: 1350 | Z188: 1300 | AA188: 1100 | AB188: 2.111286864
A189: 365 | B189: 1200 | D189: 1050 | F189: 1100 | H189: 1100 | J189: 1150 | L189: 940 | N189: 1000 | P189: 1150 | R189: 1150 | T189: 1050 | V189: 1200 | X189: 1150 | Z189: 990 | AA189: 1000 | AB189: 6.110224279
A190: 369 | B190: 1250 | D190: 1200 | F190: 1150 | H190: 1200 | J190: 1300 | L190: 1200 | N190: 1250 | P190: 1150 | R190: 1300 | T190: 1000 | V190: 1100 | X190: 1100 | Z190: 1150 | AA190: 950 | AB190: 12.50371888
A191: 376 | B191: 2300 | D191: 2100 | F191: 1900 | H191: 1950 | J191: 1850 | L191: 1800 | N191: 1850 | P191: 2000 | R191: 1750 | T191: 2200 | V191: 1850 | X191: 2000 | Z191: 1400 | AA191: 1450 | AB191: 5.099956318
A192: 377 | B192: 650 | D192: 700 | F192: 650 | H192: 680 | J192: 740 | L192: 690 | N192: 700 | P192: 690 | R192: 660 | T192: 570 | V192: 680 | X192: 720 | Z192: 810 | AB192: 0.7263904655
A193: 378 | B193: 1100 | D193: 1250 | F193: 1300 | H193: 1100 | J193: 1200 | L193: 1250 | N193: 1150 | P193: 1200 | R193: 990 | T193: 1150 | V193: 1050 | X193: 1100 | Z193: 810 | AA193: 900 | AB193: 1.242413168
A194: 379 | B194: 2950 | D194: 2850 | F194: 2850 | H194: 2600 | J194: 2600 | L194: 2500 | N194: 2500 | P194: 2450 | R194: 2500 | T194: 2800 | V194: 2500 | X194: 3050 | Z194: 2500 | AA194: 2550 | AB194: 1.018169219
A195: 380 | B195: 4450 | D195: 4150 | F195: 4400 | H195: 4050 | J195: 4050 | L195: 4100 | N195: 4200 | P195: 4350 | R195: 3650 | T195: 3900 | V195: 3950 | X195: 3950 | Z195: 3350 | AB195: 0.4062971354
A196: 381 | B196: 1500 | D196: 1550 | F196: 1450 | H196: 1350 | J196: 1250 | L196: 1350 | N196: 1450 | P196: 1550 | R196: 1600 | T196: 1600 | V196: 1500 | X196: 1650 | Z196: 1200 | AB196: 0.5008479889
A197: 382 | B197: 4850 | D197: 5200 | F197: 5500 | H197: 4950 | J197: 4950 | L197: 4800 | N197: 4600 | P197: 4300 | R197: 4500 | T197: 4250 | V197: 4700 | X197: 4650 | Z197: 4300 | AB197: 0.3782326405
A198: 383 | B198: 3250 | D198: 3450 | F198: 3450 | H198: 3500 | J198: 3700 | L198: 4050 | N198: 4300 | P198: 4600 | R198: 5100 | T198: 4700 | V198: 4700 | X198: 4350 | Z198: 3600 | AB198: 0.5643097481
A199: 384 | B199: 5200 | D199: 4900 | F199: 5200 | H199: 5200 | J199: 5300 | L199: 4900 | N199: 5100 | P199: 5200 | R199: 4750 | T199: 4700 | V199: 5200 | X199: 5100 | Z199: 5600 | AB199: 0.1267098993
A200: 385 | B200: 3900 | D200: 4450 | F200: 4650 | H200: 4350 | J200: 4200 | L200: 4200 | N200: 4100 | P200: 3600 | R200: 4050 | T200: 4450 | V200: 4000 | X200: 4050 | Z200: 3650 | AA200: 3800 | AB200: 0.4375806908
... 2050 more rows

Sheet VC History (hidden)
A1: Site | B1: Year | C1: Site&Year | D1: CMethod | E1: Sequence Number | F1: Description
A2: 1050 | B2: 1993 | C2: =A2&B2 -> 10501993 | D2: Manual | E2: 32672 | F2: N. of CSAH 31 Wyoming
A3: 1050 | B3: 1995 | C3: =A3&B3 -> 10501995 | D3: Tube | E3: 32672 | F3: N. of CSAH 31 Wyoming
A4: 1050 | B4: 1997 | C4: =A4&B4 -> 10501997 | D4: Tube | E4: 32672 | F4: N. of CSAH 31 Wyoming
A5: 1050 | B5: 1999 | C5: =A5&B5 -> 10501999 | D5: Tube | E5: 32672 | F5: N. of CSAH 31 Wyoming
A6: 1050 | B6: 2001 | C6: =A6&B6 -> 10502001 | D6: Tube | E6: 32672 | F6: N. of CSAH 31 Wyoming
A7: 1052 | B7: 1993 | C7: =A7&B7 -> 10521993 | D7: Manual | E7: 29504 | F7: W OF CSAH21
A8: 1052 | B8: 1995 | C8: =A8&B8 -> 10521995 | D8: Tube | E8: 29504 | F8: W OF CSAH21
A9: 1052 | B9: 1997 | C9: =A9&B9 -> 10521997 | D9: Tube | E9: 29504 | F9: W OF CSAH21
A10: 1052 | B10: 1999 | C10: =A10&B10 -> 10521999 | D10: Tube | E10: 29504 | F10: W OF CSAH21
A11: 1052 | B11: 2001 | C11: =A11&B11 -> 10522001 | D11: Tube | E11: 29504 | F11: W OF CSAH21
A12: 1053 | B12: 1994 | C12: =A12&B12 -> 10531994 | D12: Manual | E12: 9817 | F12: 1.3 MI N OF CSAH45
A13: 1053 | B13: 1996 | C13: =A13&B13 -> 10531996 | D13: Tube | E13: 9817 | F13: 1.3 MI N OF CSAH45
A14: 1053 | B14: 1998 | C14: =A14&B14 -> 10531998 | D14: Tube | E14: 9817 | F14: 1.3 MI N OF CSAH45
A15: 1053 | B15: 2000 | C15: =A15&B15 -> 10532000 | D15: Tube | E15: 9817 | F15: 1.3 MI N OF CSAH45
A16: 1055 | B16: 1993 | C16: =A16&B16 -> 10551993 | D16: Manual | E16: 9819 | F16: W OF CR134 W OF MANHATTAN BEACH
A17: 1055 | B17: 1995 | C17: =A17&B17 -> 10551995 | D17: Manual | E17: 9819 | F17: W OF CR134 W OF MANHATTAN BEACH
A18: 1055 | B18: 1997 | C18: =A18&B18 -> 10551997 | D18: Tube | E18: 9819 | F18: W OF CR134 W OF MANHATTAN BEACH
A19: 1055 | B19: 1999 | C19: =A19&B19 -> 10551999 | D19: Tube | E19: 9819 | F19: W OF CR134 W OF MANHATTAN BEACH
A20: 1055 | B20: 2001 | C20: =A20&B20 -> 10552001 | D20: Tube | E20: 9819 | F20: W OF CR134 W OF MANHATTAN BEACH
A21: 1164 | B21: 1994 | C21: =A21&B21 -> 11641994 | D21: Manual | E21: 6763 | F21: 1.25 MI S OF TH 37 AND CSAH 132
A22: 1164 | B22: 1996 | C22: =A22&B22 -> 11641996 | D22: Tube | E22: 6763 | F22: 1.25 MI S OF TH 37 AND CSAH 132
A23: 1164 | B23: 1998 | C23: =A23&B23 -> 11641998 | D23: Tube | E23: 6763 | F23: 1.25 MI S OF TH 37 AND CSAH 132
A24: 1164 | B24: 2000 | C24: =A24&B24 -> 11642000 | D24: Manual | E24: 6763 | F24: 1.25 MI S OF TH 37 AND CSAH 132
A25: 1164 | B25: 2002 | C25: =A25&B25 -> 11642002 | D25: Tube | E25: 6763 | F25: 1.25 MI S OF TH 37 AND CSAH 132
A26: 1164 | B26: 2005 | C26: =A26&B26 -> 11642005 | D26: Tube | E26: 6763 | F26: 1.25 MI S OF TH 37 AND CSAH 132
A27: 1166 | B27: 1994 | C27: =A27&B27 -> 11661994 | D27: Manual | E27: 6766 | F27: W OF JCT CSAH83 NEAR CALUMET
A28: 1166 | B28: 1996 | C28: =A28&B28 -> 11661996 | D28: Tube | E28: 6766 | F28: W OF JCT CSAH83 NEAR CALUMET
A29: 1166 | B29: 1998 | C29: =A29&B29 -> 11661998 | D29: Tube | E29: 6766 | F29: W OF JCT CSAH83 NEAR CALUMET
A30: 1166 | B30: 2000 | C30: =A30&B30 -> 11662000 | D30: Manual | E30: 6766 | F30: W OF JCT CSAH83 NEAR CALUMET
A31: 1166 | B31: 2002 | C31: =A31&B31 -> 11662002 | D31: Tube | E31: 6766 | F31: W OF JCT CSAH83 NEAR CALUMET
A32: 1166 | B32: 2005 | C32: =A32&B32 -> 11662005 | D32: Tube | E32: 6766 | F32: W OF JCT CSAH83 NEAR CALUMET
A33: 1166 | B33: 2011 | C33: =A33&B33 -> 11662011 | D33: Tube | E33: 6766 | F33: W OF JCT CSAH83 NEAR CALUMET
A34: 1166 | B34: 2017 | C34: =A34&B34 -> 11662017 | D34: Tube | E34: 6766 | F34: W OF JCT CSAH83 NEAR CALUMET
A35: 1166 | B35: 2019 | C35: =A35&B35 -> 11662019 | D35: Manual | E35: 6766 | F35: W OF JCT CSAH83 NEAR CALUMET
A36: 1170 | B36: 1993 | C36: =A36&B36 -> 11701993 | D36: Manual | E36: 6725 | F36: W OF JCT CSAH20
A37: 1170 | B37: 1996 | C37: =A37&B37 -> 11701996 | D37: Tube | E37: 6725 | F37: W OF JCT CSAH20
A38: 1170 | B38: 1998 | C38: =A38&B38 -> 11701998 | D38: Tube | E38: 6725 | F38: W OF JCT CSAH20
A39: 1170 | B39: 2000 | C39: =A39&B39 -> 11702000 | D39: Manual | E39: 6725 | F39: W OF JCT CSAH20
A40: 1170 | B40: 2009 | C40: =A40&B40 -> 11702009 | D40: Tube | E40: 6725 | F40: W OF JCT CSAH20
A41: 1170 | B41: 2015 | C41: =A41&B41 -> 11702015 | D41: Tube | E41: 6725 | F41: W OF JCT CSAH20
A42: 1170 | B42: 2017 | C42: =A42&B42 -> 11702017 | D42: Tube | E42: 6725 | F42: W OF JCT CSAH20
A43: 1172 | B43: 1993 | C43: =A43&B43 -> 11721993 | D43: Manual | E43: 6733 | F43: 0.3 MI W OF JCT CR68
A44: 1172 | B44: 1995 | C44: =A44&B44 -> 11721995 | D44: Tube | E44: 6733 | F44: 0.3 MI W OF JCT CR68
A45: 1172 | B45: 1997 | C45: =A45&B45 -> 11721997 | D45: Tube | E45: 6733 | F45: 0.3 MI W OF JCT CR68
A46: 1172 | B46: 1999 | C46: =A46&B46 -> 11721999 | D46: Manual | E46: 6733 | F46: 0.3 MI W OF JCT CR68
A47: 1172 | B47: 2001 | C47: =A47&B47 -> 11722001 | D47: Tube | E47: 6733 | F47: 0.3 MI W OF JCT CR68
A48: 1172 | B48: 2003 | C48: =A48&B48 -> 11722003 | D48: Tube | E48: 6733 | F48: 0.3 MI W OF JCT CR68
A49: 1172 | B49: 2009 | C49: =A49&B49 -> 11722009 | D49: Tube | E49: 6733 | F49: 0.3 MI W OF JCT CR68
A50: 1175 | B50: 1994 | C50: =A50&B50 -> 11751994 | D50: Manual | E50: 6776 | F50: W OF CR 186 NEAR SAUK CENTRE
A51: 1175 | B51: 1996 | C51: =A51&B51 -> 11751996 | D51: Manual | E51: 6776 | F51: W OF CR 186 NEAR SAUK CENTRE
A52: 1175 | B52: 1999 | C52: =A52&B52 -> 11751999 | D52: Tube | E52: 6776 | F52: W OF CR 186 NEAR SAUK CENTRE
A53: 1175 | B53: 2001 | C53: =A53&B53 -> 11752001 | D53: Manual | E53: 6776 | F53: W OF CR 186 NEAR SAUK CENTRE
A54: 1175 | B54: 2003 | C54: =A54&B54 -> 11752003 | D54: Tube | E54: 6776 | F54: W OF CR 186 NEAR SAUK CENTRE
A55: 1179 | B55: 1995 | C55: =A55&B55 -> 11791995 | D55: Tube | E55: 6746 | F55: S OF S JCT CSAH14
A56: 1179 | B56: 1997 | C56: =A56&B56 -> 11791997 | D56: Tube | E56: 6746 | F56: S OF S JCT CSAH14
A57: 1179 | B57: 1999 | C57: =A57&B57 -> 11791999 | D57: Tube | E57: 6746 | F57: S OF S JCT CSAH14
A58: 1179 | B58: 2001 | C58: =A58&B58 -> 11792001 | D58: Tube | E58: 6746 | F58: S OF S JCT CSAH14
A59: 1179 | B59: 2003 | C59: =A59&B59 -> 11792003 | D59: Tube | E59: 6746 | F59: S OF S JCT CSAH14
A60: 1179 | B60: 2005 | C60: =A60&B60 -> 11792005 | D60: Tube | E60: 6746 | F60: S OF S JCT CSAH14
A61: 1187 | B61: 1993 | C61: =A61&B61 -> 11871993 | D61: Manual | E61: 6775 | F61: 2.5 MI N OF JCT CSAH2 NEAR RICE
A62: 1187 | B62: 1995 | C62: =A62&B62 -> 11871995 | D62: Tube | E62: 6775 | F62: 2.5 MI N OF JCT CSAH2 NEAR RICE
A63: 1187 | B63: 1997 | C63: =A63&B63 -> 11871997 | D63: Tube | E63: 6775 | F63: 2.5 MI N OF JCT CSAH2 NEAR RICE
A64: 1187 | B64: 1999 | C64: =A64&B64 -> 11871999 | D64: Tube | E64: 6775 | F64: 2.5 MI N OF JCT CSAH2 NEAR RICE
A65: 1187 | B65: 2000 | C65: =A65&B65 -> 11872000 | D65: Manual | E65: 6775 | F65: 2.5 MI N OF JCT CSAH2 NEAR RICE
A66: 1187 | B66: 2002 | C66: =A66&B66 -> 11872002 | D66: Tube | E66: 6775 | F66: 2.5 MI N OF JCT CSAH2 NEAR RICE
A67: 1188 | B67: 1993 | C67: =A67&B67 -> 11881993 | D67: Manual | E67: 9828 | F67: .2 MI N OF CSAH14 S OF ORONOCO
A68: 1188 | B68: 1995 | C68: =A68&B68 -> 11881995 | D68: Manual | E68: 9828 | F68: .2 MI N OF CSAH14 S OF ORONOCO
A69: 1188 | B69: 1997 | C69: =A69&B69 -> 11881997 | D69: Manual | E69: 9828 | F69: .2 MI N OF CSAH14 S OF ORONOCO
A70: 1188 | B70: 1999 | C70: =A70&B70 -> 11881999 | D70: Tube | E70: 9828 | F70: .2 MI N OF CSAH14 S OF ORONOCO
A71: 1188 | B71: 1999 | C71: =A71&B71 -> 11881999 | D71: Manual | E71: 9828 | F71: .2 MI N OF CSAH14 S OF ORONOCO
A72: 1188 | B72: 2002 | C72: =A72&B72 -> 11882002 | D72: Tube | E72: 9828 | F72: .2 MI N OF CSAH14 S OF ORONOCO
A73: 1188 | B73: 2008 | C73: =A73&B73 -> 11882008 | D73: Manual | E73: 9828 | F73: .2 MI N OF CSAH14 S OF ORONOCO
A74: 1191 | B74: 1993 | C74: =A74&B74 -> 11911993 | D74: Manual | E74: 6784 | F74: 1.5 MI N OF JCT CSAH22
A75: 1191 | B75: 1995 | C75: =A75&B75 -> 11911995 | D75: Tube | E75: 6784 | F75: 1.5 MI N OF JCT CSAH22
A76: 1191 | B76: 1997 | C76: =A76&B76 -> 11911997 | D76: Tube | E76: 6784 | F76: 1.5 MI N OF JCT CSAH22
A77: 1191 | B77: 1999 | C77: =A77&B77 -> 11911999 | D77: Tube | E77: 6784 | F77: 1.5 MI N OF JCT CSAH22
A78: 1191 | B78: 2001 | C78: =A78&B78 -> 11912001 | D78: Tube | E78: 6784 | F78: 1.5 MI N OF JCT CSAH22
A79: 1191 | B79: 2003 | C79: =A79&B79 -> 11912003 | D79: Tube | E79: 6784 | F79: 1.5 MI N OF JCT CSAH22
A80: 1191 | B80: 2006 | C80: =A80&B80 -> 11912006 | D80: Tube | E80: 6784 | F80: 1.5 MI N OF JCT CSAH22
A81: 1196 | B81: 1994 | C81: =A81&B81 -> 11961994 | D81: Manual | E81: 6756 | F81: AT MP 273 S of NB Dakota Exit
A82: 1196 | B82: 1996 | C82: =A82&B82 -> 11961996 | D82: Manual | E82: 6756 | F82: AT MP 273 S of NB Dakota Exit
A83: 1196 | B83: 1998 | C83: =A83&B83 -> 11961998 | D83: Tube | E83: 6756 | F83: AT MP 273 S of NB Dakota Exit
A84: 1196 | B84: 2001 | C84: =A84&B84 -> 11962001 | D84: Tube | E84: 6756 | F84: AT MP 273 S of NB Dakota Exit
A85: 1196 | B85: 2003 | C85: =A85&B85 -> 11962003 | D85: Tube | E85: 6756 | F85: AT MP 273 S of NB Dakota Exit
A86: 1196 | B86: 2009 | C86: =A86&B86 -> 11962009 | D86: Tube | E86: 6756 | F86: AT MP 273 S of NB Dakota Exit
A87: 1196 | B87: 2015 | C87: =A87&B87 -> 11962015 | D87: Tube | E87: 6756 | F87: AT MP 273 S of NB Dakota Exit
A88: 1197 | B88: 1993 | C88: =A88&B88 -> 11971993 | D88: Manual | E88: 9830 | F88: 0.7 MI W OF W JCT TH 4
A89: 1197 | B89: 1995 | C89: =A89&B89 -> 11971995 | D89: Tube | E89: 9830 | F89: 0.7 MI W OF W JCT TH 4
A90: 1197 | B90: 1997 | C90: =A90&B90 -> 11971997 | D90: Tube | E90: 9830 | F90: 0.7 MI W OF W JCT TH 4
A91: 1197 | B91: 1999 | C91: =A91&B91 -> 11971999 | D91: Tube | E91: 9830 | F91: 0.7 MI W OF W JCT TH 4
A92: 1197 | B92: 2001 | C92: =A92&B92 -> 11972001 | D92: Tube | E92: 9830 | F92: 0.7 MI W OF W JCT TH 4
A93: 1197 | B93: 2003 | C93: =A93&B93 -> 11972003 | D93: Tube | E93: 9830 | F93: 0.7 MI W OF W JCT TH 4
A94: 1197 | B94: 2005 | C94: =A94&B94 -> 11972005 | D94: Tube | E94: 9830 | F94: 0.7 MI W OF W JCT TH 4
A95: 1199 | B95: 1993 | C95: =A95&B95 -> 11991993 | D95: Manual | E95: 6745 | F95: S OF JCT CSAH7 N OF PIPESTONE
A96: 1199 | B96: 1995 | C96: =A96&B96 -> 11991995 | D96: Tube | E96: 6745 | F96: S OF JCT CSAH7 N OF PIPESTONE
A97: 1199 | B97: 1997 | C97: =A97&B97 -> 11991997 | D97: Manual | E97: 6745 | F97: S OF JCT CSAH7 N OF PIPESTONE
A98: 1199 | B98: 1997 | C98: =A98&B98 -> 11991997 | D98: Tube | E98: 6745 | F98: S OF JCT CSAH7 N OF PIPESTONE
A99: 1199 | B99: 1999 | C99: =A99&B99 -> 11991999 | D99: Tube | E99: 6745 | F99: S OF JCT CSAH7 N OF PIPESTONE
A100: 1199 | B100: 2001 | C100: =A100&B100 -> 11992001 | D100: Tube | E100: 6745 | F100: S OF JCT CSAH7 N OF PIPESTONE
A101: 1199 | B101: 2003 | C101: =A101&B101 -> 11992003 | D101: Tube | E101: 6745 | F101: S OF JCT CSAH7 N OF PIPESTONE
A102: 1199 | B102: 2005 | C102: =A102&B102 -> 11992005 | D102: Tube | E102: 6745 | F102: S OF JCT CSAH7 N OF PIPESTONE
A103: 1204 | B103: 1994 | C103: =A103&B103 -> 12041994 | D103: Manual | E103: 6780 | F103: .4 MI N OF JCT CSAH 22
A104: 1204 | B104: 1996 | C104: =A104&B104 -> 12041996 | D104: Manual | E104: 6780 | F104: .4 MI N OF JCT CSAH 22
A105: 1204 | B105: 1998 | C105: =A105&B105 -> 12041998 | D105: Tube | E105: 6780 | F105: .4 MI N OF JCT CSAH 22
A106: 1204 | B106: 2000 | C106: =A106&B106 -> 12042000 | D106: Manual | E106: 6780 | F106: .4 MI N OF JCT CSAH 22
A107: 1204 | B107: 2002 | C107: =A107&B107 -> 12042002 | D107: Tube | E107: 6780 | F107: .4 MI N OF JCT CSAH 22
A108: 1207 | B108: 1993 | C108: =A108&B108 -> 12071993 | D108: Manual | E108: 6724 | F108: 0.7 MI S OF S JCT CSAH1
A109: 1207 | B109: 1995 | C109: =A109&B109 -> 12071995 | D109: Tube | E109: 6724 | F109: 0.7 MI S OF S JCT CSAH1
A110: 1207 | B110: 1997 | C110: =A110&B110 -> 12071997 | D110: Tube | E110: 6724 | F110: 0.7 MI S OF S JCT CSAH1
A111: 1207 | B111: 1998 | C111: =A111&B111 -> 12071998 | D111: Tube | E111: 6724 | F111: 0.7 MI S OF S JCT CSAH1
A112: 1207 | B112: 2000 | C112: =A112&B112 -> 12072000 | D112: Tube | E112: 6724 | F112: 0.7 MI S OF S JCT CSAH1
A113: 1207 | B113: 2002 | C113: =A113&B113 -> 12072002 | D113: Tube | E113: 6724 | F113: 0.7 MI S OF S JCT CSAH1
A114: 1207 | B114: 2009 | C114: =A114&B114 -> 12072009 | D114: Tube | E114: 6724 | F114: 0.7 MI S OF S JCT CSAH1
A115: 1207 | B115: 2015 | C115: =A115&B115 -> 12072015 | D115: Tube | E115: 6724 | F115: 0.7 MI S OF S JCT CSAH1
A116: 1207 | B116: 2017 | C116: =A116&B116 -> 12072017 | D116: Tube | E116: 6724 | F116: 0.7 MI S OF S JCT CSAH1
A117: 1207 | B117: 2018 | C117: =A117&B117 -> 12072018 | D117: Manual | E117: 6724 | F117: 0.7 MI S OF S JCT CSAH1
A118: 1208 | B118: 1994 | C118: =A118&B118 -> 12081994 | D118: Manual | E118: 9832 | F118: N OF JCT CSAH9
A119: 1208 | B119: 1996 | C119: =A119&B119 -> 12081996 | D119: Manual | E119: 9832 | F119: N OF JCT CSAH9
A120: 1208 | B120: 1998 | C120: =A120&B120 -> 12081998 | D120: Manual | E120: 9832 | F120: N OF JCT CSAH9
A121: 1208 | B121: 2000 | C121: =A121&B121 -> 12082000 | D121: Manual | E121: 9832 | F121: N OF JCT CSAH9
A122: 1208 | B122: 2002 | C122: =A122&B122 -> 12082002 | D122: Manual | E122: 9832 | F122: N OF JCT CSAH9
A123: 1209 | B123: 1994 | C123: =A123&B123 -> 12091994 | D123: Manual | E123: 6723 | F123: 1.6 MI N OF JCT CSAH23 N OF ANGUS
A124: 1209 | B124: 1996 | C124: =A124&B124 -> 12091996 | D124: Tube | E124: 6723 | F124: 1.6 MI N OF JCT CSAH23 N OF ANGUS
A125: 1209 | B125: 1997 | C125: =A125&B125 -> 12091997 | D125: Tube | E125: 6723 | F125: 1.6 MI N OF JCT CSAH23 N OF ANGUS
A126: 1209 | B126: 1999 | C126: =A126&B126 -> 12091999 | D126: Tube | E126: 6723 | F126: 1.6 MI N OF JCT CSAH23 N OF ANGUS
A127: 1209 | B127: 2001 | C127: =A127&B127 -> 12092001 | D127: Tube | E127: 6723 | F127: 1.6 MI N OF JCT CSAH23 N OF ANGUS
A128: 1209 | B128: 2003 | C128: =A128&B128 -> 12092003 | D128: Tube | E128: 6723 | F128: 1.6 MI N OF JCT CSAH23 N OF ANGUS
A129: 1209 | B129: 2009 | C129: =A129&B129 -> 12092009 | D129: Tube | E129: 6723 | F129: 1.6 MI N OF JCT CSAH23 N OF ANGUS
A130: 1210 | B130: 1994 | C130: =A130&B130 -> 12101994 | D130: Manual | E130: 68250 | F130: N OF CR 302 NEAR BLACKDUCK
A131: 1210 | B131: 1996 | C131: =A131&B131 -> 12101996 | D131: Tube | E131: 68250 | F131: N OF CR 302 NEAR BLACKDUCK
A132: 1210 | B132: 1998 | C132: =A132&B132 -> 12101998 | D132: Tube | E132: 68250 | F132: N OF CR 302 NEAR BLACKDUCK
A133: 1210 | B133: 2000 | C133: =A133&B133 -> 12102000 | D133: Tube | E133: 68250 | F133: N OF CR 302 NEAR BLACKDUCK
A134: 1210 | B134: 2002 | C134: =A134&B134 -> 12102002 | D134: Tube | E134: 68250 | F134: N OF CR 302 NEAR BLACKDUCK
A135: 1210 | B135: 2010 | C135: =A135&B135 -> 12102010 | D135: Tube | E135: 68250 | F135: N OF CR 302 NEAR BLACKDUCK
A136: 1211 | B136: 1993 | C136: =A136&B136 -> 12111993 | D136: Manual | E136: 6760 | F136: 1 MI N JCT CSAH65 N OF CR377
A137: 1211 | B137: 1995 | C137: =A137&B137 -> 12111995 | D137: Tube | E137: 6760 | F137: 1 MI N JCT CSAH65 N OF CR377
A138: 1211 | B138: 1997 | C138: =A138&B138 -> 12111997 | D138: Tube | E138: 6760 | F138: 1 MI N JCT CSAH65 N OF CR377
A139: 1211 | B139: 1999 | C139: =A139&B139 -> 12111999 | D139: Tube | E139: 6760 | F139: 1 MI N JCT CSAH65 N OF CR377
A140: 1211 | B140: 2001 | C140: =A140&B140 -> 12112001 | D140: Tube | E140: 6760 | F140: 1 MI N JCT CSAH65 N OF CR377
A141: 1211 | B141: 2003 | C141: =A141&B141 -> 12112003 | D141: Tube | E141: 6760 | F141: 1 MI N JCT CSAH65 N OF CR377
A142: 1211 | B142: 2004 | C142: =A142&B142 -> 12112004 | D142: Tube | E142: 6760 | F142: 1 MI N JCT CSAH65 N OF CR377
A143: 1211 | B143: 2009 | C143: =A143&B143 -> 12112009 | D143: Tube | E143: 6760 | F143: 1 MI N JCT CSAH65 N OF CR377
A144: 1212 | B144: 1993 | C144: =A144&B144 -> 12121993 | D144: Manual | E144: 6755 | F144: W OF JCT CR104 W OF ROCHESTER
A145: 1212 | B145: 1995 | C145: =A145&B145 -> 12121995 | D145: Manual | E145: 6755 | F145: W OF JCT CR104 W OF ROCHESTER
A146: 1212 | B146: 1997 | C146: =A146&B146 -> 12121997 | D146: Manual | E146: 6755 | F146: W OF JCT CR104 W OF ROCHESTER
A147: 1212 | B147: 1999 | C147: =A147&B147 -> 12121999 | D147: Tube | E147: 6755 | F147: W OF JCT CR104 W OF ROCHESTER
A148: 1212 | B148: 2001 | C148: =A148&B148 -> 12122001 | D148: Tube | E148: 6755 | F148: W OF JCT CR104 W OF ROCHESTER
A149: 1212 | B149: 2003 | C149: =A149&B149 -> 12122003 | D149: Tube | E149: 6755 | F149: W OF JCT CR104 W OF ROCHESTER
A150: 1212 | B150: 2005 | C150: =A150&B150 -> 12122005 | D150: Tube | E150: 6755 | F150: W OF JCT CR104 W OF ROCHESTER
A151: 1213 | B151: 1993 | C151: =A151&B151 -> 12131993 | D151: Manual | E151: 6757 | F151: E OF ST LOUIS-LAKE CO LINE
A152: 1213 | B152: 1995 | C152: =A152&B152 -> 12131995 | D152: Tube | E152: 6757 | F152: E OF ST LOUIS-LAKE CO LINE
A153: 1213 | B153: 1997 | C153: =A153&B153 -> 12131997 | D153: Tube | E153: 6757 | F153: E OF ST LOUIS-LAKE CO LINE
A154: 1213 | B154: 1999 | C154: =A154&B154 -> 12131999 | D154: Tube | E154: 6757 | F154: E OF ST LOUIS-LAKE CO LINE
A155: 1213 | B155: 2001 | C155: =A155&B155 -> 12132001 | D155: Manual | E155: 6757 | F155: E OF ST LOUIS-LAKE CO LINE
A156: 1213 | B156: 2003 | C156: =A156&B156 -> 12132003 | D156: Tube | E156: 6757 | F156: E OF ST LOUIS-LAKE CO LINE
A157: 1213 | B157: 2005 | C157: =A157&B157 -> 12132005 | D157: Tube | E157: 6757 | F157: E OF ST LOUIS-LAKE CO LINE
A158: 1216 | B158: 1993 | C158: =A158&B158 -> 12161993 | D158: Manual | E158: 6771 | F158: S OF JCT CR452
A159: 1216 | B159: 1995 | C159: =A159&B159 -> 12161995 | D159: Manual | E159: 6771 | F159: S OF JCT CR452
A160: 1216 | B160: 1997 | C160: =A160&B160 -> 12161997 | D160: Tube | E160: 6771 | F160: S OF JCT CR452
A161: 1216 | B161: 1999 | C161: =A161&B161 -> 12161999 | D161: Tube | E161: 6771 | F161: S OF JCT CR452
A162: 1216 | B162: 2001 | C162: =A162&B162 -> 12162001 | D162: Tube | E162: 6771 | F162: S OF JCT CR452
A163: 1216 | B163: 2003 | C163: =A163&B163 -> 12162003 | D163: Tube | E163: 6771 | F163: S OF JCT CR452
A164: 1216 | B164: 2006 | C164: =A164&B164 -> 12162006 | D164: Tube | E164: 6771 | F164: S OF JCT CR452
A165: 1216 | B165: 2011 | C165: =A165&B165 -> 12162011 | D165: Tube | E165: 6771 | F165: S OF JCT CR452
A166: 1216 | B166: 2017 | C166: =A166&B166 -> 12162017 | D166: Manual | E166: 6771 | F166: S OF JCT CR452
A167: 1217 | B167: 1993 | C167: =A167&B167 -> 12171993 | D167: Manual | E167: 6738 | F167: 3.8 MI W OF TH75 NEAR GRACEVILLE
A168: 1217 | B168: 1995 | C168: =A168&B168 -> 12171995 | D168: Tube | E168: 6738 | F168: 3.8 MI W OF TH75 NEAR GRACEVILLE
A169: 1217 | B169: 1997 | C169: =A169&B169 -> 12171997 | D169: Tube | E169: 6738 | F169: 3.8 MI W OF TH75 NEAR GRACEVILLE
A170: 1217 | B170: 1999 | C170: =A170&B170 -> 12171999 | D170: Tube | E170: 6738 | F170: 3.8 MI W OF TH75 NEAR GRACEVILLE
A171: 1217 | B171: 2001 | C171: =A171&B171 -> 12172001 | D171: Tube | E171: 6738 | F171: 3.8 MI W OF TH75 NEAR GRACEVILLE
A172: 1217 | B172: 2002 | C172: =A172&B172 -> 12172002 | D172: Tube | E172: 6738 | F172: 3.8 MI W OF TH75 NEAR GRACEVILLE
A173: 1217 | B173: 2008 | C173: =A173&B173 -> 12172008 | D173: Tube | E173: 6738 | F173: 3.8 MI W OF TH75 NEAR GRACEVILLE
A174: 1217 | B174: 2014 | C174: =A174&B174 -> 12172014 | D174: Tube | E174: 6738 | F174: 3.8 MI W OF TH75 NEAR GRACEVILLE
A175: 1217 | B175: 2018 | C175: =A175&B175 -> 12172018 | D175: Tube | E175: 6738 | F175: 3.8 MI W OF TH75 NEAR GRACEVILLE
A176: 1217 | B176: 2019 | C176: =A176&B176 -> 12172019 | D176: Manual | E176: 6738 | F176: 3.8 MI W OF TH75 NEAR GRACEVILLE
A177: 1218 | B177: 1994 | C177: =A177&B177 -> 12181994 | D177: Manual | E177: 6743 | F177: S OF SWIFT-CHIPPEWA CO LINE
A178: 1218 | B178: 1996 | C178: =A178&B178 -> 12181996 | D178: Manual | E178: 6743 | F178: S OF SWIFT-CHIPPEWA CO LINE
A179: 1218 | B179: 1998 | C179: =A179&B179 -> 12181998 | D179: Tube | E179: 6743 | F179: S OF SWIFT-CHIPPEWA CO LINE
A180: 1218 | B180: 2000 | C180: =A180&B180 -> 12182000 | D180: Tube | E180: 6743 | F180: S OF SWIFT-CHIPPEWA CO LINE
A181: 1218 | B181: 2002 | C181: =A181&B181 -> 12182002 | D181: Tube | E181: 6743 | F181: S OF SWIFT-CHIPPEWA CO LINE
A182: 1218 | B182: 2008 | C182: =A182&B182 -> 12182008 | D182: Tube | E182: 6743 | F182: S OF SWIFT-CHIPPEWA CO LINE
A183: 1218 | B183: 2014 | C183: =A183&B183 -> 12182014 | D183: Tube | E183: 6743 | F183: S OF SWIFT-CHIPPEWA CO LINE
A184: 1219 | B184: 1994 | C184: =A184&B184 -> 12191994 | D184: Manual | E184: 6765 | F184: 1 MI N OF JCT TH65
A185: 1219 | B185: 1996 | C185: =A185&B185 -> 12191996 | D185: Tube | E185: 6765 | F185: 1 MI N OF JCT TH65
A186: 1219 | B186: 1997 | C186: =A186&B186 -> 12191997 | D186: Tube | E186: 6765 | F186: 1 MI N OF JCT TH65
A187: 1219 | B187: 2001 | C187: =A187&B187 -> 12192001 | D187: Manual | E187: 6765 | F187: 1 MI N OF JCT TH65
A188: 1219 | B188: 2003 | C188: =A188&B188 -> 12192003 | D188: Tube | E188: 6765 | F188: 1 MI N OF JCT TH65
A189: 1220 | B189: 1994 | C189: =A189&B189 -> 12201994 | D189: Manual | E189: 6727 | F189: .2 MI S OF JCT CR89 NEAR PARK RAPID
A190: 1220 | B190: 1996 | C190: =A190&B190 -> 12201996 | D190: Tube | E190: 6727 | F190: .2 MI S OF JCT CR89 NEAR PARK RAPID
A191: 1220 | B191: 1998 | C191: =A191&B191 -> 12201998 | D191: Tube | E191: 6727 | F191: .2 MI S OF JCT CR89 NEAR PARK RAPID
A192: 1220 | B192: 2000 | C192: =A192&B192 -> 12202000 | D192: Manual | E192: 6727 | F192: .2 MI S OF JCT CR89 NEAR PARK RAPID
A193: 1220 | B193: 2000 | C193: =A193&B193 -> 12202000 | D193: Tube | E193: 6727 | F193: .2 MI S OF JCT CR89 NEAR PARK RAPID
A194: 1220 | B194: 2002 | C194: =A194&B194 -> 12202002 | D194: Tube | E194: 6727 | F194: .2 MI S OF JCT CR89 NEAR PARK RAPID
A195: 1223 | B195: 1993 | C195: =A195&B195 -> 12231993 | D195: Manual | E195: 6772 | F195: 1 MI S OF S JCT TH200
A196: 1223 | B196: 1995 | C196: =A196&B196 -> 12231995 | D196: Tube | E196: 6772 | F196: 1 MI S OF S JCT TH200
A197: 1223 | B197: 1997 | C197: =A197&B197 -> 12231997 | D197: Tube | E197: 6772 | F197: 1 MI S OF S JCT TH200
A198: 1223 | B198: 1999 | C198: =A198&B198 -> 12231999 | D198: Tube | E198: 6772 | F198: 1 MI S OF S JCT TH200
A199: 1223 | B199: 2001 | C199: =A199&B199 -> 12232001 | D199: Tube | E199: 6772 | F199: 1 MI S OF S JCT TH200
A200: 1223 | B200: 2003 | C200: =A200&B200 -> 12232003 | D200: Tube | E200: 6772 | F200: 1 MI S OF S JCT TH200
... 6600 more rows

Sheet VC Data (hidden)
A1: VC Site and Year | B1: VC Site | C1: Count Hours | D1: Month | E1: Year | F1: Passenger | G1: 2 AX SU | H1: 3+ AX SU | I1: 3 AX SEMI | J1: 4 AX SEMI | K1: 5+ AX SEMI | L1: BUS/TRTR | M1: TWINS | N1: Total | O1: ACF
A2: =B2&E2 -> 10501993 | B2: 1050 | C2: 16 | D2: 6 | E2: 1993 | F2: 3939 | G2: 94 | H2: 62 | I2: 0 | J2: 5 | K2: 40 | L2: 14 | M2: 0 | N2: =SUM(F2:M2) -> 4154 | O2: =IF(N2=0,"",N2/(((F2+G2)*2+(H2+I2)*3+(J2+L2)*4+(K2+M2)*5)/2)) -> 0.9742026266
A3: 10501995 | B3: 1050 | C3: 24 | D3: 10 | E3: 1995 | F3: 4444 | G3: 55 | H3: 18 | I3: 7 | J3: 12 | K3: 46 | L3: 31 | M3: 1 | N3: 4614 | O3: 0.9734177215
A4: 10501997 | B4: 1050 | C4: 24 | D4: 10 | E4: 1997 | F4: 5028 | G4: 78 | H4: 36 | I4: 4 | J4: 8 | K4: 77 | L4: 22 | M4: 1 | N4: 5254 | O4: 0.9691938757
A5: 10501997 | B5: 1050 | C5: 24 | D5: 8 | E5: 1997 | F5: 5028 | G5: 78 | H5: 36 | I5: 4 | J5: 8 | K5: 77 | L5: 22 | M5: 1 | N5: 5254 | O5: 0.9691938757
A6: 10501999 | B6: 1050 | C6: 24 | D6: 5 | E6: 1999 | F6: 3734 | G6: 79 | H6: 22 | I6: 8 | J6: 15 | K6: 46 | L6: 27 | M6: 1 | N6: 3932 | O6: 0.9685921912
A7: 10502001 | B7: 1050 | C7: 24 | D7: 6 | E7: 2001 | F7: 4090 | G7: 219 | H7: 33 | I7: 5 | J7: 8 | K7: 46 | L7: 23 | M7: 2 | N7: 4426 | O7: 0.973175022
A8: 10521993 | B8: 1052 | C8: 16 | D8: 6 | E8: 1993 | F8: 488 | G8: 11 | H8: 4 | I8: 0 | J8: 0 | K8: 8 | L8: 4 | M8: 0 | N8: 515 | O8: 0.9662288931
A9: 10521995 | B9: 1052 | C9: 24 | D9: 10 | E9: 1995 | F9: 609 | G9: 31 | H9: 7 | I9: 2 | J9: 4 | K9: 8 | L9: 8 | M9: 1 | N9: 670 | O9: 0.9571428571
A10: 10521997 | B10: 1052 | C10: 24 | D10: 8 | E10: 1997 | F10: 663 | G10: 19 | H10: 12 | I10: 3 | J10: 5 | K10: 21 | L10: 0 | M10: 0 | N10: 723 | O10: 0.9426336375
A11: 10521997 | B11: 1052 | C11: 24 | D11: 10 | E11: 1997 | F11: 663 | G11: 19 | H11: 12 | I11: 3 | J11: 5 | K11: 21 | L11: 0 | M11: 0 | N11: 723 | O11: 0.9426336375
A12: 10521999 | B12: 1052 | C12: 24 | D12: 9 | E12: 1999 | F12: 491 | G12: 23 | H12: 5 | I12: 3 | J12: 6 | K12: 4 | L12: 4 | M12: 0 | N12: 536 | O12: 0.964028777
A13: 10522001 | B13: 1052 | C13: 24 | D13: 6 | E13: 2001 | F13: 445 | G13: 21 | H13: 12 | I13: 3 | J13: 5 | K13: 5 | L13: 1 | M13: 0 | N13: 492 | O13: 0.9590643275
A14: 10531994 | B14: 1053 | C14: 16 | D14: 9 | E14: 1994 | F14: 346 | G14: 15 | H14: 313 | I14: 0 | J14: 0 | K14: 33 | L14: 1 | M14: 0 | N14: 708 | O14: 0.7737704918
A15: 10531996 | B15: 1053 | C15: 24 | D15: 10 | E15: 1996 | F15: 409 | G15: 9 | H15: 7 | I15: 1 | J15: 1 | K15: 2 | L15: 1 | M15: 0 | N15: 430 | O15: 0.979498861
A16: 10531996 | B16: 1053 | C16: 24 | D16: 7 | E16: 1996 | F16: 409 | G16: 9 | H16: 7 | I16: 1 | J16: 1 | K16: 2 | L16: 1 | M16: 0 | N16: 430 | O16: 0.979498861
A17: 10531998 | B17: 1053 | C17: 24 | D17: 10 | E17: 1998 | F17: 445 | G17: 21 | H17: 26 | I17: 3 | J17: 6 | K17: 212 | L17: 52 | M17: 1 | N17: 766 | O17: 0.6614853195
A18: 10532000 | B18: 1053 | C18: 24 | D18: 10 | E18: 2000 | F18: 470 | G18: 84 | H18: 417 | I18: 6 | J18: 10 | K18: 103 | L18: 10 | M18: 0 | N18: 1100 | O18: 0.7402422611
A19: 10551993 | B19: 1055 | C19: 16 | D19: 9 | E19: 1993 | F19: 602 | G19: 21 | H19: 10 | I19: 3 | J19: 2 | K19: 24 | L19: 8 | M19: 0 | N19: 670 | O19: 0.9273356401
A20: 10551995 | B20: 1055 | C20: 16 | D20: 10 | E20: 1995 | F20: 757 | G20: 33 | H20: 3 | I20: 1 | J20: 2 | K20: 119 | L20: 12 | M20: 0 | N20: 927 | O20: 0.826571556
A21: 10551997 | B21: 1055 | C21: 24 | D21: 10 | E21: 1997 | F21: 761 | G21: 21 | H21: 9 | I21: 4 | J21: 7 | K21: 13 | L21: 6 | M21: 0 | N21: 821 | O21: 0.9546511628
A22: 10551999 | B22: 1055 | C22: 24 | D22: 10 | E22: 1999 | F22: 939 | G22: 45 | H22: 64 | I22: 9 | J22: 16 | K22: 32 | L22: 10 | M22: 1 | N22: 1116 | O22: 0.9087947883
A23: 10552001 | B23: 1055 | C23: 24 | D23: 9 | E23: 2001 | F23: 1000 | G23: 61 | H23: 12 | I23: 2 | J23: 3 | K23: 19 | L23: 3 | M23: 0 | N23: 1100 | O23: 0.9636443276
A24: 11641994 | B24: 1164 | C24: 16 | D24: 10 | E24: 1994 | F24: 5549 | G24: 183 | H24: 57 | I24: 20 | J24: 14 | K24: 481 | L24: 30 | M24: 6 | N24: 6340 | O24: 0.8863413952
A25: 11641996 | B25: 1164 | C25: 24 | D25: 6 | E25: 1996 | F25: 7325 | G25: 198 | H25: 89 | I25: 51 | J25: 96 | K25: 530 | L25: 70 | M25: 11 | N25: 8370 | O25: 0.8887709052
A26: 11641998 | B26: 1164 | C26: 24 | D26: 6 | E26: 1998 | F26: 8351 | G26: 170 | H26: 65 | I26: 68 | J26: 127 | K26: 602 | L26: 60 | M26: 9 | N26: 9452 | O26: 0.8898512521
A27: 11641998 | B27: 1164 | C27: 24 | D27: 10 | E27: 1998 | F27: 8351 | G27: 170 | H27: 65 | I27: 68 | J27: 127 | K27: 602 | L27: 60 | M27: 9 | N27: 9452 | O27: 0.8898512521
A28: 11642000 | B28: 1164 | C28: 16 | D28: 6 | E28: 2000 | F28: 9808 | G28: 192 | H28: 74 | I28: 12 | J28: 17 | K28: 602 | L28: 25 | M28: 7 | N28: 10737 | O28: 0.9149162797
A29: 11642002 | B29: 1164 | C29: 24 | D29: 6 | E29: 2002 | F29: 7754 | G29: 403 | H29: 52 | I29: 31 | J29: 58 | K29: 610 | L29: 112 | M29: 11 | N29: 9031 | O29: 0.8876548064
A30: 11642005 | B30: 1164 | C30: 24 | D30: 7 | E30: 2005 | F30: 7388 | G30: 393 | H30: 48 | I30: 100 | J30: 186 | K30: 942 | L30: 121 | M30: 20 | N30: 9198 | O30: 0.8345127926
A31: 11661994 | B31: 1166 | C31: 16 | D31: 10 | E31: 1994 | F31: 3770 | G31: 121 | H31: 37 | I31: 23 | J31: 7 | K31: 93 | L31: 33 | M31: 0 | N31: 4084 | O31: 0.9512053104
A32: 11661996 | B32: 1166 | C32: 24 | D32: 6 | E32: 1996 | F32: 4391 | G32: 107 | H32: 26 | I32: 21 | J32: 39 | K32: 134 | L32: 36 | M32: 2 | N32: 4756 | O32: 0.9401996639
A33: 11661998 | B33: 1166 | C33: 24 | D33: 10 | E33: 1998 | F33: 4375 | G33: 108 | H33: 39 | I33: 29 | J33: 54 | K33: 129 | L33: 60 | M33: 1 | N33: 4795 | O33: 0.9332425068
A34: 11662000 | B34: 1166 | C34: 16 | D34: 6 | E34: 2000 | F34: 4491 | G34: 104 | H34: 38 | I34: 15 | J34: 10 | K34: 134 | L34: 27 | M34: 0 | N34: 4819 | O34: 0.9479689191
A35: 11662002 | B35: 1166 | C35: 24 | D35: 8 | E35: 2002 | F35: 4670 | G35: 237 | H35: 79 | I35: 9 | J35: 16 | K35: 117 | L35: 33 | M35: 3 | N35: 5164 | O35: 0.9497884863
A36: 11662005 | B36: 1166 | C36: 24 | D36: 6 | E36: 2005 | F36: 5182 | G36: 296 | H36: 124 | I36: 33 | J36: 61 | K36: 248 | L36: 44 | M36: 5 | N36: 5993 | O36: 0.9141244661
A37: 11662011 | B37: 1166 | C37: 24 | D37: 5 | E37: 2011 | F37: 5181 | G37: 134 | H37: 41 | I37: 9 | J37: 17 | K37: 194 | L37: 16 | M37: 0 | N37: 5592 | O37: 0.9412556809
A38: 11662017 | B38: 1166 | C38: 24 | D38: 6 | E38: 2017 | F38: 5727 | G38: 118 | H38: 59 | I38: 12 | J38: 22 | K38: 131 | L38: 24 | M38: 0 | N38: 6093 | O38: 0.9563647779
A39: 11662019 | B39: 1166 | C39: 16 | D39: 1 | E39: 2019 | F39: 1283 | G39: 56 | H39: 14 | I39: 3 | J39: 6 | K39: 69 | L39: 28 | M39: 0 | N39: 1459 | O39: 0.9090342679
A40: 11701993 | B40: 1170 | C40: 16 | D40: 6 | E40: 1993 | F40: 2715 | G40: 87 | H40: 39 | I40: 3 | J40: 6 | K40: 412 | L40: 33 | M40: 3 | N40: 3298 | O40: 0.8285391283
A41: 11701996 | B41: 1170 | C41: 24 | D41: 10 | E41: 1996 | F41: 2256 | G41: 35 | H41: 22 | I41: 14 | J41: 27 | K41: 324 | L41: 14 | M41: 6 | N41: 2698 | O41: 0.8296432964
A42: 11701998 | B42: 1170 | C42: 24 | D42: 10 | E42: 1998 | F42: 3075 | G42: 158 | H42: 33 | I42: 41 | J42: 77 | K42: 379 | L42: 43 | M42: 3 | N42: 3809 | O42: 0.8391716237
A43: 11702000 | B43: 1170 | C43: 16 | D43: 10 | E43: 2000 | F43: 3261 | G43: 59 | H43: 18 | I43: 4 | J43: 4 | K43: 320 | L43: 34 | M43: 3 | N43: 3703 | O43: 0.8740705771
A44: 11702009 | B44: 1170 | C44: 24 | D44: 7 | E44: 2009 | F44: 3024 | G44: 57 | H44: 20 | I44: 5 | J44: 9 | K44: 149 | L44: 16 | M44: 0 | N44: 3280 | O44: 0.9262920079
A45: 11702015 | B45: 1170 | C45: 24 | D45: 10 | E45: 2015 | F45: 3416 | G45: 72 | H45: 83 | I45: 47 | J45: 87 | K45: 46 | L45: 58 | M45: 4 | N45: 3813 | O45: 0.9304538799
A46: 11702017 | B46: 1170 | C46: 24 | D46: 6 | E46: 2017 | F46: 3706 | G46: 88 | H46: 49 | I46: 31 | J46: 58 | K46: 154 | L46: 36 | M46: 7 | N46: 4129 | O46: 0.9166389166
A47: 11721993 | B47: 1172 | C47: 16 | D47: 9 | E47: 1993 | F47: 11094 | G47: 148 | H47: 173 | I47: 9 | J47: 10 | K47: 972 | L47: 179 | M47: 1 | N47: 12586 | O47: 0.8785731737
A48: 11721995 | B48: 1172 | C48: 24 | D48: 10 | E48: 1995 | F48: 11375 | G48: 210 | H48: 658 | I48: 55 | J48: 102 | K48: 1075 | L48: 163 | M48: 6 | N48: 13644 | O48: 0.8588153836
A49: 11721997 | B49: 1172 | C49: 24 | D49: 7 | E49: 1997 | F49: 12648 | G49: 323 | H49: 107 | I49: 59 | J49: 109 | K49: 702 | L49: 114 | M49: 10 | N49: 14072 | O49: 0.9110449307
A50: 11721997 | B50: 1172 | C50: 24 | D50: 10 | E50: 1997 | F50: 12648 | G50: 323 | H50: 107 | I50: 59 | J50: 109 | K50: 702 | L50: 114 | M50: 10 | N50: 14072 | O50: 0.9110449307
A51: 11721999 | B51: 1172 | C51: 16 | D51: 6 | E51: 1999 | F51: 13156 | G51: 192 | H51: 222 | I51: 17 | J51: 23 | K51: 1028 | L51: 121 | M51: 7 | N51: 14766 | O51: 0.890483657
A52: 11722001 | B52: 1172 | C52: 24 | D52: 6 | E52: 2001 | F52: 13195 | G52: 513 | H52: 139 | I52: 26 | J52: 48 | K52: 830 | L52: 144 | M52: 60 | N52: 14955 | O52: 0.9028343747
A53: 11722001 | B53: 1172 | C53: 24 | D53: 9 | E53: 2001 | F53: 13195 | G53: 513 | H53: 139 | I53: 26 | J53: 48 | K53: 830 | L53: 144 | M53: 60 | N53: 14955 | O53: 0.9028343747
A54: 11722003 | B54: 1172 | C54: 24 | D54: 8 | E54: 2003 | F54: 13792 | G54: 267 | H54: 152 | I54: 9 | J54: 17 | K54: 721 | L54: 150 | M54: 1 | N54: 15109 | O54: 0.9190668816
A55: 11722009 | B55: 1172 | C55: 24 | D55: 10 | E55: 2009 | F55: 13344 | G55: 323 | H55: 157 | I55: 19 | J55: 36 | K55: 859 | L55: 72 | M55: 8 | N55: 14818 | O55: 0.9082717828
A56: 11751994 | B56: 1175 | C56: 16 | D56: 10 | E56: 1994 | F56: 13226 | G56: 297 | H56: 97 | I56: 18 | J56: 37 | K56: 2118 | L56: 59 | M56: 51 | N56: 15903 | O56: 0.8235629208
A57: 11751996 | B57: 1175 | C57: 16 | D57: 7 | E57: 1996 | F57: 13085 | G57: 473 | H57: 108 | I57: 30 | J57: 41 | K57: 2552 | L57: 84 | M57: 55 | N57: 16428 | O57: 0.8000974066
A58: 11751999 | B58: 1175 | C58: 24 | D58: 10 | E58: 1999 | F58: 12109 | G58: 583 | H58: 100 | I58: 271 | J58: 503 | K58: 1705 | L58: 284 | M58: 136 | N58: 15691 | O58: 0.8077734878
A59: 11752001 | B59: 1175 | C59: 16 | D59: 6 | E59: 2001 | F59: 12585 | G59: 263 | H59: 109 | I59: 23 | J59: 52 | K59: 2981 | L59: 137 | M59: 85 | N59: 16235 | O59: 0.7698326142
A60: 11752003 | B60: 1175 | C60: 24 | D60: 6 | E60: 2003 | F60: 14541 | G60: 502 | H60: 138 | I60: 47 | J60: 87 | K60: 2815 | L60: 92 | M60: 124 | N60: 18346 | O60: 0.7967514983
A61: 11791995 | B61: 1179 | C61: 24 | D61: 10 | E61: 1995 | F61: 1627 | G61: 79 | H61: 57 | I61: 8 | J61: 14 | K61: 171 | L61: 20 | M61: 13 | N61: 1989 | O61: 0.8530988634
A62: 11791997 | B62: 1179 | C62: 24 | D62: 10 | E62: 1997 | F62: 1457 | G62: 53 | H62: 15 | I62: 9 | J62: 17 | K62: 201 | L62: 15 | M62: 2 | N62: 1769 | O62: 0.8354191263
A63: 11791999 | B63: 1179 | C63: 24 | D63: 10 | E63: 1999 | F63: 1526 | G63: 44 | H63: 14 | I63: 10 | J63: 18 | K63: 286 | L63: 20 | M63: 2 | N63: 1920 | O63: 0.7993338884
A64: 11792001 | B64: 1179 | C64: 24 | D64: 10 | E64: 2001 | F64: 1458 | G64: 79 | H64: 25 | I64: 7 | J64: 12 | K64: 225 | L64: 31 | M64: 5 | N64: 1842 | O64: 0.8201246661
A65: 11792003 | B65: 1179 | C65: 24 | D65: 7 | E65: 2003 | F65: 1833 | G65: 69 | H65: 13 | I65: 4 | J65: 8 | K65: 335 | L65: 3 | M65: 1 | N65: 2266 | O65: 0.8123319591
A66: =B66&E66 -> 11792005 | B66: 1179 | C66: 24 | D66: 7 | E66: 2005 | F66: 2016 | G66: 57 | H66: 16 | I66: 6 | J66: 11 | K66: 409 | L66: 6 | M66: 1 | N66: =SUM(F66:M66) -> 2522 | O66: =IF(N66=0,"",N66/(((F66+G66)*2+(H66+I66)*3+(J66+L66)*4+(K66+M66)*5)/2)) -> 0.7968404423
A67: 11871993 | B67: 1187 | C67: 16 | D67: 9 | E67: 1993 | F67: 9270 | G67: 229 | H67: 70 | I67: 24 | J67: 35 | K67: 761 | L67: 21 | M67: 15 | N67: 10425 | O67: 0.8916353062
A68: 11871995 | B68: 1187 | C68: 24 | D68: 8 | E68: 1995 | F68: 12588 | G68: 250 | H68: 86 | I68: 90 | J68: 166 | K68: 815 | L68: 94 | M68: 38 | N68: 14127 | O68: 0.896696182
A69: 11871997 | B69: 1187 | C69: 24 | D69: 8 | E69: 1997 | F69: 14761 | G69: 372 | H69: 91 | I69: 129 | J69: 240 | K69: 969 | L69: 138 | M69: 27 | N69: 16727 | O69: 0.8940616815
A70: 11871997 | B70: 1187 | C70: 24 | D70: 10 | E70: 1997 | F70: 14761 | G70: 372 | H70: 91 | I70: 129 | J70: 240 | K70: 969 | L70: 138 | M70: 27 | N70: 16727 | O70: 0.8940616815
A71: 11871999 | B71: 1187 | C71: 24 | D71: 10 | E71: 1999 | F71: 13492 | G71: 354 | H71: 104 | I71: 97 | J71: 180 | K71: 1059 | L71: 159 | M71: 40 | N71: 15485 | O71: 0.8811813578
A72: 11872000 | B72: 1187 | C72: 16 | D72: 7 | E72: 2000 | F72: 17144 | G72: 275 | H72: 110 | I72: 25 | J72: 25 | K72: 946 | L72: 91 | M72: 16 | N72: 18632 | O72: 0.9197127132
A73: 11872002 | B73: 1187 | C73: 24 | D73: 7 | E73: 2002 | F73: 16095 | G73: 876 | H73: 103 | I73: 61 | J73: 113 | K73: 808 | L73: 236 | M73: 39 | N73: 18331 | O73: 0.9150630226
A74: 11872002 | B74: 1187 | C74: 24 | D74: 11 | E74: 2002 | F74: 16095 | G74: 876 | H74: 103 | I74: 61 | J74: 113 | K74: 808 | L74: 236 | M74: 39 | N74: 18331 | O74: 0.9150630226
A75: 11881993 | B75: 1188 | C75: 16 | D75: 10 | E75: 1993 | F75: 16650 | G75: 452 | H75: 342 | I75: 28 | J75: 51 | K75: 1249 | L75: 87 | M75: 42 | N75: 18901 | O75: 0.8932208596
A76: 11881995 | B76: 1188 | C76: 16 | D76: 10 | E76: 1995 | F76: 15990 | G76: 403 | H76: 259 | I76: 23 | J76: 51 | K76: 1380 | L76: 138 | M76: 21 | N76: 18265 | O76: 0.8825163675
A77: 11881997 | B77: 1188 | C77: 16 | D77: 10 | E77: 1997 | F77: 16041 | G77: 487 | H77: 307 | I77: 78 | J77: 65 | K77: 1723 | L77: 68 | M77: 30 | N77: 18799 | O77: 0.8641629126
A78: 11881999 | B78: 1188 | C78: 16 | D78: 10 | E78: 1999 | F78: 26673 | G78: 524 | H78: 378 | I78: 144 | J78: 267 | K78: 2189 | L78: 255 | M78: 66 | N78: 30496 | O78: 0.8798234352
A79: 11882002 | B79: 1188 | C79: 24 | D79: 5 | E79: 2002 | F79: 20846 | G79: 1009 | H79: 432 | I79: 59 | J79: 109 | K79: 1833 | L79: 493 | M79: 80 | N79: 24861 | O79: 0.869934915
A80: 11882008 | B80: 1188 | C80: 16 | D80: 10 | E80: 2008 | F80: 22337 | G80: 532 | H80: 316 | I80: 3 | J80: 37 | K80: 1991 | L80: 76 | M80: 17 | N80: 25309 | O80: 0.8851312361
A81: 11911993 | B81: 1191 | C81: 16 | D81: 7 | E81: 1993 | F81: 23988 | G81: 392 | H81: 99 | I81: 18 | J81: 74 | K81: 856 | L81: 156 | M81: 21 | N81: 25604 | O81: 0.941046751
A82: 11911995 | B82: 1191 | C82: 24 | D82: 11 | E82: 1995 | F82: 25365 | G82: 300 | H82: 194 | I82: 146 | J82: 271 | K82: 1016 | L82: 125 | M82: 62 | N82: 27479 | O82: 0.9264041535
A83: 11911997 | B83: 1191 | C83: 24 | D83: 8 | E83: 1997 | F83: 33554 | G83: 521 | H83: 193 | I83: 173 | J83: 321 | K83: 1028 | L83: 187 | M83: 58 | N83: 36035 | O83: 0.9395124495
A84: 11911999 | B84: 1191 | C84: 24 | D84: 9 | E84: 1999 | F84: 33757 | G84: 834 | H84: 189 | I84: 225 | J84: 417 | K84: 955 | L84: 286 | M84: 66 | N84: 36729 | O84: 0.9376699302
A85: 11912001 | B85: 1191 | C85: 24 | D85: 6 | E85: 2001 | F85: 37028 | G85: 1593 | H85: 155 | I85: 117 | J85: 218 | K85: 198 | L85: 360 | M85: 80 | N85: 39749 | O85: 0.9723336595
A86: 11912003 | B86: 1191 | C86: 24 | D86: 7 | E86: 2003 | F86: 41519 | G86: 1037 | H86: 159 | I86: 94 | J86: 175 | K86: 453 | L86: 113 | M86: 44 | N86: 43594 | O86: 0.9740805291
A87: 11912006 | B87: 1191 | C87: 24 | D87: 7 | E87: 2006 | F87: 36234 | G87: 1008 | H87: 170 | I87: 118 | J87: 220 | K87: 586 | L87: 137 | M87: 36 | N87: 38509 | O87: 0.9640988408
A88: 11961994 | B88: 1196 | C88: 16 | D88: 8 | E88: 1994 | F88: 9759 | G88: 235 | H88: 60 | I88: 9 | J88: 32 | K88: 2044 | L88: 32 | M88: 35 | N88: 12206 | O88: 0.7914154185
A89: 11961996 | B89: 1196 | C89: 16 | D89: 6 | E89: 1996 | F89: 14253 | G89: 527 | H89: 86 | I89: 31 | J89: 46 | K89: 2488 | L89: 43 | M89: 54 | N89: 17528 | O89: 0.8156921144
A90: 11961998 | B90: 1196 | C90: 24 | D90: 8 | E90: 1998 | F90: 14726 | G90: 444 | H90: 105 | I90: 206 | J90: 383 | K90: 2665 | L90: 246 | M90: 74 | N90: 18849 | O90: 0.7939095274
A91: 11962001 | B91: 1196 | C91: 24 | D91: 10 | E91: 2001 | F91: 13889 | G91: 554 | H91: 161 | I91: 67 | J91: 125 | K91: 3071 | L91: 399 | M91: 135 | N91: 18401 | O91: 0.7715951023
A92: 11962003 | B92: 1196 | C92: 24 | D92: 8 | E92: 2003 | F92: 17835 | G92: 545 | H92: 106 | I92: 58 | J92: 107 | K92: 2758 | L92: 64 | M92: 73 | N92: 21546 | O92: 0.8272446296
A93: 11962009 | B93: 1196 | C93: 24 | D93: 10 | E93: 2009 | F93: 14105 | G93: 382 | H93: 117 | I93: 26 | J93: 49 | K93: 2965 | L93: 53 | M93: 60 | N93: 17757 | O93: 0.7903240164
A94: 11962015 | B94: 1196 | C94: 24 | D94: 10 | E94: 2015 | F94: 13948 | G94: 455 | H94: 834 | I94: 287 | J94: 533 | K94: 1481 | L94: 428 | M94: 77 | N94: 18043 | O94: 0.8238248522
A95: 11971993 | B95: 1197 | C95: 16 | D95: 9 | E95: 1993 | F95: 2236 | G95: 60 | H95: 29 | I95: 10 | J95: 16 | K95: 541 | L95: 30 | M95: 3 | N95: 2925 | O95: 0.7684224353
A96: 11971995 | B96: 1197 | C96: 24 | D96: 10 | E96: 1995 | F96: 2693 | G96: 72 | H96: 44 | I96: 23 | J96: 42 | K96: 755 | L96: 27 | M96: 35 | N96: 3691 | O96: 0.7413879683
A97: 11971997 | B97: 1197 | C97: 24 | D97: 7 | E97: 1997 | F97: 2951 | G97: 107 | H97: 30 | I97: 33 | J97: 61 | K97: 660 | L97: 63 | M97: 26 | N97: 3931 | O97: 0.768448832
A98: 11971997 | B98: 1197 | C98: 24 | D98: 10 | E98: 1997 | F98: 2951 | G98: 107 | H98: 30 | I98: 33 | J98: 61 | K98: 660 | L98: 63 | M98: 26 | N98: 3931 | O98: 0.768448832
A99: 11971999 | B99: 1197 | C99: 24 | D99: 7 | E99: 1999 | F99: 3202 | G99: 96 | H99: 62 | I99: 35 | J99: 66 | K99: 700 | L99: 59 | M99: 27 | N99: 4247 | O99: 0.7706405371
A100: 11971999 | B100: 1197 | C100: 24 | D100: 10 | E100: 1999 | F100: 3202 | G100: 96 | H100: 62 | I100: 35 | J100: 66 | K100: 700 | L100: 59 | M100: 27 | N100: 4247 | O100: 0.7706405371
A101: 11972001 | B101: 1197 | C101: 24 | D101: 10 | E101: 2001 | F101: 2958 | G101: 192 | H101: 40 | I101: 76 | J101: 141 | K101: 465 | L101: 125 | M101: 32 | N101: 4029 | O101: 0.7902324213
A102: 11972003 | B102: 1197 | C102: 24 | D102: 7 | E102: 2003 | F102: 3624 | G102: 110 | H102: 62 | I102: 11 | J102: 20 | K102: 753 | L102: 10 | M102: 17 | N102: 4607 | O102: 0.7904263533
A103: 11972005 | B103: 1197 | C103: 24 | D103: 7 | E103: 2005 | F103: 3494 | G103: 204 | H103: 52 | I103: 50 | J103: 93 | K103: 755 | L103: 207 | M103: 24 | N103: 4879 | O103: 0.7625224662
A104: 11991993 | B104: 1199 | C104: 16 | D104: 9 | E104: 1993 | F104: 1198 | G104: 27 | H104: 18 | I104: 0 | J104: 1 | K104: 67 | L104: 28 | M104: 0 | N104: 1339 | O104: 0.9062605753
A105: 11991995 | B105: 1199 | C105: 24 | D105: 10 | E105: 1995 | F105: 1356 | G105: 36 | H105: 53 | I105: 4 | J105: 7 | K105: 172 | L105: 17 | M105: 8 | N105: 1653 | O105: 0.8367501898
A106: 11991997 | B106: 1199 | C106: 16 | D106: 10 | E106: 1997 | F106: 1386 | G106: 77 | H106: 217 | I106: 12 | J106: 23 | K106: 168 | L106: 15 | M106: 8 | N106: 1906 | O106: 0.8206673843
A107: 11991999 | B107: 1199 | C107: 24 | D107: 7 | E107: 1999 | F107: 1457 | G107: 62 | H107: 41 | I107: 18 | J107: 33 | K107: 202 | L107: 21 | M107: 1 | N107: 1835 | O107: 0.8254610886
A108: 11992001 | B108: 1199 | C108: 24 | D108: 10 | E108: 2001 | F108: 1086 | G108: 135 | H108: 22 | I108: 7 | J108: 13 | K108: 99 | L108: 23 | M108: 2 | N108: 1387 | O108: 0.8728760227
A109: 11992003 | B109: 1199 | C109: 24 | D109: 7 | E109: 2003 | F109: 1480 | G109: 65 | H109: 39 | I109: 5 | J109: 8 | K109: 127 | L109: 10 | M109: 0 | N109: 1734 | O109: 0.8826673454
A110: 11992005 | B110: 1199 | C110: 24 | D110: 6 | E110: 2005 | F110: 1295 | G110: 55 | H110: 11 | I110: 12 | J110: 23 | K110: 132 | L110: 18 | M110: 2 | N110: 1548 | O110: 0.8592839301
A111: 12041994 | B111: 1204 | C111: 16 | D111: 7 | E111: 1994 | F111: 6106 | G111: 83 | H111: 7 | I111: 1 | J111: 8 | K111: 191 | L111: 19 | M111: 0 | N111: 6415 | O111: 0.9528406981
A112: 12041996 | B112: 1204 | C112: 16 | D112: 8 | E112: 1996 | F112: 8884 | G112: 123 | H112: 21 | I112: 4 | J112: 6 | K112: 206 | L112: 53 | M112: 3 | N112: 9300 | O112: 0.9602478059
A113: 12041998 | B113: 1204 | C113: 24 | D113: 10 | E113: 1998 | F113: 6258 | G113: 152 | H113: 57 | I113: 32 | J113: 59 | K113: 302 | L113: 73 | M113: 4 | N113: 6937 | O113: 0.9160779135
A114: 12042000 | B114: 1204 | C114: 16 | D114: 7 | E114: 2000 | F114: 10537 | G114: 104 | H114: 53 | I114: 3 | J114: 6 | K114: 264 | L114: 27 | M114: 1 | N114: 10995 | O114: 0.9599685686
A115: 12042002 | B115: 1204 | C115: 24 | D115: 7 | E115: 2002 | F115: 8291 | G115: 419 | H115: 48 | I115: 22 | J115: 42 | K115: 228 | L115: 71 | M115: 2 | N115: 9123 | O115: 0.9487312812
A116: 12042002 | B116: 1204 | C116: 24 | D116: 11 | E116: 2002 | F116: 8291 | G116: 419 | H116: 48 | I116: 22 | J116: 42 | K116: 228 | L116: 71 | M116: 2 | N116: 9123 | O116: 0.9487312812
A117: 12071993 | B117: 1207 | C117: 16 | D117: 9 | E117: 1993 | F117: 1276 | G117: 71 | H117: 12 | I117: 2 | J117: 3 | K117: 160 | L117: 17 | M117: 0 | N117: 1541 | O117: 0.8523230088
A118: 12071995 | B118: 1207 | C118: 24 | D118: 8 | E118: 1995 | F118: 1578 | G118: 42 | H118: 22 | I118: 12 | J118: 23 | K118: 130 | L118: 10 | M118: 2 | N118: 1819 | O118: 0.8800193517
A119: 12071997 | B119: 1207 | C119: 24 | D119: 7 | E119: 1997 | F119: 1561 | G119: 54 | H119: 24 | I119: 12 | J119: 23 | K119: 177 | L119: 19 | M119: 5 | N119: 1875 | O119: 0.8491847826
A120: 12071998 | B120: 1207 | C120: 24 | D120: 10 | E120: 1998 | F120: 563 | G120: 29 | H120: 49 | I120: 5 | J120: 10 | K120: 65 | L120: 9 | M120: 1 | N120: 731 | O120: 0.8344748858
A121: 12072000 | B121: 1207 | C121: 24 | D121: 10 | E121: 2000 | F121: 1357 | G121: 112 | H121: 18 | I121: 21 | J121: 40 | K121: 220 | L121: 43 | M121: 4 | N121: 1815 | O121: 0.8054138008
A122: 12072002 | B122: 1207 | C122: 24 | D122: 9 | E122: 2002 | F122: 1382 | G122: 134 | H122: 17 | I122: 24 | J122: 44 | K122: 142 | L122: 52 | M122: 6 | N122: 1801 | O122: 0.8417854639
A123: 12072009 | B123: 1207 | C123: 24 | D123: 6 | E123: 2009 | F123: 1648 | G123: 52 | H123: 25 | I123: 5 | J123: 10 | K123: 132 | L123: 7 | M123: 9 | N123: 1888 | O123: 0.885761201
A124: 12072015 | B124: 1207 | C124: 24 | D124: 6 | E124: 2015 | F124: 1755 | G124: 64 | H124: 53 | I124: 8 | J124: 16 | K124: 186 | L124: 23 | M124: 7 | N124: 2112 | O124: 0.8547146904
A125: 12072017 | B125: 1207 | C125: 24 | D125: 6 | E125: 2017 | F125: 1428 | G125: 44 | H125: 49 | I125: 14 | J125: 27 | K125: 76 | L125: 14 | M125: 5 | N125: 1657 | O125: 0.8951917882
A126: 12072018 | B126: 1207 | C126: 16 | D126: 12 | E126: 2018 | F126: 1339 | G126: 96 | H126: 18 | I126: 0 | J126: 0 | K126: 337 | L126: 77 | M126: 1 | N126: 1868 | O126: 0.7590410402
A127: 12081994 | B127: 1208 | C127: 16 | D127: 6 | E127: 1994 | F127: 13625 | G127: 335 | H127: 147 | I127: 56 | J127: 73 | K127: 2382 | L127: 77 | M127: 107 | N127: 16802 | O127: 0.8082936451
A128: 12081996 | B128: 1208 | C128: 16 | D128: 6 | E128: 1996 | F128: 14345 | G128: 555 | H128: 157 | I128: 38 | J128: 93 | K128: 3086 | L128: 57 | M128: 130 | N128: 18461 | O128: 0.7844895357
A129: 12081998 | B129: 1208 | C129: 16 | D129: 9 | E129: 1998 | F129: 17890 | G129: 468 | H129: 385 | I129: 37 | J129: 140 | K129: 3485 | L129: 148 | M129: 148 | N129: 22701 | O129: 0.7923698494
A130: =B130&E130 -> 12082000 | B130: 1208 | C130: 16 | D130: 8 | E130: 2000 | F130: 19810 | G130: 485 | H130: 314 | I130: 36 | J130: 114 | K130: 3627 | L130: 136 | M130: 152 | N130: =SUM(F130:M130) -> 24674 | O130: =IF(N130=0,"",N130/(((F130+G130)*2+(H130+I130)*3+(J130+L130)*4+(K130+M130)*5)/2)) -> 0.8019501097
A131: 12082002 | B131: 1208 | C131: 16 | D131: 11 | E131: 2002 | F131: 21063 | G131: 543 | H131: 242 | I131: 78 | J131: 97 | K131: 4071 | L131: 198 | M131: 148 | N131: 26440 | O131: 0.7958222343
A132: 12091994 | B132: 1209 | C132: 16 | D132: 8 | E132: 1994 | F132: 581 | G132: 31 | H132: 24 | I132: 3 | J132: 0 | K132: 39 | L132: 6 | M132: 2 | N132: 686 | O132: 0.8943937419
A133: 12091996 | B133: 1209 | C133: 24 | D133: 10 | E133: 1996 | F133: 556 | G133: 46 | H133: 34 | I133: 7 | J133: 63 | K133: 122 | L133: 8 | M133: 0 | N133: 836 | O133: 0.7528140477
A134: 12091997 | B134: 1209 | C134: 24 | D134: 9 | E134: 1997 | F134: 835 | G134: 41 | H134: 51 | I134: 18 | J134: 84 | K134: 221 | L134: 8 | M134: 3 | N134: 1261 | O134: 0.7316507108
A135: 12091999 | B135: 1209 | C135: 24 | D135: 10 | E135: 1999 | F135: 679 | G135: 53 | H135: 17 | I135: 5 | J135: 59 | K135: 99 | L135: 6 | M135: 3 | N135: 921 | O135: 0.8008695652
A136: 12092001 | B136: 1209 | C136: 24 | D136: 6 | E136: 2001 | F136: 486 | G136: 36 | H136: 22 | I136: 1 | J136: 54 | K136: 100 | L136: 11 | M136: 0 | N136: 710 | O136: 0.7581420182
A137: 12092001 | B137: 1209 | C137: 24 | D137: 9 | E137: 2001 | F137: 486 | G137: 36 | H137: 22 | I137: 1 | J137: 54 | K137: 100 | L137: 11 | M137: 0 | N137: 710 | O137: 0.7581420182
A138: 12092003 | B138: 1209 | C138: 24 | D138: 5 | E138: 2003 | F138: 512 | G138: 20 | H138: 11 | I138: 1 | J138: 53 | K138: 57 | L138: 4 | M138: 0 | N138: 658 | O138: 0.8158710477
A139: 12092009 | B139: 1209 | C139: 24 | D139: 9 | E139: 2009 | F139: 554 | G139: 47 | H139: 23 | I139: 3 | J139: 56 | K139: 67 | L139: 6 | M139: 0 | N139: 756 | O139: 0.8115942029
A140: 12101994 | B140: 1210 | C140: 16 | D140: 9 | E140: 1994 | F140: 899 | G140: 23 | H140: 6 | I140: 2 | J140: 0 | K140: 76 | L140: 6 | M140: 0 | N140: 1012 | O140: 0.8908450704
A141: 12101996 | B141: 1210 | C141: 24 | D141: 6 | E141: 1996 | F141: 897 | G141: 11 | H141: 44 | I141: 16 | J141: 31 | K141: 45 | L141: 3 | M141: 36 | N141: 1083 | O141: 0.8537642885
A142: 12101998 | B142: 1210 | C142: 24 | D142: 10 | E142: 1998 | F142: 1014 | G142: 65 | H142: 4 | I142: 21 | J142: 39 | K142: 53 | L142: 12 | M142: 1 | N142: 1209 | O142: 0.8932397488
A143: 12102000 | B143: 1210 | C143: 24 | D143: 10 | E143: 2000 | F143: 1050 | G143: 83 | H143: 8 | I143: 13 | J143: 24 | K143: 76 | L143: 12 | M143: 2 | N143: 1268 | O143: 0.8857841425
A144: 12102002 | B144: 1210 | C144: 24 | D144: 6 | E144: 2002 | F144: 920 | G144: 54 | H144: 2 | I144: 7 | J144: 13 | K144: 70 | L144: 7 | M144: 2 | N144: 1075 | O144: 0.8902691511
A145: 12102010 | B145: 1210 | C145: 24 | D145: 8 | E145: 2010 | F145: 836 | G145: 43 | H145: 5 | I145: 3 | J145: 5 | K145: 89 | L145: 13 | M145: 1 | N145: 995 | O145: 0.8637152778
A146: 12111993 | B146: 1211 | C146: 16 | D146: 9 | E146: 1993 | F146: 2569 | G146: 73 | H146: 27 | I146: 4 | J146: 2 | K146: 277 | L146: 10 | M146: 1 | N146: 2963 | O146: 0.8695524578
A147: 12111995 | B147: 1211 | C147: 24 | D147: 10 | E147: 1995 | F147: 2827 | G147: 81 | H147: 31 | I147: 23 | J147: 43 | K147: 263 | L147: 14 | M147: 1 | N147: 3283 | O147: 0.8724422004
A148: 12111997 | B148: 1211 | C148: 24 | D148: 7 | E148: 1997 | F148: 3599 | G148: 63 | H148: 35 | I148: 32 | J148: 59 | K148: 344 | L148: 14 | M148: 1 | N148: 4147 | O148: 0.8692098093
A149: 12111997 | B149: 1211 | C149: 24 | D149: 10 | E149: 1997 | F149: 3599 | G149: 63 | H149: 35 | I149: 32 | J149: 59 | K149: 344 | L149: 14 | M149: 1 | N149: 4147 | O149: 0.8692098093
A150: 12111999 | B150: 1211 | C150: 24 | D150: 6 | E150: 1999 | F150: 3678 | G150: 143 | H150: 34 | I150: 64 | J150: 119 | K150: 178 | L150: 30 | M150: 2 | N150: 4248 | O150: 0.9007633588
A151: 12112001 | B151: 1211 | C151: 24 | D151: 6 | E151: 2001 | F151: 3272 | G151: 190 | H151: 37 | I151: 9 | J151: 17 | K151: 312 | L151: 30 | M151: 1 | N151: 3868 | O151: 0.8775950085
A152: 12112001 | B152: 1211 | C152: 24 | D152: 9 | E152: 2001 | F152: 3272 | G152: 190 | H152: 37 | I152: 9 | J152: 17 | K152: 312 | L152: 30 | M152: 1 | N152: 3868 | O152: 0.8775950085
A153: 12112003 | B153: 1211 | C153: 24 | D153: 4 | E153: 2003 | F153: 2661 | G153: 86 | H153: 17 | I153: 2 | J153: 5 | K153: 173 | L153: 9 | M153: 1 | N153: 2954 | O153: 0.912150687
A154: 12112004 | B154: 1211 | C154: 24 | D154: 5 | E154: 2004 | F154: 3426 | G154: 85 | H154: 35 | I154: 7 | J154: 14 | K154: 349 | L154: 10 | M154: 0 | N154: 3926 | O154: 0.8735120703
A155: 12112009 | B155: 1211 | C155: 24 | D155: 9 | E155: 2009 | F155: 3282 | G155: 87 | H155: 46 | I155: 11 | J155: 20 | K155: 131 | L155: 17 | M155: 1 | N155: 3595 | O155: 0.9317092134
A156: 12121993 | B156: 1212 | C156: 16 | D156: 9 | E156: 1993 | F156: 16313 | G156: 355 | H156: 193 | I156: 32 | J156: 38 | K156: 581 | L156: 76 | M156: 0 | N156: 17588 | O156: 0.9412394306
A157: 12121995 | B157: 1212 | C157: 16 | D157: 10 | E157: 1995 | F157: 12509 | G157: 281 | H157: 133 | I157: 21 | J157: 24 | K157: 713 | L157: 37 | M157: 21 | N157: 13739 | O157: 0.9172786754
A158: 12121997 | B158: 1212 | C158: 16 | D158: 10 | E158: 1997 | F158: 12219 | G158: 300 | H158: 358 | I158: 41 | J158: 28 | K158: 818 | L158: 53 | M158: 22 | N158: 13839 | O158: 0.8998341949
A159: 12121999 | B159: 1212 | C159: 24 | D159: 8 | E159: 1999 | F159: 18791 | G159: 427 | H159: 248 | I159: 86 | J159: 160 | K159: 1006 | L159: 141 | M159: 35 | N159: 20894 | O159: 0.9114663991
A160: 12122001 | B160: 1212 | C160: 24 | D160: 7 | E160: 2001 | F160: 19871 | G160: 731 | H160: 380 | I160: 37 | J160: 69 | K160: 925 | L160: 185 | M160: 48 | N160: 22246 | O160: 0.9204733532
A161: 12122003 | B161: 1212 | C161: 24 | D161: 10 | E161: 2003 | F161: 21791 | G161: 415 | H161: 283 | I161: 9 | J161: 16 | K161: 1058 | L161: 64 | M161: 38 | N161: 23674 | O161: 0.9267929847
A162: 12122005 | B162: 1212 | C162: 24 | D162: 10 | E162: 2005 | F162: 12444 | G162: 634 | H162: 143 | I162: 117 | J162: 217 | K162: 642 | L162: 198 | M162: 89 | N162: 14484 | O162: 0.8982047068
A163: 12131993 | B163: 1213 | C163: 16 | D163: 9 | E163: 1993 | F163: 6781 | G163: 136 | H163: 38 | I163: 14 | J163: 3 | K163: 311 | L163: 59 | M163: 1 | N163: 7343 | O163: 0.9296113432
A164: 12131995 | B164: 1213 | C164: 24 | D164: 10 | E164: 1995 | F164: 6464 | G164: 100 | H164: 19 | I164: 22 | J164: 41 | K164: 348 | L164: 45 | M164: 3 | N164: 7042 | O164: 0.91752443
A165: 12131997 | B165: 1213 | C165: 24 | D165: 7 | E165: 1997 | F165: 7489 | G165: 152 | H165: 60 | I165: 48 | J165: 89 | K165: 342 | L165: 49 | M165: 1 | N165: 8230 | O165: 0.9209422033
A166: 12131997 | B166: 1213 | C166: 24 | D166: 10 | E166: 1997 | F166: 7489 | G166: 152 | H166: 60 | I166: 48 | J166: 89 | K166: 342 | L166: 49 | M166: 1 | N166: 8230 | O166: 0.9209422033
A167: 12131999 | B167: 1213 | C167: 24 | D167: 6 | E167: 1999 | F167: 7112 | G167: 146 | H167: 46 | I167: 48 | J167: 88 | K167: 393 | L167: 64 | M167: 1 | N167: 7898 | O167: 0.9090699816
A168: 12132001 | B168: 1213 | C168: 16 | D168: 9 | E168: 2001 | F168: 6302 | G168: 143 | H168: 41 | I168: 12 | J168: 5 | K168: 351 | L168: 47 | M168: 0 | N168: 6901 | O168: 0.9193978151
A169: 12132003 | B169: 1213 | C169: 24 | D169: 5 | E169: 2003 | F169: 7262 | G169: 208 | H169: 46 | I169: 8 | J169: 16 | K169: 353 | L169: 13 | M169: 1 | N169: 7907 | O169: 0.9308923946
A170: 12132005 | B170: 1213 | C170: 24 | D170: 7 | E170: 2005 | F170: 8599 | G170: 453 | H170: 136 | I170: 69 | J170: 129 | K170: 316 | L170: 83 | M170: 1 | N170: 9786 | O170: 0.9253025719
A171: 12161993 | B171: 1216 | C171: 16 | D171: 9 | E171: 1993 | F171: 1103 | G171: 23 | H171: 5 | I171: 1 | J171: 0 | K171: 118 | L171: 8 | M171: 0 | N171: 1258 | O171: 0.8699861687
A172: 12161995 | B172: 1216 | C172: 16 | D172: 10 | E172: 1995 | F172: 1101 | G172: 28 | H172: 0 | I172: 0 | J172: 0 | K172: 50 | L172: 5 | M172: 0 | N172: 1184 | O172: 0.9367088608
A173: 12161997 | B173: 1216 | C173: 24 | D173: 7 | E173: 1997 | F173: 1158 | G173: 39 | H173: 22 | I173: 9 | J173: 18 | K173: 76 | L173: 16 | M173: 1 | N173: 1339 | O173: 0.8902925532
A174: 12161999 | B174: 1216 | C174: 24 | D174: 9 | E174: 1999 | F174: 1132 | G174: 47 | H174: 26 | I174: 16 | J174: 31 | K174: 90 | L174: 12 | M174: 1 | N174: 1355 | O174: 0.8711025394
A175: 12162001 | B175: 1216 | C175: 24 | D175: 8 | E175: 2001 | F175: 1512 | G175: 103 | H175: 16 | I175: 8 | J175: 14 | K175: 98 | L175: 18 | M175: 0 | N175: 1769 | O175: 0.9025510204
A176: 12162003 | B176: 1216 | C176: 24 | D176: 6 | E176: 2003 | F176: 1391 | G176: 48 | H176: 9 | I176: 4 | J176: 7 | K176: 64 | L176: 6 | M176: 1 | N176: 1530 | O176: 0.9289617486
A177: 12162006 | B177: 1216 | C177: 24 | D177: 4 | E177: 2006 | F177: 996 | G177: 33 | H177: 10 | I177: 2 | J177: 4 | K177: 94 | L177: 1 | M177: 1 | N177: 1141 | O177: 0.8814213982
A178: 12162011 | B178: 1216 | C178: 24 | D178: 8 | E178: 2011 | F178: 1175 | G178: 68 | H178: 19 | I178: 7 | J178: 14 | K178: 64 | L178: 15 | M178: 0 | N178: 1362 | O178: 0.908
A179: 12162017 | B179: 1216 | C179: 16 | D179: 8 | E179: 2017 | F179: 1219.95107 | G179: 47.27272727 | H179: 26.125 | I179: 0 | J179: 3 | K179: 70.76 | L179: 33.33333333 | M179: 0 | N179: 1400.442131 | O179: 0.9000398226
A180: 12171993 | B180: 1217 | C180: 16 | D180: 9 | E180: 1993 | F180: 612 | G180: 25 | H180: 8 | I180: 1 | J180: 3 | K180: 75 | L180: 12 | M180: 0 | N180: 736 | O180: 0.8479262673
A181: 12171995 | B181: 1217 | C181: 24 | D181: 10 | E181: 1995 | F181: 657 | G181: 51 | H181: 21 | I181: 4 | J181: 7 | K181: 98 | L181: 9 | M181: 1 | N181: 848 | O181: 0.8273170732
A182: 12171997 | B182: 1217 | C182: 24 | D182: 10 | E182: 1997 | F182: 656 | G182: 54 | H182: 40 | I182: 6 | J182: 12 | K182: 139 | L182: 13 | M182: 1 | N182: 921 | O182: 0.7811704835
A183: 12171999 | B183: 1217 | C183: 24 | D183: 7 | E183: 1999 | F183: 667 | G183: 38 | H183: 7 | I183: 9 | J183: 16 | K183: 41 | L183: 7 | M183: 1 | N183: 786 | O183: 0.8931818182
A184: 12172001 | B184: 1217 | C184: 24 | D184: 9 | E184: 2001 | F184: 619 | G184: 59 | H184: 30 | I184: 3 | J184: 6 | K184: 103 | L184: 18 | M184: 1 | N184: 839 | O184: 0.8102366007
A185: 12172002 | B185: 1217 | C185: 24 | D185: 10 | E185: 2002 | F185: 599 | G185: 70 | H185: 10 | I185: 3 | J185: 5 | K185: 195 | L185: 35 | M185: 0 | N185: 917 | O185: 0.7300955414
A186: 12172008 | B186: 1217 | C186: 24 | D186: 5 | E186: 2008 | F186: 632 | G186: 29 | H186: 12 | I186: 2 | J186: 5 | K186: 75 | L186: 3 | M186: 0 | N186: 758 | O186: 0.8560135517
A187: 12172014 | B187: 1217 | C187: 24 | D187: 8 | E187: 2014 | F187: 599 | G187: 19 | H187: 22 | I187: 1 | J187: 1 | K187: 100 | L187: 7 | M187: 0 | N187: 749 | O187: 0.8154599891
A188: 12172018 | B188: 1217 | C188: 24 | D188: 9 | E188: 2018 | F188: 656 | G188: 31 | H188: 22 | I188: 14 | J188: 26 | K188: 239 | L188: 27 | M188: 0 | N188: 1015 | O188: 0.7026652821
A189: 12172019 | B189: 1217 | C189: 16 | D189: 3 | E189: 2019 | F189: 579 | G189: 25 | H189: 30 | I189: 0 | J189: 0 | K189: 201 | L189: 22 | M189: 0 | N189: 857 | O189: 0.7168548724
A190: 12181994 | B190: 1218 | C190: 16 | D190: 9 | E190: 1994 | F190: 496 | G190: 15 | H190: 11 | I190: 2 | J190: 4 | K190: 54 | L190: 17 | M190: 0 | N190: 599 | O190: 0.8466431095
A191: 12181996 | B191: 1218 | C191: 16 | D191: 8 | E191: 1996 | F191: 687 | G191: 14 | H191: 26 | I191: 0 | J191: 3 | K191: 51 | L191: 3 | M191: 0 | N191: 784 | O191: 0.891415577
A192: 12181998 | B192: 1218 | C192: 24 | D192: 7 | E192: 1998 | F192: 625 | G192: 32 | H192: 16 | I192: 12 | J192: 22 | K192: 58 | L192: 7 | M192: 0 | N192: 772 | O192: 0.8558758315
A193: 12182000 | B193: 1218 | C193: 24 | D193: 10 | E193: 2000 | F193: 600 | G193: 26 | H193: 15 | I193: 8 | J193: 14 | K193: 55 | L193: 13 | M193: 3 | N193: 734 | O193: 0.8539848749
A194: =B194&E194 -> 12182002 | B194: 1218 | C194: 24 | D194: 10 | E194: 2002 | F194: 751 | G194: 68 | H194: 47 | I194: 10 | J194: 19 | K194: 271 | L194: 23 | M194: 1 | N194: =SUM(F194:M194) -> 1190 | O194: =IF(N194=0,"",N194/(((F194+G194)*2+(H194+I194)*3+(J194+L194)*4+(K194+M194)*5)/2)) -> 0.713215463
A195: 12182008 | B195: 1218 | C195: 24 | D195: 7 | E195: 2008 | F195: 613 | G195: 35 | H195: 3 | I195: 7 | J195: 13 | K195: 52 | L195: 4 | M195: 1 | N195: 728 | O195: 0.8776371308
A196: 12182014 | B196: 1218 | C196: 24 | D196: 7 | E196: 2014 | F196: 706 | G196: 21 | H196: 24 | I196: 1 | J196: 1 | K196: 77 | L196: 9 | M196: 0 | N196: 839 | O196: 0.8587512794
A197: 12191994 | B197: 1219 | C197: 16 | D197: 8 | E197: 1994 | F197: 2757 | G197: 149 | H197: 19 | I197: 10 | J197: 4 | K197: 529 | L197: 8 | M197: 3 | N197: 3479 | O197: 0.8084117579
A198: 12191996 | B198: 1219 | C198: 24 | D198: 6 | E198: 1996 | F198: 2237 | G198: 65 | H198: 67 | I198: 32 | J198: 59 | K198: 452 | L198: 20 | M198: 18 | N198: 2950 | O198: 0.7797013347
A199: 12191996 | B199: 1219 | C199: 24 | D199: 9 | E199: 1996 | F199: 2237 | G199: 65 | H199: 67 | I199: 32 | J199: 59 | K199: 452 | L199: 20 | M199: 18 | N199: 2950 | O199: 0.7797013347
A200: 12191997 | B200: 1219 | C200: 24 | D200: 10 | E200: 1997 | F200: 2965 | G200: 88 | H200: 134 | I200: 35 | J200: 64 | K200: 469 | L200: 29 | M200: 6 | N200: 3790 | O200: 0.8098290598
... 4300 more rows

Sheet 2018 Added (hidden)
A1: SITE | B1: Count Hr | C1: Month | D1: Year | E1: Pass | F1: 2AXSU | G1: 3AXSU | H1: 3AXLSEMI | I1: 4AXLSEMI | J1: 5PlusSEMI | K1: TrkTrlBuses | L1: TwinTrl | M1: Heavies
A2: 1217 | B2: 24 | C2: 9 | D2: 2018 | E2: 656 | F2: 30 | G2: 22 | H2: 14 | I2: 26 | J2: 238 | K2: 26 | L2: 0 | M2: 0 | O2: Added on September 25th
A3: 1350 | B3: 24 | C3: 6 | D3: 2018 | E3: 13986 | F3: 188 | G3: 148 | H3: 18 | I3: 33 | J3: 263 | K3: 80 | L3: 2 | M3: 0
A4: 1358 | B4: 24 | C4: 7 | D4: 2018 | E4: 7555 | F4: 78 | G4: 34 | H4: 2 | I4: 4 | J4: 17 | K4: 15 | L4: 0 | M4: 0
A5: 1605 | B5: 24 | C5: 7 | D5: 2018 | E5: 2672 | F5: 38 | G5: 18 | H5: 2 | I5: 4 | J5: 36 | K5: 6 | L5: 0 | M5: 0
A6: 1609 | B6: 24 | C6: 6 | D6: 2018 | E6: 3531 | F6: 91 | G6: 18 | H6: 20 | I6: 37 | J6: 72 | K6: 36 | L6: 1 | M6: 0
A7: 1610 | B7: 16 | C7: 7 | D7: 2018 | E7: 3464 | F7: 89 | G7: 57 | H7: 0 | I7: 4 | J7: 407 | K7: 62 | L7: 1 | M7: 183
A8: 1616 | B8: 16 | C8: 8 | D8: 2018 | E8: 2593 | F8: 66 | G8: 58 | H8: 0 | I8: 3 | J8: 127 | K8: 64 | L8: 1 | M8: 30
A9: 1617 | B9: 24 | C9: 6 | D9: 2018 | E9: 11737 | F9: 200 | G9: 157 | H9: 48 | I9: 89 | J9: 606 | K9: 108 | L9: 8 | M9: 0
A10: 1702 | B10: 16 | C10: 5 | D10: 2018 | E10: 20303 | F10: 516 | G10: 299 | H10: 33 | I10: 88 | J10: 973 | K10: 99 | L10: 0 | M10: 177
A11: 1703 | B11: 16 | C11: 6 | D11: 2018 | E11: 268 | F11: 2979 | G11: 1045 | H11: 127 | I11: 251 | J11: 6291 | K11: 393 | L11: 108 | M11: 1027
A12: 1706 | B12: 16 | C12: 6 | D12: 2018 | E12: 59 | F12: 2211 | G12: 974 | H12: 57 | I12: 306 | J12: 9731 | K12: 366 | L12: 207 | M12: 2170
A13: 2006 | B13: 24 | C13: 9 | D13: 2018 | E13: 1357 | F13: 37 | G13: 3 | H13: 2 | I13: 3 | J13: 12 | K13: 4 | L13: 0 | M13: 0
A14: 2060 | B14: 24 | C14: 5 | D14: 2018 | E14: 7736 | F14: 136 | G14: 86 | H14: 6 | I14: 11 | J14: 244 | K14: 48 | L14: 4 | M14: 0
A15: 2061 | B15: 24 | C15: 8 | D15: 2018 | E15: 5831 | F15: 114 | G15: 88 | H15: 23 | I15: 44 | J15: 212 | K15: 85 | L15: 5 | M15: 0
A16: 2095 | B16: 24 | C16: 8 | D16: 2018 | E16: 1431 | F16: 50 | G16: 27 | H16: 6 | I16: 12 | J16: 95 | K16: 15 | L16: 0 | M16: 0
A17: 2098 | B17: 24 | C17: 8 | D17: 2018 | E17: 158 | F17: 14 | G17: 15 | H17: 5 | I17: 9 | J17: 29 | K17: 4 | L17: 0 | M17: 0
A18: 2099 | B18: 24 | C18: 8 | D18: 2018 | E18: 166 | F18: 12 | G18: 15 | H18: 4 | I18: 8 | J18: 44 | K18: 3 | L18: 0 | M18: 0
A19: 2163 | B19: 24 | C19: 6 | D19: 2018 | E19: 20592 | F19: 420 | G19: 74 | H19: 63 | I19: 117 | J19: 50 | K19: 1022 | L19: 8 | M19: 0
A20: 2190 | B20: 24 | C20: 6 | D20: 2018 | E20: 5608 | F20: 108 | G20: 134 | H20: 10 | I20: 18 | J20: 326 | K20: 24 | L20: 0 | M20: 0
A21: 2198 | B21: 16 | C21: 9 | D21: 2018 | E21: 1419 | F21: 39 | G21: 34 | H21: 0 | I21: 0 | J21: 33 | K21: 108 | L21: 0 | M21: 6
A22: 2218 | B22: 24 | C22: 8 | D22: 2018 | E22: 3019 | F22: 70 | G22: 21 | H22: 16 | I22: 29 | J22: 82 | K22: 24 | L22: 2 | M22: 0
A23: 2247 | B23: 24 | C23: 6 | D23: 2018 | E23: 3396 | F23: 84 | G23: 54 | H23: 6 | I23: 12 | J23: 220 | K23: 32 | L23: 4 | M23: 0
A24: 2257 | B24: 24 | C24: 8 | D24: 2018 | E24: 890 | F24: 36 | G24: 38 | H24: 5 | I24: 9 | J24: 174 | K24: 12 | L24: 2 | M24: 0
A25: 2259 | B25: 24 | C25: 8 | D25: 2018 | E25: 825 | F25: 6 | G25: 5 | H25: 0 | I25: 1 | J25: 10 | K25: 2 | L25: 0 | M25: 0
A26: 2271 | B26: 24 | C26: 6 | D26: 2018 | E26: 8034 | F26: 160 | G26: 46 | H26: 7 | I26: 13 | J26: 381 | K26: 56 | L26: 0 | M26: 0
A27: 2275 | B27: 24 | C27: 9 | D27: 2018 | E27: 12124 | F27: 333 | G27: 170 | H27: 197 | I27: 365 | J27: 224 | K27: 152 | L27: 49 | M27: 0
A28: 2282 | B28: 24 | C28: 7 | D28: 2018 | E28: 5538 | F28: 108 | G28: 54 | H28: 9 | I28: 17 | J28: 248 | K28: 21 | L28: 2 | M28: 0
A29: 2285 | B29: 24 | C29: 8 | D29: 2018 | E29: 967 | F29: 12 | G29: 9 | H29: 2 | I29: 4 | J29: 31 | K29: 5 | L29: 1 | M29: 0
A30: 2294 | B30: 24 | C30: 7 | D30: 2018 | E30: 5652 | F30: 69 | G30: 45 | H30: 4 | I30: 7 | J30: 218 | K30: 40 | L30: 1 | M30: 0
A31: 2297 | B31: 24 | C31: 8 | D31: 2018 | E31: 16750 | F31: 266 | G31: 172 | H31: 65 | I31: 121 | J31: 246 | K31: 96 | L31: 4 | M31: 0
A32: 2312 | B32: 24 | C32: 5 | D32: 2018 | E32: 1534 | F32: 71 | G32: 38 | H32: 11 | I32: 20 | J32: 238 | K32: 26 | L32: 0 | M32: 0
A33: 2341 | B33: 24 | C33: 8 | D33: 2018 | E33: 2657 | F33: 42 | G33: 10 | H33: 3 | I33: 5 | J33: 54 | K33: 18 | L33: 0 | M33: 0
A34: 2342 | B34: 24 | C34: 8 | D34: 2018 | E34: 5355 | F34: 88 | G34: 42 | H34: 9 | I34: 16 | J34: 22 | K34: 76 | L34: 3 | M34: 0
A35: 2343 | B35: 24 | C35: 8 | D35: 2018 | E35: 4815 | F35: 86 | G35: 26 | H35: 6 | I35: 11 | J35: 29 | K35: 26 | L35: 0 | M35: 0
A36: 2344 | B36: 24 | C36: 8 | D36: 2018 | E36: 5784 | F36: 89 | G36: 18 | H36: 7 | I36: 14 | J36: 25 | K36: 64 | L36: 2 | M36: 0
A37: 2345 | B37: 24 | C37: 8 | D37: 2018 | E37: 5284 | F37: 82 | G37: 18 | H37: 4 | I37: 7 | J37: 24 | K37: 20 | L37: 0 | M37: 0
A38: 2351 | B38: 24 | C38: 8 | D38: 2018 | E38: 2621 | F38: 36 | G38: 10 | H38: 3 | I38: 6 | J38: 18 | K38: 6 | L38: 0 | M38: 0
A39: 2352 | B39: 24 | C39: 8 | D39: 2018 | E39: 3140 | F39: 60 | G39: 16 | H39: 3 | I39: 6 | J39: 26 | K39: 8 | L39: 0 | M39: 0
A40: 2353 | B40: 24 | C40: 8 | D40: 2018 | E40: 1670 | F40: 24 | G40: 3 | H40: 1 | I40: 1 | J40: 4 | K40: 2 | L40: 0 | M40: 0
A41: 2354 | B41: 24 | C41: 8 | D41: 2018 | E41: 1228 | F41: 15 | G41: 12 | H41: 1 | I41: 2 | J41: 20 | K41: 8 | L41: 0 | M41: 0
A42: 2454 | B42: 24 | C42: 6 | D42: 2018 | E42: 842 | F42: 16 | G42: 16 | H42: 3 | I42: 5 | J42: 54 | K42: 8 | L42: 0 | M42: 0
A43: 2476 | B43: 24 | C43: 8 | D43: 2018 | E43: 10144 | F43: 122 | G43: 101 | H43: 4 | I43: 8 | J43: 334 | K43: 180 | L43: 0 | M43: 0
A44: 2545 | B44: 24 | C44: 8 | D44: 2018 | E44: 1499 | F44: 49 | G44: 50 | H44: 16 | I44: 29 | J44: 114 | K44: 30 | L44: 0 | M44: 0
A45: 2554 | B45: 24 | C45: 4 | D45: 2018 | E45: 1879 | F45: 18 | G45: 11 | H45: 3 | I45: 6 | J45: 13 | K45: 11 | L45: 0 | M45: 0
A46: 2554 | B46: 16 | C46: 6 | D46: 2018 | E46: 2024 | F46: 31 | G46: 22 | H46: 2 | I46: 3 | J46: 16 | K46: 7 | L46: 0 | M46: 0
A47: 2853 | B47: 24 | C47: 6 | D47: 2018 | E47: 591 | F47: 18 | G47: 10 | H47: 2 | I47: 3 | J47: 170 | K47: 8 | L47: 2 | M47: 0
A48: 4986 | B48: 24 | C48: 6 | D48: 2018 | E48: 11906 | F48: 236 | G48: 178 | H48: 11 | I48: 21 | J48: 205 | K48: 88 | L48: 1 | M48: 0
A49: 4990 | B49: 24 | C49: 6 | D49: 2018 | E49: 424 | F49: 20 | G49: 112 | H49: 2 | I49: 3 | J49: 48 | K49: 17 | L49: 0 | M49: 0
